{"text_format":"1","workbook":"xlsx","n_sheets":32,"sheets":["NameOfSheet","Instructions","1. Classification & Budget","2. Questionnaire","3. Goals & Objectives","4. Timeline","5. Evaluation Planning","DO NO HARM","6. Detailed Budget","Grant Selection Menu","9. PCPP - Referrals","SPA Menu","8. SPA Projects","SPA Program Element Dropdown","SPA Elements and Indicators","Custom SPA Indicators","Custom SPA Indicator Source","Custom SPA Indicators Labels","SPAEnviro","7. VAST Projects","11. ECPA Indicators","12. WAFSP","FTF Indicators","WAFSPIndicators","FTFEnvironment Form","Print","PCV Liability","Project Agreement","10. PCPP - Press Auth Form","End","Lookup","Data"],"not_rendered":{"charts":0,"images":2,"macros":1,"external_links":1,"defined_names":51,"comments":7,"pivot_tables":0},"unopened":[],"bounds":{"document_bytes":16777216,"sheet_cells":100000,"rows_first":2000,"rows_last":500,"rows_between":2000,"halvings":0,"cell_chars":16384,"cell_head_chars":4096},"cells_cut":0,"cells_raw":0,"read":"whole","date_system":"1900"}

{"sheet":"NameOfSheet","index":0,"n_rows":19,"n_cols":7,"rows_kept":19,"cut":false,"hidden":false,"merged":[[5,3,5,12],[6,3,6,12],[8,3,8,12],[9,3,9,12],[10,3,10,8],[6,2,22,2],[34,2,40,2],[13,3,13,8],[14,3,14,8],[11,3,11,8],[16,3,16,8],[17,3,17,8],[18,3,18,8],[12,3,12,8]]}
[]
[null,null,null,null,null,null,"This form was updated on 4-23-2013"]
[]
[]
[]
[null,null,null,"Peace Corps Small Grant Application"]
[null,null,null,"This application has been developed as a tool to help Volunteers and their communities plan successful small grant projects. The information that you record here will also be transmitted to Peace Corps Headquarters for internal reporting and reporting to donors. \n\nPlease work with your community to fill out this application and return it to the appropriate staff member at post for review. You can use either the links on the table of contents or the menu at the left to navigate between sections. Before completing any section, make sure to read the entire application. Please check each box as you complete the section."]
[]
[null,null,null,"Table of Contents"]
[null,null,null,"Application Instructions"]
[null,null,null,"1. Project Classification"]
[null,null,null,"2. Project Description"]
[null,null,null,"3. Goals and Objectives"]
[null,null,null,"4. Timeline"]
[null,null,null,"5. Monitoring and Evaluation"]
[null,null,null,"6. Do No Harm"]
[null,null,null,"7. Detailed Budget"]
[null,null,null,"8. Grant Type Selection Menu"]
[null,null,null,"9. Signature Forms"]

{"sheet":"Instructions","index":1,"n_rows":25,"n_cols":7,"rows_kept":25,"cut":false,"hidden":false,"merged":[[1,2,1,13],[4,4,4,5],[13,3,17,12],[4,6,4,12],[3,6,3,12],[19,3,22,12],[24,3,27,12],[5,4,5,5],[6,4,6,5],[6,6,6,12],[5,6,5,12],[9,3,11,12]]}
[]
[null,null,"Instructions on this Application"]
[]
[null,null,null,null,null,null,"CELL COLORS:"]
[null,null,null,null,"BLUE CELLS",null,"To be filled out by the community partner with the help of the PCV "]
[null,null,null,null,"PINK CELLS",null,"To be filled out by post staff"]
[null,null,null,null,"BROWN CELLS",null,"Will automatically populate based on information entered in elsewhere in the application"]
[]
[]
[null,null,null,"COMMENTS ON CELLS:\nPlease take note of the red triangle at the top right corner of certain cells (including this one). These have been included on many cells to help guide users through each step of the process. "]
[]
[]
[]
[null,null,null,"HOW TO START A NEW PARAGRAPH IN A CELL:\nIf you want to start a new line within the same cell, you must hit \"Alt + Enter\"; simply hitting \"Enter\" will jump to the next cell."]
[]
[]
[]
[]
[]
[null,null,null,"PROTECTED CELLS:\nEach one of these sheets is protected and will allow data only to be entered in areas that are shaded in pink or blue.  This is done to ensure that all data entered is of the correct type to be used in reporting within Peace Corps."]
[]
[]
[]
[]
[null,null,null,"PRINTING THIS APPLICATION:\nThe pages in this workbook are set up to be printer-friendly. The default settings will print only the sheet  you are on. If you would like to print the whole workbook at the same time, go to \"File > Print\" and under \"Print what\" select \"Entire workbook.\""]

{"sheet":"1. Classification & Budget","index":2,"n_rows":69,"n_cols":23,"rows_kept":69,"cut":false,"hidden":false,"merged":[[66,12,66,16],[67,12,67,16],[68,12,68,16],[62,7,62,11],[63,7,63,11],[64,7,64,11],[65,7,65,11],[66,7,66,11],[67,7,67,11],[41,16,41,17],[41,20,41,21],[42,20,42,21],[41,18,41,19],[42,16,42,17],[42,18,42,19],[39,14,39,19],[40,18,40,19],[40,16,40,17],[40,14,40,15],[40,20,40,21],[63,3,63,6],[36,17,36,19],[57,11,57,12],[55,9,55,10],[55,11,55,12],[49,3,49,6],[36,8,36,11],[57,7,57,8],[51,9,51,10],[51,15,51,16],[52,11,52,12],[52,13,52,14],[53,7,53,8],[55,7,55,8],[57,9,57,10],[39,8,39,13],[52,3,52,6],[53,3,53,6],[54,3,54,6],[55,3,55,6],[48,13,48,14],[53,11,53,12],[54,9,54,10],[57,3,57,6],[54,7,54,8],[53,13,53,14],[53,15,53,16],[50,3,50,6],[51,3,51,6],[51,11,51,12],[51,13,51,14],[54,13,54,14],[54,15,54,16],[51,7,51,8],[50,7,50,8],[52,7,52,8],[52,15,52,16],[50,15,50,16],[52,9,52,10],[62,17,62,21],[63,17,63,21],[64,17,64,21],[61,12,61,16],[61,17,61,21],[64,12,64,16],[65,12,65,16],[53,9,53,10],[57,15,57,16],[57,13,57,14],[49,18,55,21],[50,11,50,12],[50,13,50,14],[54,11,54,12],[55,13,55,14],[55,15,55,16],[49,9,49,10],[42,3,42,7],[48,11,48,12],[47,3,47,5],[30,8,30,11],[40,10,40,11],[50,9,50,10],[36,13,36,15],[72,15,73,19],[65,17,65,21],[66,17,66,21],[67,17,67,21],[68,17,68,21],[59,2,59,22],[62,3,62,6],[68,7,68,11],[62,12,62,16],[63,12,63,16],[68,3,68,6],[65,3,65,6],[66,3,66,6],[64,3,64,6],[72,4,73,6],[61,7,61,11],[67,3,67,6],[40,12,40,13],[34,8,34,11],[32,13,32,15],[40,8,40,9],[41,12,41,13],[41,14,41,15],[42,12,42,13],[42,8,42,9],[42,10,42,11],[32,8,33,10],[44,2,44,22],[46,3,46,5],[46,7,47,8],[49,11,49,12],[49,13,49,14],[49,15,49,16],[45,9,45,19],[46,9,47,12],[46,13,47,16],[48,3,48,5],[48,7,48,8],[48,9,48,10],[48,15,48,16],[49,7,49,8],[41,3,41,7],[41,8,41,9],[41,10,41,11],[42,14,42,15],[7,23,8,23],[17,13,17,15],[28,2,28,22],[36,5,36,6],[34,5,34,6],[19,7,19,8],[30,17,30,18],[34,13,34,15],[21,11,21,14],[21,15,21,16],[30,5,30,6],[30,13,30,15],[22,17,24,21],[23,3,23,4],[22,5,22,7],[22,8,22,10],[26,3,26,7],[26,8,26,15],[23,5,23,7],[23,8,23,10],[24,15,24,16],[18,7,18,17],[22,11,22,14],[22,15,22,16],[5,7,6,12],[20,3,20,5],[13,7,13,15],[8,7,8,15],[15,3,15,6],[21,5,21,7],[21,8,21,10],[17,7,17,8],[17,16,17,17],[21,17,21,21],[22,3,22,4],[15,7,15,15],[23,11,23,14],[23,15,23,16],[24,3,24,4],[24,5,24,7],[24,8,24,10],[24,11,24,14],[17,18,17,19],[19,3,19,5],[1,2,1,22],[8,3,8,5],[17,3,17,5],[17,10,17,12],[13,3,13,5],[2,2,2,22],[5,3,5,5],[4,3,4,5],[4,7,4,12],[11,7,11,15],[10,7,10,15],[14,7,14,15]]}
[]
[null,null,"Peace Corps Small Grant Application"]
[null,null,"1. Project Classification and Budget"]
[]
[null,null,null,"Country: ",null,null,null,"Peru"]
[null,null,null,"Project Funding Source:",null,null,null,"Peace Corps Partnership Program (PCPP)",null,null,null,null,null,null,null,"Fiscal Year: "]
[null,null,null,null,null,null,null,null,null,null,null,null,null,null,null,"Project Number:",{"$f":"IF(ISBLANK(H6),\"\",INDEX(Lookup!L1:M6,MATCH(H6,Lookup!L1:L6,0),2))","v":"PP"},{"$f":"IF(ISBLANK(Q6),\"\",RIGHT(Q6,2))","v":""},{"$f":"IF(ISBLANK(H5),\"\",INDEX(Lookup!D1:E71,MATCH(H5,Lookup!D1:D75,0),2))","v":527}]
[]
[null,null,null,"Project Title: ",null,null,null,"Healthy Homes with Improved Cook Stoves"]
[]
[null,null,null,"Project City/Town/Village:",null,null,null,"Pampa Elera Alta"]
[null,null,null,"Region:",null,null,null,"Piura"]
[]
[null,null,null,"Community Group Name:  ",null,null,null,"Healthy Homes Committee"]
[null,null,null,"Group Contact Person:",null,null,null,"Project President: Rosa Carmen Mondragon"]
[null,null,null,"Community Group Contact Information (phone, address, etc.):",null,null,null,51989438055]
[null,null,null,null,null,null,null,null,null,null,null,null,null,null,null,null,null,"Total Days",null,null,"Months","Weeks","Days"]
[null,null,null,"Project Start Date:",null,null,null,"2013-06-01",null,null,"Project End Date: ",null,null,"2014-02-03",null,null,{"$f":"DAYS360(H18,N18)+1","v":243},null,{"$f":"Q18/30","v":8.1},null,{"$f":"IF(S18>=1,ROUNDDOWN(S18,0),\"0\")","v":8},{"$f":"IF(U18=\"0\",IF(Q18/7>=1,ROUNDDOWN(Q18/7,0),\"0\"),IF(ROUNDDOWN(Q18-(U18*30),0)>=7,ROUNDDOWN((Q18-(U18*30))/7,0),\"0\"))","v":"0"},{"$f":"IF(0<Q18<7,Q18,IF(Q18<30,Q18-(V18*7),Q18-(U18*30)-(V18*7)))","v":3}]
[null,null,null,null,null,null,null,{"$f":"IF(N18=\"\",\"\",IF(Q18<0,\"ERROR: You've entered an end date that comes before the project's start date. Please make sure you have the correct dates!\",\"\"))","v":""}]
[null,null,null,"Number of PCVs:",null,null,null,1]
[null,null,null,"Volunteer Information:"]
[null,null,null,null,null,"Last Name",null,null,"First Name",null,null,"Peace Corps Sector",null,null,null,"COS Date",null,"Names of Other PCVs Involved in Project Planning or Implementation:"]
[null,null,null,"Primary PCV",null,"Taylor",null,null,"Emelie",null,null,null,null,null,null,"2014-11-23"]
[null,null,null,"PCV 2"]
[null,null,null,"PCV 3"]
[]
[null,null,null,"Responsible Program Manager/APCD:",null,null,null,null,"Emilia Villanueva"]
[]
[null,null,"Project Classification \n(Mark only one classification with \"XX\" as the primary classification of this project. Mark additional applicable descriptors with an \"X.\")"]
[]
[null,null,null,null,null,"Agriculture",null,null,"Municipal Development",null,null,null,null,"HIV/AIDS",null,null,null,"Food Security"]
[]
[null,null,null,null,null,"Education",null,null,"Community and Economic Development",null,null,null,null,"ICT",null,null,null,"Gender and Development"]
[]
[null,null,null,null,null,"Environment",null,null,"Youth Development",null,null,null,null,"NGO Development"]
[]
[null,null,null,null,"xx","Health ",null,"x","Water and Sanitation",null,null,null,null,"Volunteerism"]
[]
[]
[null,null,null,null,null,null,null,null,"Males",null,null,null,null,null,"Females"]
[null,null,null,null,null,null,null,null,"25 years old and above",null,"15 to 24 years old",null,"Under 15 years old",null,"25 years old and above",null,"15 to 24 years old",null,"Under 15 years old",null,"Total"]
[null,null,null,"# of Participants (direct):\nCommunity members directly involved in the design and implementation of the project, including those who attend trainings or workshops",null,null,null,null,1,null,0,null,0,null,57,null,11,null,0,null,{"$f":"SUM(I42:T42)","v":69}]
[null,null,null,"# of Beneficiaries (indirect):\nCommunity members who receive an indirect benefit from the project, not including those counted above",null,null,null,null,null,null,null,null,63,null,null,null,null,null,57,null,{"$f":"SUM(I43:T43)","v":120}]
[]
[null,null,"Project Cost Breakdown (in U.S. Dollars)\n(this will auto-fill based on information you enter in the detailed budget screen)"]
[]
[null,null,null,null,null,null,null,"Grant Contribution",null,"Community Contribution",null,null,null,"Third-Party Contribution (if applicable)"]
[]
[null,null,null,null,null,null,null,"Cash",null,"Cash",null,"In-kind",null,"Cash",null,"In-kind"]
[null,null,null,"Labor ",null,null,null,{"$f":"'6. Detailed Budget'!I26","v":842.5925925925925},null,{"$f":"'6. Detailed Budget'!K26","v":0},null,{"$f":"'6. Detailed Budget'!M26","v":152.11111111111109},null,{"$f":"'6. Detailed Budget'!O26","v":0},null,{"$f":"'6. Detailed Budget'!Q26","v":0},null,null,"All Volunteers should reference the Peace Corps Small Grants Volunteer Handbook which specifically outlines allowable and unallowable costs."]
[null,null,null,"Equipment",null,null,null,{"$f":"'6. Detailed Budget'!I27","v":0},null,{"$f":"'6. Detailed Budget'!K27","v":0},null,{"$f":"'6. Detailed Budget'!M27","v":0},null,{"$f":"'6. Detailed Budget'!O27","v":0},null,{"$f":"'6. Detailed Budget'!Q27","v":0}]
[null,null,null,"Materials/Supplies",null,null,null,{"$f":"'6. Detailed Budget'!I28","v":2630},null,{"$f":"'6. Detailed Budget'!K28","v":0},null,{"$f":"'6. Detailed Budget'!M28","v":927.7037037037037},null,{"$f":"'6. Detailed Budget'!O28","v":0},null,{"$f":"'6. Detailed Budget'!Q28","v":0}]
[null,null,null,"Land/Venue Rental",null,null,null,{"$f":"'6. Detailed Budget'!I29","v":0},null,{"$f":"'6. Detailed Budget'!K29","v":0},null,{"$f":"'6. Detailed Budget'!M29","v":185.18518518518516},null,{"$f":"'6. Detailed Budget'!O29","v":0},null,{"$f":"'6. Detailed Budget'!Q29","v":0}]
[null,null,null,"Travel, Per Diem, Food\n",null,null,null,{"$f":"'6. Detailed Budget'!I30","v":0},null,{"$f":"'6. Detailed Budget'!K30","v":0},null,{"$f":"'6. Detailed Budget'!M30","v":0},null,{"$f":"'6. Detailed Budget'!O30","v":0},null,{"$f":"'6. Detailed Budget'!Q30","v":0}]
[null,null,null,"Materials Transport",null,null,null,{"$f":"'6. Detailed Budget'!I31","v":82.296296296296291},null,{"$f":"'6. Detailed Budget'!K31","v":0},null,{"$f":"'6. Detailed Budget'!M31","v":0},null,{"$f":"'6. Detailed Budget'!O31","v":0},null,{"$f":"'6. Detailed Budget'!Q31","v":0}]
[null,null,null,"Other ",null,null,null,{"$f":"'6. Detailed Budget'!I32","v":0},null,{"$f":"'6. Detailed Budget'!K32","v":0},null,{"$f":"'6. Detailed Budget'!M32","v":0},null,{"$f":"'6. Detailed Budget'!O32","v":0},null,{"$f":"'6. Detailed Budget'!Q32","v":0}]
[]
[null,null,null,"Total",null,null,null,{"$f":"SUM(H50:I56)","v":3554.8888888888887},null,{"$f":"SUM(J50:K56)","v":0},null,{"$f":"SUM(L50:M56)","v":1265},null,{"$f":"SUM(N50:O56)","v":0},null,{"$f":"SUM(P50:Q56)","v":0}]
[]
[null,null,"Budget Narrative\nPlease provide a general list of what items or services will be funded."]
[]
[null,null,null,null,null,null,null,"Grant Contribution",null,null,null,null,"Community Contribution",null,null,null,null,"Third-Party Contribution\n(if applicable)"]
[null,null,null,"Labor",null,null,null,"Skilled labor: masons",null,null,null,null,"Unskilled labor: mason assistants; Health promoters assisting with trainings and house visits; Staff from Health Post assisting with trainings"]
[null,null,null,"Equipment"]
[null,null,null,"Materials and Supplies",null,null,null,"Supplies to build the cook stoves, uniforms, teaching supplies for trainings and for health promoters",null,null,null,null,"Adobes and other small materials such as tin sheets, glass bottles, sugar, salt, water, and mud; food for demonstrations"]
[null,null,null,"Land/Venue Rental",null,null,null,null,null,null,null,null,"Location for trainings"]
[null,null,null,"Travel/Per Diem"]
[null,null,null,"Materials Transport",null,null,null,"Transportation to and from capital city"]
[null,null,null,"Other:  (be specific)"]

{"sheet":"2. Questionnaire","index":3,"n_rows":14,"n_cols":10,"rows_kept":14,"cut":false,"hidden":false,"merged":[[16,17,17,18],[7,4,7,8],[7,9,7,18],[16,4,17,9],[10,4,10,8],[12,4,12,8],[12,9,12,18],[9,4,9,8],[9,9,9,18],[0,4,0,12],[0,14,0,17],[8,4,8,8],[8,9,8,18],[4,4,5,18],[4,3,5,3],[1,2,1,19],[2,2,2,19],[13,4,13,8],[11,4,11,8],[11,9,11,18],[10,9,10,18],[13,9,13,18]]}
[]
[null,null,"Peace Corps Small Grant Application"]
[null,null,"2. Project Description "]
[]
[null,null,null,"Directions","Your descriptions should be between 150 and 250 words.  Please be succinct in describing your project and clearly outline the project's sustainability,long-term need, and the level of community support for the project.  Keep in mind that your application may be shared or distributed to donors and the agency.   "]
[]
[]
[null,null,null,"Summary","1)  Please provide a brief summary of the project (up to 250 words). Include project objectives, the community's contribution and the potential impact the project may have. (For PCPP, this will be posted on the Peace Corps website. For safety and security reasons, please do not include the specific village name or any personal identifying information.)                      ",null,null,null,null,"Healthy Homes with Improved Cook stoves is a community-based behavior change initiative designed to create and maintain healthy practices in rural moms with young children and local community institutions.  This project utilizes four important components: community health promoters, interactive educational sessions, physical changes within the homes, and regular monitoring.  Mothers with children under five years of age that cook with wood-burning stoves were invited to participate in the project, and participants were selected based on their interest and willingness to make healthy lifestyle changes. Mothers will also be in charge of making physical changes within the household to improve the health of their families, including installing handwashing stations near the kitchen and latrine, having covered buckets of boiled water for drinking at all times, covering the top holes of their latrines, exclusively breastfeeding for the first six months of an infant's life, and having a designated play area in their home.  As a means of monitoring changes made during the project, the promoters and volunteer will conduct two house visits per month with the mothers.  At the end of the project, mothers that have attended all of the training sessions and made all required changes within the household and with their children will receive an improved cook stove as a reward for her progress and efforts. Cook stoves will be built by a local mason along with the assistance of a member from each participating household in the Healthy Homes project. The maintenence of the behavior change of the mothers and upkeep of their improved cook stoves will also be monitored for three months after their contruction by the health promoters and volunteer to ensure that each home and child is living a healthier life. Furthermore, 39 mothers that recieved improved cookstoves in 2009 will recieve materials to improve the state of their stoves as well as the health of their families and children under 5 years of age. "]
[null,null,null,"Background","2)  Describe the background of the community, and what priority this project addresses.  (Is this a priority project identified by the community? Why is this project needed?)",null,null,null,null,"Pampa Elera Alta has a population of approximately 850 inhabitants and is located within an agricultural hotspot of northern Piura.  The majority of residents lead simple lives, living in adobe houses, working in their family's growing fields, bathing and washing in the local river, and eating whatever they themselves plant and raise.  While there is a semi-functional health post that serves this community, the lack of personnel means that rural health promotion within this area is practically nonexistent.  Families, especially those with young children, suffer from many common and easily prevented illnesses such as diarrhea, malnutrition, and respiratory infections.  In 2012, 84% of all respitory infections occured in children under five, 89% of all stomach and intestinal infections occured in patients under 5, and 30% of children under 5 years of age were chronically and/or globally malnurished (Health Post of Pampa Elera Baja, 2012). Moreover, the semi-functional health post that serves them is located in an annex 45 minutes away by foot. When an illness is contracted, help is not as easily accessible as one might assume.  The Healthy Homes with Improved Cook stoves initiative aims to reduce the prevalence of these illnesses through the promotion of rural health via educational sessions and monitoring house visits.  Key health topics that will be addressed during the project are hygiene practices, including the importance of hand washing and proper latrine use, healthy nutrition practices, including the importance of vitamins A, C, protein and iron in a child's diet, and the importance of breastfeeding and early stimulation practices.  As a reward for making changes in these areas homes, project mothers will receive an improved cook stove and trainings on how to use and properly maintain their new addition.  Families will then continue to be monitoried, and later evaluated on the changes made within the home and the maintenance and use of their cook stoves."]
[null,null,null,"Community Involvement","3)  How is the community the driving force behind the project? Provide examples that demonstrate the community’s involvement in the design and planning of this project. ",null,null,null,null,"After seeing the implementation and success of other improved cook stove projects in neighboring areas, the community members have been adamant about starting an improved cookstove project within their own homes.  Community members elected a cookstove project during a general meeting, and have been very active in the planning process so far.  The project committee has participated in completing the application for funding, and are excited to see the project come together step-by-step.  They also participated in choosing the health and sanitaion topics to be covered during the educational sessions.  The committee treasurer, Charito Nunez Guerrero, has been extremely active and enthusiastic about the success and sustainablity of this project. In selecting participants, Charito ensured that we selected mothers who were interested and active. For our first training, one-third of our participants did not show up. Charito took it upon herself to talk with every mother about their absence and the importance of participation and learning from each training. Charito has truly been a driving force behind this project. Moreover, community health promoters will be the main session educators and monitoring tools for the participating mothers.  To receive an improved cookstove at the end of the project, mothers must first show their desire for change within the household by attending all sessions and completing all assignments within the home.  After the completion of these tasks, families will continue to contribute to the project through construction of the improved cookstoves alongside the community-selected contractors."]
[null,null,null,"Outcome","4)  Briefly describe the desired outcome of the project.  ",null,null,null,null,"As of now, children under five living in Pampa Elera Alta are plagued with an array of never ending illnesses that can be prevented by the behavior change of their families and environments they live in. The Healthy Homes Committee hopes that, at the end of this project, with the implementation of educational sessions, house visists to monitor behavior change and the eventual implemetation of improved cook stoves, the percentage of illnesses (especially acute respiratory infections, acute diarrhea, and malnutrition) will decrease in children under five years of age and the appropriate intellectual and physical development of such children will be achieved by Feburary 2015. "]
[null,null,null,"Implementation","5) Describe the implementation plan that will be used to achieve the goals and objectives of this project. Do you foresee any challenges to project implementation?",null,null,null,null,"\nThe beginning of this project includes forming a project committee and electing health promoters to assist with the training sessions and house visits.  Both the committee and promoters will contribute to the grant application process as well as to the monitoring and evaluation of the project.  Once elected, the health promoters will begin their separate training in the areas of health and sanitation with the volunteer, with house visits and in-home assignments also included.  After the health promoters finish their trainings, the other mothers will start their own educational sessions, with presentations on the health topics given by both the volunteer and the health promoters.  One session will be given each month, and mothers must attend all sessions to be considered a project participant.  Along with the educational sessions, the health promoters will conduct house visits once a month to check on the progress of the health and sanitation of the families within the home.  Once the sessions are completed, the families will begin constructing their improved cook stoves with the aid of local engineers.  Monitoring of the use and maintenance of the cookstoves will be carried out by the volunteer and health promoters, and continue after construction.  The greatest challenge foreseen in project implementation is the attitude of the participating families.  While any family can make healthy behavior changes within the home, the families themselves need to believe it as well for any real change to happen. While this may be a potential problem, a solution I envision is leading as an example. If I, as well as my committee and health promoters, lead as examples of enthusiasm and belief in this project, the participants will hopefully see its value and thus, change their behavior for the benefit of their families. \n"]
[null,null,null,"Capacity Building","6) How will the project contribute to building skills and capacity within the community?",null,null,null,null,"The Healthy Homes with Improved Cookstoves project will build skills and capacity within the participating communities in numerous ways.  First, the elected project committee will gain valuable information and experience when it comes to project planning and implementation.  This gives them the skills to start their own successful projects to improve the health of their communities in the future.  Second, the health promoters will receive important trainings on rural health promotion that will make them an invaluable resource in the communities.  Their trainings on diarreah, respitory infections, parasites, early childhood stimulation, malnutrition, and family cohersion will provide knowlege and leadership skills to go out and make changes within their community on the individual level, as well as assist the health post with trainings in the future.  Third, the local engineers that assist with the construction of the improved cook stoves will have the skills to become experts in cook stove construction, meaning they can build more stoves in the future for interested families.  Fourth, the institutions involved such as the women's club, evangelical church, and kindergarden will gain the knowledge and skills to independently progress as organizations as well as better the health and lives of the people that they serve. Lastly and perhaps most importantly, the participating mothers will be gain healthy lifestyle skills that can change both their own health and the health of their family members, especially their young children.  The information that the mothers receive in the educational sessions, as well as the completion of the in-home assignments, give the mothers the power to create healthy homes for themselves and their families. As a result of this health homes project with improves cook stoves, five community organizations have increased their capacities such as project planning as well as the confidence to carry out future activities without intervention. Also, sixty-nine individuals have also applied new practices due to this project and 30 new practices have been adopted by such participants. "]
[null,null,null,"Sustainability","7)  How will the community be able to sustain the activities and/or benefits of this project? What is the community's plan to sustain the benefits of the project after the initial material support has ended?",null,null,null,null,"Since the local health post does not have adequate personnel to give one-on-one attention to the activities and monitoring of this project, the responsibility of sustaining the Healthy Homes with Improved Cookstoves project lies in the hands of the community members. The project committee will receive important skills throughout this project process, leaving this experience with the confidence and the capacity to plan, implement, and monitor their own projects in the future.  Another component of the sustainability of this project are the trained community health promoters.  They will be a vital asset to the community through their hands-on training and experience conducting house visits and using monitoring practices.  They can later use these same skills to work alongside health post staff to extend their reach to individual community members in a much more productive manner.  The other project participants also play an important role in the sustainability of this project.  For one, they will be examples for the benefit of using healthy behaviors within the home as the health of their families improves after making these changes.  They can also use their trainings on health and sanitation and share their knowledge with other community members to spread the word about the implementation of healthy habits within the home. Furthermore, the health post of Pampa Elera Baja, myself, and the health promoters of Pampa Elera Alta are beginning a project plan to integrate the work of both institutions in a more sustainable manner. "]

{"sheet":"3. Goals & Objectives","index":4,"n_rows":23,"n_cols":24,"rows_kept":23,"cut":false,"hidden":false,"merged":[[20,6,20,9],[6,2,20,2],[6,6,6,9],[7,6,7,9],[6,4,6,5],[11,4,11,5],[10,6,10,9],[11,6,11,9],[16,4,16,5],[19,6,19,9],[1,2,1,10],[2,2,2,10],[4,4,4,9],[10,12,10,21],[18,6,18,9],[17,6,17,9],[1,12,1,21],[2,12,8,21],[8,6,8,9],[9,6,9,9],[14,6,14,9],[15,6,15,9],[16,6,16,9],[12,6,12,9],[13,6,13,9],[16,12,16,21],[17,12,17,21],[18,12,18,21],[11,12,11,13],[12,12,12,21],[13,12,13,21],[14,12,14,21],[15,12,15,13]]}
[]
[null,null,"Peace Corps Small Grant Application",null,null,null,null,null,null,null,null,null,"Guidance on writing Goals and Objectives"]
[null,null,"3. Goals and Objectives",null,null,null,null,null,null,null,null,null,"Goals articulate intermediate or longer-term outcomes that need to occur to achieve the project’s purpose. As a result of their small scale, most small grant projects only have one or two goals. When drafting goals: \n   --  restate the vision of the community and approach in terms of what is to be accomplished;\n   --  define the long-term results or changes that the project will bring about;\n   --  be realistic and include an overall time frame (goals are not usually time-bound, while objectives are).\n\nObjectives are similar to goals but are much more specific and focus on the short-term results you need to meet the longer-term goal(s) of the project. For each project goal, you should have at least two or more objectives. Project objectives:\n   --  are short-term results you need to meet the longer-term goal(s) of the project;\n   --  are SMART: Specific, Measurable, Attainable, Relevant, and Time-bound;\n   --  Answer these questions:\n              Who is the target group or individuals expected to change?\n              What action or change is expected?\n              When will the desired action or change be accomplished?\n              How much change is expected? "]
[]
[null,null,"Directions",null,"What are the project's goals and objectives, and how will you know if your project is reaching them to produce the desired benefits or change?\n-- Use the tables below to state the project's goals and objectives and show how you will measure and evaluate the success of your project. Establishing this during the planning phase of your project is essential for the community to measure its success against the intended results.  \n-- At least one of your objectives should support your country program goals and strategies.                                           \n-- Your Goals & Objectives should contain your project targets, and may be useful for the program-specific Indicators section later in this application.\n-- You will report on these measures in the completion report.\n"]
[]
[null,null,"Goals & Objectives",null,"Goal 1:",null,"Children under five years of age living in Pampa Elera Alta have optimal health and are at mental and physical development levels appropriate for their age. "]
[null,null,null,null,null,"Objective 1.1","At the end of Feburary 2014, 30 children under five years of age improve their level of development according to the criteria defined in the Peruvian Development Test."]
[null,null,null,null,null,"Objective 1.2","At the end of Febuary 2014, 30 mothers observe a decrease in the frequency of acute respitory infections as well as acute diarrhea of their children under five. "]
[null,null,null,null,null,"Objective 1.3","At the end of Febuary 2014, 30 mothers feed their children under five adequate food and nutrition according to the recommendations for their age. "]
[null,null,null,null,null,"Objective 1.4",null,null,null,null,null,null,"Examples of Goals & Objectives"]
[null,null,null,null,"Goal 2:",null,null,null,null,null,null,null,"Example 1",null,null,null,null,null,null,null,null,null,"        "]
[null,null,null,null,null,"Objective 2.1",null,null,null,null,null,null,"Goal: Community Members will adopt behaviors and practices to reduce risky sexual behavior in youth and increase healthy choices.    ",null,null,null,null,null,null,null,null,null,"    "]
[null,null,null,null,null,"Objective 2.2",null,null,null,null,null,null,"Objective 1:  Youth- By (DATE), X# youth will be provided with the knowledge and skills needed to prevent teen pregnancy, sexually transmitted infections, harmful use of alcohol and other substances.  ",null,null,null,null,null,null,null,null,null,"  "]
[null,null,null,null,null,"Objective 2.3",null,null,null,null,null,null,"Objective 2: Behavior Change- By (DATE), X# of youth will adopt healthy sexual and reproductive behaviors and make better life choices.   ",null,null,null,null,null,null,null,null,null,"                                                                                                                                                                                    "]
[null,null,null,null,null,"Objective 2.4",null,null,null,null,null,null,"Example 2  "]
[null,null,null,null,"Goal 3:",null,null,null,null,null,null,null,"Goal:  Community members will use improved cookstoves, water, and sanitation to reduce infectious diseases and improve environmental health."]
[null,null,null,null,null,"Objective 3.1",null,null,null,null,null,null,"Objective 1: Community Water and Sanitation Systems- By (DATE), X# communities will develop and implement strong action plans for improved water and sanitation. "]
[null,null,null,null,null,"Objective 3.2",null,null,null,null,null,null,"Objective 2:  Cookstoves: By the end of (DATE), X# households or institutions will adopt efficient low fuel emission cook stoves to safeguard the health of their children and family."]
[null,null,null,null,null,"Objective 3.3"]
[null,null,null,null,null,"Objective 3.4"]
[]
[null,null,null,null,null,null,null,null,null,null,null,null,null,null,null,null,null,null,null,null,null,null,null,"                                                                                                      "]

{"sheet":"4. Timeline","index":5,"n_rows":23,"n_cols":52,"rows_kept":23,"cut":false,"hidden":false,"merged":[[36,8,36,11],[29,8,29,11],[22,8,22,11],[23,8,23,11],[24,8,24,11],[25,8,25,11],[19,8,19,11],[20,8,20,11],[21,8,21,11],[30,8,30,11],[26,8,26,11],[27,8,27,11],[46,4,46,7],[41,4,41,7],[42,4,42,7],[43,4,43,7],[44,4,44,7],[45,4,45,7],[47,4,47,7],[11,8,11,11],[12,8,12,11],[13,8,13,11],[31,8,31,11],[32,8,32,11],[33,8,33,11],[34,8,34,11],[35,8,35,11],[29,4,29,7],[28,4,28,7],[27,4,27,7],[26,4,26,7],[40,4,40,7],[36,4,36,7],[37,4,37,7],[38,4,38,7],[39,4,39,7],[12,4,12,7],[13,4,13,7],[31,4,31,7],[32,4,32,7],[33,4,33,7],[35,4,35,7],[30,4,30,7],[21,4,21,7],[20,4,20,7],[18,4,18,7],[17,4,17,7],[16,4,16,7],[15,4,15,7],[14,4,14,7],[19,4,19,7],[21,51,21,55],[34,4,34,7],[9,51,12,55],[11,4,11,7],[25,4,25,7],[24,4,24,7],[23,4,23,7],[22,4,22,7],[9,22,9,50],[18,8,18,11],[14,8,14,11],[15,8,15,11],[16,8,16,11],[17,8,17,11],[28,8,28,11],[1,2,1,21],[2,2,2,21],[4,4,4,20],[10,4,10,7],[10,8,10,11],[7,4,9,7],[47,8,47,11],[37,8,37,11],[38,8,38,11],[39,8,39,11],[40,8,40,11],[46,8,46,11],[41,8,41,11],[42,8,42,11],[43,8,43,11],[44,8,44,11],[45,8,45,11]]}
[]
[null,null,"Peace Corps Small Grant Application"]
[null,null,"4. Timeline"]
[]
[null,null,"Directions",null,"Please include a detailed project timeline for your implementation plan. Adjust the timeline below to fit your needs by choosing the appropriate time frame from the dropdown in cell H9. For example, if you are doing a week-long camp, you would change the time from weeks to days by choosing \"days\" from the dropdown. Describe each activity necessary for project planning and implementation in the \"Activity\" column, and the person responsible in the column to the right. Indicate when each activity will take place by placing an \"X\" in the appropriate day, week or month."]
[null,null,null,null,"Approximate Implementation Period (auto-fills based off of start/end date on Project Classification page):"]
[null,null,null,null,"Months:",{"$f":"'1. Classification & Budget'!U18","v":8},null,"Weeks:",{"$f":"'1. Classification & Budget'!V18","v":"0"},null,"Days:",{"$f":"'1. Classification & Budget'!W18","v":3},"Day 1","Day 2","Day 3","Day 4","Day 5","Day 6","Day 7","Day 8","Day 9","Day 10","Day 11","Day 12","Day 13","Day 14","Day 15","Day 16","Day 17","Day 18","Day 19","Day 20","Day 21","Day 22","Day 23","Day 24","Day 25","Day 26","Day 27","Day 28","Day 29","Day 30","Day 31","Day 32","Day 33","Day 34","Day 35","Day 36","Day 37","Day 38","Day 39"]
[null,null,null,null,"Do you want to measure your timeline in days, weeks or months? Your answer to this question will populate the timeline headings below.",null,null,null,null,null,null,null,"Week 1","Week 2","Week 3","Week 4","Week 5","Week 6","Week 7","Week 8","Week 9","Week 10","Week 11","Week 12","Week 13","Week 14","Week 15","Week 16","Week 17","Week 18","Week 19","Week 20","Week 21","Week 22","Week 23","Week 24","Week 25","Week 26","Week 27","Week 28","Week 29","Week 30","Week 31","Week 32","Week 33","Week 34","Week 35","Week 36","Week 37","Week 38","Week 39"]
[null,null,null,null,null,null,null,null,"Months",null,null,null,"Month 1","Month 2","Month 3","Month 4","Month 5","Month 6","Month 7","Month 8","Month 9","Month 10","Month 11","Month 12","Month 13","Month 14","Month 15","Month 16","Month 17","Month 18","Month 19","Month 20","Month 21","Month 22","Month 23","Month 24","Month 25","Month 26","Month 27","Month 28","Month 29","Month 30","Month 31","Month 32","Month 33","Month 34","Month 35","Month 36","Month 37","Month 38","Month 39"]
[null,null,null,null,null,null,null,null,null,null,null,null,"Day, Weeks or Months (headings change automatically according to designation above)",null,null,null,null,null,null,null,null,null,"Additional:",null,null,null,null,null,null,null,null,null,null,null,null,null,null,null,null,null,null,null,null,null,null,null,null,null,null,null,null,"To see more columns, select columns U to AZ, (by clicking on the \"U\" and dragging over to \"AZ\") right click on the selected columns, and then select \"Unhide.\""]
[null,null,null,null,"Activity",null,null,null,"Person(s) Responsible",null,null,null,{"$f":"IF(ISBLANK($I$9),\"\",IF($I$9=\"Days\",M7,IF($I$9=\"Weeks\",M8,IF($I$9=\"Months\",M9))))","v":"Month 1"},{"$f":"IF(ISBLANK($I$9),\"\",IF($I$9=\"Days\",N7,IF($I$9=\"Weeks\",N8,IF($I$9=\"Months\",N9))))","v":"Month 2"},"Month 3","Month 4","Month 5","Month 6","Month 7","Month 8","Month 9","Month 10","Month 11","Month 12","Month 13","Month 14","Month 15","Month 16","Month 17","Month 18","Month 19","Month 20","Month 21","Month 22","Month 23","Month 24","Month 25","Month 26","Month 27","Month 28","Month 29","Month 30","Month 31","Month 32","Month 33","Month 34","Month 35","Month 36","Month 37","Month 38","Month 39"]
[null,null,"Example",null,"Pick up materials from the regional capital",null,null,null,"Organization president"]
[null,null,null,null,"Form committee and elect health promoters",null,null,null,"PCV, community members",null,null,null,"X"]
[null,null,null,null,"Project planning",null,null,null,"PCV, committee members",null,null,null,"X"]
[null,null,null,null,"Solicit funds",null,null,null,"PCV and committee president",null,null,null,null,"X","X"]
[null,null,null,null,"Train Health Promoters",null,null,null,"PCV",null,null,null,null,"X"]
[null,null,null,null,"Train project participants (mothers)",null,null,null,"PCV, committee president,health promoters health post",null,null,null,null,null,"X","X","X","X","X","X"]
[null,null,null,null,"House Visits",null,null,null,"PCV and health promoters",null,null,null,null,"X","X","X","X","X","X","X","X","X"]
[null,null,null,null,"Buy and transport materials for improved cook stoves",null,null,null,"Municipality of Piura",null,null,null,null,null,null,null,null,"X","X"]
[null,null,null,null,"Preparation for construction of stoves",null,null,null,"Project participants",null,null,null,null,null,null,null,null,null,null,"X"]
[null,null,null,null,"Contruction of Cook stoves",null,null,null,"Project participants, mason",null,null,null,null,null,null,null,null,null,null,null,"X"]
[null,null,null,null,"Monitoring",null,null,null,"Health Promoters, PCV, health post",null,null,null,null,"X","X","X","X","X","X","X","X","X"]
[null,null,null,null,"Evalutation",null,null,null,"PCV, health promoters, and all committee members",null,null,null,"X",null,null,null,null,null,null,null,null,"X"]

{"sheet":"5. Evaluation Planning","index":6,"n_rows":36,"n_cols":19,"rows_kept":36,"cut":false,"hidden":false,"merged":[[28,13,31,13],[35,4,35,5],[30,4,30,5],[34,4,34,5],[25,6,25,7],[32,13,35,13],[24,12,27,12],[28,12,31,12],[33,6,33,7],[34,6,34,7],[32,12,35,12],[32,4,32,5],[33,4,33,5],[31,6,31,7],[32,6,32,7],[30,6,30,7],[22,4,22,5],[29,6,29,7],[12,4,12,5],[18,4,18,5],[23,4,23,5],[26,4,26,5],[23,6,23,7],[25,4,25,5],[31,4,31,5],[24,4,24,5],[28,4,28,5],[27,6,27,7],[28,6,28,7],[29,4,29,5],[26,6,26,7],[24,6,24,7],[27,4,27,5],[35,10,35,11],[27,8,27,9],[7,4,7,14],[14,4,14,14],[1,2,1,15],[2,2,2,15],[22,6,22,7],[4,4,4,14],[10,4,10,5],[11,4,11,5],[17,4,17,5],[22,12,22,13],[22,8,22,9],[23,8,23,9],[24,8,24,9],[25,8,25,9],[35,6,35,7],[35,8,35,9],[32,8,32,9],[33,8,33,9],[34,8,34,9],[29,8,29,9],[30,8,30,9],[31,8,31,9],[31,10,31,11],[26,8,26,9],[28,8,28,9],[27,10,27,11],[22,10,22,11],[23,10,23,11],[24,10,24,11],[25,10,25,11],[26,10,26,11],[22,18,22,23],[24,13,27,13],[26,17,27,23],[23,18,23,23],[24,18,25,23],[32,10,32,11],[33,10,33,11],[34,10,34,11],[28,10,28,11],[29,10,29,11],[30,10,30,11],[2,17,2,23],[18,17,18,23],[19,18,21,23],[3,17,3,23],[16,18,17,23],[13,18,15,23],[10,18,12,23],[4,17,4,23],[5,17,7,23],[9,18,9,23],[8,17,8,23]]}
[]
[null,null,"Peace Corps Small Grant Application"]
[null,null,"5. Monitoring and Evaluation",null,null,null,null,null,null,null,null,null,null,null,null,null,null,"Small Grant Indicator Directions"]
[]
[null,null,"Directions",null,"First, provide information for the global Peace Corps small grants indicators. Then, use the table below to list indicators for each of your objectives. For VAST, SPA, ECPA and FTF, there are also a pre-determined set of indicators which are outlined later in this application.  Please be sure to incorporate at least one of the pre-determined program indicators into this section of your project plan. ",null,null,null,null,null,null,null,null,null,null,null,null,"Volunteers must measure all small grants projects against two indicators: capacity building and new technology and practices."]
[null,null,null,null,null,null,null,null,null,null,null,null,null,null,null,null,null,"1. For the capacity building indicator, first determine your unit of measurement. Are you working with individuals, service providers or an organization/association?  For this indicator, choose the one that best fits your project and determine a target for that indicator."]
[]
[null,null,null,null,"Capacity Development"]
[]
[null,null,null,null,null,null,"Men, 25 and older","Women, 25 and older","Men, 15-24","Women, 15-24","Boys, 14 and under","Girls, 14 and under",null,null,null,null,null,null,"Units of Measurement:  Choose which indicator best fits your project.  Are you working with individuals, service providers or organizations/associations?"]
[null,null,null,null,"# of individuals who will have increased capacity due to this small grant ",null,1,57,null,11,63,57,null,null,null,null,null,null,"a. Individual members of the community: The main focus of the Peace Corps, whether directly through the work of Volunteers and their work partners or through those trained by Volunteers, is to build capacities at the individual level so community members are empowered to improve their quality of life, be they individual students, farmers, clients served by a nongovernmental organization (NGO), or others."]
[null,null,null,null," # service providers who will have increased capacity due to this small grant "]
[null,null,null,null,"# of community organizations and/or associations that will have increased capacity due to this small grant ",null,5,"Organizations"]
[null,null,null,null,null,null,null,null,null,null,null,null,null,null,null,null,null,null,"b. Service providers, trainers, or multipliers: Strengthening capacities of service providers, trainers, or other multipliers, be they teachers, leaders of an NGO, peer educators, or managers of a farmers’ cooperative, helps ensure local leadership for continuing activities into the future."]
[null,null,null,null,"New Technology & Practices"]
[]
[null,null,null,null,null,null,"Men, 25 and older","Women, 25 and older","Men, 15-24","Women, 15-24","Boys, 14 and under","Girls, 14 and under",null,null,null,null,null,null,"c. Organizations/Associations: Strengthening organizational capacities, such as management skills within an NGO, helps support other activities in an ongoing, functioning, and supportive environment."]
[null,null,null,null,"# of individuals who have applied new technologies and/or practices as a result of this grant",null,1,57,null,11]
[null,null,null,null,"# of new technologies and/or practices that will have been adopted as a result of this small grant",null,"2; improved cook stoves, installation of hand washing stations","Technologies",13,"Practices",null,null,null,null,null,null,null,"2. For the new technology and practices indicator the community and Volunteer must determine if project participants adopted or changed their behavior according to the project. "]
[null,null,null,null,null,null,null,null,null,null,null,null,null,null,null,null,null,null,"Units of Measurement: Two units of measurements for determining the new technology and practices indicator."]
[]
[]
[null,null,null,null,"Objective",null,"Indicator(s)\nHow will you measure that the objective is achieved?  Outline your specific targets (i.e., output and outcome indicators)",null,"Who \nWho will collect the information to measure success against the indicator?",null,"When\nWhen and how often will the information be collected? What data-collection tools will be used?",null,"NOTE: Please limit the text to\n 20 words or less in the blue \"Indicators\", \"Who\", and \"When\" boxes.",null,null,null,null,null,"a. Individuals: those people who have been directly impacted by the project and are utilizing new technologies and/or practices as a result of the project.                                                                                                 "]
[null,null,"EXAMPLE",null,"Cookstoves: By the end of XXXX, X# households or institutions will adopt efficient low-fuel emission cook stoves to safeguard the health of their \nchildren and families.",null,"1. # individuals trained on the health benefits of using improved cookstoves;  2. # of individuals trained on the construction and maintenance of improved cookstoves; 3. # of cookstoves (new or rehabilitated) purchased or constructed for households or institutions (e.g. health clinics, schools) with assistance of Volunteers or partners",null,"Volunteer and counterpart/community group",null,"Weekly assessments of progress will be documented by observation and noting progress in a schedule/calendar.",null,"Community members will use improved cookstoves, water, and sanitation to reduce infectious diseases and improve environmental health","GOAL",null,null,null,null,"b. Technologies and practices: determine the number of new technologies and/or practices that have been adopted as a result of this small grant. "]
[null,null,null,1,{"$f":"IF(ISBLANK('3. Goals & Objectives'!G8),\"\",'3. Goals & Objectives'!G8)","v":"At the end of Feburary 2014, 30 children under five years of age improve their level of development according to the criteria defined in the Peruvian Development Test."},null,"1. # of trained mothers in practices of early childhood stimulation; 2. # of mothers who demonstrate the correct use of CRED card; 3. # of mothers who can demonstrate 2 or more activities of early childhood stimulation appropriate for the age of their children; 4. # of mothers who have adopted 2 or more activities of early childhood stimulation appropriate for the age of their children; 5. # of mothers who report at least 3 observable improvements in their children after the adoption of early childhood stimulation practices.",null,"volunteer and personell of health post of pampa elera baja",null,"Monthly check-ups at the health post, monthly house visits to monitor advances in development",null,{"$f":"IF(ISBLANK('3. Goals & Objectives'!G7),\"\",'3. Goals & Objectives'!G7)","v":"Children under five years of age living in Pampa Elera Alta have optimal health and are at mental and physical development levels appropriate for their age. "},"GOAL 1",null,null,null,null,"For example, if the project focuses on gardening, how many participants are expected to adopt new fertilization or planting techniques? If this were a latrine building project, how many community members might incorporate hand washing after using the new latrine?"]
[null,null,null,1.2,{"$f":"IF(ISBLANK('3. Goals & Objectives'!G9),\"\",'3. Goals & Objectives'!G9)","v":"At the end of Febuary 2014, 30 mothers observe a decrease in the frequency of acute respitory infections as well as acute diarrhea of their children under five. "},null,"1. # of mothers who adopt at least 3 of the healthy practices to reduce diarrheal illnesses in their children; 2. # of mothers who can identify at least 3 signs and 3 methods of adequate prevention and treatment for cases of respiratory infections, diarrheal illnesses, and malnutrition; 3. # mothers who use and maintain their improved cook stoves correctly and adequately; 4. # of mothers who can properly prepare oral rehydration salts within the home to prevent dehydration; 5. # of mothers who demonstrate the proper technique of hand washing",null,"volunteer, personell of health post of pampa elera baja, and health promoters",null,"Monthly assessments of illnesses by health post and twice-monthly house visits to monitor health of children"]
[null,null,null,1.3,{"$f":"IF(ISBLANK('3. Goals & Objectives'!G10),\"\",'3. Goals & Objectives'!G10)","v":"At the end of Febuary 2014, 30 mothers feed their children under five adequate food and nutrition according to the recommendations for their age. "},null,"1. # of mothers who can identify at least 3 practices of complimentary feeding using local products that contain nutrients and vitamins essential for the development of children under age 3; 2. # of mothers who can demonstrate how to prepare nutritional foods using local products; 3. # of mothers who feed their children adequate and balanced meals as recommended for their ages by the Ministry of Health using local products; 4. # of children ages 6-26 months who were once at risk for underheight who now have the appropriate height for their ages.",null,"volunteer, health promoters, and health post of pampa elera baja",null,"Monthly assessments of mothers with infants under 1 year during check ups at health post and twice-monthly house visits to monitor nutrition"]
[null,null,null,1.4,{"$f":"IF(ISBLANK('3. Goals & Objectives'!G11),\"\",'3. Goals & Objectives'!G11)","v":""}]
[null,null,null,2.1,{"$f":"IF(ISBLANK('3. Goals & Objectives'!G13),\"\",'3. Goals & Objectives'!G13)","v":""},null,null,null,null,null,null,null,{"$f":"IF(ISBLANK('3. Goals & Objectives'!G12),\"\",'3. Goals & Objectives'!G12)","v":""},"GOAL 2"]
[null,null,null,2.2000000000000002,{"$f":"IF(ISBLANK('3. Goals & Objectives'!G14),\"\",'3. Goals & Objectives'!G14)","v":""}]
[null,null,null,2.2999999999999998,{"$f":"IF(ISBLANK('3. Goals & Objectives'!G15),\"\",'3. Goals & Objectives'!G15)","v":""}]
[null,null,null,2.4,{"$f":"IF(ISBLANK('3. Goals & Objectives'!G16),\"\",'3. Goals & Objectives'!G16)","v":""}]
[null,null,null,3.1,{"$f":"IF(ISBLANK('3. Goals & Objectives'!G18),\"\",'3. Goals & Objectives'!G18)","v":""},null,null,null,null,null,null,null,{"$f":"IF(ISBLANK('3. Goals & Objectives'!G17),\"\",'3. Goals & Objectives'!G17)","v":""},"GOAL 3"]
[null,null,null,3.2,{"$f":"IF(ISBLANK('3. Goals & Objectives'!G19),\"\",'3. Goals & Objectives'!G19)","v":""}]
[null,null,null,3.3,{"$f":"IF(ISBLANK('3. Goals & Objectives'!G20),\"\",'3. Goals & Objectives'!G20)","v":""}]
[null,null,null,3.4,{"$f":"IF(ISBLANK('3. Goals & Objectives'!G21),\"\",'3. Goals & Objectives'!G21)","v":""}]

{"sheet":"DO NO HARM","index":7,"n_rows":10,"n_cols":7,"rows_kept":10,"cut":false,"hidden":false,"merged":[[1,3,1,15],[2,2,2,16],[4,2,5,2],[4,3,5,15],[8,3,8,5],[9,3,9,5],[8,6,8,15],[9,6,9,15],[7,3,7,5],[7,6,7,15]]}
[]
[null,null,null,"Peace Corps Small Grant Application"]
[null,null,"6. Do No Harm"]
[]
[null,null,"Directions","In the design of any project, Volunteers and their community organizations should explore potential intended and unintended consequences of the proposed interventions.  This should consider the environmental, social, economic, and political aspects of project implementation.  In designing projects, Volunteers should investigate potential outcomes of the program in order to minimize negative outcomes.  This is a participatory process and includes all stakeholders. The exercise itself may be helpful in project design as it may identify areas of intervention needed to provide an enabling environment for the success of a Peace Corps project. "]
[]
[]
[null,null,"General","1) Please report on the results of your \"do no harm\" discussions. Did you find that there were consequences you hadn't thought about? ",null,null,"The project committee and participating mothers were aware of potential negative consequences that could result from the implementation of the Healthy Homes through Improved Cookstoves project.  The main concern of the mothers was possible social tension that might result due to the availability of this project solely to mothers with children under five years of age.  Some mothers have already experienced negative social interactions with neighbors and other family members regarding the requirements for participating in the project. "]
[null,null,"Environmental","2) If the proposed project is not solely a training project (i.e., if it involves construction, agricultural or reforestation activities, installation of large equipment, etc.), please discuss possible negative environmental impacts with your community. What are potential negative environmental impacts of the project activities? ",null,null,"The sole focus of this project is health promotion and thus, I have decided to focus soley on the most important health issues in Pampa Elera Alta; which are acute respitory infections, acute diarreah and malnutrition. While enviornmental factors such as burning of trash do occur in Pampa Elera Alta, they are not prevelant enough nor do they align with the objectives of this project enough to be considered for behavior change. "]
[null,null,"Mitigation","3)  For each of the potential negative impacts described in questions 1 and 2, please describe the measures the community will adopt in order to monitor and mitigate against potentially harmful effects. \n\n",null,null,"The negative social outcomes that many mothers fear might result from this project are hard to plan against for the future.  The best solution the community could come up with was to focus on making the necessary physical and behavior changes within the home to have the healthiest family possible, regardless of the potential conflicts with friends and family.  Also, the mothers have also expressed an interest in sharing the information learned in the educational sessions with their neighbors and family that cannot participate in the project due to a lack of young children in the household so that they can also make the same changes within their homes to improve the health of their families.  "]

{"sheet":"6. Detailed Budget","index":8,"n_rows":238,"n_cols":27,"rows_kept":238,"cut":false,"hidden":false,"merged":[[56,6,56,7],[104,6,104,7],[79,6,79,7],[95,6,95,7],[96,6,96,7],[97,6,97,7],[98,6,98,7],[106,6,106,7],[163,6,163,7],[88,6,88,7],[131,6,131,7],[132,6,132,7],[133,6,133,7],[134,6,134,7],[120,6,120,7],[68,6,68,7],[69,6,69,7],[70,6,70,7],[71,6,71,7],[89,6,89,7],[92,6,92,7],[93,6,93,7],[94,6,94,7],[76,6,76,7],[241,26,241,27],[57,6,57,7],[73,6,73,7],[74,6,74,7],[75,6,75,7],[60,6,60,7],[105,6,105,7],[103,6,103,7],[101,6,101,7],[102,6,102,7],[100,6,100,7],[237,26,237,27],[164,6,164,7],[219,6,219,7],[190,6,190,7],[213,6,213,7],[191,6,191,7],[192,6,192,7],[193,6,193,7],[194,6,194,7],[204,6,204,7],[205,6,205,7],[214,6,214,7],[212,6,212,7],[198,6,198,7],[199,6,199,7],[203,6,203,7],[207,6,207,7],[208,6,208,7],[215,6,215,7],[59,6,59,7],[185,6,185,7],[186,6,186,7],[187,6,187,7],[172,6,172,7],[173,6,173,7],[174,6,174,7],[175,6,175,7],[165,6,165,7],[162,6,162,7],[107,6,107,7],[108,6,108,7],[109,6,109,7],[155,6,155,7],[156,6,156,7],[160,6,160,7],[183,6,183,7],[196,6,196,7],[200,6,200,7],[201,6,201,7],[202,6,202,7],[197,6,197,7],[220,6,220,7],[221,6,221,7],[222,6,222,7],[11,5,11,17],[184,6,184,7],[218,6,218,7],[188,6,188,7],[189,6,189,7],[178,6,178,7],[179,6,179,7],[180,6,180,7],[181,6,181,7],[182,6,182,7],[216,6,216,7],[206,6,206,7],[217,6,217,7],[209,6,209,7],[210,6,210,7],[211,6,211,7],[87,6,87,7],[236,6,236,7],[223,6,223,7],[235,6,235,7],[226,6,226,7],[227,6,227,7],[228,6,228,7],[229,6,229,7],[240,26,240,27],[141,6,141,7],[157,6,157,7],[158,6,158,7],[159,6,159,7],[161,6,161,7],[176,6,176,7],[177,6,177,7],[168,6,168,7],[169,6,169,7],[239,26,239,27],[170,6,170,7],[171,6,171,7],[237,6,237,7],[224,6,224,7],[225,6,225,7],[233,6,233,7],[83,26,223,29],[76,21,218,24],[221,20,226,24],[151,6,151,7],[152,6,152,7],[153,6,153,7],[130,6,130,7],[235,26,235,27],[149,6,149,7],[142,6,142,7],[166,6,166,7],[167,6,167,7],[154,6,154,7],[118,6,118,7],[125,6,125,7],[77,6,77,7],[78,6,78,7],[121,6,121,7],[115,6,115,7],[230,6,230,7],[234,6,234,7],[231,6,231,7],[232,6,232,7],[195,6,195,7],[244,26,244,27],[238,26,238,27],[243,26,243,27],[242,26,242,27],[143,6,143,7],[126,6,126,7],[236,26,236,27],[150,6,150,7],[86,6,86,7],[128,6,128,7],[111,6,111,7],[112,6,112,7],[113,6,113,7],[114,6,114,7],[127,6,127,7],[116,6,116,7],[123,6,123,7],[110,6,110,7],[90,6,90,7],[99,6,99,7],[144,6,144,7],[146,6,146,7],[147,6,147,7],[234,26,234,28],[84,6,84,7],[85,6,85,7],[83,6,83,7],[135,6,135,7],[148,6,148,7],[91,6,91,7],[138,6,138,7],[139,6,139,7],[140,6,140,7],[117,6,117,7],[136,6,136,7],[137,6,137,7],[119,6,119,7],[129,6,129,7],[122,6,122,7],[124,6,124,7],[145,6,145,7],[47,6,47,7],[48,6,48,7],[49,6,49,7],[50,6,50,7],[32,5,32,6],[31,5,31,6],[82,6,82,7],[72,6,72,7],[52,6,52,7],[58,6,58,7],[80,6,80,7],[81,6,81,7],[53,6,53,7],[54,6,54,7],[55,6,55,7],[45,6,45,7],[46,6,46,7],[61,6,61,7],[62,6,62,7],[63,6,63,7],[64,6,64,7],[65,6,65,7],[66,6,66,7],[67,6,67,7],[36,15,36,16],[19,9,19,10],[51,6,51,7],[19,11,19,12],[40,6,40,7],[39,6,39,7],[20,6,20,7],[23,11,23,12],[36,11,37,11],[36,10,37,10],[26,5,26,6],[27,5,27,6],[28,5,28,6],[38,6,38,7],[36,13,36,14],[24,5,24,6],[36,6,37,7],[25,5,25,6],[29,5,29,6],[30,5,30,6],[22,13,22,16],[36,9,37,9],[36,8,37,8],[44,6,44,7],[24,3,31,3],[19,6,19,7],[17,6,17,7],[18,6,18,7],[36,3,43,3],[36,5,37,5],[41,6,41,7],[42,6,42,7],[43,6,43,7],[16,9,16,10],[17,9,17,10],[18,9,18,10],[16,11,16,12],[17,11,17,12],[18,11,18,12],[22,7,23,8],[22,9,22,12],[0,4,0,12],[16,6,16,7],[1,2,1,18],[15,5,15,8],[4,5,4,17],[7,5,7,17],[2,2,2,17],[4,3,11,3],[16,3,20,3],[9,5,9,17],[23,9,23,10],[20,9,20,10],[20,11,20,12],[2,20,4,24],[6,20,7,24],[8,20,12,24],[37,21,40,24],[1,26,1,31],[2,26,4,31],[41,21,42,24],[43,21,46,24],[6,26,9,31],[21,20,22,24],[24,20,28,24],[1,20,1,24],[10,26,14,31],[15,26,17,31],[18,26,33,31],[74,20,74,24],[68,20,72,24],[62,21,66,24],[58,21,61,24],[54,21,57,24],[30,20,31,24],[33,20,36,24],[48,21,51,24],[13,20,15,24],[16,20,18,24],[19,20,20,24],[52,21,53,24]]}
[]
[null,null,"Peace Corps Small Grant Application",null,null,null,null,null,null,null,null,null,null,null,null,null,null,null,null,null,"Project Costs",null,null,null,null,null,"Costs that Require Waiver"]
[null,null,"7. Detailed Budget (local currency)",null,null,null,null,null,null,null,null,null,null,null,null,null,null,null,null,null,"All costs funded with Peace Corps small grant funds must be reasonable, necessary, and justified in light of the project activities and objectives.  Volunteers should refer to the Peace Corps Small Grant Volunteer Handbook section on \"Grant Requirements,\" which outlines unallowable project costs, costs that require a waiver, and projects that require special consideration.",null,null,null,null,null,"Country Directors have authority to waive certain costs that would normally be considered unallowable.  These costs are to be included in grants ONLY if deemed appropriate by post staff, and should be waived after thorough review.  Please see the Small Grant Volunteer Handbook for further direction and for a template. "]
[]
[null,null,null,"Directions",1,"Fill in the Project Information section at the top of this sheet. Please make sure to enter in the exchange rate. If you are not sure of the exact exchange rate, please enter your best estimate of the anticipated exchange rate for the dates of your project. If you would like to enter amounts directly in U.S. dollars, leave the exchange rate at $1."]
[]
[null,null,null,null,null,null,null,null,null,null,null,null,null,null,null,null,null,null,null,null,"Unallowable Costs",null,null,null,null,null,"• Giveaways, prizes, and celebrations\nGenerally, grant funds cannot be used to purchase giveaways, prizes, celebrations, or other similar items or activities. However, if the use of grant funds to purchase these items will support the realization of project goals and objectives and the small grants committee supports this use of funds, volunteers may request a waiver of this limitation from the country director.\n"]
[null,null,null,null,2,"As you complete this Detailed Budget, the summary budget below and the budget on the Project Classification page will automatically fill in. "]
[null,null,null,null,null,null,null,null,null,null,null,null,null,null,null,null,null,null,null,null,"• Land and other capital assets\nGrant funds cannot be used to purchase land. If grant funds are approved to construct or equip a building, prior to approving the project, the small grants committee must ensure the community has clear title to the land on which the building will be located, has a signed, long-term lease, or an officially approved agreement providing long-term access to the land. If the land is under a long-term lease, the community organization must demonstrate that it will be able to cover any monthly rent required by the landowner. \n"]
[null,null,null,null,3,"Enter a line for each expected cost the community will incur in carrying out the project. You should enter amounts in local currency. If you are filling out the form electronically, fill out all of the blue cells on each line. For the budget category, please select from one of the seven options in the dropdown list. The total cost will fill in automatically by formula. For each item, the total cost should be split between grant amount, community contribution, and third-party contribution based on the proposed funding source for the cost."]
[null,null,null,null,null,null,null,null,null,null,null,null,null,null,null,null,null,null,null,null,null,null,null,null,null,null,"• Motor vehicles and other conveyances\nGrant funds cannot be used to purchase motor vehicles and other transportation conveyances that are intended primarily for personal use. In limited circumstances, funds may cover the costs of these items if the project clearly demonstrates that the goods are integral to the objectives of a project, intended for shared use, and benefit more than a single individual or business. \n"]
[null,null,null,null,4,"If you need additional rows, there are over 100 additional lines that are \"hidden\" at the bottom of the worksheet. Unhide the rows by following the instructions at the bottom of the sheet."]
[]
[null,null,null,null,null,null,null,null,null,null,null,null,null,null,null,null,null,null,null,null,"• Loan funds\nGrant funds cannot be used as loan collateral or to supplement a community organization’s revolving credit or loan fund. However, if the community generates income as a result of grant project activities, it may elect to use this income to establish a credit or loan fund in order to continue or expand project activities. \n"]
[]
[null,null,null,null,null,null,null,null,null,null,null,null,null,null,null,null,null,null,null,null,null,null,null,null,null,null,"• Volunteer costs\nGenerally, grant funds may not cover costs to support or benefit Peace Corps Volunteers. Grant funds may not pay for per diem for Volunteers. The country director may issue a waiver for funds to cover modest travel, lodging, and food costs related to a project if the Volunteer is traveling with host country counterparts and such costs are necessary for the success of the project.\n"]
[null,null,null,"Project Information",null,"Project Title:",{"$f":"IF(ISBLANK('1. Classification & Budget'!H9),\"\",'1. Classification & Budget'!H9)","v":"Healthy Homes with Improved Cook Stoves"},null,null," Project Number:",null,{"$f":"'1. Classification & Budget'!Q7&\" - \"&'1. Classification & Budget'!R7&\" - \"&'1. Classification & Budget'!S7&\" - \"&'1. Classification & Budget'!T7","v":"PP -  - 527 - "},null,null,null,null,null,null,null,null,"• “Sub-grant” projects\nRecipients of Peace Corps small grant funds may not award project funds to other persons or groups in their community in the form of a secondary small grant/cash prizes/loan. If grant project participants would like to use skills and/or knowledge gained as a result of project activities to design a follow-up project, they should apply for the funding for the second project through the normal Peace Corps small grants approval procedures.\n"]
[null,null,null,null,null,"Community Group:",{"$f":"IF(ISBLANK('1. Classification & Budget'!H14),\"\",'1. Classification & Budget'!H14)","v":"Healthy Homes Committee"},null,null,"Project Start Date:",null,{"$f":"IF(ISBLANK('1. Classification & Budget'!H18),\"\",'1. Classification & Budget'!H18)","v":"2013-06-01"}]
[null,null,null,null,null,"APCD/Program Manager: ",{"$f":"IF(ISBLANK('1. Classification & Budget'!I27),\"\",'1. Classification & Budget'!I27)","v":"Emilia Villanueva"},null,null,"Project Completion Date:",null,{"$f":"IF(ISBLANK('1. Classification & Budget'!N18),\"\",'1. Classification & Budget'!N18)","v":"2014-02-03"},null,null,null,null,null,null,null,null,null,null,null,null,null,null,"• International travel\nAllowing international travel to be included in a project must be considered very carefully. In most cases, the Peace Corps will not approve international travel waivers due to potential logistic and liability issues. Peace Corps staff considers the following issues when deciding whether to approve a waiver for this cost:\n     - Where is the training component? Take into consideration the distance necessary to travel.   If the training is simply across a border, and participants may easily drive to the training, a waiver could make sense.   However, if airfare or several hours of travel is included, a waiver will not be considered.\n      - Will the attendees learn something new and transfer skills to others when they return? \n     - Does the project meet the small grants requirement to be sustainable and to build local self-reliance?\n     - Is this project making the best use of small grants funds? Could the participants/conference attendees and their organization get the same benefit from attending a conference or training in country?\n     - What are the potential logistical problems, i.e., if a person misses their plane and has to pay extra money to get home, how will this be paid for?\n     - Who is responsible or liable for the person and/or their actions while traveling? – If Peace Corps is funding the travel, is the agency liable for anything that goes wrong when the attendees are in the States or another country?"]
[null,null,null,null,null,"Requested Project Amount (in local currency):",8261.15,null,null,"% Community Contribution:",null,{"$f":"IF(SUM(K33+M33)=0,\"\",SUM(K33+M33)/SUM(I33+K33+M33+O33+Q33))","v":0.26245418289955968},null,null,null,null,null,null,null,null,"• Contingency funds/multiple funding sources\nGrant budgets should not include funds for undefined or unexpected “contingencies” or similar cost categories (e.g., “unexpected costs”). This includes, but is not limited to, applying for funding from multiple grants sources.\n"]
[null,null,null,null,null,"Exchange rate: $1US = ",2.7,null,null,"Total Project Cost USD:",null,{"$f":"SUM(I33+K33+M33+O33+Q33)","v":4819.8888888888887}]
[null,null,null,null,null,null,null,null,null,null,null,null,null,null,null,null,null,null,null,null,"• Alcoholic beverages \nGrant funds may not be used to purchase alcoholic beverages."]
[null,null,null,null,null,null,null,"Grant Amount",null,"Community Contribution",null,null,null,"Third-Party Contribution (if applicable)"]
[null,null,null,null,null,null,null,null,null,"Cash",null,"In-Kind",null,"Cash",null,"In-Kind"]
[null,null,null,"Budget Summary",null,"Category",null,"Local Currency","$US","Local Currency","$US","Local Currency","$US","Local Currency","$US","Local Currency","$US",null,null,null,"• Recurring costs\nGrant funds cannot be used to cover regularly recurring monthly expenses (e.g., rent, telephone service and utilities, Iinternet service) beyond an initial start-up period of three months. Calculations of in-kind contributions should not include recurring costs beyond three months. If start-up costs will be covered by the grant, there must be a clear sustainability plan demonstrating how the community will pay for the costs beyond the start-up period. \n"]
[null,null,null,null,null,"Labor",null,{"$f":"SUMIF($I$39:$I$237,\"Labor\",$M$39:$M$237)","v":2275},{"$f":"H26/G$21","v":842.5925925925925},{"$f":"SUMIF($I$39:$I$237,\"Labor\",$N$39:$N$237)","v":0},{"$f":"J26/G$21","v":0},{"$f":"SUMIF($I$39:$I$237,\"Labor\",$O$39:$O$237)","v":410.7},{"$f":"L26/G$21","v":152.11111111111109},{"$f":"SUMIF($I$39:$I$237,\"Labor\",$P$39:$P$237)","v":0},{"$f":"N26/G$21","v":0},{"$f":"SUMIF($I$39:$I$237,\"Labor\",$Q$39:$Q$237)","v":0},{"$f":"P26/G$21","v":0}]
[null,null,null,null,null,"Equipment",null,{"$f":"SUMIF($I$39:$I$237,\"Equipment\",$M$39:$M$237)","v":0},{"$f":"H27/G$21","v":0},{"$f":"SUMIF($I$39:$I$237,\"Equipment\",$N$39:$N$237)","v":0},0,{"$f":"SUMIF($I$39:$I$237,\"Equipment\",$O$39:$O$237)","v":0},0,{"$f":"SUMIF($I$39:$I$237,\"Equipment\",$P$39:$P$237)","v":0},0,{"$f":"SUMIF($I$39:$I$237,\"Equipment\",$Q$39:$Q$237)","v":0},0]
[null,null,null,null,null,"Materials/Supplies",null,{"$f":"SUMIF($I$39:$I$237,\"Materials/Supplies\",$M$39:$M$237)","v":7101},2630,{"$f":"SUMIF($I$39:$I$237,\"Materials/Supplies\",$N$39:$N$237)","v":0},0,{"$f":"SUMIF($I$39:$I$237,\"Materials/Supplies\",$O$39:$O$237)","v":2504.8000000000002},927.7037037037037,{"$f":"SUMIF($I$39:$I$237,\"Materials/Supplies\",$P$39:$P$237)","v":0},0,{"$f":"SUMIF($I$39:$I$237,\"Materials/Supplies\",$Q$39:$Q$237)","v":0},0]
[null,null,null,null,null,"Land/Venue Rental",null,{"$f":"SUMIF($I$39:$I$237,\"Land/Venue Rental\",$M$39:$M$237)","v":0},0,{"$f":"SUMIF($I$39:$I$237,\"Land/Venue Rental\",$N$39:$N$237)","v":0},0,{"$f":"SUMIF($I$39:$I$237,\"Land/Venue Rental\",$O$39:$O$237)","v":500},185.18518518518516,{"$f":"SUMIF($I$39:$I$237,\"Land/Venue Rental\",$P$39:$P$237)","v":0},0,{"$f":"SUMIF($I$39:$I$237,\"Land/Venue Rental\",$Q$39:$Q$237)","v":0},0]
[null,null,null,null,null,"Travel/Per Diem/Food/Lodging",null,{"$f":"SUMIF($I$39:$I$237,\"Travel/Per Diem/Food/Lodging\",$M$39:$M$237)","v":0},0,{"$f":"SUMIF($I$39:$I$237,\"Travel/Per Diem/Food/Lodging\",$N$39:$N$237)","v":0},0,{"$f":"SUMIF($I$39:$I$237,\"Travel/Per Diem/Food/Lodging\",$O$39:$O$237)","v":0},0,{"$f":"SUMIF($I$39:$I$237,\"Travel/Per Diem/Food/Lodging\",$P$39:$P$237)","v":0},0,{"$f":"SUMIF($I$39:$I$237,\"Travel/Per Diem/Food/Lodging\",$Q$39:$Q$237)","v":0},0]
[null,null,null,null,null,"Materials Transport",null,{"$f":"SUMIF($I$39:$I$237,\"Materials transport\",$M$39:$M$237)","v":222.2},82.296296296296291,{"$f":"SUMIF($I$39:$I$237,\"Materials transport\",$N$39:$N$237)","v":0},0,{"$f":"SUMIF($I$39:$I$237,\"Materials transport\",$O$39:$O$237)","v":0},0,{"$f":"SUMIF($I$39:$I$237,\"Materials transport\",$P$39:$P$237)","v":0},0,{"$f":"SUMIF($I$39:$I$237,\"Materials transport\",$Q$39:$Q$237)","v":0},0,null,null,null,"Projects that Require Special Consideration"]
[null,null,null,null,null,"Other",null,{"$f":"SUMIF($I$39:$I$237,\"Other\",$M$39:$M$237)","v":0},0,{"$f":"SUMIF($I$39:$I$237,\"Other\",$N$39:$N$237)","v":0},0,{"$f":"SUMIF($I$39:$I$237,\"Other\",$O$39:$O$237)","v":0},0,{"$f":"SUMIF($I$39:$I$237,\"Other\",$P$39:$P$237)","v":0},0,{"$f":"SUMIF($I$39:$I$237,\"Other\",$Q$39:$Q$237)","v":0},0]
[null,null,null,null,null,"Total",null,{"$f":"SUM(H26:H32)","v":9598.2000000000007},3554.8888888888887,0,0,3415.5,1265,0,0,0,0]
[null,null,null,null,null,null,null,null,null,null,null,null,null,null,null,null,null,null,null,null,"• Scholarships: Scholarship programs can be effective tools to encourage education and increase retention in schools. When creating a scholarship program, it is important to plan strategically for the long-term administration and sustainability of the program. This process involves significant planning and the inclusion of host country nationals and local organizations. The following key points must be addressed in order for a scholarship project to be approved for funding:\n     \n"]
[]
[]
[null,null,null,"Detailed Budget",null,"Line #","Item Description",null,"Budget Category","Unit Cost ","Quantity","Total Cost ","Grant Amount","Community Contribution",null,"Third-Party Contribution (if applicable)"]
[null,null,null,null,null,null,null,null,null,null,null,null,null,"Cash","In-Kind","Cash","In-Kind",null,null,null,null,"A small grants application must be submitted. Applications must be submitted consistent with small grants program guidelines outlined in this handbook. The application should spell out very specifically The process by which host Country nationals will identify, evaluate, and select recipients and it should show A plan for sustainability."]
[null,null,null,null,null,1,"posters",null,"Materials/Supplies",0.11,50,{"$f":"J39*K39","v":5.5},5.5]
[null,null,null,null,null,2,"pens",null,"Materials/Supplies",0.74,15,{"$f":"J40*K40","v":11.1},11.1]
[null,null,null,null,null,3,"paper",null,"Materials/Supplies",5.5,1,{"$f":"J41*K41","v":5.5},5.5]
[null,null,null,null,null,4,"masking tape",null,"Materials/Supplies",1.6,2,3.2,3.2,null,null,null,null,null,null,null,null,"The program should become self-sustaining. The program’s survival—financial and administrative—should not be dependent on Volunteers or small grants funding."]
[null,null,null,null,null,5,"food for demonstrations",null,"Materials/Supplies",13.3,18,239.4,null,null,239.4]
[null,null,null,null,null,6,"snacks",null,"Materials/Supplies",0.26,210,{"$f":"J44*K44","v":54.6},54.6,null,null,null,null,null,null,null,null,"Help organize a selection committee. Creating a committee that will plan how the scholarship program will operate is one of the most important steps. The ultimate goal for the Volunteer should be to assist the community in developing a selection committee and process made- up entirely of host country participants. Volunteers should not be part of the selection process. "]
[null,null,null,null,null,7,"copies",null,"Materials/Supplies",0.04,2000,80,80]
[null,null,null,null,null,8,"iron chimney tube 12 cm by 2 m",null,"Materials/Supplies",22.2,74,1642.8,1642.8]
[null,null,null,null,null,9,"iron sheet 4.4 mm in thickness for stove top",null,"Materials/Supplies",20.399999999999999,35,714,714]
[null,null,null,null,null,10,"labor to cut iron sheet into stove tops of 1m x .40cm with four holes of 20, 18, 15, and 10cm in diameter",null,"Labor",45,35,1575,1575]
[null,null,null,null,null,11,"labor to cut the chimney tops ",null,"Materials/Supplies",35,35,{"$f":"J49*K49","v":1225},1225,null,null,null,null,null,null,null,null,"Selection process. Volunteers must not be in A position where they may be perceived as handing out money or be involved in The Selection or evaluation of students as recipients of money. The project must demonstrate that only host Country nationals should be in charge of The process of nomination, selection, and administration of any funds used for this purpose."]
[null,null,null,null,null,12,"metal clamp",null,"Materials/Supplies",2.2200000000000002,35,{"$f":"J50*K50","v":77.7},77.7]
[null,null,null,null,null,13,"wire",null,"Materials/Supplies",1.85,35,{"$f":"J51*K51","v":64.75},64.75]
[null,null,null,null,null,14,"cement",null,"Materials/Supplies",5.9,222,{"$f":"J52*K52","v":1309.8000000000002},1309.8]
[null,null,null,null,null,15,"skilled labor: mason",null,"Labor",20,35,700,700,null,null,null,null,null,null,null,null,"Host country nationals. Host country representatives from all levels—from the recipients’ families to the local or national governments—should be involved. "]
[null,null,null,null,null,16,"pre-made adobe",null,"Materials/Supplies",0.18,5250,945,null,null,945]
[null,null,null,null,null,17,"cover for chimney to prevent rain damage",null,"Materials/Supplies",8.5,74,629,629,null,null,null,null,null,null,null,null,"No scholarship project may last longer than a school year. No scholarship project may last longer than the current school year. If the community would like to have scholarships again the following year, a new small grants application must be submitted. "]
[null,null,null,null,null,18,"appropriate dirt for construction of cook stove",null,"Materials/Supplies",0.74,500,370,null,null,370]
[null,null,null,null,null,19,"pre made mud for construction of cookstove",null,"Materials/Supplies",1.1000000000000001,500,550,null,null,550]
[null,null,null,null,null,20,"glass bottles",null,"Materials/Supplies",0.37,500,185,null,null,185]
[null,null,null,null,null,21,"salt",null,"Materials/Supplies",0.18,50,9,null,null,9,null,null,null,null,null,null,"Expectations and evaluations. Set realistic expectations and evaluate how well these expectations have been met during the first year. In subsequent years, the scholarship program committee should meet annually to evaluate the previous year and make any changes to the next year’s strategy. "]
[null,null,null,null,null,22,"sugar",null,"Materials/Supplies",1.03,50,51.5,null,null,51]
[null,null,null,null,null,23,"unskilled labor to assist mason",null,"Labor",5.55,74,410.7,null,null,410.7]
[null,null,null,null,null,24,"folder",null,"Materials/Supplies",5,8,40,40]
[null,null,null,null,null,25,"notebook",null,"Materials/Supplies",3.5,8,28,28,null,null,null,null,null,null,null,null,"Completion reports must be sent in as well as any extra money. Scholarship reporting requirements are the same as small grants requirements (i.e., completion report, receipts with financial accounting summary). At the end of each year/project, as with all small grants projects, any unused funds should be returned to the appropriate small grant funding source."]
[null,null,null,null,null,26,"nail trimmer",null,"Materials/Supplies",0.74,35,25.9,null,null,25.9]
[null,null,null,null,null,27,"utencil holder",null,"Materials/Supplies",3.7,35,129.5,null,null,129.5]
[null,null,null,null,null,28,"hand towel",null,"Materials/Supplies",1.48,35,51.8,51.8]
[null,null,null,null,null,29,"transporte",null,"Materials transport",222.2,1,222.2,222.2]
[null,null,null,null,null,30,"tin for water to wash hands",null,"Materials/Supplies",4.4400000000000004,35,155.4,155.4]
[null,null,null,null,null,31,"water jug to hold water for hand washing",null,"Materials/Supplies",2.97,35,103.95,103.95,null,null,null,null,null,null,null,"• Training and Skills Building Camps: Volunteers may provide training and skills building in a camp-like setting and, under certain conditions, camps may qualify for small grant support. Appropriate roles for Volunteers include developing technical content and curricula, creating a learning environment, providing training to prepare camp counselors to lead camp sessions, supporting community-led fundraising efforts, and assistance with planning and logistics.   Camps supported by small grants should not focus solely on sports or recreational activities."]
[null,null,null,null,null,32,"plastic bucket to catch water for hand washing",null,"Materials/Supplies",2.2200000000000002,35,77.7,77.7]
[null,null,null,null,null,33,"room for trainings",null,"Land/Venue Rental",20,25,500,null,null,500]
[null,null,null,null,null,34,"uniforms for health promoters",null,"Materials/Supplies",22.2,8,177.6,177.6]
[null,null,null,null,null,35,"pens",null,"Materials/Supplies",1.7,8,13.6,13.6]
[null,null,null,null,null,36,"Iron galvanized sheet 1/27mm with tempered platina",null,"Materials/Supplies",18,35,630,630]
[null,null,null,null,null,37,null,null,null,null,null,0,null,null,null,null,null,null,null,null,"Small grant projects for camp- related activities should include the following:"]
[null,null,null,null,null,38,null,null,null,null,null,0]
[null,null,null,null,null,39,null,null,null,null,null,0,null,null,null,null,null,null,null,null,null,"•  Clear project description with goals and objectives;\n•  Community buy-in, including community and counterpart contributions to cover up to 25 percent of the project cost;\n•  Funds requested for infrastructure, equipment, and materials should support the training to be provided, and not be included as the principal justification for grant support;\n•  Grant funds cannot be used to purchase giveaways, commemorative mugs, or prizes; when these items are considered essential to the success of a training project, funds to purchase them should contributed by the community or a third-party organization;\n•  Monitoring and reporting indicators that will measure project outcomes;\n•  Follow-up plans for sharing the learning of campers with peers and the community at large and applying the skills learned during the camp experience in the community throughout the year;\n•  Activities should generally take place within the community and not require travel on the part of the Volunteer or camp participants;\n•  Camps must be safe and should make parents/guardians aware of activities involved;\n•  Staffing of the camp should be well planned, as enough staff must be present to manage all participants;   \n•  As with any small grant, a community or organization should assume responsibility for designing the camp, submitting the application, managing the funds, running the camp, and completing reporting requirements, assisted by the Volunteer. "]
[null,null,null,null,null,40,null,null,null,null,null,0]
[null,null,null,null,null,41,null,null,null,null,null,0]
[null,null,null,null,null,42,null,null,null,null,null,0]
[null,null,null,null,null,43,null,null,null,null,null,0]
[null,null,null,null,null,44,null,null,null,null,null,0]
[null,null,null,null,null,45,null,null,null,null,null,0]
[null,null,null,null,null,46,null,null,null,null,null,0]
[null,null,null,null,null,47,null,null,null,null,null,0]
[null,null,null,null,null,48,null,null,null,null,null,0]
[null,null,null,null,null,49,null,null,null,null,null,0]
[null,null,null,null,null,50,null,null,null,null,null,0]
[null,null,null,null,null,51,null,null,null,null,null,0]
[null,null,null,null,null,52,null,null,null,null,null,0]
[null,null,null,null,null,53,null,null,null,null,null,0]
[null,null,null,null,null,54,null,null,null,null,null,0]
[null,null,null,null,null,55,null,null,null,null,null,0]
[null,null,null,null,null,56,null,null,null,null,null,0]
[null,null,null,null,null,57,null,null,null,null,null,0]
[null,null,null,null,null,58,null,null,null,null,null,0]
[null,null,null,null,null,59,null,null,null,null,null,0]
[null,null,null,null,null,60,null,null,null,null,null,0]
[null,null,null,null,null,61,null,null,null,null,null,0]
[null,null,null,null,null,62,null,null,null,null,null,0]
[null,null,null,null,null,63,null,null,null,null,null,0]
[null,null,null,null,null,64,null,null,null,null,null,0]
[null,null,null,null,null,65,null,null,null,null,null,0]
[null,null,null,null,null,66,null,null,null,null,null,0]
[null,null,null,null,null,67,null,null,null,null,null,{"$f":"J105*K105","v":0}]
[null,null,null,null,null,68,null,null,null,null,null,0]
[null,null,null,null,null,69,null,null,null,null,null,0]
[null,null,null,null,null,70,null,null,null,null,null,0]
[null,null,null,null,null,71,null,null,null,null,null,0]
[null,null,null,null,null,72,null,null,null,null,null,0]
[null,null,null,null,null,73,null,null,null,null,null,0]
[null,null,null,null,null,74,null,null,null,null,null,0]
[null,null,null,null,null,75,null,null,null,null,null,0]
[null,null,null,null,null,76,null,null,null,null,null,0]
[null,null,null,null,null,77,null,null,null,null,null,0]
[null,null,null,null,null,78,null,null,null,null,null,0]
[null,null,null,null,null,79,null,null,null,null,null,0]
[null,null,null,null,null,80,null,null,null,null,null,0]
[null,null,null,null,null,81,null,null,null,null,null,0]
[null,null,null,null,null,82,null,null,null,null,null,0]
[null,null,null,null,null,83,null,null,null,null,null,0]
[null,null,null,null,null,84,null,null,null,null,null,0]
[null,null,null,null,null,85,null,null,null,null,null,0]
[null,null,null,null,null,86,null,null,null,null,null,0]
[null,null,null,null,null,87,null,null,null,null,null,0]
[null,null,null,null,null,88,null,null,null,null,null,0]
[null,null,null,null,null,89,null,null,null,null,null,0]
[null,null,null,null,null,90,null,null,null,null,null,0]
[null,null,null,null,null,91,null,null,null,null,null,0]
[null,null,null,null,null,92,null,null,null,null,null,0]
[null,null,null,null,null,93,null,null,null,null,null,0]
[null,null,null,null,null,94,null,null,null,null,null,0]
[null,null,null,null,null,95,null,null,null,null,null,0]
[null,null,null,null,null,96,null,null,null,null,null,0]
[null,null,null,null,null,97,null,null,null,null,null,0]
[null,null,null,null,null,98,null,null,null,null,null,0]
[null,null,null,null,null,99,null,null,null,null,null,0]
[null,null,null,null,null,100,null,null,null,null,null,0]
[null,null,null,null,null,101,null,null,null,null,null,0]
[null,null,null,null,null,102,null,null,null,null,null,0]
[null,null,null,null,null,103,null,null,null,null,null,0]
[null,null,null,null,null,104,null,null,null,null,null,0]
[null,null,null,null,null,105,null,null,null,null,null,0]
[null,null,null,null,null,106,null,null,null,null,null,0]
[null,null,null,null,null,107,null,null,null,null,null,0]
[null,null,null,null,null,108,null,null,null,null,null,0]
[null,null,null,null,null,109,null,null,null,null,null,0]
[null,null,null,null,null,110,null,null,null,null,null,0]
[null,null,null,null,null,111,null,null,null,null,null,0]
[null,null,null,null,null,112,null,null,null,null,null,0]
[null,null,null,null,null,113,null,null,null,null,null,0]
[null,null,null,null,null,114,null,null,null,null,null,0]
[null,null,null,null,null,115,null,null,null,null,null,0]
[null,null,null,null,null,116,null,null,null,null,null,0]
[null,null,null,null,null,117,null,null,null,null,null,0]
[null,null,null,null,null,118,null,null,null,null,null,0]
[null,null,null,null,null,119,null,null,null,null,null,0]
[null,null,null,null,null,120,null,null,null,null,null,0]
[null,null,null,null,null,121,null,null,null,null,null,0]
[null,null,null,null,null,122,null,null,null,null,null,0]
[null,null,null,null,null,123,null,null,null,null,null,0]
[null,null,null,null,null,124,null,null,null,null,null,0]
[null,null,null,null,null,125,null,null,null,null,null,0]
[null,null,null,null,null,126,null,null,null,null,null,0]
[null,null,null,null,null,127,null,null,null,null,null,0]
[null,null,null,null,null,128,null,null,null,null,null,0]
[null,null,null,null,null,129,null,null,null,null,null,0]
[null,null,null,null,null,130,null,null,null,null,null,0]
[null,null,null,null,null,131,null,null,null,null,null,{"$f":"J169*K169","v":0}]
[null,null,null,null,null,132,null,null,null,null,null,0]
[null,null,null,null,null,133,null,null,null,null,null,0]
[null,null,null,null,null,134,null,null,null,null,null,0]
[null,null,null,null,null,135,null,null,null,null,null,0]
[null,null,null,null,null,136,null,null,null,null,null,0]
[null,null,null,null,null,137,null,null,null,null,null,0]
[null,null,null,null,null,138,null,null,null,null,null,0]
[null,null,null,null,null,139,null,null,null,null,null,0]
[null,null,null,null,null,140,null,null,null,null,null,0]
[null,null,null,null,null,141,null,null,null,null,null,0]
[null,null,null,null,null,142,null,null,null,null,null,0]
[null,null,null,null,null,143,null,null,null,null,null,0]
[null,null,null,null,null,144,null,null,null,null,null,0]
[null,null,null,null,null,145,null,null,null,null,null,0]
[null,null,null,null,null,146,null,null,null,null,null,0]
[null,null,null,null,null,147,null,null,null,null,null,0]
[null,null,null,null,null,148,null,null,null,null,null,0]
[null,null,null,null,null,149,null,null,null,null,null,0]
[null,null,null,null,null,150,null,null,null,null,null,0]
[null,null,null,null,null,151,null,null,null,null,null,0]
[null,null,null,null,null,152,null,null,null,null,null,0]
[null,null,null,null,null,153,null,null,null,null,null,0]
[null,null,null,null,null,154,null,null,null,null,null,0]
[null,null,null,null,null,155,null,null,null,null,null,0]
[null,null,null,null,null,156,null,null,null,null,null,0]
[null,null,null,null,null,157,null,null,null,null,null,0]
[null,null,null,null,null,158,null,null,null,null,null,0]
[null,null,null,null,null,159,null,null,null,null,null,0]
[null,null,null,null,null,160,null,null,null,null,null,0]
[null,null,null,null,null,161,null,null,null,null,null,0]
[null,null,null,null,null,162,null,null,null,null,null,0]
[null,null,null,null,null,163,null,null,null,null,null,0]
[null,null,null,null,null,164,null,null,null,null,null,0]
[null,null,null,null,null,165,null,null,null,null,null,0]
[null,null,null,null,null,166,null,null,null,null,null,0]
[null,null,null,null,null,167,null,null,null,null,null,0]
[null,null,null,null,null,168,null,null,null,null,null,0]
[null,null,null,null,null,169,null,null,null,null,null,0]
[null,null,null,null,null,170,null,null,null,null,null,0]
[null,null,null,null,null,171,null,null,null,null,null,0]
[null,null,null,null,null,172,null,null,null,null,null,0]
[null,null,null,null,null,173,null,null,null,null,null,0]
[null,null,null,null,null,174,null,null,null,null,null,0]
[null,null,null,null,null,175,null,null,null,null,null,0]
[null,null,null,null,null,176,null,null,null,null,null,0]
[null,null,null,null,null,177,null,null,null,null,null,0]
[null,null,null,null,null,178,null,null,null,null,null,0]
[null,null,null,null,null,179,null,null,null,null,null,0]
[null,null,null,null,null,180,null,null,null,null,null,0]
[null,null,null,null,null,181,null,null,null,null,null,0]
[null,null,null,null,null,182,null,null,null,null,null,0]
[null,null,null,null,null,183,null,null,null,null,null,0]
[null,null,null,null,null,184,null,null,null,null,null,0,null,null,null,null,null,null,null,null,"To see more lines, select rows 90 to 213, (by clicking on the \"91\" and dragging down to \"212\") right click on the selected rows, and then select \"Unhide.\""]
[null,null,null,null,null,185,null,null,null,null,null,0]
[null,null,null,null,null,186,null,null,null,null,null,0]
[null,null,null,null,null,187,null,null,null,null,null,0]
[null,null,null,null,null,188,null,null,null,null,null,0]
[null,null,null,null,null,189,null,null,null,null,null,0]
[null,null,null,null,null,190,null,null,null,null,null,0]
[null,null,null,null,null,191,null,null,null,null,null,0]
[null,null,null,null,null,192,null,null,null,null,null,0]
[null,null,null,null,null,193,null,null,null,null,null,0]
[null,null,null,null,null,194,null,null,null,null,null,0]
[null,null,null,null,null,195,null,null,null,null,null,{"$f":"J233*K233","v":0}]
[null,null,null,null,null,196,null,null,null,null,null,{"$f":"J234*K234","v":0}]
[null,null,null,null,null,197,null,null,null,null,null,{"$f":"J235*K235","v":0}]
[null,null,null,null,null,198,null,null,null,null,null,{"$f":"J236*K236","v":0}]
[null,null,null,null,null,199,null,null,null,null,null,{"$f":"J237*K237","v":0}]
[null,null,null,null,null,"n/a","Total",null,"n/a","n/a","n/a",{"$f":"SUM(L39:L237)","v":13014.200000000003},{"$f":"SUM(M39:M237)","v":9598.2000000000025},0,3415.5,0,0]

{"sheet":"Grant Selection Menu","index":9,"n_rows":5,"n_cols":6,"rows_kept":5,"cut":false,"hidden":false,"merged":[[1,3,1,17],[2,3,2,17],[4,5,4,16]]}
[]
[null,null,null,"Peace Corps Small Grant Application"]
[null,null,null,"Grant Type Selection Menu"]
[]
[null,null,null,null,"Directions","Each funding source at Peace Corps has specific application requirements. Select the funding source  through which your project will be funded below to provide the information required by that program. \n\nPlease note that not all funding sources are available at every post. If you are unsure of which programs are available in your country, please consult with post staff."]

{"sheet":"9. PCPP - Referrals","index":10,"n_rows":36,"n_cols":14,"rows_kept":36,"cut":false,"hidden":false,"merged":[[1,2,1,12],[2,2,2,12],[5,8,5,11],[3,5,3,9],[3,3,3,4]]}
[]
[null,null,"Peace Corps Small Grant Application"]
[null,null,"PCPP Referral Contacts"]
[null,null,null,"Directions",null,"If you are applying to World Connect or another non-governmental organization, please provide only that contact information below."]
[]
[null,null,null,null,null,null,null,null,"Enter Street Address if e-mail is not available"]
[null,null,null,"Relationship to Volunteer","Title","First Name","Last Name","E-Mail","Street Address","City","State","Zip Code"]
[null,null,null,"World Connect"]
[]
[]
[]
[]
[]
[]
[]
[]
[]
[]
[]
[]
[]
[]
[]
[]
[]
[]
[]
[]
[]
[]
[]
[]
[]
[]
[]
[null,null,null,null,null,null,null,null,null,null,null,null,null,"To unhide more rows, select row 36 and 86, right click and choose \"unhide.\""]

{"sheet":"SPA Menu","index":11,"n_rows":5,"n_cols":5,"rows_kept":5,"cut":false,"hidden":false,"merged":[[18,3,18,5],[22,3,22,4],[26,3,26,4],[38,3,38,7],[1,2,1,9],[2,2,2,9],[4,4,4,8],[5,3,5,4]]}
[]
[null,null,"Peace Corps Small Grant Application"]
[null,null,"Small Project Assistance (SPA) Indicators and Environmental Review Forms"]
[]
[null,null,null,"Directions","All SPA projects must complete an environmental review and provide anticipated indicator data. The sections below explain what is required for each section."]

{"sheet":"8. SPA Projects","index":12,"n_rows":32,"n_cols":26,"rows_kept":32,"cut":false,"hidden":false,"merged":[[1,2,1,24],[2,2,2,24],[4,3,4,23],[6,4,6,23],[7,11,9,14],[7,17,7,23],[8,17,11,23],[9,4,9,9],[10,11,12,15],[11,4,11,9],[13,4,13,9],[18,4,18,9],[19,4,19,9],[20,4,20,9],[29,4,29,9],[21,4,21,9],[22,4,22,9],[23,4,23,9],[14,4,14,9],[15,4,15,9],[16,4,16,9],[28,4,28,9],[17,4,17,9],[30,4,30,9],[31,4,31,9],[24,4,24,9],[25,4,25,9],[26,4,26,9],[27,4,27,9]]}
[null,null,null,null,null,null,null,null,null,null,null,null,null,"No Indicator",null,null,null,null,null,null,null,null,null,null,"No Indicator","Yes"]
[null,null,"Peace Corps Small Grant Completion Report",null,null,null,null,null,null,null,null,null,null,null,null,null,null,null,null,null,null,null,null,null,null,"No"]
[null,null,"Peace Corps Small Grants Application"]
[]
[null,null,null,"SPA Indicators"]
[]
[null,null,null,"Directions:","These data will be transmitted to Peace Corps/Washington to be used for internal Peace Corps reporting and for inclusion in the SPA annual report submitted to USAID/Washington. Information may also be shared with the in-country USAID Mission.\nChoose the Program Element that the project is being funded under from the drop-down list below. Once you choose the Program Element, the indicators for that Program Element will appear. Please fill in information for the indicators relevant to your project."]
[null,null,null,null,null,null,null,null,null,null,null,{"$f":"IF(AND(OR(E10=\"Panama\",E10=\"Costa Rica\",E10=\"Guatemala\",E10=\"Nicaragua\",E10=\"El Salvador\"),E12=\"2.2.3, Local Government and Decentralization\"),\"Is this project being funded by Central America Regional Security Intiative (CARSI) funding?\",\"\")","v":""},null,null,null,null,null,{"$f":"IF(P9=\"Yes\",\"If you marked any CARSI risk factors as being relevant to the project, please explain how your project addressed these risk factors\",\"\")","v":""}]
[]
[null,null,null,"Country:"]
[null,null,null,null,null,null,null,null,null,null,null,{"$f":"IF(P9=\"Yes\",\"Then please make sure to fill out information for the indicators below that say 'CARSI' (as they apply to your project) and also please answer the question about risk factors to the right.\",\"\")","v":""}]
[null,null,null,"Program Element:"]
[]
[null,null,null,"Example:","# of individuals who received a benefit from the project",null,null,null,null,null,12,"Men 25 and older",15,"Women 25 and older",5,"Men 15-24",10,"Women 15-24",null,"Boys 14 and under",null,"Girls 14 and under"]
[null,null,null,{"$f":"IF(ISNUMBER(MATCH(E15,StandardIndicators,0)),IF(ISBLANK(INDIRECT(\"'SPA Elements and Indicators'!P\"&MATCH(E15,StandardIndicators,0))),\"\",INDIRECT(\"'SPA Elements and Indicators'!P\"&MATCH(E15,StandardIndicators,0))),\"\")","v":""},{"$f":"IF(ISBLANK($E$12),\"\",INDIRECT(\"'SPA Elements and Indicators'!B\"&MATCH(LEFT($E$12,5),'SPA Elements and Indicators'!A:A,0)))","v":""},null,null,null,null,null,null,{"$f":"IF(ISNUMBER(MATCH(E15,StandardIndicators,0)),IF(ISBLANK(INDIRECT(\"'SPA Elements and Indicators'!J\"&MATCH(E15,StandardIndicators,0))),\"\",INDIRECT(\"'SPA Elements and Indicators'!J\"&MATCH(E15,StandardIndicators,0))),IF(ISNUMBER(MATCH(E15,'Custom SPA Indicators Labels'!B$1:B$119,0)),IF(ISBLANK(VLOOKUP(E15,'Custom SPA Indicators Labels'!B$1:H$119,2,FALSE)),\"\",VLOOKUP(E15,'Custom SPA Indicators Labels'!B$1:H$119,2,FALSE)),\"\"))","v":""},null,{"$f":"IF(ISNUMBER(MATCH(E15,StandardIndicators,0)),IF(ISBLANK(INDIRECT(\"'SPA Elements and Indicators'!K\"&MATCH(E15,StandardIndicators,0))),\"\",INDIRECT(\"'SPA Elements and Indicators'!K\"&MATCH(E15,StandardIndicators,0))),IF(ISNUMBER(MATCH(E15,'Custom SPA Indicators Labels'!B$1:B$119,0)),IF(ISBLANK(VLOOKUP(E15,'Custom SPA Indicators Labels'!B$1:H$119,3,FALSE)),\"\",VLOOKUP(E15,'Custom SPA Indicators Labels'!B$1:H$119,3,FALSE)),\"\"))","v":""},null,{"$f":"IF(ISNUMBER(MATCH(E15,StandardIndicators,0)),IF(ISBLANK(INDIRECT(\"'SPA Elements and Indicators'!L\"&MATCH(E15,StandardIndicators,0))),\"\",INDIRECT(\"'SPA Elements and Indicators'!L\"&MATCH(E15,StandardIndicators,0))),IF(ISNUMBER(MATCH(E15,'Custom SPA Indicators Labels'!B$1:B$119,0)),IF(ISBLANK(VLOOKUP(E15,'Custom SPA Indicators Labels'!B$1:H$119,4,FALSE)),\"\",VLOOKUP(E15,'Custom SPA Indicators Labels'!B$1:H$119,4,FALSE)),\"\"))","v":""},null,{"$f":"IF(ISNUMBER(MATCH(E15,StandardIndicators,0)),IF(ISBLANK(INDIRECT(\"'SPA Elements and Indicators'!M\"&MATCH(E15,StandardIndicators,0))),\"\",INDIRECT(\"'SPA Elements and Indicators'!M\"&MATCH(E15,StandardIndicators,0))),IF(ISNUMBER(MATCH(E15,'Custom SPA Indicators Labels'!B$1:B$119,0)),IF(ISBLANK(VLOOKUP(E15,'Custom SPA Indicators Labels'!B$1:H$119,5,FALSE)),\"\",VLOOKUP(E15,'Custom SPA Indicators Labels'!B$1:H$119,5,FALSE)),\"\"))","v":""},null,{"$f":"IF(ISNUMBER(MATCH(E15,StandardIndicators,0)),IF(ISBLANK(INDIRECT(\"'SPA Elements and Indicators'!N\"&MATCH(E15,StandardIndicators,0))),\"\",INDIRECT(\"'SPA Elements and Indicators'!N\"&MATCH(E15,StandardIndicators,0))),IF(ISNUMBER(MATCH(E15,'Custom SPA Indicators Labels'!B$1:B$119,0)),IF(ISBLANK(VLOOKUP(E15,'Custom SPA Indicators Labels'!B$1:H$119,6,FALSE)),\"\",VLOOKUP(E15,'Custom SPA Indicators Labels'!B$1:H$119,6,FALSE)),\"\"))","v":""},null,{"$f":"IF(ISNUMBER(MATCH(E15,StandardIndicators,0)),IF(ISBLANK(INDIRECT(\"'SPA Elements and Indicators'!O\"&MATCH(E15,StandardIndicators,0))),\"\",INDIRECT(\"'SPA Elements and Indicators'!O\"&MATCH(E15,StandardIndicators,0))),IF(ISNUMBER(MATCH(E15,'Custom SPA Indicators Labels'!B$1:B$119,0)),IF(ISBLANK(VLOOKUP(E15,'Custom SPA Indicators Labels'!B$1:H$119,7,FALSE)),\"\",VLOOKUP(E15,'Custom SPA Indicators Labels'!B$1:H$119,7,FALSE)),\"\"))","v":""}]
[null,null,null,"",{"$f":"IF(ISBLANK($E$12),\"\",IF(OR(ISBLANK(INDIRECT(\"'SPA Elements and Indicators'!B\"&MATCH(E15,StandardIndicators,0)+1)),ISNA(INDIRECT(\"'SPA Elements and Indicators'!B\"&MATCH(E15,StandardIndicators,0)+1))),X16,W16))","v":""},null,null,null,null,null,null,{"$f":"IF(ISNUMBER(MATCH(E16,StandardIndicators,0)),IF(ISBLANK(INDIRECT(\"'SPA Elements and Indicators'!J\"&MATCH(E16,StandardIndicators,0))),\"\",INDIRECT(\"'SPA Elements and Indicators'!J\"&MATCH(E16,StandardIndicators,0))),IF(ISNUMBER(MATCH(E16,'Custom SPA Indicators Labels'!B$1:B$119,0)),IF(ISBLANK(VLOOKUP(E16,'Custom SPA Indicators Labels'!B$1:H$119,2,FALSE)),\"\",VLOOKUP(E16,'Custom SPA Indicators Labels'!B$1:H$119,2,FALSE)),\"\"))","v":""},null,{"$f":"IF(ISNUMBER(MATCH(E16,StandardIndicators,0)),IF(ISBLANK(INDIRECT(\"'SPA Elements and Indicators'!K\"&MATCH(E16,StandardIndicators,0))),\"\",INDIRECT(\"'SPA Elements and Indicators'!K\"&MATCH(E16,StandardIndicators,0))),IF(ISNUMBER(MATCH(E16,'Custom SPA Indicators Labels'!B$1:B$119,0)),IF(ISBLANK(VLOOKUP(E16,'Custom SPA Indicators Labels'!B$1:H$119,3,FALSE)),\"\",VLOOKUP(E16,'Custom SPA Indicators Labels'!B$1:H$119,3,FALSE)),\"\"))","v":""},null,{"$f":"IF(ISNUMBER(MATCH(E16,StandardIndicators,0)),IF(ISBLANK(INDIRECT(\"'SPA Elements and Indicators'!L\"&MATCH(E16,StandardIndicators,0))),\"\",INDIRECT(\"'SPA Elements and Indicators'!L\"&MATCH(E16,StandardIndicators,0))),IF(ISNUMBER(MATCH(E16,'Custom SPA Indicators Labels'!B$1:B$119,0)),IF(ISBLANK(VLOOKUP(E16,'Custom SPA Indicators Labels'!B$1:H$119,4,FALSE)),\"\",VLOOKUP(E16,'Custom SPA Indicators Labels'!B$1:H$119,4,FALSE)),\"\"))","v":""},null,{"$f":"IF(ISNUMBER(MATCH(E16,StandardIndicators,0)),IF(ISBLANK(INDIRECT(\"'SPA Elements and Indicators'!M\"&MATCH(E16,StandardIndicators,0))),\"\",INDIRECT(\"'SPA Elements and Indicators'!M\"&MATCH(E16,StandardIndicators,0))),IF(ISNUMBER(MATCH(E16,'Custom SPA Indicators Labels'!B$1:B$119,0)),IF(ISBLANK(VLOOKUP(E16,'Custom SPA Indicators Labels'!B$1:H$119,5,FALSE)),\"\",VLOOKUP(E16,'Custom SPA Indicators Labels'!B$1:H$119,5,FALSE)),\"\"))","v":""},null,{"$f":"IF(ISNUMBER(MATCH(E16,StandardIndicators,0)),IF(ISBLANK(INDIRECT(\"'SPA Elements and Indicators'!N\"&MATCH(E16,StandardIndicators,0))),\"\",INDIRECT(\"'SPA Elements and Indicators'!N\"&MATCH(E16,StandardIndicators,0))),IF(ISNUMBER(MATCH(E16,'Custom SPA Indicators Labels'!B$1:B$119,0)),IF(ISBLANK(VLOOKUP(E16,'Custom SPA Indicators Labels'!B$1:H$119,6,FALSE)),\"\",VLOOKUP(E16,'Custom SPA Indicators Labels'!B$1:H$119,6,FALSE)),\"\"))","v":""},null,{"$f":"IF(ISNUMBER(MATCH(E16,StandardIndicators,0)),IF(ISBLANK(INDIRECT(\"'SPA Elements and Indicators'!O\"&MATCH(E16,StandardIndicators,0))),\"\",INDIRECT(\"'SPA Elements and Indicators'!O\"&MATCH(E16,StandardIndicators,0))),IF(ISNUMBER(MATCH(E16,'Custom SPA Indicators Labels'!B$1:B$119,0)),IF(ISBLANK(VLOOKUP(E16,'Custom SPA Indicators Labels'!B$1:H$119,7,FALSE)),\"\",VLOOKUP(E16,'Custom SPA Indicators Labels'!B$1:H$119,7,FALSE)),\"\"))","v":""},{"$f":"IF(MATCH(LEFT(E$12,5),'SPA Elements and Indicators'!A:A,0)+ROW()-16<MATCH(LEFT(INDIRECT(\"'Lookup'!B\"&MATCH(E$12,Lookup!B:B,0)+1),5),'SPA Elements and Indicators'!A:A,0),INDIRECT(\"'SPA Elements and Indicators'!B\"&MATCH(LEFT(E$12,5),'SPA Elements and Indicators'!A:A,0)+ROW()-15),\"\")","v":{"$error":"#N/A"}},{"$f":"IF(EXACT(INDIRECT(\"'Custom SPA Indicators'!B\"&MATCH(LEFT(E$12,5),'Custom SPA Indicators'!A:A,0)+ROW()-Y16),Y$1),\"\",Z16)","v":{"$error":"#N/A"}},{"$f":"MATCH(INDIRECT(\"'SPA Elements and Indicators'!B\"&MATCH(LEFT(INDIRECT(\"'Lookup'!B\"&MATCH(E$12,Lookup!B:B,0)+1),5),'SPA Elements and Indicators'!A:A,0)-2),E:E,0)","v":{"$error":"#N/A"}},{"$f":"IF(MATCH(LEFT(E$12,5),'Custom SPA Indicators'!A:A,0)+ROW()-MATCH(INDIRECT(\"'SPA Elements and Indicators'!B\"&MATCH(LEFT(INDIRECT(\"'Lookup'!B\"&MATCH(E$12,Lookup!B:B,0)+1),5),'SPA Elements and Indicators'!A:A,0)-2),E:E,0)<MATCH(LEFT(INDIRECT(\"'Lookup'!B\"&MATCH(E$12,Lookup!B:B,0)+1),5),'Custom SPA Indicators'!A:A,0),INDIRECT(\"'Custom SPA Indicators'!B\"&MATCH(LEFT(E$12,5),'Custom SPA Indicators'!A:A,0)+ROW()-MATCH(INDIRECT(\"'SPA Elements and Indicators'!B\"&MATCH(LEFT(INDIRECT(\"'Lookup'!B\"&MATCH(E$12,Lookup!B:B,0)+1),5),'SPA Elements and Indicators'!A:A,0)-2),E:E,0)),\"\")","v":{"$error":"#N/A"}}]
[null,null,null,"","",null,null,null,null,null,null,{"$f":"IF(ISNUMBER(MATCH(E17,StandardIndicators,0)),IF(ISBLANK(INDIRECT(\"'SPA Elements and Indicators'!J\"&MATCH(E17,StandardIndicators,0))),\"\",INDIRECT(\"'SPA Elements and Indicators'!J\"&MATCH(E17,StandardIndicators,0))),IF(ISNUMBER(MATCH(E17,'Custom SPA Indicators Labels'!B$1:B$119,0)),IF(ISBLANK(VLOOKUP(E17,'Custom SPA Indicators Labels'!B$1:H$119,2,FALSE)),\"\",VLOOKUP(E17,'Custom SPA Indicators Labels'!B$1:H$119,2,FALSE)),\"\"))","v":""},null,{"$f":"IF(ISNUMBER(MATCH(E17,StandardIndicators,0)),IF(ISBLANK(INDIRECT(\"'SPA Elements and Indicators'!K\"&MATCH(E17,StandardIndicators,0))),\"\",INDIRECT(\"'SPA Elements and Indicators'!K\"&MATCH(E17,StandardIndicators,0))),IF(ISNUMBER(MATCH(E17,'Custom SPA Indicators Labels'!B$1:B$119,0)),IF(ISBLANK(VLOOKUP(E17,'Custom SPA Indicators Labels'!B$1:H$119,3,FALSE)),\"\",VLOOKUP(E17,'Custom SPA Indicators Labels'!B$1:H$119,3,FALSE)),\"\"))","v":""},null,{"$f":"IF(ISNUMBER(MATCH(E17,StandardIndicators,0)),IF(ISBLANK(INDIRECT(\"'SPA Elements and Indicators'!L\"&MATCH(E17,StandardIndicators,0))),\"\",INDIRECT(\"'SPA Elements and Indicators'!L\"&MATCH(E17,StandardIndicators,0))),IF(ISNUMBER(MATCH(E17,'Custom SPA Indicators Labels'!B$1:B$119,0)),IF(ISBLANK(VLOOKUP(E17,'Custom SPA Indicators Labels'!B$1:H$119,4,FALSE)),\"\",VLOOKUP(E17,'Custom SPA Indicators Labels'!B$1:H$119,4,FALSE)),\"\"))","v":""},null,{"$f":"IF(ISNUMBER(MATCH(E17,StandardIndicators,0)),IF(ISBLANK(INDIRECT(\"'SPA Elements and Indicators'!M\"&MATCH(E17,StandardIndicators,0))),\"\",INDIRECT(\"'SPA Elements and Indicators'!M\"&MATCH(E17,StandardIndicators,0))),IF(ISNUMBER(MATCH(E17,'Custom SPA Indicators Labels'!B$1:B$119,0)),IF(ISBLANK(VLOOKUP(E17,'Custom SPA Indicators Labels'!B$1:H$119,5,FALSE)),\"\",VLOOKUP(E17,'Custom SPA Indicators Labels'!B$1:H$119,5,FALSE)),\"\"))","v":""},null,{"$f":"IF(ISNUMBER(MATCH(E17,StandardIndicators,0)),IF(ISBLANK(INDIRECT(\"'SPA Elements and Indicators'!N\"&MATCH(E17,StandardIndicators,0))),\"\",INDIRECT(\"'SPA Elements and Indicators'!N\"&MATCH(E17,StandardIndicators,0))),IF(ISNUMBER(MATCH(E17,'Custom SPA Indicators Labels'!B$1:B$119,0)),IF(ISBLANK(VLOOKUP(E17,'Custom SPA Indicators Labels'!B$1:H$119,6,FALSE)),\"\",VLOOKUP(E17,'Custom SPA Indicators Labels'!B$1:H$119,6,FALSE)),\"\"))","v":""},null,{"$f":"IF(ISNUMBER(MATCH(E17,StandardIndicators,0)),IF(ISBLANK(INDIRECT(\"'SPA Elements and Indicators'!O\"&MATCH(E17,StandardIndicators,0))),\"\",INDIRECT(\"'SPA Elements and Indicators'!O\"&MATCH(E17,StandardIndicators,0))),IF(ISNUMBER(MATCH(E17,'Custom SPA Indicators Labels'!B$1:B$119,0)),IF(ISBLANK(VLOOKUP(E17,'Custom SPA Indicators Labels'!B$1:H$119,7,FALSE)),\"\",VLOOKUP(E17,'Custom SPA Indicators Labels'!B$1:H$119,7,FALSE)),\"\"))","v":""},{"$f":"IF(MATCH(LEFT(E$12,5),'SPA Elements and Indicators'!A:A,0)+ROW()-16<MATCH(LEFT(INDIRECT(\"'Lookup'!B\"&MATCH(E$12,Lookup!B:B,0)+1),5),'SPA Elements and Indicators'!A:A,0),INDIRECT(\"'SPA Elements and Indicators'!B\"&MATCH(LEFT(E$12,5),'SPA Elements and Indicators'!A:A,0)+ROW()-15),\"\")","v":{"$error":"#N/A"}},{"$f":"IF(EXACT(INDIRECT(\"'Custom SPA Indicators'!B\"&MATCH(LEFT(E$12,5),'Custom SPA Indicators'!A:A,0)+ROW()-Y17),Y$1),\"\",Z17)","v":{"$error":"#N/A"}},{"$f":"MATCH(INDIRECT(\"'SPA Elements and Indicators'!B\"&MATCH(LEFT(INDIRECT(\"'Lookup'!B\"&MATCH(E$12,Lookup!B:B,0)+1),5),'SPA Elements and Indicators'!A:A,0)-2),E:E,0)","v":{"$error":"#N/A"}},{"$f":"IF(MATCH(LEFT(E$12,5),'Custom SPA Indicators'!A:A,0)+ROW()-MATCH(INDIRECT(\"'SPA Elements and Indicators'!B\"&MATCH(LEFT(INDIRECT(\"'Lookup'!B\"&MATCH(E$12,Lookup!B:B,0)+1),5),'SPA Elements and Indicators'!A:A,0)-2),E:E,0)<MATCH(LEFT(INDIRECT(\"'Lookup'!B\"&MATCH(E$12,Lookup!B:B,0)+1),5),'Custom SPA Indicators'!A:A,0),INDIRECT(\"'Custom SPA Indicators'!B\"&MATCH(LEFT(E$12,5),'Custom SPA Indicators'!A:A,0)+ROW()-MATCH(INDIRECT(\"'SPA Elements and Indicators'!B\"&MATCH(LEFT(INDIRECT(\"'Lookup'!B\"&MATCH(E$12,Lookup!B:B,0)+1),5),'SPA Elements and Indicators'!A:A,0)-2),E:E,0)),\"\")","v":{"$error":"#N/A"}}]
[null,null,null,"","",null,null,null,null,null,null,{"$f":"IF(ISNUMBER(MATCH(E18,StandardIndicators,0)),IF(ISBLANK(INDIRECT(\"'SPA Elements and Indicators'!J\"&MATCH(E18,StandardIndicators,0))),\"\",INDIRECT(\"'SPA Elements and Indicators'!J\"&MATCH(E18,StandardIndicators,0))),IF(ISNUMBER(MATCH(E18,'Custom SPA Indicators Labels'!B$1:B$119,0)),IF(ISBLANK(VLOOKUP(E18,'Custom SPA Indicators Labels'!B$1:H$119,2,FALSE)),\"\",VLOOKUP(E18,'Custom SPA Indicators Labels'!B$1:H$119,2,FALSE)),\"\"))","v":""},null,{"$f":"IF(ISNUMBER(MATCH(E18,StandardIndicators,0)),IF(ISBLANK(INDIRECT(\"'SPA Elements and Indicators'!K\"&MATCH(E18,StandardIndicators,0))),\"\",INDIRECT(\"'SPA Elements and Indicators'!K\"&MATCH(E18,StandardIndicators,0))),IF(ISNUMBER(MATCH(E18,'Custom SPA Indicators Labels'!B$1:B$119,0)),IF(ISBLANK(VLOOKUP(E18,'Custom SPA Indicators Labels'!B$1:H$119,3,FALSE)),\"\",VLOOKUP(E18,'Custom SPA Indicators Labels'!B$1:H$119,3,FALSE)),\"\"))","v":""},null,{"$f":"IF(ISNUMBER(MATCH(E18,StandardIndicators,0)),IF(ISBLANK(INDIRECT(\"'SPA Elements and Indicators'!L\"&MATCH(E18,StandardIndicators,0))),\"\",INDIRECT(\"'SPA Elements and Indicators'!L\"&MATCH(E18,StandardIndicators,0))),IF(ISNUMBER(MATCH(E18,'Custom SPA Indicators Labels'!B$1:B$119,0)),IF(ISBLANK(VLOOKUP(E18,'Custom SPA Indicators Labels'!B$1:H$119,4,FALSE)),\"\",VLOOKUP(E18,'Custom SPA Indicators Labels'!B$1:H$119,4,FALSE)),\"\"))","v":""},null,{"$f":"IF(ISNUMBER(MATCH(E18,StandardIndicators,0)),IF(ISBLANK(INDIRECT(\"'SPA Elements and Indicators'!M\"&MATCH(E18,StandardIndicators,0))),\"\",INDIRECT(\"'SPA Elements and Indicators'!M\"&MATCH(E18,StandardIndicators,0))),IF(ISNUMBER(MATCH(E18,'Custom SPA Indicators Labels'!B$1:B$119,0)),IF(ISBLANK(VLOOKUP(E18,'Custom SPA Indicators Labels'!B$1:H$119,5,FALSE)),\"\",VLOOKUP(E18,'Custom SPA Indicators Labels'!B$1:H$119,5,FALSE)),\"\"))","v":""},null,{"$f":"IF(ISNUMBER(MATCH(E18,StandardIndicators,0)),IF(ISBLANK(INDIRECT(\"'SPA Elements and Indicators'!N\"&MATCH(E18,StandardIndicators,0))),\"\",INDIRECT(\"'SPA Elements and Indicators'!N\"&MATCH(E18,StandardIndicators,0))),IF(ISNUMBER(MATCH(E18,'Custom SPA Indicators Labels'!B$1:B$119,0)),IF(ISBLANK(VLOOKUP(E18,'Custom SPA Indicators Labels'!B$1:H$119,6,FALSE)),\"\",VLOOKUP(E18,'Custom SPA Indicators Labels'!B$1:H$119,6,FALSE)),\"\"))","v":""},null,{"$f":"IF(ISNUMBER(MATCH(E18,StandardIndicators,0)),IF(ISBLANK(INDIRECT(\"'SPA Elements and Indicators'!O\"&MATCH(E18,StandardIndicators,0))),\"\",INDIRECT(\"'SPA Elements and Indicators'!O\"&MATCH(E18,StandardIndicators,0))),IF(ISNUMBER(MATCH(E18,'Custom SPA Indicators Labels'!B$1:B$119,0)),IF(ISBLANK(VLOOKUP(E18,'Custom SPA Indicators Labels'!B$1:H$119,7,FALSE)),\"\",VLOOKUP(E18,'Custom SPA Indicators Labels'!B$1:H$119,7,FALSE)),\"\"))","v":""},{"$f":"IF(MATCH(LEFT(E$12,5),'SPA Elements and Indicators'!A:A,0)+ROW()-16<MATCH(LEFT(INDIRECT(\"'Lookup'!B\"&MATCH(E$12,Lookup!B:B,0)+1),5),'SPA Elements and Indicators'!A:A,0),INDIRECT(\"'SPA Elements and Indicators'!B\"&MATCH(LEFT(E$12,5),'SPA Elements and Indicators'!A:A,0)+ROW()-15),\"\")","v":{"$error":"#N/A"}},{"$f":"IF(EXACT(INDIRECT(\"'Custom SPA Indicators'!B\"&MATCH(LEFT(E$12,5),'Custom SPA Indicators'!A:A,0)+ROW()-Y18),Y$1),\"\",Z18)","v":{"$error":"#N/A"}},{"$f":"MATCH(INDIRECT(\"'SPA Elements and Indicators'!B\"&MATCH(LEFT(INDIRECT(\"'Lookup'!B\"&MATCH(E$12,Lookup!B:B,0)+1),5),'SPA Elements and Indicators'!A:A,0)-2),E:E,0)","v":{"$error":"#N/A"}},{"$f":"IF(MATCH(LEFT(E$12,5),'Custom SPA Indicators'!A:A,0)+ROW()-MATCH(INDIRECT(\"'SPA Elements and Indicators'!B\"&MATCH(LEFT(INDIRECT(\"'Lookup'!B\"&MATCH(E$12,Lookup!B:B,0)+1),5),'SPA Elements and Indicators'!A:A,0)-2),E:E,0)<MATCH(LEFT(INDIRECT(\"'Lookup'!B\"&MATCH(E$12,Lookup!B:B,0)+1),5),'Custom SPA Indicators'!A:A,0),INDIRECT(\"'Custom SPA Indicators'!B\"&MATCH(LEFT(E$12,5),'Custom SPA Indicators'!A:A,0)+ROW()-MATCH(INDIRECT(\"'SPA Elements and Indicators'!B\"&MATCH(LEFT(INDIRECT(\"'Lookup'!B\"&MATCH(E$12,Lookup!B:B,0)+1),5),'SPA Elements and Indicators'!A:A,0)-2),E:E,0)),\"\")","v":{"$error":"#N/A"}}]
[null,null,null,"","",null,null,null,null,null,null,{"$f":"IF(ISNUMBER(MATCH(E19,StandardIndicators,0)),IF(ISBLANK(INDIRECT(\"'SPA Elements and Indicators'!J\"&MATCH(E19,StandardIndicators,0))),\"\",INDIRECT(\"'SPA Elements and Indicators'!J\"&MATCH(E19,StandardIndicators,0))),IF(ISNUMBER(MATCH(E19,'Custom SPA Indicators Labels'!B$1:B$119,0)),IF(ISBLANK(VLOOKUP(E19,'Custom SPA Indicators Labels'!B$1:H$119,2,FALSE)),\"\",VLOOKUP(E19,'Custom SPA Indicators Labels'!B$1:H$119,2,FALSE)),\"\"))","v":""},null,{"$f":"IF(ISNUMBER(MATCH(E19,StandardIndicators,0)),IF(ISBLANK(INDIRECT(\"'SPA Elements and Indicators'!K\"&MATCH(E19,StandardIndicators,0))),\"\",INDIRECT(\"'SPA Elements and Indicators'!K\"&MATCH(E19,StandardIndicators,0))),IF(ISNUMBER(MATCH(E19,'Custom SPA Indicators Labels'!B$1:B$119,0)),IF(ISBLANK(VLOOKUP(E19,'Custom SPA Indicators Labels'!B$1:H$119,3,FALSE)),\"\",VLOOKUP(E19,'Custom SPA Indicators Labels'!B$1:H$119,3,FALSE)),\"\"))","v":""},null,{"$f":"IF(ISNUMBER(MATCH(E19,StandardIndicators,0)),IF(ISBLANK(INDIRECT(\"'SPA Elements and Indicators'!L\"&MATCH(E19,StandardIndicators,0))),\"\",INDIRECT(\"'SPA Elements and Indicators'!L\"&MATCH(E19,StandardIndicators,0))),IF(ISNUMBER(MATCH(E19,'Custom SPA Indicators Labels'!B$1:B$119,0)),IF(ISBLANK(VLOOKUP(E19,'Custom SPA Indicators Labels'!B$1:H$119,4,FALSE)),\"\",VLOOKUP(E19,'Custom SPA Indicators Labels'!B$1:H$119,4,FALSE)),\"\"))","v":""},null,{"$f":"IF(ISNUMBER(MATCH(E19,StandardIndicators,0)),IF(ISBLANK(INDIRECT(\"'SPA Elements and Indicators'!M\"&MATCH(E19,StandardIndicators,0))),\"\",INDIRECT(\"'SPA Elements and Indicators'!M\"&MATCH(E19,StandardIndicators,0))),IF(ISNUMBER(MATCH(E19,'Custom SPA Indicators Labels'!B$1:B$119,0)),IF(ISBLANK(VLOOKUP(E19,'Custom SPA Indicators Labels'!B$1:H$119,5,FALSE)),\"\",VLOOKUP(E19,'Custom SPA Indicators Labels'!B$1:H$119,5,FALSE)),\"\"))","v":""},null,{"$f":"IF(ISNUMBER(MATCH(E19,StandardIndicators,0)),IF(ISBLANK(INDIRECT(\"'SPA Elements and Indicators'!N\"&MATCH(E19,StandardIndicators,0))),\"\",INDIRECT(\"'SPA Elements and Indicators'!N\"&MATCH(E19,StandardIndicators,0))),IF(ISNUMBER(MATCH(E19,'Custom SPA Indicators Labels'!B$1:B$119,0)),IF(ISBLANK(VLOOKUP(E19,'Custom SPA Indicators Labels'!B$1:H$119,6,FALSE)),\"\",VLOOKUP(E19,'Custom SPA Indicators Labels'!B$1:H$119,6,FALSE)),\"\"))","v":""},null,{"$f":"IF(ISNUMBER(MATCH(E19,StandardIndicators,0)),IF(ISBLANK(INDIRECT(\"'SPA Elements and Indicators'!O\"&MATCH(E19,StandardIndicators,0))),\"\",INDIRECT(\"'SPA Elements and Indicators'!O\"&MATCH(E19,StandardIndicators,0))),IF(ISNUMBER(MATCH(E19,'Custom SPA Indicators Labels'!B$1:B$119,0)),IF(ISBLANK(VLOOKUP(E19,'Custom SPA Indicators Labels'!B$1:H$119,7,FALSE)),\"\",VLOOKUP(E19,'Custom SPA Indicators Labels'!B$1:H$119,7,FALSE)),\"\"))","v":""},{"$f":"IF(MATCH(LEFT(E$12,5),'SPA Elements and Indicators'!A:A,0)+ROW()-16<MATCH(LEFT(INDIRECT(\"'Lookup'!B\"&MATCH(E$12,Lookup!B:B,0)+1),5),'SPA Elements and Indicators'!A:A,0),INDIRECT(\"'SPA Elements and Indicators'!B\"&MATCH(LEFT(E$12,5),'SPA Elements and Indicators'!A:A,0)+ROW()-15),\"\")","v":{"$error":"#N/A"}},{"$f":"IF(EXACT(INDIRECT(\"'Custom SPA Indicators'!B\"&MATCH(LEFT(E$12,5),'Custom SPA Indicators'!A:A,0)+ROW()-Y19),Y$1),\"\",Z19)","v":{"$error":"#N/A"}},{"$f":"MATCH(INDIRECT(\"'SPA Elements and Indicators'!B\"&MATCH(LEFT(INDIRECT(\"'Lookup'!B\"&MATCH(E$12,Lookup!B:B,0)+1),5),'SPA Elements and Indicators'!A:A,0)-2),E:E,0)","v":{"$error":"#N/A"}},{"$f":"IF(MATCH(LEFT(E$12,5),'Custom SPA Indicators'!A:A,0)+ROW()-MATCH(INDIRECT(\"'SPA Elements and Indicators'!B\"&MATCH(LEFT(INDIRECT(\"'Lookup'!B\"&MATCH(E$12,Lookup!B:B,0)+1),5),'SPA Elements and Indicators'!A:A,0)-2),E:E,0)<MATCH(LEFT(INDIRECT(\"'Lookup'!B\"&MATCH(E$12,Lookup!B:B,0)+1),5),'Custom SPA Indicators'!A:A,0),INDIRECT(\"'Custom SPA Indicators'!B\"&MATCH(LEFT(E$12,5),'Custom SPA Indicators'!A:A,0)+ROW()-MATCH(INDIRECT(\"'SPA Elements and Indicators'!B\"&MATCH(LEFT(INDIRECT(\"'Lookup'!B\"&MATCH(E$12,Lookup!B:B,0)+1),5),'SPA Elements and Indicators'!A:A,0)-2),E:E,0)),\"\")","v":{"$error":"#N/A"}}]
[null,null,null,"","",null,null,null,null,null,null,{"$f":"IF(ISNUMBER(MATCH(E20,StandardIndicators,0)),IF(ISBLANK(INDIRECT(\"'SPA Elements and Indicators'!J\"&MATCH(E20,StandardIndicators,0))),\"\",INDIRECT(\"'SPA Elements and Indicators'!J\"&MATCH(E20,StandardIndicators,0))),IF(ISNUMBER(MATCH(E20,'Custom SPA Indicators Labels'!B$1:B$119,0)),IF(ISBLANK(VLOOKUP(E20,'Custom SPA Indicators Labels'!B$1:H$119,2,FALSE)),\"\",VLOOKUP(E20,'Custom SPA Indicators Labels'!B$1:H$119,2,FALSE)),\"\"))","v":""},null,{"$f":"IF(ISNUMBER(MATCH(E20,StandardIndicators,0)),IF(ISBLANK(INDIRECT(\"'SPA Elements and Indicators'!K\"&MATCH(E20,StandardIndicators,0))),\"\",INDIRECT(\"'SPA Elements and Indicators'!K\"&MATCH(E20,StandardIndicators,0))),IF(ISNUMBER(MATCH(E20,'Custom SPA Indicators Labels'!B$1:B$119,0)),IF(ISBLANK(VLOOKUP(E20,'Custom SPA Indicators Labels'!B$1:H$119,3,FALSE)),\"\",VLOOKUP(E20,'Custom SPA Indicators Labels'!B$1:H$119,3,FALSE)),\"\"))","v":""},null,{"$f":"IF(ISNUMBER(MATCH(E20,StandardIndicators,0)),IF(ISBLANK(INDIRECT(\"'SPA Elements and Indicators'!L\"&MATCH(E20,StandardIndicators,0))),\"\",INDIRECT(\"'SPA Elements and Indicators'!L\"&MATCH(E20,StandardIndicators,0))),IF(ISNUMBER(MATCH(E20,'Custom SPA Indicators Labels'!B$1:B$119,0)),IF(ISBLANK(VLOOKUP(E20,'Custom SPA Indicators Labels'!B$1:H$119,4,FALSE)),\"\",VLOOKUP(E20,'Custom SPA Indicators Labels'!B$1:H$119,4,FALSE)),\"\"))","v":""},null,{"$f":"IF(ISNUMBER(MATCH(E20,StandardIndicators,0)),IF(ISBLANK(INDIRECT(\"'SPA Elements and Indicators'!M\"&MATCH(E20,StandardIndicators,0))),\"\",INDIRECT(\"'SPA Elements and Indicators'!M\"&MATCH(E20,StandardIndicators,0))),IF(ISNUMBER(MATCH(E20,'Custom SPA Indicators Labels'!B$1:B$119,0)),IF(ISBLANK(VLOOKUP(E20,'Custom SPA Indicators Labels'!B$1:H$119,5,FALSE)),\"\",VLOOKUP(E20,'Custom SPA Indicators Labels'!B$1:H$119,5,FALSE)),\"\"))","v":""},null,{"$f":"IF(ISNUMBER(MATCH(E20,StandardIndicators,0)),IF(ISBLANK(INDIRECT(\"'SPA Elements and Indicators'!N\"&MATCH(E20,StandardIndicators,0))),\"\",INDIRECT(\"'SPA Elements and Indicators'!N\"&MATCH(E20,StandardIndicators,0))),IF(ISNUMBER(MATCH(E20,'Custom SPA Indicators Labels'!B$1:B$119,0)),IF(ISBLANK(VLOOKUP(E20,'Custom SPA Indicators Labels'!B$1:H$119,6,FALSE)),\"\",VLOOKUP(E20,'Custom SPA Indicators Labels'!B$1:H$119,6,FALSE)),\"\"))","v":""},null,{"$f":"IF(ISNUMBER(MATCH(E20,StandardIndicators,0)),IF(ISBLANK(INDIRECT(\"'SPA Elements and Indicators'!O\"&MATCH(E20,StandardIndicators,0))),\"\",INDIRECT(\"'SPA Elements and Indicators'!O\"&MATCH(E20,StandardIndicators,0))),IF(ISNUMBER(MATCH(E20,'Custom SPA Indicators Labels'!B$1:B$119,0)),IF(ISBLANK(VLOOKUP(E20,'Custom SPA Indicators Labels'!B$1:H$119,7,FALSE)),\"\",VLOOKUP(E20,'Custom SPA Indicators Labels'!B$1:H$119,7,FALSE)),\"\"))","v":""},{"$f":"IF(MATCH(LEFT(E$12,5),'SPA Elements and Indicators'!A:A,0)+ROW()-16<MATCH(LEFT(INDIRECT(\"'Lookup'!B\"&MATCH(E$12,Lookup!B:B,0)+1),5),'SPA Elements and Indicators'!A:A,0),INDIRECT(\"'SPA Elements and Indicators'!B\"&MATCH(LEFT(E$12,5),'SPA Elements and Indicators'!A:A,0)+ROW()-15),\"\")","v":{"$error":"#N/A"}},{"$f":"IF(EXACT(INDIRECT(\"'Custom SPA Indicators'!B\"&MATCH(LEFT(E$12,5),'Custom SPA Indicators'!A:A,0)+ROW()-Y20),Y$1),\"\",Z20)","v":{"$error":"#N/A"}},{"$f":"MATCH(INDIRECT(\"'SPA Elements and Indicators'!B\"&MATCH(LEFT(INDIRECT(\"'Lookup'!B\"&MATCH(E$12,Lookup!B:B,0)+1),5),'SPA Elements and Indicators'!A:A,0)-2),E:E,0)","v":{"$error":"#N/A"}},{"$f":"IF(MATCH(LEFT(E$12,5),'Custom SPA Indicators'!A:A,0)+ROW()-MATCH(INDIRECT(\"'SPA Elements and Indicators'!B\"&MATCH(LEFT(INDIRECT(\"'Lookup'!B\"&MATCH(E$12,Lookup!B:B,0)+1),5),'SPA Elements and Indicators'!A:A,0)-2),E:E,0)<MATCH(LEFT(INDIRECT(\"'Lookup'!B\"&MATCH(E$12,Lookup!B:B,0)+1),5),'Custom SPA Indicators'!A:A,0),INDIRECT(\"'Custom SPA Indicators'!B\"&MATCH(LEFT(E$12,5),'Custom SPA Indicators'!A:A,0)+ROW()-MATCH(INDIRECT(\"'SPA Elements and Indicators'!B\"&MATCH(LEFT(INDIRECT(\"'Lookup'!B\"&MATCH(E$12,Lookup!B:B,0)+1),5),'SPA Elements and Indicators'!A:A,0)-2),E:E,0)),\"\")","v":{"$error":"#N/A"}}]
[null,null,null,"","",null,null,null,null,null,null,{"$f":"IF(ISNUMBER(MATCH(E21,StandardIndicators,0)),IF(ISBLANK(INDIRECT(\"'SPA Elements and Indicators'!J\"&MATCH(E21,StandardIndicators,0))),\"\",INDIRECT(\"'SPA Elements and Indicators'!J\"&MATCH(E21,StandardIndicators,0))),IF(ISNUMBER(MATCH(E21,'Custom SPA Indicators Labels'!B$1:B$119,0)),IF(ISBLANK(VLOOKUP(E21,'Custom SPA Indicators Labels'!B$1:H$119,2,FALSE)),\"\",VLOOKUP(E21,'Custom SPA Indicators Labels'!B$1:H$119,2,FALSE)),\"\"))","v":""},null,{"$f":"IF(ISNUMBER(MATCH(E21,StandardIndicators,0)),IF(ISBLANK(INDIRECT(\"'SPA Elements and Indicators'!K\"&MATCH(E21,StandardIndicators,0))),\"\",INDIRECT(\"'SPA Elements and Indicators'!K\"&MATCH(E21,StandardIndicators,0))),IF(ISNUMBER(MATCH(E21,'Custom SPA Indicators Labels'!B$1:B$119,0)),IF(ISBLANK(VLOOKUP(E21,'Custom SPA Indicators Labels'!B$1:H$119,3,FALSE)),\"\",VLOOKUP(E21,'Custom SPA Indicators Labels'!B$1:H$119,3,FALSE)),\"\"))","v":""},null,{"$f":"IF(ISNUMBER(MATCH(E21,StandardIndicators,0)),IF(ISBLANK(INDIRECT(\"'SPA Elements and Indicators'!L\"&MATCH(E21,StandardIndicators,0))),\"\",INDIRECT(\"'SPA Elements and Indicators'!L\"&MATCH(E21,StandardIndicators,0))),IF(ISNUMBER(MATCH(E21,'Custom SPA Indicators Labels'!B$1:B$119,0)),IF(ISBLANK(VLOOKUP(E21,'Custom SPA Indicators Labels'!B$1:H$119,4,FALSE)),\"\",VLOOKUP(E21,'Custom SPA Indicators Labels'!B$1:H$119,4,FALSE)),\"\"))","v":""},null,{"$f":"IF(ISNUMBER(MATCH(E21,StandardIndicators,0)),IF(ISBLANK(INDIRECT(\"'SPA Elements and Indicators'!M\"&MATCH(E21,StandardIndicators,0))),\"\",INDIRECT(\"'SPA Elements and Indicators'!M\"&MATCH(E21,StandardIndicators,0))),IF(ISNUMBER(MATCH(E21,'Custom SPA Indicators Labels'!B$1:B$119,0)),IF(ISBLANK(VLOOKUP(E21,'Custom SPA Indicators Labels'!B$1:H$119,5,FALSE)),\"\",VLOOKUP(E21,'Custom SPA Indicators Labels'!B$1:H$119,5,FALSE)),\"\"))","v":""},null,{"$f":"IF(ISNUMBER(MATCH(E21,StandardIndicators,0)),IF(ISBLANK(INDIRECT(\"'SPA Elements and Indicators'!N\"&MATCH(E21,StandardIndicators,0))),\"\",INDIRECT(\"'SPA Elements and Indicators'!N\"&MATCH(E21,StandardIndicators,0))),IF(ISNUMBER(MATCH(E21,'Custom SPA Indicators Labels'!B$1:B$119,0)),IF(ISBLANK(VLOOKUP(E21,'Custom SPA Indicators Labels'!B$1:H$119,6,FALSE)),\"\",VLOOKUP(E21,'Custom SPA Indicators Labels'!B$1:H$119,6,FALSE)),\"\"))","v":""},null,{"$f":"IF(ISNUMBER(MATCH(E21,StandardIndicators,0)),IF(ISBLANK(INDIRECT(\"'SPA Elements and Indicators'!O\"&MATCH(E21,StandardIndicators,0))),\"\",INDIRECT(\"'SPA Elements and Indicators'!O\"&MATCH(E21,StandardIndicators,0))),IF(ISNUMBER(MATCH(E21,'Custom SPA Indicators Labels'!B$1:B$119,0)),IF(ISBLANK(VLOOKUP(E21,'Custom SPA Indicators Labels'!B$1:H$119,7,FALSE)),\"\",VLOOKUP(E21,'Custom SPA Indicators Labels'!B$1:H$119,7,FALSE)),\"\"))","v":""},{"$f":"IF(MATCH(LEFT(E$12,5),'SPA Elements and Indicators'!A:A,0)+ROW()-16<MATCH(LEFT(INDIRECT(\"'Lookup'!B\"&MATCH(E$12,Lookup!B:B,0)+1),5),'SPA Elements and Indicators'!A:A,0),INDIRECT(\"'SPA Elements and Indicators'!B\"&MATCH(LEFT(E$12,5),'SPA Elements and Indicators'!A:A,0)+ROW()-15),\"\")","v":{"$error":"#N/A"}},{"$f":"IF(EXACT(INDIRECT(\"'Custom SPA Indicators'!B\"&MATCH(LEFT(E$12,5),'Custom SPA Indicators'!A:A,0)+ROW()-Y21),Y$1),\"\",Z21)","v":{"$error":"#N/A"}},{"$f":"MATCH(INDIRECT(\"'SPA Elements and Indicators'!B\"&MATCH(LEFT(INDIRECT(\"'Lookup'!B\"&MATCH(E$12,Lookup!B:B,0)+1),5),'SPA Elements and Indicators'!A:A,0)-2),E:E,0)","v":{"$error":"#N/A"}},{"$f":"IF(MATCH(LEFT(E$12,5),'Custom SPA Indicators'!A:A,0)+ROW()-MATCH(INDIRECT(\"'SPA Elements and Indicators'!B\"&MATCH(LEFT(INDIRECT(\"'Lookup'!B\"&MATCH(E$12,Lookup!B:B,0)+1),5),'SPA Elements and Indicators'!A:A,0)-2),E:E,0)<MATCH(LEFT(INDIRECT(\"'Lookup'!B\"&MATCH(E$12,Lookup!B:B,0)+1),5),'Custom SPA Indicators'!A:A,0),INDIRECT(\"'Custom SPA Indicators'!B\"&MATCH(LEFT(E$12,5),'Custom SPA Indicators'!A:A,0)+ROW()-MATCH(INDIRECT(\"'SPA Elements and Indicators'!B\"&MATCH(LEFT(INDIRECT(\"'Lookup'!B\"&MATCH(E$12,Lookup!B:B,0)+1),5),'SPA Elements and Indicators'!A:A,0)-2),E:E,0)),\"\")","v":{"$error":"#N/A"}}]
[null,null,null,"","",null,null,null,null,null,null,{"$f":"IF(ISNUMBER(MATCH(E22,StandardIndicators,0)),IF(ISBLANK(INDIRECT(\"'SPA Elements and Indicators'!J\"&MATCH(E22,StandardIndicators,0))),\"\",INDIRECT(\"'SPA Elements and Indicators'!J\"&MATCH(E22,StandardIndicators,0))),IF(ISNUMBER(MATCH(E22,'Custom SPA Indicators Labels'!B$1:B$119,0)),IF(ISBLANK(VLOOKUP(E22,'Custom SPA Indicators Labels'!B$1:H$119,2,FALSE)),\"\",VLOOKUP(E22,'Custom SPA Indicators Labels'!B$1:H$119,2,FALSE)),\"\"))","v":""},null,{"$f":"IF(ISNUMBER(MATCH(E22,StandardIndicators,0)),IF(ISBLANK(INDIRECT(\"'SPA Elements and Indicators'!K\"&MATCH(E22,StandardIndicators,0))),\"\",INDIRECT(\"'SPA Elements and Indicators'!K\"&MATCH(E22,StandardIndicators,0))),IF(ISNUMBER(MATCH(E22,'Custom SPA Indicators Labels'!B$1:B$119,0)),IF(ISBLANK(VLOOKUP(E22,'Custom SPA Indicators Labels'!B$1:H$119,3,FALSE)),\"\",VLOOKUP(E22,'Custom SPA Indicators Labels'!B$1:H$119,3,FALSE)),\"\"))","v":""},null,{"$f":"IF(ISNUMBER(MATCH(E22,StandardIndicators,0)),IF(ISBLANK(INDIRECT(\"'SPA Elements and Indicators'!L\"&MATCH(E22,StandardIndicators,0))),\"\",INDIRECT(\"'SPA Elements and Indicators'!L\"&MATCH(E22,StandardIndicators,0))),IF(ISNUMBER(MATCH(E22,'Custom SPA Indicators Labels'!B$1:B$119,0)),IF(ISBLANK(VLOOKUP(E22,'Custom SPA Indicators Labels'!B$1:H$119,4,FALSE)),\"\",VLOOKUP(E22,'Custom SPA Indicators Labels'!B$1:H$119,4,FALSE)),\"\"))","v":""},null,{"$f":"IF(ISNUMBER(MATCH(E22,StandardIndicators,0)),IF(ISBLANK(INDIRECT(\"'SPA Elements and Indicators'!M\"&MATCH(E22,StandardIndicators,0))),\"\",INDIRECT(\"'SPA Elements and Indicators'!M\"&MATCH(E22,StandardIndicators,0))),IF(ISNUMBER(MATCH(E22,'Custom SPA Indicators Labels'!B$1:B$119,0)),IF(ISBLANK(VLOOKUP(E22,'Custom SPA Indicators Labels'!B$1:H$119,5,FALSE)),\"\",VLOOKUP(E22,'Custom SPA Indicators Labels'!B$1:H$119,5,FALSE)),\"\"))","v":""},null,{"$f":"IF(ISNUMBER(MATCH(E22,StandardIndicators,0)),IF(ISBLANK(INDIRECT(\"'SPA Elements and Indicators'!N\"&MATCH(E22,StandardIndicators,0))),\"\",INDIRECT(\"'SPA Elements and Indicators'!N\"&MATCH(E22,StandardIndicators,0))),IF(ISNUMBER(MATCH(E22,'Custom SPA Indicators Labels'!B$1:B$119,0)),IF(ISBLANK(VLOOKUP(E22,'Custom SPA Indicators Labels'!B$1:H$119,6,FALSE)),\"\",VLOOKUP(E22,'Custom SPA Indicators Labels'!B$1:H$119,6,FALSE)),\"\"))","v":""},null,{"$f":"IF(ISNUMBER(MATCH(E22,StandardIndicators,0)),IF(ISBLANK(INDIRECT(\"'SPA Elements and Indicators'!O\"&MATCH(E22,StandardIndicators,0))),\"\",INDIRECT(\"'SPA Elements and Indicators'!O\"&MATCH(E22,StandardIndicators,0))),IF(ISNUMBER(MATCH(E22,'Custom SPA Indicators Labels'!B$1:B$119,0)),IF(ISBLANK(VLOOKUP(E22,'Custom SPA Indicators Labels'!B$1:H$119,7,FALSE)),\"\",VLOOKUP(E22,'Custom SPA Indicators Labels'!B$1:H$119,7,FALSE)),\"\"))","v":""},{"$f":"IF(MATCH(LEFT(E$12,5),'SPA Elements and Indicators'!A:A,0)+ROW()-16<MATCH(LEFT(INDIRECT(\"'Lookup'!B\"&MATCH(E$12,Lookup!B:B,0)+1),5),'SPA Elements and Indicators'!A:A,0),INDIRECT(\"'SPA Elements and Indicators'!B\"&MATCH(LEFT(E$12,5),'SPA Elements and Indicators'!A:A,0)+ROW()-15),\"\")","v":{"$error":"#N/A"}},{"$f":"IF(EXACT(INDIRECT(\"'Custom SPA Indicators'!B\"&MATCH(LEFT(E$12,5),'Custom SPA Indicators'!A:A,0)+ROW()-Y22),Y$1),\"\",Z22)","v":{"$error":"#N/A"}},{"$f":"MATCH(INDIRECT(\"'SPA Elements and Indicators'!B\"&MATCH(LEFT(INDIRECT(\"'Lookup'!B\"&MATCH(E$12,Lookup!B:B,0)+1),5),'SPA Elements and Indicators'!A:A,0)-2),E:E,0)","v":{"$error":"#N/A"}},{"$f":"IF(MATCH(LEFT(E$12,5),'Custom SPA Indicators'!A:A,0)+ROW()-MATCH(INDIRECT(\"'SPA Elements and Indicators'!B\"&MATCH(LEFT(INDIRECT(\"'Lookup'!B\"&MATCH(E$12,Lookup!B:B,0)+1),5),'SPA Elements and Indicators'!A:A,0)-2),E:E,0)<MATCH(LEFT(INDIRECT(\"'Lookup'!B\"&MATCH(E$12,Lookup!B:B,0)+1),5),'Custom SPA Indicators'!A:A,0),INDIRECT(\"'Custom SPA Indicators'!B\"&MATCH(LEFT(E$12,5),'Custom SPA Indicators'!A:A,0)+ROW()-MATCH(INDIRECT(\"'SPA Elements and Indicators'!B\"&MATCH(LEFT(INDIRECT(\"'Lookup'!B\"&MATCH(E$12,Lookup!B:B,0)+1),5),'SPA Elements and Indicators'!A:A,0)-2),E:E,0)),\"\")","v":{"$error":"#N/A"}}]
[null,null,null,"","",null,null,null,null,null,null,{"$f":"IF(ISNUMBER(MATCH(E23,StandardIndicators,0)),IF(ISBLANK(INDIRECT(\"'SPA Elements and Indicators'!J\"&MATCH(E23,StandardIndicators,0))),\"\",INDIRECT(\"'SPA Elements and Indicators'!J\"&MATCH(E23,StandardIndicators,0))),IF(ISNUMBER(MATCH(E23,'Custom SPA Indicators Labels'!B$1:B$119,0)),IF(ISBLANK(VLOOKUP(E23,'Custom SPA Indicators Labels'!B$1:H$119,2,FALSE)),\"\",VLOOKUP(E23,'Custom SPA Indicators Labels'!B$1:H$119,2,FALSE)),\"\"))","v":""},null,{"$f":"IF(ISNUMBER(MATCH(E23,StandardIndicators,0)),IF(ISBLANK(INDIRECT(\"'SPA Elements and Indicators'!K\"&MATCH(E23,StandardIndicators,0))),\"\",INDIRECT(\"'SPA Elements and Indicators'!K\"&MATCH(E23,StandardIndicators,0))),IF(ISNUMBER(MATCH(E23,'Custom SPA Indicators Labels'!B$1:B$119,0)),IF(ISBLANK(VLOOKUP(E23,'Custom SPA Indicators Labels'!B$1:H$119,3,FALSE)),\"\",VLOOKUP(E23,'Custom SPA Indicators Labels'!B$1:H$119,3,FALSE)),\"\"))","v":""},null,{"$f":"IF(ISNUMBER(MATCH(E23,StandardIndicators,0)),IF(ISBLANK(INDIRECT(\"'SPA Elements and Indicators'!L\"&MATCH(E23,StandardIndicators,0))),\"\",INDIRECT(\"'SPA Elements and Indicators'!L\"&MATCH(E23,StandardIndicators,0))),IF(ISNUMBER(MATCH(E23,'Custom SPA Indicators Labels'!B$1:B$119,0)),IF(ISBLANK(VLOOKUP(E23,'Custom SPA Indicators Labels'!B$1:H$119,4,FALSE)),\"\",VLOOKUP(E23,'Custom SPA Indicators Labels'!B$1:H$119,4,FALSE)),\"\"))","v":""},null,{"$f":"IF(ISNUMBER(MATCH(E23,StandardIndicators,0)),IF(ISBLANK(INDIRECT(\"'SPA Elements and Indicators'!M\"&MATCH(E23,StandardIndicators,0))),\"\",INDIRECT(\"'SPA Elements and Indicators'!M\"&MATCH(E23,StandardIndicators,0))),IF(ISNUMBER(MATCH(E23,'Custom SPA Indicators Labels'!B$1:B$119,0)),IF(ISBLANK(VLOOKUP(E23,'Custom SPA Indicators Labels'!B$1:H$119,5,FALSE)),\"\",VLOOKUP(E23,'Custom SPA Indicators Labels'!B$1:H$119,5,FALSE)),\"\"))","v":""},null,{"$f":"IF(ISNUMBER(MATCH(E23,StandardIndicators,0)),IF(ISBLANK(INDIRECT(\"'SPA Elements and Indicators'!N\"&MATCH(E23,StandardIndicators,0))),\"\",INDIRECT(\"'SPA Elements and Indicators'!N\"&MATCH(E23,StandardIndicators,0))),IF(ISNUMBER(MATCH(E23,'Custom SPA Indicators Labels'!B$1:B$119,0)),IF(ISBLANK(VLOOKUP(E23,'Custom SPA Indicators Labels'!B$1:H$119,6,FALSE)),\"\",VLOOKUP(E23,'Custom SPA Indicators Labels'!B$1:H$119,6,FALSE)),\"\"))","v":""},null,{"$f":"IF(ISNUMBER(MATCH(E23,StandardIndicators,0)),IF(ISBLANK(INDIRECT(\"'SPA Elements and Indicators'!O\"&MATCH(E23,StandardIndicators,0))),\"\",INDIRECT(\"'SPA Elements and Indicators'!O\"&MATCH(E23,StandardIndicators,0))),IF(ISNUMBER(MATCH(E23,'Custom SPA Indicators Labels'!B$1:B$119,0)),IF(ISBLANK(VLOOKUP(E23,'Custom SPA Indicators Labels'!B$1:H$119,7,FALSE)),\"\",VLOOKUP(E23,'Custom SPA Indicators Labels'!B$1:H$119,7,FALSE)),\"\"))","v":""},{"$f":"IF(MATCH(LEFT(E$12,5),'SPA Elements and Indicators'!A:A,0)+ROW()-16<MATCH(LEFT(INDIRECT(\"'Lookup'!B\"&MATCH(E$12,Lookup!B:B,0)+1),5),'SPA Elements and Indicators'!A:A,0),INDIRECT(\"'SPA Elements and Indicators'!B\"&MATCH(LEFT(E$12,5),'SPA Elements and Indicators'!A:A,0)+ROW()-15),\"\")","v":{"$error":"#N/A"}},{"$f":"IF(EXACT(INDIRECT(\"'Custom SPA Indicators'!B\"&MATCH(LEFT(E$12,5),'Custom SPA Indicators'!A:A,0)+ROW()-Y23),Y$1),\"\",Z23)","v":{"$error":"#N/A"}},{"$f":"MATCH(INDIRECT(\"'SPA Elements and Indicators'!B\"&MATCH(LEFT(INDIRECT(\"'Lookup'!B\"&MATCH(E$12,Lookup!B:B,0)+1),5),'SPA Elements and Indicators'!A:A,0)-2),E:E,0)","v":{"$error":"#N/A"}},{"$f":"IF(MATCH(LEFT(E$12,5),'Custom SPA Indicators'!A:A,0)+ROW()-MATCH(INDIRECT(\"'SPA Elements and Indicators'!B\"&MATCH(LEFT(INDIRECT(\"'Lookup'!B\"&MATCH(E$12,Lookup!B:B,0)+1),5),'SPA Elements and Indicators'!A:A,0)-2),E:E,0)<MATCH(LEFT(INDIRECT(\"'Lookup'!B\"&MATCH(E$12,Lookup!B:B,0)+1),5),'Custom SPA Indicators'!A:A,0),INDIRECT(\"'Custom SPA Indicators'!B\"&MATCH(LEFT(E$12,5),'Custom SPA Indicators'!A:A,0)+ROW()-MATCH(INDIRECT(\"'SPA Elements and Indicators'!B\"&MATCH(LEFT(INDIRECT(\"'Lookup'!B\"&MATCH(E$12,Lookup!B:B,0)+1),5),'SPA Elements and Indicators'!A:A,0)-2),E:E,0)),\"\")","v":{"$error":"#N/A"}}]
[null,null,null,"","",null,null,null,null,null,null,{"$f":"IF(ISNUMBER(MATCH(E24,StandardIndicators,0)),IF(ISBLANK(INDIRECT(\"'SPA Elements and Indicators'!J\"&MATCH(E24,StandardIndicators,0))),\"\",INDIRECT(\"'SPA Elements and Indicators'!J\"&MATCH(E24,StandardIndicators,0))),IF(ISNUMBER(MATCH(E24,'Custom SPA Indicators Labels'!B$1:B$119,0)),IF(ISBLANK(VLOOKUP(E24,'Custom SPA Indicators Labels'!B$1:H$119,2,FALSE)),\"\",VLOOKUP(E24,'Custom SPA Indicators Labels'!B$1:H$119,2,FALSE)),\"\"))","v":""},null,{"$f":"IF(ISNUMBER(MATCH(E24,StandardIndicators,0)),IF(ISBLANK(INDIRECT(\"'SPA Elements and Indicators'!K\"&MATCH(E24,StandardIndicators,0))),\"\",INDIRECT(\"'SPA Elements and Indicators'!K\"&MATCH(E24,StandardIndicators,0))),IF(ISNUMBER(MATCH(E24,'Custom SPA Indicators Labels'!B$1:B$119,0)),IF(ISBLANK(VLOOKUP(E24,'Custom SPA Indicators Labels'!B$1:H$119,3,FALSE)),\"\",VLOOKUP(E24,'Custom SPA Indicators Labels'!B$1:H$119,3,FALSE)),\"\"))","v":""},null,{"$f":"IF(ISNUMBER(MATCH(E24,StandardIndicators,0)),IF(ISBLANK(INDIRECT(\"'SPA Elements and Indicators'!L\"&MATCH(E24,StandardIndicators,0))),\"\",INDIRECT(\"'SPA Elements and Indicators'!L\"&MATCH(E24,StandardIndicators,0))),IF(ISNUMBER(MATCH(E24,'Custom SPA Indicators Labels'!B$1:B$119,0)),IF(ISBLANK(VLOOKUP(E24,'Custom SPA Indicators Labels'!B$1:H$119,4,FALSE)),\"\",VLOOKUP(E24,'Custom SPA Indicators Labels'!B$1:H$119,4,FALSE)),\"\"))","v":""},null,{"$f":"IF(ISNUMBER(MATCH(E24,StandardIndicators,0)),IF(ISBLANK(INDIRECT(\"'SPA Elements and Indicators'!M\"&MATCH(E24,StandardIndicators,0))),\"\",INDIRECT(\"'SPA Elements and Indicators'!M\"&MATCH(E24,StandardIndicators,0))),IF(ISNUMBER(MATCH(E24,'Custom SPA Indicators Labels'!B$1:B$119,0)),IF(ISBLANK(VLOOKUP(E24,'Custom SPA Indicators Labels'!B$1:H$119,5,FALSE)),\"\",VLOOKUP(E24,'Custom SPA Indicators Labels'!B$1:H$119,5,FALSE)),\"\"))","v":""},null,{"$f":"IF(ISNUMBER(MATCH(E24,StandardIndicators,0)),IF(ISBLANK(INDIRECT(\"'SPA Elements and Indicators'!N\"&MATCH(E24,StandardIndicators,0))),\"\",INDIRECT(\"'SPA Elements and Indicators'!N\"&MATCH(E24,StandardIndicators,0))),IF(ISNUMBER(MATCH(E24,'Custom SPA Indicators Labels'!B$1:B$119,0)),IF(ISBLANK(VLOOKUP(E24,'Custom SPA Indicators Labels'!B$1:H$119,6,FALSE)),\"\",VLOOKUP(E24,'Custom SPA Indicators Labels'!B$1:H$119,6,FALSE)),\"\"))","v":""},null,{"$f":"IF(ISNUMBER(MATCH(E24,StandardIndicators,0)),IF(ISBLANK(INDIRECT(\"'SPA Elements and Indicators'!O\"&MATCH(E24,StandardIndicators,0))),\"\",INDIRECT(\"'SPA Elements and Indicators'!O\"&MATCH(E24,StandardIndicators,0))),IF(ISNUMBER(MATCH(E24,'Custom SPA Indicators Labels'!B$1:B$119,0)),IF(ISBLANK(VLOOKUP(E24,'Custom SPA Indicators Labels'!B$1:H$119,7,FALSE)),\"\",VLOOKUP(E24,'Custom SPA Indicators Labels'!B$1:H$119,7,FALSE)),\"\"))","v":""},{"$f":"IF(MATCH(LEFT(E$12,5),'SPA Elements and Indicators'!A:A,0)+ROW()-16<MATCH(LEFT(INDIRECT(\"'Lookup'!B\"&MATCH(E$12,Lookup!B:B,0)+1),5),'SPA Elements and Indicators'!A:A,0),INDIRECT(\"'SPA Elements and Indicators'!B\"&MATCH(LEFT(E$12,5),'SPA Elements and Indicators'!A:A,0)+ROW()-15),\"\")","v":{"$error":"#N/A"}},{"$f":"IF(EXACT(INDIRECT(\"'Custom SPA Indicators'!B\"&MATCH(LEFT(E$12,5),'Custom SPA Indicators'!A:A,0)+ROW()-Y24),Y$1),\"\",Z24)","v":{"$error":"#N/A"}},{"$f":"MATCH(INDIRECT(\"'SPA Elements and Indicators'!B\"&MATCH(LEFT(INDIRECT(\"'Lookup'!B\"&MATCH(E$12,Lookup!B:B,0)+1),5),'SPA Elements and Indicators'!A:A,0)-2),E:E,0)","v":{"$error":"#N/A"}},{"$f":"IF(MATCH(LEFT(E$12,5),'Custom SPA Indicators'!A:A,0)+ROW()-MATCH(INDIRECT(\"'SPA Elements and Indicators'!B\"&MATCH(LEFT(INDIRECT(\"'Lookup'!B\"&MATCH(E$12,Lookup!B:B,0)+1),5),'SPA Elements and Indicators'!A:A,0)-2),E:E,0)<MATCH(LEFT(INDIRECT(\"'Lookup'!B\"&MATCH(E$12,Lookup!B:B,0)+1),5),'Custom SPA Indicators'!A:A,0),INDIRECT(\"'Custom SPA Indicators'!B\"&MATCH(LEFT(E$12,5),'Custom SPA Indicators'!A:A,0)+ROW()-MATCH(INDIRECT(\"'SPA Elements and Indicators'!B\"&MATCH(LEFT(INDIRECT(\"'Lookup'!B\"&MATCH(E$12,Lookup!B:B,0)+1),5),'SPA Elements and Indicators'!A:A,0)-2),E:E,0)),\"\")","v":{"$error":"#N/A"}}]
[null,null,null,"","",null,null,null,null,null,null,{"$f":"IF(ISNUMBER(MATCH(E25,StandardIndicators,0)),IF(ISBLANK(INDIRECT(\"'SPA Elements and Indicators'!J\"&MATCH(E25,StandardIndicators,0))),\"\",INDIRECT(\"'SPA Elements and Indicators'!J\"&MATCH(E25,StandardIndicators,0))),IF(ISNUMBER(MATCH(E25,'Custom SPA Indicators Labels'!B$1:B$119,0)),IF(ISBLANK(VLOOKUP(E25,'Custom SPA Indicators Labels'!B$1:H$119,2,FALSE)),\"\",VLOOKUP(E25,'Custom SPA Indicators Labels'!B$1:H$119,2,FALSE)),\"\"))","v":""},null,{"$f":"IF(ISNUMBER(MATCH(E25,StandardIndicators,0)),IF(ISBLANK(INDIRECT(\"'SPA Elements and Indicators'!K\"&MATCH(E25,StandardIndicators,0))),\"\",INDIRECT(\"'SPA Elements and Indicators'!K\"&MATCH(E25,StandardIndicators,0))),IF(ISNUMBER(MATCH(E25,'Custom SPA Indicators Labels'!B$1:B$119,0)),IF(ISBLANK(VLOOKUP(E25,'Custom SPA Indicators Labels'!B$1:H$119,3,FALSE)),\"\",VLOOKUP(E25,'Custom SPA Indicators Labels'!B$1:H$119,3,FALSE)),\"\"))","v":""},null,{"$f":"IF(ISNUMBER(MATCH(E25,StandardIndicators,0)),IF(ISBLANK(INDIRECT(\"'SPA Elements and Indicators'!L\"&MATCH(E25,StandardIndicators,0))),\"\",INDIRECT(\"'SPA Elements and Indicators'!L\"&MATCH(E25,StandardIndicators,0))),IF(ISNUMBER(MATCH(E25,'Custom SPA Indicators Labels'!B$1:B$119,0)),IF(ISBLANK(VLOOKUP(E25,'Custom SPA Indicators Labels'!B$1:H$119,4,FALSE)),\"\",VLOOKUP(E25,'Custom SPA Indicators Labels'!B$1:H$119,4,FALSE)),\"\"))","v":""},null,{"$f":"IF(ISNUMBER(MATCH(E25,StandardIndicators,0)),IF(ISBLANK(INDIRECT(\"'SPA Elements and Indicators'!M\"&MATCH(E25,StandardIndicators,0))),\"\",INDIRECT(\"'SPA Elements and Indicators'!M\"&MATCH(E25,StandardIndicators,0))),IF(ISNUMBER(MATCH(E25,'Custom SPA Indicators Labels'!B$1:B$119,0)),IF(ISBLANK(VLOOKUP(E25,'Custom SPA Indicators Labels'!B$1:H$119,5,FALSE)),\"\",VLOOKUP(E25,'Custom SPA Indicators Labels'!B$1:H$119,5,FALSE)),\"\"))","v":""},null,{"$f":"IF(ISNUMBER(MATCH(E25,StandardIndicators,0)),IF(ISBLANK(INDIRECT(\"'SPA Elements and Indicators'!N\"&MATCH(E25,StandardIndicators,0))),\"\",INDIRECT(\"'SPA Elements and Indicators'!N\"&MATCH(E25,StandardIndicators,0))),IF(ISNUMBER(MATCH(E25,'Custom SPA Indicators Labels'!B$1:B$119,0)),IF(ISBLANK(VLOOKUP(E25,'Custom SPA Indicators Labels'!B$1:H$119,6,FALSE)),\"\",VLOOKUP(E25,'Custom SPA Indicators Labels'!B$1:H$119,6,FALSE)),\"\"))","v":""},null,{"$f":"IF(ISNUMBER(MATCH(E25,StandardIndicators,0)),IF(ISBLANK(INDIRECT(\"'SPA Elements and Indicators'!O\"&MATCH(E25,StandardIndicators,0))),\"\",INDIRECT(\"'SPA Elements and Indicators'!O\"&MATCH(E25,StandardIndicators,0))),IF(ISNUMBER(MATCH(E25,'Custom SPA Indicators Labels'!B$1:B$119,0)),IF(ISBLANK(VLOOKUP(E25,'Custom SPA Indicators Labels'!B$1:H$119,7,FALSE)),\"\",VLOOKUP(E25,'Custom SPA Indicators Labels'!B$1:H$119,7,FALSE)),\"\"))","v":""},{"$f":"IF(MATCH(LEFT(E$12,5),'SPA Elements and Indicators'!A:A,0)+ROW()-16<MATCH(LEFT(INDIRECT(\"'Lookup'!B\"&MATCH(E$12,Lookup!B:B,0)+1),5),'SPA Elements and Indicators'!A:A,0),INDIRECT(\"'SPA Elements and Indicators'!B\"&MATCH(LEFT(E$12,5),'SPA Elements and Indicators'!A:A,0)+ROW()-15),\"\")","v":{"$error":"#N/A"}},{"$f":"IF(EXACT(INDIRECT(\"'Custom SPA Indicators'!B\"&MATCH(LEFT(E$12,5),'Custom SPA Indicators'!A:A,0)+ROW()-Y25),Y$1),\"\",Z25)","v":{"$error":"#N/A"}},{"$f":"MATCH(INDIRECT(\"'SPA Elements and Indicators'!B\"&MATCH(LEFT(INDIRECT(\"'Lookup'!B\"&MATCH(E$12,Lookup!B:B,0)+1),5),'SPA Elements and Indicators'!A:A,0)-2),E:E,0)","v":{"$error":"#N/A"}},{"$f":"IF(MATCH(LEFT(E$12,5),'Custom SPA Indicators'!A:A,0)+ROW()-MATCH(INDIRECT(\"'SPA Elements and Indicators'!B\"&MATCH(LEFT(INDIRECT(\"'Lookup'!B\"&MATCH(E$12,Lookup!B:B,0)+1),5),'SPA Elements and Indicators'!A:A,0)-2),E:E,0)<MATCH(LEFT(INDIRECT(\"'Lookup'!B\"&MATCH(E$12,Lookup!B:B,0)+1),5),'Custom SPA Indicators'!A:A,0),INDIRECT(\"'Custom SPA Indicators'!B\"&MATCH(LEFT(E$12,5),'Custom SPA Indicators'!A:A,0)+ROW()-MATCH(INDIRECT(\"'SPA Elements and Indicators'!B\"&MATCH(LEFT(INDIRECT(\"'Lookup'!B\"&MATCH(E$12,Lookup!B:B,0)+1),5),'SPA Elements and Indicators'!A:A,0)-2),E:E,0)),\"\")","v":{"$error":"#N/A"}}]
[null,null,null,"","",null,null,null,null,null,null,{"$f":"IF(ISNUMBER(MATCH(E26,StandardIndicators,0)),IF(ISBLANK(INDIRECT(\"'SPA Elements and Indicators'!J\"&MATCH(E26,StandardIndicators,0))),\"\",INDIRECT(\"'SPA Elements and Indicators'!J\"&MATCH(E26,StandardIndicators,0))),IF(ISNUMBER(MATCH(E26,'Custom SPA Indicators Labels'!B$1:B$119,0)),IF(ISBLANK(VLOOKUP(E26,'Custom SPA Indicators Labels'!B$1:H$119,2,FALSE)),\"\",VLOOKUP(E26,'Custom SPA Indicators Labels'!B$1:H$119,2,FALSE)),\"\"))","v":""},null,{"$f":"IF(ISNUMBER(MATCH(E26,StandardIndicators,0)),IF(ISBLANK(INDIRECT(\"'SPA Elements and Indicators'!K\"&MATCH(E26,StandardIndicators,0))),\"\",INDIRECT(\"'SPA Elements and Indicators'!K\"&MATCH(E26,StandardIndicators,0))),IF(ISNUMBER(MATCH(E26,'Custom SPA Indicators Labels'!B$1:B$119,0)),IF(ISBLANK(VLOOKUP(E26,'Custom SPA Indicators Labels'!B$1:H$119,3,FALSE)),\"\",VLOOKUP(E26,'Custom SPA Indicators Labels'!B$1:H$119,3,FALSE)),\"\"))","v":""},null,{"$f":"IF(ISNUMBER(MATCH(E26,StandardIndicators,0)),IF(ISBLANK(INDIRECT(\"'SPA Elements and Indicators'!L\"&MATCH(E26,StandardIndicators,0))),\"\",INDIRECT(\"'SPA Elements and Indicators'!L\"&MATCH(E26,StandardIndicators,0))),IF(ISNUMBER(MATCH(E26,'Custom SPA Indicators Labels'!B$1:B$119,0)),IF(ISBLANK(VLOOKUP(E26,'Custom SPA Indicators Labels'!B$1:H$119,4,FALSE)),\"\",VLOOKUP(E26,'Custom SPA Indicators Labels'!B$1:H$119,4,FALSE)),\"\"))","v":""},null,{"$f":"IF(ISNUMBER(MATCH(E26,StandardIndicators,0)),IF(ISBLANK(INDIRECT(\"'SPA Elements and Indicators'!M\"&MATCH(E26,StandardIndicators,0))),\"\",INDIRECT(\"'SPA Elements and Indicators'!M\"&MATCH(E26,StandardIndicators,0))),IF(ISNUMBER(MATCH(E26,'Custom SPA Indicators Labels'!B$1:B$119,0)),IF(ISBLANK(VLOOKUP(E26,'Custom SPA Indicators Labels'!B$1:H$119,5,FALSE)),\"\",VLOOKUP(E26,'Custom SPA Indicators Labels'!B$1:H$119,5,FALSE)),\"\"))","v":""},null,{"$f":"IF(ISNUMBER(MATCH(E26,StandardIndicators,0)),IF(ISBLANK(INDIRECT(\"'SPA Elements and Indicators'!N\"&MATCH(E26,StandardIndicators,0))),\"\",INDIRECT(\"'SPA Elements and Indicators'!N\"&MATCH(E26,StandardIndicators,0))),IF(ISNUMBER(MATCH(E26,'Custom SPA Indicators Labels'!B$1:B$119,0)),IF(ISBLANK(VLOOKUP(E26,'Custom SPA Indicators Labels'!B$1:H$119,6,FALSE)),\"\",VLOOKUP(E26,'Custom SPA Indicators Labels'!B$1:H$119,6,FALSE)),\"\"))","v":""},null,{"$f":"IF(ISNUMBER(MATCH(E26,StandardIndicators,0)),IF(ISBLANK(INDIRECT(\"'SPA Elements and Indicators'!O\"&MATCH(E26,StandardIndicators,0))),\"\",INDIRECT(\"'SPA Elements and Indicators'!O\"&MATCH(E26,StandardIndicators,0))),IF(ISNUMBER(MATCH(E26,'Custom SPA Indicators Labels'!B$1:B$119,0)),IF(ISBLANK(VLOOKUP(E26,'Custom SPA Indicators Labels'!B$1:H$119,7,FALSE)),\"\",VLOOKUP(E26,'Custom SPA Indicators Labels'!B$1:H$119,7,FALSE)),\"\"))","v":""},{"$f":"IF(MATCH(LEFT(E$12,5),'SPA Elements and Indicators'!A:A,0)+ROW()-16<MATCH(LEFT(INDIRECT(\"'Lookup'!B\"&MATCH(E$12,Lookup!B:B,0)+1),5),'SPA Elements and Indicators'!A:A,0),INDIRECT(\"'SPA Elements and Indicators'!B\"&MATCH(LEFT(E$12,5),'SPA Elements and Indicators'!A:A,0)+ROW()-15),\"\")","v":{"$error":"#N/A"}},{"$f":"IF(EXACT(INDIRECT(\"'Custom SPA Indicators'!B\"&MATCH(LEFT(E$12,5),'Custom SPA Indicators'!A:A,0)+ROW()-Y26),Y$1),\"\",Z26)","v":{"$error":"#N/A"}},{"$f":"MATCH(INDIRECT(\"'SPA Elements and Indicators'!B\"&MATCH(LEFT(INDIRECT(\"'Lookup'!B\"&MATCH(E$12,Lookup!B:B,0)+1),5),'SPA Elements and Indicators'!A:A,0)-2),E:E,0)","v":{"$error":"#N/A"}},{"$f":"IF(MATCH(LEFT(E$12,5),'Custom SPA Indicators'!A:A,0)+ROW()-MATCH(INDIRECT(\"'SPA Elements and Indicators'!B\"&MATCH(LEFT(INDIRECT(\"'Lookup'!B\"&MATCH(E$12,Lookup!B:B,0)+1),5),'SPA Elements and Indicators'!A:A,0)-2),E:E,0)<MATCH(LEFT(INDIRECT(\"'Lookup'!B\"&MATCH(E$12,Lookup!B:B,0)+1),5),'Custom SPA Indicators'!A:A,0),INDIRECT(\"'Custom SPA Indicators'!B\"&MATCH(LEFT(E$12,5),'Custom SPA Indicators'!A:A,0)+ROW()-MATCH(INDIRECT(\"'SPA Elements and Indicators'!B\"&MATCH(LEFT(INDIRECT(\"'Lookup'!B\"&MATCH(E$12,Lookup!B:B,0)+1),5),'SPA Elements and Indicators'!A:A,0)-2),E:E,0)),\"\")","v":{"$error":"#N/A"}}]
[null,null,null,"","",null,null,null,null,null,null,{"$f":"IF(ISNUMBER(MATCH(E27,StandardIndicators,0)),IF(ISBLANK(INDIRECT(\"'SPA Elements and Indicators'!J\"&MATCH(E27,StandardIndicators,0))),\"\",INDIRECT(\"'SPA Elements and Indicators'!J\"&MATCH(E27,StandardIndicators,0))),IF(ISNUMBER(MATCH(E27,'Custom SPA Indicators Labels'!B$1:B$119,0)),IF(ISBLANK(VLOOKUP(E27,'Custom SPA Indicators Labels'!B$1:H$119,2,FALSE)),\"\",VLOOKUP(E27,'Custom SPA Indicators Labels'!B$1:H$119,2,FALSE)),\"\"))","v":""},null,{"$f":"IF(ISNUMBER(MATCH(E27,StandardIndicators,0)),IF(ISBLANK(INDIRECT(\"'SPA Elements and Indicators'!K\"&MATCH(E27,StandardIndicators,0))),\"\",INDIRECT(\"'SPA Elements and Indicators'!K\"&MATCH(E27,StandardIndicators,0))),IF(ISNUMBER(MATCH(E27,'Custom SPA Indicators Labels'!B$1:B$119,0)),IF(ISBLANK(VLOOKUP(E27,'Custom SPA Indicators Labels'!B$1:H$119,3,FALSE)),\"\",VLOOKUP(E27,'Custom SPA Indicators Labels'!B$1:H$119,3,FALSE)),\"\"))","v":""},null,{"$f":"IF(ISNUMBER(MATCH(E27,StandardIndicators,0)),IF(ISBLANK(INDIRECT(\"'SPA Elements and Indicators'!L\"&MATCH(E27,StandardIndicators,0))),\"\",INDIRECT(\"'SPA Elements and Indicators'!L\"&MATCH(E27,StandardIndicators,0))),IF(ISNUMBER(MATCH(E27,'Custom SPA Indicators Labels'!B$1:B$119,0)),IF(ISBLANK(VLOOKUP(E27,'Custom SPA Indicators Labels'!B$1:H$119,4,FALSE)),\"\",VLOOKUP(E27,'Custom SPA Indicators Labels'!B$1:H$119,4,FALSE)),\"\"))","v":""},null,{"$f":"IF(ISNUMBER(MATCH(E27,StandardIndicators,0)),IF(ISBLANK(INDIRECT(\"'SPA Elements and Indicators'!M\"&MATCH(E27,StandardIndicators,0))),\"\",INDIRECT(\"'SPA Elements and Indicators'!M\"&MATCH(E27,StandardIndicators,0))),IF(ISNUMBER(MATCH(E27,'Custom SPA Indicators Labels'!B$1:B$119,0)),IF(ISBLANK(VLOOKUP(E27,'Custom SPA Indicators Labels'!B$1:H$119,5,FALSE)),\"\",VLOOKUP(E27,'Custom SPA Indicators Labels'!B$1:H$119,5,FALSE)),\"\"))","v":""},null,{"$f":"IF(ISNUMBER(MATCH(E27,StandardIndicators,0)),IF(ISBLANK(INDIRECT(\"'SPA Elements and Indicators'!N\"&MATCH(E27,StandardIndicators,0))),\"\",INDIRECT(\"'SPA Elements and Indicators'!N\"&MATCH(E27,StandardIndicators,0))),IF(ISNUMBER(MATCH(E27,'Custom SPA Indicators Labels'!B$1:B$119,0)),IF(ISBLANK(VLOOKUP(E27,'Custom SPA Indicators Labels'!B$1:H$119,6,FALSE)),\"\",VLOOKUP(E27,'Custom SPA Indicators Labels'!B$1:H$119,6,FALSE)),\"\"))","v":""},null,{"$f":"IF(ISNUMBER(MATCH(E27,StandardIndicators,0)),IF(ISBLANK(INDIRECT(\"'SPA Elements and Indicators'!O\"&MATCH(E27,StandardIndicators,0))),\"\",INDIRECT(\"'SPA Elements and Indicators'!O\"&MATCH(E27,StandardIndicators,0))),IF(ISNUMBER(MATCH(E27,'Custom SPA Indicators Labels'!B$1:B$119,0)),IF(ISBLANK(VLOOKUP(E27,'Custom SPA Indicators Labels'!B$1:H$119,7,FALSE)),\"\",VLOOKUP(E27,'Custom SPA Indicators Labels'!B$1:H$119,7,FALSE)),\"\"))","v":""},{"$f":"IF(MATCH(LEFT(E$12,5),'SPA Elements and Indicators'!A:A,0)+ROW()-16<MATCH(LEFT(INDIRECT(\"'Lookup'!B\"&MATCH(E$12,Lookup!B:B,0)+1),5),'SPA Elements and Indicators'!A:A,0),INDIRECT(\"'SPA Elements and Indicators'!B\"&MATCH(LEFT(E$12,5),'SPA Elements and Indicators'!A:A,0)+ROW()-15),\"\")","v":{"$error":"#N/A"}},{"$f":"IF(EXACT(INDIRECT(\"'Custom SPA Indicators'!B\"&MATCH(LEFT(E$12,5),'Custom SPA Indicators'!A:A,0)+ROW()-Y27),Y$1),\"\",Z27)","v":{"$error":"#N/A"}},{"$f":"MATCH(INDIRECT(\"'SPA Elements and Indicators'!B\"&MATCH(LEFT(INDIRECT(\"'Lookup'!B\"&MATCH(E$12,Lookup!B:B,0)+1),5),'SPA Elements and Indicators'!A:A,0)-2),E:E,0)","v":{"$error":"#N/A"}},{"$f":"IF(MATCH(LEFT(E$12,5),'Custom SPA Indicators'!A:A,0)+ROW()-MATCH(INDIRECT(\"'SPA Elements and Indicators'!B\"&MATCH(LEFT(INDIRECT(\"'Lookup'!B\"&MATCH(E$12,Lookup!B:B,0)+1),5),'SPA Elements and Indicators'!A:A,0)-2),E:E,0)<MATCH(LEFT(INDIRECT(\"'Lookup'!B\"&MATCH(E$12,Lookup!B:B,0)+1),5),'Custom SPA Indicators'!A:A,0),INDIRECT(\"'Custom SPA Indicators'!B\"&MATCH(LEFT(E$12,5),'Custom SPA Indicators'!A:A,0)+ROW()-MATCH(INDIRECT(\"'SPA Elements and Indicators'!B\"&MATCH(LEFT(INDIRECT(\"'Lookup'!B\"&MATCH(E$12,Lookup!B:B,0)+1),5),'SPA Elements and Indicators'!A:A,0)-2),E:E,0)),\"\")","v":{"$error":"#N/A"}}]
[null,null,null,"","",null,null,null,null,null,null,{"$f":"IF(ISNUMBER(MATCH(E28,StandardIndicators,0)),IF(ISBLANK(INDIRECT(\"'SPA Elements and Indicators'!J\"&MATCH(E28,StandardIndicators,0))),\"\",INDIRECT(\"'SPA Elements and Indicators'!J\"&MATCH(E28,StandardIndicators,0))),IF(ISNUMBER(MATCH(E28,'Custom SPA Indicators Labels'!B$1:B$119,0)),IF(ISBLANK(VLOOKUP(E28,'Custom SPA Indicators Labels'!B$1:H$119,2,FALSE)),\"\",VLOOKUP(E28,'Custom SPA Indicators Labels'!B$1:H$119,2,FALSE)),\"\"))","v":""},null,{"$f":"IF(ISNUMBER(MATCH(E28,StandardIndicators,0)),IF(ISBLANK(INDIRECT(\"'SPA Elements and Indicators'!K\"&MATCH(E28,StandardIndicators,0))),\"\",INDIRECT(\"'SPA Elements and Indicators'!K\"&MATCH(E28,StandardIndicators,0))),IF(ISNUMBER(MATCH(E28,'Custom SPA Indicators Labels'!B$1:B$119,0)),IF(ISBLANK(VLOOKUP(E28,'Custom SPA Indicators Labels'!B$1:H$119,3,FALSE)),\"\",VLOOKUP(E28,'Custom SPA Indicators Labels'!B$1:H$119,3,FALSE)),\"\"))","v":""},null,{"$f":"IF(ISNUMBER(MATCH(E28,StandardIndicators,0)),IF(ISBLANK(INDIRECT(\"'SPA Elements and Indicators'!L\"&MATCH(E28,StandardIndicators,0))),\"\",INDIRECT(\"'SPA Elements and Indicators'!L\"&MATCH(E28,StandardIndicators,0))),IF(ISNUMBER(MATCH(E28,'Custom SPA Indicators Labels'!B$1:B$119,0)),IF(ISBLANK(VLOOKUP(E28,'Custom SPA Indicators Labels'!B$1:H$119,4,FALSE)),\"\",VLOOKUP(E28,'Custom SPA Indicators Labels'!B$1:H$119,4,FALSE)),\"\"))","v":""},null,{"$f":"IF(ISNUMBER(MATCH(E28,StandardIndicators,0)),IF(ISBLANK(INDIRECT(\"'SPA Elements and Indicators'!M\"&MATCH(E28,StandardIndicators,0))),\"\",INDIRECT(\"'SPA Elements and Indicators'!M\"&MATCH(E28,StandardIndicators,0))),IF(ISNUMBER(MATCH(E28,'Custom SPA Indicators Labels'!B$1:B$119,0)),IF(ISBLANK(VLOOKUP(E28,'Custom SPA Indicators Labels'!B$1:H$119,5,FALSE)),\"\",VLOOKUP(E28,'Custom SPA Indicators Labels'!B$1:H$119,5,FALSE)),\"\"))","v":""},null,{"$f":"IF(ISNUMBER(MATCH(E28,StandardIndicators,0)),IF(ISBLANK(INDIRECT(\"'SPA Elements and Indicators'!N\"&MATCH(E28,StandardIndicators,0))),\"\",INDIRECT(\"'SPA Elements and Indicators'!N\"&MATCH(E28,StandardIndicators,0))),IF(ISNUMBER(MATCH(E28,'Custom SPA Indicators Labels'!B$1:B$119,0)),IF(ISBLANK(VLOOKUP(E28,'Custom SPA Indicators Labels'!B$1:H$119,6,FALSE)),\"\",VLOOKUP(E28,'Custom SPA Indicators Labels'!B$1:H$119,6,FALSE)),\"\"))","v":""},null,{"$f":"IF(ISNUMBER(MATCH(E28,StandardIndicators,0)),IF(ISBLANK(INDIRECT(\"'SPA Elements and Indicators'!O\"&MATCH(E28,StandardIndicators,0))),\"\",INDIRECT(\"'SPA Elements and Indicators'!O\"&MATCH(E28,StandardIndicators,0))),IF(ISNUMBER(MATCH(E28,'Custom SPA Indicators Labels'!B$1:B$119,0)),IF(ISBLANK(VLOOKUP(E28,'Custom SPA Indicators Labels'!B$1:H$119,7,FALSE)),\"\",VLOOKUP(E28,'Custom SPA Indicators Labels'!B$1:H$119,7,FALSE)),\"\"))","v":""},{"$f":"IF(MATCH(LEFT(E$12,5),'SPA Elements and Indicators'!A:A,0)+ROW()-16<MATCH(LEFT(INDIRECT(\"'Lookup'!B\"&MATCH(E$12,Lookup!B:B,0)+1),5),'SPA Elements and Indicators'!A:A,0),INDIRECT(\"'SPA Elements and Indicators'!B\"&MATCH(LEFT(E$12,5),'SPA Elements and Indicators'!A:A,0)+ROW()-15),\"\")","v":{"$error":"#N/A"}},{"$f":"IF(EXACT(INDIRECT(\"'Custom SPA Indicators'!B\"&MATCH(LEFT(E$12,5),'Custom SPA Indicators'!A:A,0)+ROW()-Y28),Y$1),\"\",Z28)","v":{"$error":"#N/A"}},{"$f":"MATCH(INDIRECT(\"'SPA Elements and Indicators'!B\"&MATCH(LEFT(INDIRECT(\"'Lookup'!B\"&MATCH(E$12,Lookup!B:B,0)+1),5),'SPA Elements and Indicators'!A:A,0)-2),E:E,0)","v":{"$error":"#N/A"}},{"$f":"IF(MATCH(LEFT(E$12,5),'Custom SPA Indicators'!A:A,0)+ROW()-MATCH(INDIRECT(\"'SPA Elements and Indicators'!B\"&MATCH(LEFT(INDIRECT(\"'Lookup'!B\"&MATCH(E$12,Lookup!B:B,0)+1),5),'SPA Elements and Indicators'!A:A,0)-2),E:E,0)<MATCH(LEFT(INDIRECT(\"'Lookup'!B\"&MATCH(E$12,Lookup!B:B,0)+1),5),'Custom SPA Indicators'!A:A,0),INDIRECT(\"'Custom SPA Indicators'!B\"&MATCH(LEFT(E$12,5),'Custom SPA Indicators'!A:A,0)+ROW()-MATCH(INDIRECT(\"'SPA Elements and Indicators'!B\"&MATCH(LEFT(INDIRECT(\"'Lookup'!B\"&MATCH(E$12,Lookup!B:B,0)+1),5),'SPA Elements and Indicators'!A:A,0)-2),E:E,0)),\"\")","v":{"$error":"#N/A"}}]
[null,null,null,"","",null,null,null,null,null,null,{"$f":"IF(ISNUMBER(MATCH(E29,StandardIndicators,0)),IF(ISBLANK(INDIRECT(\"'SPA Elements and Indicators'!J\"&MATCH(E29,StandardIndicators,0))),\"\",INDIRECT(\"'SPA Elements and Indicators'!J\"&MATCH(E29,StandardIndicators,0))),IF(ISNUMBER(MATCH(E29,'Custom SPA Indicators Labels'!B$1:B$119,0)),IF(ISBLANK(VLOOKUP(E29,'Custom SPA Indicators Labels'!B$1:H$119,2,FALSE)),\"\",VLOOKUP(E29,'Custom SPA Indicators Labels'!B$1:H$119,2,FALSE)),\"\"))","v":""},null,{"$f":"IF(ISNUMBER(MATCH(E29,StandardIndicators,0)),IF(ISBLANK(INDIRECT(\"'SPA Elements and Indicators'!K\"&MATCH(E29,StandardIndicators,0))),\"\",INDIRECT(\"'SPA Elements and Indicators'!K\"&MATCH(E29,StandardIndicators,0))),IF(ISNUMBER(MATCH(E29,'Custom SPA Indicators Labels'!B$1:B$119,0)),IF(ISBLANK(VLOOKUP(E29,'Custom SPA Indicators Labels'!B$1:H$119,3,FALSE)),\"\",VLOOKUP(E29,'Custom SPA Indicators Labels'!B$1:H$119,3,FALSE)),\"\"))","v":""},null,{"$f":"IF(ISNUMBER(MATCH(E29,StandardIndicators,0)),IF(ISBLANK(INDIRECT(\"'SPA Elements and Indicators'!L\"&MATCH(E29,StandardIndicators,0))),\"\",INDIRECT(\"'SPA Elements and Indicators'!L\"&MATCH(E29,StandardIndicators,0))),IF(ISNUMBER(MATCH(E29,'Custom SPA Indicators Labels'!B$1:B$119,0)),IF(ISBLANK(VLOOKUP(E29,'Custom SPA Indicators Labels'!B$1:H$119,4,FALSE)),\"\",VLOOKUP(E29,'Custom SPA Indicators Labels'!B$1:H$119,4,FALSE)),\"\"))","v":""},null,{"$f":"IF(ISNUMBER(MATCH(E29,StandardIndicators,0)),IF(ISBLANK(INDIRECT(\"'SPA Elements and Indicators'!M\"&MATCH(E29,StandardIndicators,0))),\"\",INDIRECT(\"'SPA Elements and Indicators'!M\"&MATCH(E29,StandardIndicators,0))),IF(ISNUMBER(MATCH(E29,'Custom SPA Indicators Labels'!B$1:B$119,0)),IF(ISBLANK(VLOOKUP(E29,'Custom SPA Indicators Labels'!B$1:H$119,5,FALSE)),\"\",VLOOKUP(E29,'Custom SPA Indicators Labels'!B$1:H$119,5,FALSE)),\"\"))","v":""},null,{"$f":"IF(ISNUMBER(MATCH(E29,StandardIndicators,0)),IF(ISBLANK(INDIRECT(\"'SPA Elements and Indicators'!N\"&MATCH(E29,StandardIndicators,0))),\"\",INDIRECT(\"'SPA Elements and Indicators'!N\"&MATCH(E29,StandardIndicators,0))),IF(ISNUMBER(MATCH(E29,'Custom SPA Indicators Labels'!B$1:B$119,0)),IF(ISBLANK(VLOOKUP(E29,'Custom SPA Indicators Labels'!B$1:H$119,6,FALSE)),\"\",VLOOKUP(E29,'Custom SPA Indicators Labels'!B$1:H$119,6,FALSE)),\"\"))","v":""},null,{"$f":"IF(ISNUMBER(MATCH(E29,StandardIndicators,0)),IF(ISBLANK(INDIRECT(\"'SPA Elements and Indicators'!O\"&MATCH(E29,StandardIndicators,0))),\"\",INDIRECT(\"'SPA Elements and Indicators'!O\"&MATCH(E29,StandardIndicators,0))),IF(ISNUMBER(MATCH(E29,'Custom SPA Indicators Labels'!B$1:B$119,0)),IF(ISBLANK(VLOOKUP(E29,'Custom SPA Indicators Labels'!B$1:H$119,7,FALSE)),\"\",VLOOKUP(E29,'Custom SPA Indicators Labels'!B$1:H$119,7,FALSE)),\"\"))","v":""},{"$f":"IF(MATCH(LEFT(E$12,5),'SPA Elements and Indicators'!A:A,0)+ROW()-16<MATCH(LEFT(INDIRECT(\"'Lookup'!B\"&MATCH(E$12,Lookup!B:B,0)+1),5),'SPA Elements and Indicators'!A:A,0),INDIRECT(\"'SPA Elements and Indicators'!B\"&MATCH(LEFT(E$12,5),'SPA Elements and Indicators'!A:A,0)+ROW()-15),\"\")","v":{"$error":"#N/A"}},{"$f":"IF(EXACT(INDIRECT(\"'Custom SPA Indicators'!B\"&MATCH(LEFT(E$12,5),'Custom SPA Indicators'!A:A,0)+ROW()-Y29),Y$1),\"\",Z29)","v":{"$error":"#N/A"}},{"$f":"MATCH(INDIRECT(\"'SPA Elements and Indicators'!B\"&MATCH(LEFT(INDIRECT(\"'Lookup'!B\"&MATCH(E$12,Lookup!B:B,0)+1),5),'SPA Elements and Indicators'!A:A,0)-2),E:E,0)","v":{"$error":"#N/A"}},{"$f":"IF(MATCH(LEFT(E$12,5),'Custom SPA Indicators'!A:A,0)+ROW()-MATCH(INDIRECT(\"'SPA Elements and Indicators'!B\"&MATCH(LEFT(INDIRECT(\"'Lookup'!B\"&MATCH(E$12,Lookup!B:B,0)+1),5),'SPA Elements and Indicators'!A:A,0)-2),E:E,0)<MATCH(LEFT(INDIRECT(\"'Lookup'!B\"&MATCH(E$12,Lookup!B:B,0)+1),5),'Custom SPA Indicators'!A:A,0),INDIRECT(\"'Custom SPA Indicators'!B\"&MATCH(LEFT(E$12,5),'Custom SPA Indicators'!A:A,0)+ROW()-MATCH(INDIRECT(\"'SPA Elements and Indicators'!B\"&MATCH(LEFT(INDIRECT(\"'Lookup'!B\"&MATCH(E$12,Lookup!B:B,0)+1),5),'SPA Elements and Indicators'!A:A,0)-2),E:E,0)),\"\")","v":{"$error":"#N/A"}}]
[null,null,null,"","",null,null,null,null,null,null,{"$f":"IF(ISNUMBER(MATCH(E30,StandardIndicators,0)),IF(ISBLANK(INDIRECT(\"'SPA Elements and Indicators'!J\"&MATCH(E30,StandardIndicators,0))),\"\",INDIRECT(\"'SPA Elements and Indicators'!J\"&MATCH(E30,StandardIndicators,0))),IF(ISNUMBER(MATCH(E30,'Custom SPA Indicators Labels'!B$1:B$119,0)),IF(ISBLANK(VLOOKUP(E30,'Custom SPA Indicators Labels'!B$1:H$119,2,FALSE)),\"\",VLOOKUP(E30,'Custom SPA Indicators Labels'!B$1:H$119,2,FALSE)),\"\"))","v":""},null,{"$f":"IF(ISNUMBER(MATCH(E30,StandardIndicators,0)),IF(ISBLANK(INDIRECT(\"'SPA Elements and Indicators'!K\"&MATCH(E30,StandardIndicators,0))),\"\",INDIRECT(\"'SPA Elements and Indicators'!K\"&MATCH(E30,StandardIndicators,0))),IF(ISNUMBER(MATCH(E30,'Custom SPA Indicators Labels'!B$1:B$119,0)),IF(ISBLANK(VLOOKUP(E30,'Custom SPA Indicators Labels'!B$1:H$119,3,FALSE)),\"\",VLOOKUP(E30,'Custom SPA Indicators Labels'!B$1:H$119,3,FALSE)),\"\"))","v":""},null,{"$f":"IF(ISNUMBER(MATCH(E30,StandardIndicators,0)),IF(ISBLANK(INDIRECT(\"'SPA Elements and Indicators'!L\"&MATCH(E30,StandardIndicators,0))),\"\",INDIRECT(\"'SPA Elements and Indicators'!L\"&MATCH(E30,StandardIndicators,0))),IF(ISNUMBER(MATCH(E30,'Custom SPA Indicators Labels'!B$1:B$119,0)),IF(ISBLANK(VLOOKUP(E30,'Custom SPA Indicators Labels'!B$1:H$119,4,FALSE)),\"\",VLOOKUP(E30,'Custom SPA Indicators Labels'!B$1:H$119,4,FALSE)),\"\"))","v":""},null,{"$f":"IF(ISNUMBER(MATCH(E30,StandardIndicators,0)),IF(ISBLANK(INDIRECT(\"'SPA Elements and Indicators'!M\"&MATCH(E30,StandardIndicators,0))),\"\",INDIRECT(\"'SPA Elements and Indicators'!M\"&MATCH(E30,StandardIndicators,0))),IF(ISNUMBER(MATCH(E30,'Custom SPA Indicators Labels'!B$1:B$119,0)),IF(ISBLANK(VLOOKUP(E30,'Custom SPA Indicators Labels'!B$1:H$119,5,FALSE)),\"\",VLOOKUP(E30,'Custom SPA Indicators Labels'!B$1:H$119,5,FALSE)),\"\"))","v":""},null,{"$f":"IF(ISNUMBER(MATCH(E30,StandardIndicators,0)),IF(ISBLANK(INDIRECT(\"'SPA Elements and Indicators'!N\"&MATCH(E30,StandardIndicators,0))),\"\",INDIRECT(\"'SPA Elements and Indicators'!N\"&MATCH(E30,StandardIndicators,0))),IF(ISNUMBER(MATCH(E30,'Custom SPA Indicators Labels'!B$1:B$119,0)),IF(ISBLANK(VLOOKUP(E30,'Custom SPA Indicators Labels'!B$1:H$119,6,FALSE)),\"\",VLOOKUP(E30,'Custom SPA Indicators Labels'!B$1:H$119,6,FALSE)),\"\"))","v":""},null,{"$f":"IF(ISNUMBER(MATCH(E30,StandardIndicators,0)),IF(ISBLANK(INDIRECT(\"'SPA Elements and Indicators'!O\"&MATCH(E30,StandardIndicators,0))),\"\",INDIRECT(\"'SPA Elements and Indicators'!O\"&MATCH(E30,StandardIndicators,0))),IF(ISNUMBER(MATCH(E30,'Custom SPA Indicators Labels'!B$1:B$119,0)),IF(ISBLANK(VLOOKUP(E30,'Custom SPA Indicators Labels'!B$1:H$119,7,FALSE)),\"\",VLOOKUP(E30,'Custom SPA Indicators Labels'!B$1:H$119,7,FALSE)),\"\"))","v":""},{"$f":"IF(MATCH(LEFT(E$12,5),'SPA Elements and Indicators'!A:A,0)+ROW()-16<MATCH(LEFT(INDIRECT(\"'Lookup'!B\"&MATCH(E$12,Lookup!B:B,0)+1),5),'SPA Elements and Indicators'!A:A,0),INDIRECT(\"'SPA Elements and Indicators'!B\"&MATCH(LEFT(E$12,5),'SPA Elements and Indicators'!A:A,0)+ROW()-15),\"\")","v":{"$error":"#N/A"}},{"$f":"IF(EXACT(INDIRECT(\"'Custom SPA Indicators'!B\"&MATCH(LEFT(E$12,5),'Custom SPA Indicators'!A:A,0)+ROW()-Y30),Y$1),\"\",Z30)","v":{"$error":"#N/A"}},{"$f":"MATCH(INDIRECT(\"'SPA Elements and Indicators'!B\"&MATCH(LEFT(INDIRECT(\"'Lookup'!B\"&MATCH(E$12,Lookup!B:B,0)+1),5),'SPA Elements and Indicators'!A:A,0)-2),E:E,0)","v":{"$error":"#N/A"}},{"$f":"IF(MATCH(LEFT(E$12,5),'Custom SPA Indicators'!A:A,0)+ROW()-MATCH(INDIRECT(\"'SPA Elements and Indicators'!B\"&MATCH(LEFT(INDIRECT(\"'Lookup'!B\"&MATCH(E$12,Lookup!B:B,0)+1),5),'SPA Elements and Indicators'!A:A,0)-2),E:E,0)<MATCH(LEFT(INDIRECT(\"'Lookup'!B\"&MATCH(E$12,Lookup!B:B,0)+1),5),'Custom SPA Indicators'!A:A,0),INDIRECT(\"'Custom SPA Indicators'!B\"&MATCH(LEFT(E$12,5),'Custom SPA Indicators'!A:A,0)+ROW()-MATCH(INDIRECT(\"'SPA Elements and Indicators'!B\"&MATCH(LEFT(INDIRECT(\"'Lookup'!B\"&MATCH(E$12,Lookup!B:B,0)+1),5),'SPA Elements and Indicators'!A:A,0)-2),E:E,0)),\"\")","v":{"$error":"#N/A"}}]
[null,null,null,"","",null,null,null,null,null,null,{"$f":"IF(ISNUMBER(MATCH(E31,StandardIndicators,0)),IF(ISBLANK(INDIRECT(\"'SPA Elements and Indicators'!J\"&MATCH(E31,StandardIndicators,0))),\"\",INDIRECT(\"'SPA Elements and Indicators'!J\"&MATCH(E31,StandardIndicators,0))),IF(ISNUMBER(MATCH(E31,'Custom SPA Indicators Labels'!B$1:B$119,0)),IF(ISBLANK(VLOOKUP(E31,'Custom SPA Indicators Labels'!B$1:H$119,2,FALSE)),\"\",VLOOKUP(E31,'Custom SPA Indicators Labels'!B$1:H$119,2,FALSE)),\"\"))","v":""},null,{"$f":"IF(ISNUMBER(MATCH(E31,StandardIndicators,0)),IF(ISBLANK(INDIRECT(\"'SPA Elements and Indicators'!K\"&MATCH(E31,StandardIndicators,0))),\"\",INDIRECT(\"'SPA Elements and Indicators'!K\"&MATCH(E31,StandardIndicators,0))),IF(ISNUMBER(MATCH(E31,'Custom SPA Indicators Labels'!B$1:B$119,0)),IF(ISBLANK(VLOOKUP(E31,'Custom SPA Indicators Labels'!B$1:H$119,3,FALSE)),\"\",VLOOKUP(E31,'Custom SPA Indicators Labels'!B$1:H$119,3,FALSE)),\"\"))","v":""},null,{"$f":"IF(ISNUMBER(MATCH(E31,StandardIndicators,0)),IF(ISBLANK(INDIRECT(\"'SPA Elements and Indicators'!L\"&MATCH(E31,StandardIndicators,0))),\"\",INDIRECT(\"'SPA Elements and Indicators'!L\"&MATCH(E31,StandardIndicators,0))),IF(ISNUMBER(MATCH(E31,'Custom SPA Indicators Labels'!B$1:B$119,0)),IF(ISBLANK(VLOOKUP(E31,'Custom SPA Indicators Labels'!B$1:H$119,4,FALSE)),\"\",VLOOKUP(E31,'Custom SPA Indicators Labels'!B$1:H$119,4,FALSE)),\"\"))","v":""},null,{"$f":"IF(ISNUMBER(MATCH(E31,StandardIndicators,0)),IF(ISBLANK(INDIRECT(\"'SPA Elements and Indicators'!M\"&MATCH(E31,StandardIndicators,0))),\"\",INDIRECT(\"'SPA Elements and Indicators'!M\"&MATCH(E31,StandardIndicators,0))),IF(ISNUMBER(MATCH(E31,'Custom SPA Indicators Labels'!B$1:B$119,0)),IF(ISBLANK(VLOOKUP(E31,'Custom SPA Indicators Labels'!B$1:H$119,5,FALSE)),\"\",VLOOKUP(E31,'Custom SPA Indicators Labels'!B$1:H$119,5,FALSE)),\"\"))","v":""},null,{"$f":"IF(ISNUMBER(MATCH(E31,StandardIndicators,0)),IF(ISBLANK(INDIRECT(\"'SPA Elements and Indicators'!N\"&MATCH(E31,StandardIndicators,0))),\"\",INDIRECT(\"'SPA Elements and Indicators'!N\"&MATCH(E31,StandardIndicators,0))),IF(ISNUMBER(MATCH(E31,'Custom SPA Indicators Labels'!B$1:B$119,0)),IF(ISBLANK(VLOOKUP(E31,'Custom SPA Indicators Labels'!B$1:H$119,6,FALSE)),\"\",VLOOKUP(E31,'Custom SPA Indicators Labels'!B$1:H$119,6,FALSE)),\"\"))","v":""},null,{"$f":"IF(ISNUMBER(MATCH(E31,StandardIndicators,0)),IF(ISBLANK(INDIRECT(\"'SPA Elements and Indicators'!O\"&MATCH(E31,StandardIndicators,0))),\"\",INDIRECT(\"'SPA Elements and Indicators'!O\"&MATCH(E31,StandardIndicators,0))),IF(ISNUMBER(MATCH(E31,'Custom SPA Indicators Labels'!B$1:B$119,0)),IF(ISBLANK(VLOOKUP(E31,'Custom SPA Indicators Labels'!B$1:H$119,7,FALSE)),\"\",VLOOKUP(E31,'Custom SPA Indicators Labels'!B$1:H$119,7,FALSE)),\"\"))","v":""},{"$f":"IF(MATCH(LEFT(E$12,5),'SPA Elements and Indicators'!A:A,0)+ROW()-16<MATCH(LEFT(INDIRECT(\"'Lookup'!B\"&MATCH(E$12,Lookup!B:B,0)+1),5),'SPA Elements and Indicators'!A:A,0),INDIRECT(\"'SPA Elements and Indicators'!B\"&MATCH(LEFT(E$12,5),'SPA Elements and Indicators'!A:A,0)+ROW()-15),\"\")","v":{"$error":"#N/A"}},{"$f":"IF(EXACT(INDIRECT(\"'Custom SPA Indicators'!B\"&MATCH(LEFT(E$12,5),'Custom SPA Indicators'!A:A,0)+ROW()-Y31),Y$1),\"\",Z31)","v":{"$error":"#N/A"}},{"$f":"MATCH(INDIRECT(\"'SPA Elements and Indicators'!B\"&MATCH(LEFT(INDIRECT(\"'Lookup'!B\"&MATCH(E$12,Lookup!B:B,0)+1),5),'SPA Elements and Indicators'!A:A,0)-2),E:E,0)","v":{"$error":"#N/A"}},{"$f":"IF(MATCH(LEFT(E$12,5),'Custom SPA Indicators'!A:A,0)+ROW()-MATCH(INDIRECT(\"'SPA Elements and Indicators'!B\"&MATCH(LEFT(INDIRECT(\"'Lookup'!B\"&MATCH(E$12,Lookup!B:B,0)+1),5),'SPA Elements and Indicators'!A:A,0)-2),E:E,0)<MATCH(LEFT(INDIRECT(\"'Lookup'!B\"&MATCH(E$12,Lookup!B:B,0)+1),5),'Custom SPA Indicators'!A:A,0),INDIRECT(\"'Custom SPA Indicators'!B\"&MATCH(LEFT(E$12,5),'Custom SPA Indicators'!A:A,0)+ROW()-MATCH(INDIRECT(\"'SPA Elements and Indicators'!B\"&MATCH(LEFT(INDIRECT(\"'Lookup'!B\"&MATCH(E$12,Lookup!B:B,0)+1),5),'SPA Elements and Indicators'!A:A,0)-2),E:E,0)),\"\")","v":{"$error":"#N/A"}}]
[null,null,null,"","",null,null,null,null,null,null,{"$f":"IF(ISNUMBER(MATCH(E32,StandardIndicators,0)),IF(ISBLANK(INDIRECT(\"'SPA Elements and Indicators'!J\"&MATCH(E32,StandardIndicators,0))),\"\",INDIRECT(\"'SPA Elements and Indicators'!J\"&MATCH(E32,StandardIndicators,0))),IF(ISNUMBER(MATCH(E32,'Custom SPA Indicators Labels'!B$1:B$119,0)),IF(ISBLANK(VLOOKUP(E32,'Custom SPA Indicators Labels'!B$1:H$119,2,FALSE)),\"\",VLOOKUP(E32,'Custom SPA Indicators Labels'!B$1:H$119,2,FALSE)),\"\"))","v":""},null,{"$f":"IF(ISNUMBER(MATCH(E32,StandardIndicators,0)),IF(ISBLANK(INDIRECT(\"'SPA Elements and Indicators'!K\"&MATCH(E32,StandardIndicators,0))),\"\",INDIRECT(\"'SPA Elements and Indicators'!K\"&MATCH(E32,StandardIndicators,0))),IF(ISNUMBER(MATCH(E32,'Custom SPA Indicators Labels'!B$1:B$119,0)),IF(ISBLANK(VLOOKUP(E32,'Custom SPA Indicators Labels'!B$1:H$119,3,FALSE)),\"\",VLOOKUP(E32,'Custom SPA Indicators Labels'!B$1:H$119,3,FALSE)),\"\"))","v":""},null,{"$f":"IF(ISNUMBER(MATCH(E32,StandardIndicators,0)),IF(ISBLANK(INDIRECT(\"'SPA Elements and Indicators'!L\"&MATCH(E32,StandardIndicators,0))),\"\",INDIRECT(\"'SPA Elements and Indicators'!L\"&MATCH(E32,StandardIndicators,0))),IF(ISNUMBER(MATCH(E32,'Custom SPA Indicators Labels'!B$1:B$119,0)),IF(ISBLANK(VLOOKUP(E32,'Custom SPA Indicators Labels'!B$1:H$119,4,FALSE)),\"\",VLOOKUP(E32,'Custom SPA Indicators Labels'!B$1:H$119,4,FALSE)),\"\"))","v":""},null,{"$f":"IF(ISNUMBER(MATCH(E32,StandardIndicators,0)),IF(ISBLANK(INDIRECT(\"'SPA Elements and Indicators'!M\"&MATCH(E32,StandardIndicators,0))),\"\",INDIRECT(\"'SPA Elements and Indicators'!M\"&MATCH(E32,StandardIndicators,0))),IF(ISNUMBER(MATCH(E32,'Custom SPA Indicators Labels'!B$1:B$119,0)),IF(ISBLANK(VLOOKUP(E32,'Custom SPA Indicators Labels'!B$1:H$119,5,FALSE)),\"\",VLOOKUP(E32,'Custom SPA Indicators Labels'!B$1:H$119,5,FALSE)),\"\"))","v":""},null,{"$f":"IF(ISNUMBER(MATCH(E32,StandardIndicators,0)),IF(ISBLANK(INDIRECT(\"'SPA Elements and Indicators'!N\"&MATCH(E32,StandardIndicators,0))),\"\",INDIRECT(\"'SPA Elements and Indicators'!N\"&MATCH(E32,StandardIndicators,0))),IF(ISNUMBER(MATCH(E32,'Custom SPA Indicators Labels'!B$1:B$119,0)),IF(ISBLANK(VLOOKUP(E32,'Custom SPA Indicators Labels'!B$1:H$119,6,FALSE)),\"\",VLOOKUP(E32,'Custom SPA Indicators Labels'!B$1:H$119,6,FALSE)),\"\"))","v":""},null,{"$f":"IF(ISNUMBER(MATCH(E32,StandardIndicators,0)),IF(ISBLANK(INDIRECT(\"'SPA Elements and Indicators'!O\"&MATCH(E32,StandardIndicators,0))),\"\",INDIRECT(\"'SPA Elements and Indicators'!O\"&MATCH(E32,StandardIndicators,0))),IF(ISNUMBER(MATCH(E32,'Custom SPA Indicators Labels'!B$1:B$119,0)),IF(ISBLANK(VLOOKUP(E32,'Custom SPA Indicators Labels'!B$1:H$119,7,FALSE)),\"\",VLOOKUP(E32,'Custom SPA Indicators Labels'!B$1:H$119,7,FALSE)),\"\"))","v":""},{"$f":"IF(MATCH(LEFT(E$12,5),'SPA Elements and Indicators'!A:A,0)+ROW()-16<MATCH(LEFT(INDIRECT(\"'Lookup'!B\"&MATCH(E$12,Lookup!B:B,0)+1),5),'SPA Elements and Indicators'!A:A,0),INDIRECT(\"'SPA Elements and Indicators'!B\"&MATCH(LEFT(E$12,5),'SPA Elements and Indicators'!A:A,0)+ROW()-15),\"\")","v":{"$error":"#N/A"}},{"$f":"IF(EXACT(INDIRECT(\"'Custom SPA Indicators'!B\"&MATCH(LEFT(E$12,5),'Custom SPA Indicators'!A:A,0)+ROW()-Y32),Y$1),\"\",Z32)","v":{"$error":"#N/A"}},{"$f":"MATCH(INDIRECT(\"'SPA Elements and Indicators'!B\"&MATCH(LEFT(INDIRECT(\"'Lookup'!B\"&MATCH(E$12,Lookup!B:B,0)+1),5),'SPA Elements and Indicators'!A:A,0)-2),E:E,0)","v":{"$error":"#N/A"}},{"$f":"IF(MATCH(LEFT(E$12,5),'Custom SPA Indicators'!A:A,0)+ROW()-MATCH(INDIRECT(\"'SPA Elements and Indicators'!B\"&MATCH(LEFT(INDIRECT(\"'Lookup'!B\"&MATCH(E$12,Lookup!B:B,0)+1),5),'SPA Elements and Indicators'!A:A,0)-2),E:E,0)<MATCH(LEFT(INDIRECT(\"'Lookup'!B\"&MATCH(E$12,Lookup!B:B,0)+1),5),'Custom SPA Indicators'!A:A,0),INDIRECT(\"'Custom SPA Indicators'!B\"&MATCH(LEFT(E$12,5),'Custom SPA Indicators'!A:A,0)+ROW()-MATCH(INDIRECT(\"'SPA Elements and Indicators'!B\"&MATCH(LEFT(INDIRECT(\"'Lookup'!B\"&MATCH(E$12,Lookup!B:B,0)+1),5),'SPA Elements and Indicators'!A:A,0)-2),E:E,0)),\"\")","v":{"$error":"#N/A"}}]

{"sheet":"SPA Program Element Dropdown","index":13,"n_rows":192,"n_cols":7,"rows_kept":192,"cut":false,"hidden":true,"merged":[[0,6,15,10]]}
["Country","Program Elements",null,null,null,null,"This sheet is linked to the data validation/dropdown for the \"Program Element\" box on the For SPA Funded Activities page. It controls which program elements show up when you choose a SPA country on the Classification and Budget page. If a country has funding in a new program element, simply add another entry for that country (both the country name and the name of the new program element) to columns A and B. "]
["Albania","2.4.1, Civic Participation"]
["Armenia","2.4.1, Civic Participation"]
["Armenia","3.1.8, Water Supply and Sanitation"]
["Armenia","3.3.3, Social Assistance"]
["Azerbaijan","2.4.1, Civic Participation"]
["Benin","3.1.1, HIV/AIDS"]
["Benin","3.1.6, Maternal and Child Health"]
["Benin","3.1.7, Family Planning and Reproductive Health"]
["Benin","3.1.8, Water Supply and Sanitation"]
["Benin","3.1.3, Malaria"]
["Benin","3.2.1, Basic Education"]
["Burkina Faso","3.1.1, HIV/AIDS"]
["Burkina Faso","3.1.6, Maternal and Child Health"]
["Burkina Faso","3.1.7, Family Planning and Reproductive Health"]
["Burkina Faso","3.1.8, Water Supply and Sanitation"]
["Cambodia","3.1.6, Maternal and Child Health"]
["Cambodia","3.2.1, Basic Education"]
["Cambodia","3.1.1, HIV/AIDS"]
["Cambodia","4.7.3, Strengthen Microenterprise Productivity"]
["Cameroon","3.1.8, Water Supply and Sanitation"]
["Cape Verde","3.1.8, Water Supply and Sanitation"]
["Colombia","6.1.1, Cross Cutting"]
["Colombia","3.3.2, Social Services"]
["Costa Rica","2.2.3, Local Government and Decentralization"]
["Dominican Republic","3.1.7, Family Planning and Reproductive Health"]
["Dominican Republic","3.2.1, Basic Education"]
["Dominican Republic","4.6.2, Private Sector Capacity"]
["Dominican Republic","4.8.1, Natural Resources and Biodiversity"]
["Dominican Republic","4.8.2, Clean Productive Environment"]
["Eastern Caribbean","3.1.1, HIV/AIDS"]
["Eastern Caribbean","4.7.3, Strengthen Microenterprise Productivity"]
["Eastern Caribbean","4.8.2, Clean Productive Environment"]
["Ecuador","4.8.1, Natural Resources and Biodiversity"]
["El Salvador","3.2.1, Basic Education"]
["El Salvador","2.2.3, Local Government and Decentralization"]
["El Salvador","3.1.6, Maternal and Child Health"]
["El Salvador","4.8.1, Natural Resources and Biodiversity"]
["Ethiopia","4.5.2, Agricultural Sector Productivity"]
["Fiji","4.8.2, Clean Productive Environment"]
["Georgia","2.4.1, Civic Participation"]
["Ghana","3.1.3, Malaria"]
["Ghana","3.1.6, Maternal and Child Health"]
["Ghana","3.1.8, Water Supply and Sanitation"]
["Ghana","3.1.9, Nutrition"]
["Ghana","3.2.1, Basic Education"]
["Ghana","4.5.2, Agricultural Sector Productivity"]
["Ghana","4.6.3, Workforce Development"]
["Guatemala","4.8.2, Clean Productive Environment"]
["Guatemala","2.2.3, Local Government and Decentralization"]
["Guatemala","4.5.2, Agricultural Sector Productivity"]
["Guatemala","4.8.1, Natural Resources and Biodiversity"]
["Guinea","3.1.1, HIV/AIDS"]
["Guinea","3.1.8, Water Supply and Sanitation"]
["Guinea","3.1.6, Maternal and Child Health"]
["Guinea","3.1.7, Family Planning and Reproductive Health"]
["Guinea","4.5.2, Agricultural Sector Productivity"]
["Guinea","4.7.3, Strengthen Microenterprise Productivity"]
["Guinea","3.2.1, Basic Education"]
["Jamaica","3.2.1, Basic Education"]
["Jamaica","4.8.2, Clean Productive Environment"]
["Jamaica","1.3.7, Law Enforcement Restructuring, Reform and Operations"]
["Jamaica","2.4.1, Civic Participation"]
["Jamaica","3.1.1, HIV/AIDS"]
["Jamaica","4.2.1, Trade and Investment Enabling Environment"]
["Jamaica","4.5.2, Agricultural Sector Productivity"]
["Jamaica","4.8.1, Natural Resources and Biodiversity"]
["Jordan","4.6.3, Workforce Development"]
["Kazakhstan","2.4.1, Civic Participation"]
["Kazakhstan","3.1.1, HIV/AIDS"]
["Kazakhstan","3.1.6, Maternal and Child Health"]
["Kazakhstan","3.1.7, Family Planning and Reproductive Health"]
["Kazakhstan","3.1.8, Water Supply and Sanitation"]
["Kazakhstan","3.2.1, Basic Education"]
["Kazakhstan","4.5.2, Agricultural Sector Productivity"]
["Kazakhstan","4.7.3, Strengthen Microenterprise Productivity"]
["Kazakhstan","4.8.2, Clean Productive Environment"]
["Kyrgyz Republic","2.4.1, Civic Participation"]
["Kyrgyz Republic","3.1.1, HIV/AIDS"]
["Kyrgyz Republic","3.1.6, Maternal and Child Health"]
["Kyrgyz Republic","3.1.7, Family Planning and Reproductive Health"]
["Kyrgyz Republic","3.1.8, Water Supply and Sanitation"]
["Kyrgyz Republic","3.2.1, Basic Education"]
["Kyrgyz Republic","4.5.2, Agricultural Sector Productivity"]
["Kyrgyz Republic","4.7.3, Strengthen Microenterprise Productivity"]
["Kyrgyz Republic","4.8.2, Clean Productive Environment"]
["Kyrgyz Republic","6.1.1, Cross Cutting"]
["Liberia","3.1.1, HIV/AIDS"]
["Liberia","3.1.6, Maternal and Child Health"]
["Liberia","3.2.1, Basic Education"]
["Liberia","3.2.2, Higher Education"]
["Macedonia","2.4.1, Civic Participation"]
["Madagascar","3.1.3, Malaria"]
["Madagascar","3.1.6, Maternal and Child Health"]
["Malawi","3.1.1, HIV/AIDS"]
["Malawi","3.1.6, Maternal and Child Health"]
["Malawi","3.1.9, Nutrition"]
["Malawi","3.2.1, Basic Education"]
["Malawi","4.5.2, Agricultural Sector Productivity"]
["Malawi","4.7.3, Strengthen Microenterprise Productivity"]
["Malawi","4.8.1, Natural Resources and Biodiversity"]
["Mali","2.2.3, Local Government and Decentralization"]
["Mali","3.1.1, HIV/AIDS"]
["Mali","3.1.3, Malaria"]
["Mali","3.1.6, Maternal and Child Health"]
["Mali","3.1.7, Family Planning and Reproductive Health"]
["Mali","3.2.1, Basic Education"]
["Mali","4.3.1, Financial Sector Enabling Environment"]
["Mali","4.3.2, Financial Sector Capacity"]
["Mali","4.5.2, Agricultural Sector Productivity"]
["Mali","4.8.1, Natural Resources and Biodiversity"]
["Mali","4.8.2, Clean Productive Environment"]
["Mexico","4.6.1, Business Enabling Environment"]
["Mexico","4.8.1, Natural Resources and Biodiversity"]
["Mexico","4.8.2, Clean Productive Environment"]
["Micronesia","5.2.1, Capacity Building, Preparedness and Planning"]
["Moldova","2.4.1, Civic Participation"]
["Moldova","4.7.3, Strengthen Microenterprise Productivity"]
["Mongolia","4.6.3, Workforce Development"]
["Morocco","2.4.1, Civic Participation"]
["Morocco","3.2.1, Basic Education"]
["Morocco","4.8.1, Natural Resources and Biodiversity"]
["Mozambique","3.1.3, Malaria"]
["Mozambique","3.1.9, Nutrition"]
["Nicaragua","2.2.3, Local Government and Decentralization"]
["Nicaragua","2.4.1, Civic Participation"]
["Nicaragua","3.1.6, Maternal and Child Health"]
["Nicaragua","3.1.8, Water Supply and Sanitation"]
["Nicaragua","3.2.1, Basic Education"]
["Nicaragua","4.5.2, Agricultural Sector Productivity"]
["Nicaragua","5.2.2, Disaster Readiness and Mitigation"]
["Panama","2.2.3, Local Government and Decentralization"]
["Panama","4.8.1, Natural Resources and Biodiversity"]
["Paraguay","2.2.4, Anti-Corruption Reforms"]
["Paraguay","4.6.3, Workforce Development"]
["Peru","3.2.1, Basic Education"]
["Peru","4.8.2, Clean Productive Environment"]
["Peru","3.1.6, Maternal and Child Health"]
["Peru","4.2.2, Trade and Investment Capacity"]
["Peru","4.6.2, Private Sector Capacity"]
["Philippines","3.1.1, HIV/AIDS"]
["Philippines","3.2.1, Basic Education"]
["Philippines","4.8.1, Natural Resources and Biodiversity"]
["Philippines","4.8.2, Clean Productive Environment"]
["Romania","2.4.1, Civic Participation"]
["Romania","4.6.3, Workforce Development"]
["Rwanda","3.2.1, Basic Education"]
["Rwanda","4.5.2, Agricultural Sector Productivity"]
["Senegal","3.1.3, Malaria"]
["Senegal","3.1.6, Maternal and Child Health"]
["Senegal","3.1.7, Family Planning and Reproductive Health"]
["Senegal","3.2.1, Basic Education"]
["Senegal","4.5.2, Agricultural Sector Productivity"]
["Senegal","4.8.1, Natural Resources and Biodiversity"]
["Sierra Leone","2.3.2, Elections and Political Processes"]
["Sierra Leone","3.1.1, HIV/AIDS"]
["Sierra Leone","3.1.7, Family Planning and Reproductive Health"]
["Sierra Leone","3.1.8, Water Supply and Sanitation"]
["Tanzania","3.1.3, Malaria"]
["Tanzania","3.1.6, Maternal and Child Health"]
["Tanzania","4.8.1, Natural Resources and Biodiversity"]
["Tanzania","3.1.8, Water Supply and Sanitation"]
["Tanzania","3.2.1, Basic Education"]
["The Gambia","3.1.8, Water Supply and Sanitation"]
["The Gambia","3.1.1, HIV/AIDS"]
["The Gambia","3.1.7, Family Planning and Reproductive Health"]
["Togo","3.1.1, HIV/AIDS"]
["Togo","3.1.6, Maternal and Child Health"]
["Togo","3.1.7, Family Planning and Reproductive Health"]
["Togo","3.1.8, Water Supply and Sanitation"]
["Turkmenistan","2.4.1, Civic Participation"]
["Turkmenistan","3.1.1, HIV/AIDS"]
["Turkmenistan","3.1.6, Maternal and Child Health"]
["Turkmenistan","3.1.7, Family Planning and Reproductive Health"]
["Turkmenistan","3.1.8, Water Supply and Sanitation"]
["Turkmenistan","3.2.1, Basic Education"]
["Turkmenistan","4.5.2, Agricultural Sector Productivity"]
["Turkmenistan","4.7.3, Strengthen Microenterprise Productivity"]
["Turkmenistan","4.8.2, Clean Productive Environment"]
["Uganda","3.1.3, Malaria"]
["Uganda","3.2.1, Basic Education"]
["Uganda","3.1.6, Maternal and Child Health"]
["Uganda","3.1.8, Water Supply and Sanitation"]
["Uganda","4.5.2, Agricultural Sector Productivity"]
["Ukraine","2.4.1, Civic Participation"]
["Vanuatu","4.8.2, Clean Productive Environment"]
["Zambia","3.1.3, Malaria"]
["Zambia","3.1.6, Maternal and Child Health"]
["Zambia","3.1.9, Nutrition"]
["Zambia","3.2.1, Basic Education"]
["Zambia","3.1.7, Family Planning and Reproductive Health"]
["Zambia","4.5.2, Agricultural Sector Productivity"]

{"sheet":"SPA Elements and Indicators","index":14,"n_rows":145,"n_cols":16,"rows_kept":145,"cut":false,"hidden":true,"merged":[[137,1,137,7],[139,1,139,7],[140,1,140,7],[141,1,141,7],[142,1,142,7],[129,1,129,8],[130,1,130,8],[132,1,132,7],[134,1,134,7],[135,1,135,7],[136,1,136,7],[124,1,124,8],[126,1,126,8],[127,1,127,8],[107,1,107,8],[110,1,110,8],[113,1,113,7],[116,1,116,8],[117,1,117,8],[119,1,119,7],[108,1,108,8],[111,1,111,8],[114,1,114,7],[80,1,80,8],[69,1,69,8],[70,1,70,8],[76,1,76,8],[66,1,66,8],[67,1,67,8],[120,1,120,7],[122,1,122,8],[123,1,123,8],[61,1,61,8],[96,1,96,8],[78,1,78,8],[35,11,35,12],[35,13,35,14],[38,1,38,8],[41,1,41,8],[44,1,44,8],[48,1,48,8],[36,1,36,8],[42,1,42,8],[47,1,47,8],[46,1,46,8],[37,1,37,8],[89,1,89,8],[83,1,83,7],[68,1,68,8],[79,1,79,8],[71,1,71,8],[65,1,65,8],[75,1,75,8],[84,1,84,7],[86,1,86,7],[87,1,87,7],[13,1,13,7],[33,1,33,8],[45,1,45,8],[105,1,105,8],[106,1,106,8],[100,1,100,8],[101,1,101,8],[102,1,102,8],[7,1,7,7],[11,1,11,7],[14,1,14,7],[18,1,18,7],[19,1,19,7],[72,1,72,8],[74,1,74,8],[104,1,104,8],[99,1,99,8],[92,1,92,8],[93,1,93,8],[98,1,98,8],[95,1,95,8],[82,1,82,7],[90,1,90,8],[60,1,60,8],[17,1,17,7],[20,1,20,7],[49,1,49,8],[22,1,22,7],[23,1,23,7],[24,1,24,7],[26,1,26,7],[55,1,55,8],[34,1,34,8],[2,1,2,7],[3,1,3,7],[5,1,5,7],[8,1,8,7],[9,1,9,7],[6,1,6,7],[62,1,62,8],[58,1,58,8],[64,1,64,8],[27,1,27,7],[29,1,29,7],[30,1,30,7],[31,1,31,7],[43,1,43,8],[52,1,52,8],[35,1,35,8],[50,1,50,8],[51,1,51,8],[57,1,57,8],[40,1,40,8],[10,1,10,7],[12,1,12,7],[15,1,15,7],[16,1,16,7]]}
[]
[]
["1.3.7","# of communities in USG-assisted areas using community policing methods",null,null,null,null,null,null,null,"Communities",null,null,null,null,null,1]
[null,"# of programs conducted to enhance and improve police/community relationships",null,null,null,null,null,null,null,"Programs",null,null,null,null,null,2]
[]
["2.2.3","# of community based organizations (CBOs) or governmental entities that received assistance to strengthen local government and/or decentralization efforts",null,null,null,null,null,null,null,"CBOs","Governmental entities",null,null,null,null,3]
[null,"# of individuals who received training or assistance to strengthen local government and/or decentralization efforts",null,null,null,null,null,null,null,"Men 25 and older","Women 25 and older","Men 15-24","Women 15-24","Boys 14 and under","Girls 14 and under",4]
[null,"#  of private sector actors/entities engaged during the planning or implementation of the activity (CARSI)",null,null,null,null,null,null,null,"Actors/Entities",null,null,null,null,null,5]
[null,"# of service providers who have benefitted from USG-supported educational and socio-economic opportunities (CARSI)",null,null,null,null,null,null,null,"Men 25 and older","Women 25 and older","Men 15-24","Women 15-24",null,null,6]
[null,"# of youth between 15 and 25 who have benefitted from USG-supported educational and socio-economic opportunities (CARSI)",null,null,null,null,null,null,null,"Male, 15-25","Female, 15-25",null,null,null,null,7]
[null,"# of youth who are under 15 who have benefitted from USG-supported educational and socio-economic opportunities (CARSI)",null,null,null,null,null,null,null,"Boys, 14 and under ","Girls, 14 and under",null,null,null,null,8]
[null,"# of communities benefited with USG assistance (CARSI)",null,null,null,null,null,null,null,"Communities",null,null,null,null,null,9]
[null,"# of USG-assisted organizations and/or service delivery systems that serve youth (CARSI)",null,null,null,null,null,null,null,"Organizations","Service delivery systems",null,null,null,null,10]
[null,"CARSI Risk Factor: 1. Dysfunctional families, lack of supervision in the home and high rates of domestic violence",null,null,null,null,null,null,null,"Mark \"X\" if applies",null,null,null,null,null,11]
[null,"CARSI Risk Factor: 2. Loss of family and social values",null,null,null,null,null,null,null,"Mark \"X\" if applies",null,null,null,null,null,12]
[null,"CARSI Risk Factor: 3. The need for Identity and belonging, low self-esteem, negative peer contact and lack of dreams",null,null,null,null,null,null,null,"Mark \"X\" if applies",null,null,null,null,null,13]
[null,"CARSI Risk Factor: 4. Irresponsible sexual activity at an early stage",null,null,null,null,null,null,null,"Mark \"X\" if applies",null,null,null,null,null,14]
[null,"CARSI Risk Factor: 5. Limited access to formal and informal education",null,null,null,null,null,null,null,"Mark \"X\" if applies",null,null,null,null,null,15]
[null,"CARSI Risk Factor: 6. Low quality of education/teachers, high school dropout rate",null,null,null,null,null,null,null,"Mark \"X\" if applies",null,null,null,null,null,16]
[null,"CARSI Risk Factor: 7. High unemployment among youth and a lack of skills for employment",null,null,null,null,null,null,null,"Mark \"X\" if applies",null,null,null,null,null,17]
[null,"CARSI Risk Factor: 8. Overcrowded neighborhoods with limited access to basic services and spaces for recreation",null,null,null,null,null,null,null,"Mark \"X\" if applies",null,null,null,null,null,18]
[]
["2.2.4","# of community based organizations (CBOs) or governmental entities that received assistance to strengthen management skills and/or fiscal management",null,null,null,null,null,null,null,"Community based organizations","Governmental entities",null,null,null,null,19]
[null,"# of individuals who received US government-assisted training in management skills and/or fiscal management",null,null,null,null,null,null,null,"Men 25 and older","Women 25 and older","Men 15-24","Women 15-24","Boys 14 and under","Girls 14 and under",20]
[null,"# of individuals trained/educated in civic education and leadership capacity",null,null,null,null,null,null,null,"Men 25 and older","Women 25 and older","Men 15-24","Women 15-24","Boys 14 and under","Girls 14 and under",21]
[]
["2.3.2","# of individuals receiving civic education through US government-assisted programs",null,null,null,null,null,null,null,"Men 25 and older","Women 25 and older","Men 15-24","Women 15-24","Boys 14 and under","Girls 14 and under",22]
[null,"# of local mechanisms (such as formation of girls empowerment clubs, youth leadership camps and student governance/student peer-group learning) supported with US government assistance for citizens to engage their sub-national government",null,null,null,null,null,null,null,"Girls empowerment clubs","Youth leadership camps","Student governence","Student peer group learning","Other mechanisms",null,23]
[]
["2.4.1","# of civil society organizations using US government assistance to improve internal organizational capacity",null,null,null,null,null,null,null,"Civil society organizations",null,null,null,null,null,24]
[null,"# of people who have completed USG-assisted civic education programs ",null,null,null,null,null,null,null,"Men 25 and older","Women 25 and older","Men 15-24","Women 15-24","Boys 14 and under","Girls 14 and under",25]
[null,"# of people trained/educated in organizational capacity and/or leadership",null,null,null,null,null,null,null,"Men 25 and older","Women 25 and older","Men 15-24","Women 15-24","Boys 14 and under","Girls 14 and under",26]
[]
["3.1.1","# of individuals reached through community outreach that promotes HIV/AIDS prevention ",null,null,null,null,null,null,null,"Men 25 and older","Women 25 and older","Men 15-24","Women 15-24","Boys 14 and under","Girls 14 and under",28]
[null,"# of health care workers who successfully completed an in-service training program for HIV/AIDS related service delivery",null,null,null,null,null,null,null,"Men 25 and older","Women 25 and older","Men 15-24","Women 15-24",null,null,29]
[null,"# of MARP (most at-risk population) reached with individual and/or small group level HIV preventive interventions that are based on evidence and/or meet the minimum standards required",null,null,null,null,null,null,null,"Commercial sex workers (CSW)","Injecting drug users (IDU)","Men who have sex with men (MSM)",null,"Other vulnerable populations",null,30]
[null,"# of individuals reached through community outreach that promotes HIV/AIDS care and treatment",null,null,null,null,null,null,null,"Men 25 and older","Women 25 and older","Men 15-24","Women 15-24","Boys 14 and under","Girls 14 and under",31]
[null,"# of individuals trained in HIV-related stigma and discrimination reduction",null,null,null,null,null,null,null,"Men 25 and older","Women 25 and older","Men 15-24","Women 15-24",null,null,32]
[null,"# of local organizations provided with technical assistance for HIV-related institutional capacity building",null,null,null,null,null,null,null,"Organizations",null,null,null,null,null,33]
[null,null,null,null,null,null,null,null,null,null,null,null,null,{"$f":"IF(ISNA(MATCH(N37,B:B,0)),\"\",INDIRECT(\"B\"&MATCH(N37,B:B,0)+1))","v":""}]
["3.1.3","# of community health workers trained in home based care",null,null,null,null,null,null,null,"Men 25 and older","Women 25 and older","Men 15-24","Women 15-24",null,null,34]
[null,"# of community health workers trained in Intermittent Presumptive Treatment for pregnant women (IPTp)",null,null,null,null,null,null,null,"Men 25 and older","Women 25 and older","Men 15-24","Women 15-24",null,null,35]
[null,"# of community health workers trained in Rapid Diagnostic Test (RDT) use",null,null,null,null,null,null,null,"Men 25 and older","Women 25 and older","Men 15-24","Women 15-24",null,null,36]
[null,"# of community health workers trained in malaria prevention Behavior Change Communication (BCC) messaging skills",null,null,null,null,null,null,null,"Men 25 and older","Women 25 and older","Men 15-24","Women 15-24",null,null,37]
[null,"# of people receiving malaria prevention Behavior Change Communication (BCC)  messaging regarding early treatment",null,null,null,null,null,null,null,"Men 25 and older","Women 25 and older","Men 15-24","Women 15-24","Boys 14 and under","Girls 14 and under",38]
[null,"# of people receiving malaria prevention Behavior Change Communication (BCC)  messaging regarding net usage",null,null,null,null,null,null,null,"Men 25 and older","Women 25 and older","Men 15-24","Women 15-24","Boys 14 and under","Girls 14 and under",39]
[null,"# of people receiving malaria prevention Behavior Change Communication (BCC) messaging regarding Intermittent Presumptive Treatment for pregnant women (IPTp)",null,null,null,null,null,null,null,"Men 25 and older","Women 25 and older","Men 15-24","Women 15-24","Boys 14 and under","Girls 14 and under",40]
[null,"# of people receiving malaria prevention Behavior Change Communication (BCC)  messaging regarding Indoor Residual Spraying (IRS)",null,null,null,null,null,null,null,"Men 25 and older","Women 25 and older","Men 15-24","Women 15-24","Boys 14 and under","Girls 14 and under",41]
[null,"# of Long Lasting Insecticide-Treated Nets (LLITNs) distributed",null,null,null,null,null,null,null,"Nets",null,null,null,null,null,42]
[]
["3.1.6","# of individuals trained in maternal or newborn health through USG supported programs ",null,null,null,null,null,null,null,"Men 25 and older","Women 25 and older","Men 15-24","Women 15-24",null,null,43]
[null,"# of individuals trained in child health and nutrition through US government-supported health area programs                 ",null,null,null,null,null,null,null,"Men 25 and older","Women 25 and older","Men 15-24","Women 15-24",null,null,44]
[null,"# of children reached by USG-supported nutrition programs",null,null,null,null,null,null,null,"Boys 6-14","Girls 6-14","Boys 5 and under","Girls 5 and under",null,null,45]
[]
["3.1.7","# of US government-assisted community health workers (CHWs) trained to provide family planning (FP) information and/or services during the year                                                             ",null,null,null,null,null,null,null,"Men 25 and older","Women 25 and older","Men 15-24","Women 15-24",null,null,46]
[null,"# of individuals that have seen or heard a specific USG-supported FP/RH message",null,null,null,null,null,null,null,"Men 25 and older","Women 25 and older","Men 15-24","Women 15-24","Boys 14 and under","Girls 14 and under",47]
[]
["3.1.8","# of people gaining access to an improved drinking water source ",null,null,null,null,null,null,null,"Men 25 and older","Women 25 and older","Men 15-24","Women 15-24","Boys 14 and under","Girls 14 and under",51]
[null,"# of people gaining access to an improved sanitation facility ",null,null,null,null,null,null,null,"Men 25 and older","Women 25 and older","Men 15-24","Women 15-24","Boys 14 and under","Girls 14 and under",52]
[]
["3.1.9","# of people trained in child health and nutrition through USG-supported health area programs",null,null,null,null,null,null,null,"Men 25 and older","Women 25 and older","Men 15-24","Women 15-24",null,null,53]
[null,"# of health facilities with improved capacity to manage acute under-nutrition",null,null,null,null,null,null,null,"Facilities",null,null,null,null,null,54]
[null,"# of children under five reached by US government-supported nutrition programs",null,null,null,null,null,null,null,"Boys under 5 years old","Girls under 5 years old",null,null,null,null,55]
[]
["3.2.1","# of textbooks and other teaching and learning materials (TLM) provided with US government assistance ",null,null,null,null,null,null,null,"Textbooks",null,null,null,null,null,56]
[null,"# of schools using Information and Communication Technology due to US government support ",null,null,null,null,null,null,null,"Schools",null,null,null,null,null,57]
[null,"# of classrooms built or repaired with US government assistance",null,null,null,null,null,null,null,"Classrooms",null,null,null,null,null,58]
[null,"# of teachers/educators who received  training with US government support",null,null,null,null,null,null,null,"Men 25 and older","Women 25 and older","Men 15-24","Women 15-24",null,null,59]
[null,"# of education administrators and officials trained with US government support",null,null,null,null,null,null,null,"Men 25 and older","Women 25 and older","Men 15-24","Women 15-24",null,null,60]
[null,"# of PTAs or similar ‘school’ governance structures supported",null,null,null,null,null,null,null,"PTAs",null,null,null,null,null,61]
[null,"# of learners enrolled in USG-supported secondary schools or equivalent non-school-based settings ",null,null,null,null,null,null,null,"Men 25 and older","Women 25 and older","Men 15-24","Women 15-24","Boys 14 and under","Girls 14 and under",62]
[null,"# of learners receiving literacy interventions at the primary level ",null,null,null,null,null,null,null,"Men 25 and older","Women 25 and older","Men 15-24","Women 15-24","Boys 14 and under","Girls 14 and under",63]
[null,"# of learners at the primary level receiving US government-supported training other than literacy interventions",null,null,null,null,null,null,null,"Men 25 and older","Women 25 and older","Men 15-25","Women 15-25","Boys 14 and under","Girls 14 and under",64]
[]
["3.2.2","# of US government-assisted curricula revised with private and/or public sector employers’ input",null,null,null,null,null,null,null,"Curricula",null,null,null,null,null,65]
[null,"# of US government-supported tertiary or vocational programs ",null,null,null,null,null,null,null,"Programs",null,null,null,null,null,66]
[null,"# of individuals trained as a result of US governement investments in higher education institutions ",null,null,null,null,null,null,null,"Men 25 and older","Women 25 and older","Men 15-24","Women 15-24",null,null,67]
[]
["3.3.2","# of vulnerable individuals benefitting from US government-supported social services",null,null,null,null,null,null,null,"Men 25 and older","Women 25 and older","Men 15-24","Women 15-24","Boys 14 and under","Girls 14 and under",68]
[null,"# of service providers trained who serve vulnerable persons",null,null,null,null,null,null,null,"Men 25 and older","Women 25 and older","Men 15-24","Women 15-24",null,null,69]
[null,"# of US government assisted organizations and/or service delivery systems strengthened who serve vulnerable populations",null,null,null,null,null,null,null,"Organizations","Service Delivery Systems",null,null,null,null,70]
[]
["3.3.3","# of individuals benefiting from US government-supported social assistance programming",null,null,null,null,null,null,null,"Men 25 and older","Women 25 and older","Men 15-24","Women 15-24","Boys 14 and under","Girls 14 and under",71]
[null,"# of service providers trained who serve vulnerable persons",null,null,null,null,null,null,null,"Men 25 and older","Women 25 and older","Men 15-24","Women 15-24",null,null,72]
[null,"# of US government assisted organizations and/or service delivery systems strengthened who serve vulnerable populations",null,null,null,null,null,null,null,"Organizations ","Service delivery systems",null,null,null,null,73]
[]
["4.2.1","# of individuals who received capacity building training and/or assistance in trade and/or investment enabling environment",null,null,null,null,null,null,null,"Men 25 and older","Women 25 and older","Men 15-24","Women 15-24",null,null,74]
[null,"# of community based organizations, businesses or governmental entities that received assistance to strengthen trade and investment",null,null,null,null,null,null,null,"Community based organizations","Governmental entities","Businesses",null,null,null,75]
[]
["4.2.2","# of individuals who received capacity building training and/or assistance in trade and/or investment capacity",null,null,null,null,null,null,null,"Men 25 and older","Women 25 and older","Men 15-24","Women 15-24",null,null,76]
[null,"# of community based organizations, businesses or governmental entities that received assistance to strengthen trade and/or investment capacity ",null,null,null,null,null,null,null,"Community based organizations","Governmental entities","Businesses",null,null,null,77]
[]
["4.3.1","# of individuals who received capacity building training and/or assistance to enable or enhance  the financial sector environment",null,null,null,null,null,null,null,"Men 25 and older","Women 25 and older","Men 15-24","Women 15-24",null,null,78]
[null,"# of community based organizations (CBOs), businesses or governmental entities that received assistance to enable or enhance  the financial sector environment ",null,null,null,null,null,null,null,"Community based organizations","Governmental entities","Businesses",null,null,null,79]
[]
["4.3.2","# of individuals who received capacity building training and/or assistance in the financial sector (such as trainings or assistance that improve financial management systems)",null,null,null,null,null,null,null,"Men 25 and older","Women 25 and older","Men 15-24","Women 15-24",null,null,80]
[null,"# of community based organizations (CBOs), businesses or governmental entities that received assistance to enable or enhance  the financial sector environment",null,null,null,null,null,null,null,"Community based organizations","Governmental entities","Businesses",null,null,null,81]
[]
["4.5.1","# of hectares under improved technologies or management practices as a result of USG assistance",null,null,null,null,null,null,null,"Hectares",null,null,null,null,null,82]
[null,"# of farmers and others who have applied new technologies or management practices as a result of US government assistance",null,null,null,null,null,null,null,"Men 25 and older","Women 25 and older","Men 15-24","Women 15-24","Boys 14 and under","Girls 14 and under",83]
[null,"# of food security private enterprises, producers organizations, water users associations, women's groups, trade and business associations, and community-based organizations receiving USG assistance",null,null,null,null,null,null,null,"Private enterprises","Producers organizations","Water users associations","Women's groups","Trade and business associations","Community based organizations (CBOs)",84]
[null,"# of individuals who have received USG supported short term agricultural sector productivity or food security training",null,null,null,null,null,null,null,"Men 25 and older","Women 25 and older","Men 15-24","Women 15-24","Boys 14 and under","Girls 14 and under",85]
[null,"# of food security private enterprises, producers organizations, water users associations, women's groups, trade and business associations, and community-based organizations that applied new technologies or management practices",null,null,null,null,null,null,null,"Private enterprises","Producers organizations","Water users associations","Women's groups","Trade and business associations","Community based organizations (CBOs)",86]
[]
["4.5.2","# of hectares under improved technologies or management practices as a result of USG assistance",null,null,null,null,null,null,null,"Hectares",null,null,null,null,null,87]
[null,"# of farmers and others who have applied new technologies or management practices as a result of US government assistance",null,null,null,null,null,null,null,"Men 25 and older","Women 25 and older","Men 15-24","Women 15-24","Boys 14 and under","Girls 14 and under",88]
[null,"# of food security private enterprises, producers organizations, water users associations, women's groups, trade and business associations, and community-based organizations receiving USG assistance",null,null,null,null,null,null,null,"Private enterprises","Producers organizations","Water users associations","Women's groups","Trade and business associations","Community based organizations (CBOs)",89]
[null,"# of individuals who have received USG supported short term agricultural sector productivity or food security training",null,null,null,null,null,null,null,"Men 25 and older","Women 25 and older","Men 15-24","Women 15-24","Boys 14 and under","Girls 14 and under",90]
[null,"# of food security private enterprises, producers organizations, water users associations, women's groups, trade and business associations, and community-based organizations that applied new technologies or management practices",null,null,null,null,null,null,null,"Private enterprises","Producers organizations","Water users associations","Women's groups","Trade and business associations","Community based organizations (CBOs)",91]
[]
["4.6.1","# of individuals who received capacity building training and/or assistance to strengthen the business environment",null,null,null,null,null,null,null,"Men 25 and older","Women 25 and older","Men 15-24","Women 15-24","Boys 14 and under","Girls 14 and under",92]
[null,"# of community based organizations (CBOs), businesses or governmental entities that received assistance to strengthen the business environment",null,null,null,null,null,null,null,"Community based organizations","Governmental entities","Businesses",null,null,null,93]
[]
["4.6.2","# of private sector firms that have improved management practices as a result of US government assistance",null,null,null,null,null,null,null,"Firms",null,null,null,null,null,94]
[null,"# of individuals who received training or assistance to strengthen private sector productivity",null,null,null,null,null,null,null,"Men 25 and older","Women 25 and older","Men 15-24","Women 15-24",null,null,95]
[]
["4.6.3","# of individuals who received training or assistance in workforce development ",null,null,null,null,null,null,null,"Men 25 and older","Women 25 and older","Men 15-24","Women 15-24","Boys 14 and under","Girls 14 and under",96]
[null,"# of workforce development initiatives completed as a result of USG participation in public-private partnerships",null,null,null,null,null,null,null,"Initiatives",null,null,null,null,null,97]
[]
["4.7.3","# of microenterprises supported by US government enterprise assistance",null,null,null,null,null,null,null,"Microenterprises",null,null,null,null,null,98]
[null,"# of individuals who received training or assistance to strengthen microenterprises ",null,null,null,null,null,null,null,"Men 25 and older","Women 25 and older","Men 15-24","Women 15-24",null,null,99]
[]
["4.8.1","# of people with increased economic benefits derived from sustainable natural resource management and conservation as a result of US government assistance",null,null,null,null,null,null,null,"Men 25 and older","Women 25 and older","Men 15-24","Women 15-24","Boys 14 and under","Girls 14 and under",100]
[null,"# of hectares of biological significance and/or natural resources under improved natural resource management as a result of US government assistance",null,null,null,null,null,null,null,"Hectares",null,null,null,null,null,101]
[null,"# of people receiving US government supported training in natural resources management and/or biodiversity conservation.",null,null,null,null,null,null,null,"Men 25 and older","Women 25 and older","Men 15-24","Women 15-24","Boys 14 and under","Girls 14 and under",102]
[]
["4.8.2","# of institutions with improved capacity to address climate change issues as a result of US government assistance",null,null,null,null,null,null,null,"Institutions",null,null,null,null,null,103]
[null,"# of people with increased capacity to adapt to the impacts of climate variability and change as a result of US government assistance",null,null,null,null,null,null,null,"Men 25 and older","Women 25 and older","Men 15-24","Women 15-24",null,null,104]
[]
["5.2.1","# of people trained in disaster preparedness as a result of US government assistance",null,null,null,null,null,null,null,"Men 25 and older","Women 25 and older","Men 15-24","Women 15-24","Boys 14 and under","Girls 14 and under",105]
[null,"# of hazard risk reduction plans, policies, strategies, systems, or curricula developed",null,null,null,null,null,null,null,"Risk reduction plans","Policies ","Strategies","Systems","Curricula",null,106]
[]
["5.2.2","# of communities who benefit from a USG-assisted physical infrastructure improvement that mitigates effects of inaccessibility to food or water.",null,null,null,null,null,null,null,"Communities",null,null,null,null,null,107]
[]
["6.1.1","# of youth participating (ages 15-25)",null,null,null,null,null,null,null,"Male, 15-25","Female, 15-25",null,null,null,null,108]
[null,"# of community groups benefitting",null,null,null,null,null,null,null,"Community groups",null,null,null,null,null,109]
[null,"# of new services provided",null,null,null,null,null,null,null,"Services",null,null,null,null,null,110]
[null,"# of service providers benefitting/using",null,null,null,null,null,null,null,"Men 25 and older","Women 25 and older","Men 15-24","Women 15-24",null,null,111]
[]
["6.6.6","# of communities with strengthened capacity to conduct supplementary early grade reading and literacy activities.",null,null,null,null,null,null,null,"Communities",null,null,null,null,null,112]
[null,"# of community and school libraries established.",null,null,null,null,null,null,null,"Libraries, community","Libraries, school",null,null,null,null,113]
[null,"# of textbooks and other teaching and learning materials provided with USG assistance",null,null,null,null,null,null,null,"Textbooks","Other teaching and learning materials",null,null,null,null,114]
[null,"# of activities that promote gender equitable practices",null,null,null,null,null,null,null,"Gender activities",null,null,null,null,null,115]
[]
["9.9.9","PLACE HOLDER TO END THE LIST"]

{"sheet":"Custom SPA Indicators","index":15,"n_rows":88,"n_cols":3,"rows_kept":88,"cut":false,"hidden":true,"merged":[]}
[null,null,1]
[null,null,2]
[null,null,3]
[null,null,4]
[null,null,5]
[null,null,6]
["1.3.7",null,7]
["2.2.3",null,8]
[null,{"$f":"IF(OR(ISNA(EXACT(CountryChoice,HLOOKUP(CountryChoice,'Custom SPA Indicator Source'!A$1:AA$4,1,FALSE))),ISBLANK(HLOOKUP(CountryChoice,'Custom SPA Indicator Source'!A$1:AA$4,C2,FALSE))),\"No Indicator\",HLOOKUP(CountryChoice,'Custom SPA Indicator Source'!A$1:AA$4,C2,FALSE))","v":"No Indicator"},9]
[null,{"$f":"IF(OR(ISNA(EXACT(CountryChoice,HLOOKUP(CountryChoice,'Custom SPA Indicator Source'!A$1:AA$4,1,FALSE))),ISBLANK(HLOOKUP(CountryChoice,'Custom SPA Indicator Source'!A$1:AA$4,C3,FALSE))),\"No Indicator\",HLOOKUP(CountryChoice,'Custom SPA Indicator Source'!A$1:AA$4,C3,FALSE))","v":"No Indicator"},10]
["2.2.4",null,11]
["2.3.2",null,12]
["2.4.1",null,13]
["3.1.1",null,14]
[null,{"$f":"IF(OR(ISNA(EXACT(CountryChoice,HLOOKUP(CountryChoice,'Custom SPA Indicator Source'!A$5:AA$10,1,FALSE))),ISBLANK(HLOOKUP(CountryChoice,'Custom SPA Indicator Source'!A$5:AA$10,C2,FALSE))),\"No Indicator\",HLOOKUP(CountryChoice,'Custom SPA Indicator Source'!A$5:AA$10,C2,FALSE))","v":"No Indicator"},15]
[null,{"$f":"IF(OR(ISNA(EXACT(CountryChoice,HLOOKUP(CountryChoice,'Custom SPA Indicator Source'!A$5:AA$10,1,FALSE))),ISBLANK(HLOOKUP(CountryChoice,'Custom SPA Indicator Source'!A$5:AA$10,C3,FALSE))),\"No Indicator\",HLOOKUP(CountryChoice,'Custom SPA Indicator Source'!A$5:AA$10,C3,FALSE))","v":"No Indicator"},16]
[null,{"$f":"IF(OR(ISNA(EXACT(CountryChoice,HLOOKUP(CountryChoice,'Custom SPA Indicator Source'!A$5:AA$10,1,FALSE))),ISBLANK(HLOOKUP(CountryChoice,'Custom SPA Indicator Source'!A$5:AA$10,C4,FALSE))),\"No Indicator\",HLOOKUP(CountryChoice,'Custom SPA Indicator Source'!A$5:AA$10,C4,FALSE))","v":"No Indicator"},17]
[null,{"$f":"IF(OR(ISNA(EXACT(CountryChoice,HLOOKUP(CountryChoice,'Custom SPA Indicator Source'!A$5:AA$10,1,FALSE))),ISBLANK(HLOOKUP(CountryChoice,'Custom SPA Indicator Source'!A$5:AA$10,C5,FALSE))),\"No Indicator\",HLOOKUP(CountryChoice,'Custom SPA Indicator Source'!A$5:AA$10,C5,FALSE))","v":"No Indicator"},18]
["3.1.3",null,"No Indicator"]
[null,{"$f":"IF(OR(ISNA(EXACT(CountryChoice,HLOOKUP(CountryChoice,'Custom SPA Indicator Source'!A$11:AA$19,1,FALSE))),ISBLANK(HLOOKUP(CountryChoice,'Custom SPA Indicator Source'!A$11:AA$19,C2,FALSE))),\"No Indicator\",HLOOKUP(CountryChoice,'Custom SPA Indicator Source'!A$11:AA$19,C2,FALSE))","v":"No Indicator"}]
[null,{"$f":"IF(OR(ISNA(EXACT(CountryChoice,HLOOKUP(CountryChoice,'Custom SPA Indicator Source'!A$11:AA$19,1,FALSE))),ISBLANK(HLOOKUP(CountryChoice,'Custom SPA Indicator Source'!A$11:AA$19,C3,FALSE))),\"No Indicator\",HLOOKUP(CountryChoice,'Custom SPA Indicator Source'!A$11:AA$19,C3,FALSE))","v":"No Indicator"}]
[null,{"$f":"IF(OR(ISNA(EXACT(CountryChoice,HLOOKUP(CountryChoice,'Custom SPA Indicator Source'!A$11:AA$19,1,FALSE))),ISBLANK(HLOOKUP(CountryChoice,'Custom SPA Indicator Source'!A$11:AA$19,C4,FALSE))),\"No Indicator\",HLOOKUP(CountryChoice,'Custom SPA Indicator Source'!A$11:AA$19,C4,FALSE))","v":"No Indicator"}]
[null,{"$f":"IF(OR(ISNA(EXACT(CountryChoice,HLOOKUP(CountryChoice,'Custom SPA Indicator Source'!A$11:AA$19,1,FALSE))),ISBLANK(HLOOKUP(CountryChoice,'Custom SPA Indicator Source'!A$11:AA$19,C5,FALSE))),\"No Indicator\",HLOOKUP(CountryChoice,'Custom SPA Indicator Source'!A$11:AA$19,C5,FALSE))","v":"No Indicator"}]
[null,{"$f":"IF(OR(ISNA(EXACT(CountryChoice,HLOOKUP(CountryChoice,'Custom SPA Indicator Source'!A$11:AA$19,1,FALSE))),ISBLANK(HLOOKUP(CountryChoice,'Custom SPA Indicator Source'!A$11:AA$19,C6,FALSE))),\"No Indicator\",HLOOKUP(CountryChoice,'Custom SPA Indicator Source'!A$11:AA$19,C6,FALSE))","v":"No Indicator"}]
[null,{"$f":"IF(OR(ISNA(EXACT(CountryChoice,HLOOKUP(CountryChoice,'Custom SPA Indicator Source'!A$11:AA$19,1,FALSE))),ISBLANK(HLOOKUP(CountryChoice,'Custom SPA Indicator Source'!A$11:AA$19,C7,FALSE))),\"No Indicator\",HLOOKUP(CountryChoice,'Custom SPA Indicator Source'!A$11:AA$19,C7,FALSE))","v":"No Indicator"}]
[null,{"$f":"IF(OR(ISNA(EXACT(CountryChoice,HLOOKUP(CountryChoice,'Custom SPA Indicator Source'!A$11:AA$19,1,FALSE))),ISBLANK(HLOOKUP(CountryChoice,'Custom SPA Indicator Source'!A$11:AA$19,C8,FALSE))),\"No Indicator\",HLOOKUP(CountryChoice,'Custom SPA Indicator Source'!A$11:AA$19,C8,FALSE))","v":"No Indicator"}]
["3.1.6"]
[null,{"$f":"IF(OR(ISNA(EXACT(CountryChoice,HLOOKUP(CountryChoice,'Custom SPA Indicator Source'!A$20:AA$23,1,FALSE))),ISBLANK(HLOOKUP(CountryChoice,'Custom SPA Indicator Source'!A$20:AA$23,C2,FALSE))),\"No Indicator\",HLOOKUP(CountryChoice,'Custom SPA Indicator Source'!A$20:AA$23,C2,FALSE))","v":"No Indicator"}]
[null,{"$f":"IF(OR(ISNA(EXACT(CountryChoice,HLOOKUP(CountryChoice,'Custom SPA Indicator Source'!A$20:AA$23,1,FALSE))),ISBLANK(HLOOKUP(CountryChoice,'Custom SPA Indicator Source'!A$20:AA$23,C3,FALSE))),\"No Indicator\",HLOOKUP(CountryChoice,'Custom SPA Indicator Source'!A$20:AA$23,C3,FALSE))","v":"No Indicator"}]
["3.1.7"]
["3.1.8"]
["3.1.9"]
[null,{"$f":"IF(OR(ISNA(EXACT(CountryChoice,HLOOKUP(CountryChoice,'Custom SPA Indicator Source'!A$24:AA$26,1,FALSE))),ISBLANK(HLOOKUP(CountryChoice,'Custom SPA Indicator Source'!A$24:AA$26,C2,FALSE))),\"No Indicator\",HLOOKUP(CountryChoice,'Custom SPA Indicator Source'!A$24:AA$26,C2,FALSE))","v":"No Indicator"}]
["3.2.1"]
[null,{"$f":"IF(OR(ISNA(EXACT(CountryChoice,HLOOKUP(CountryChoice,'Custom SPA Indicator Source'!A$27:AA$33,1,FALSE))),ISBLANK(HLOOKUP(CountryChoice,'Custom SPA Indicator Source'!A$27:AA$33,C2,FALSE))),\"No Indicator\",HLOOKUP(CountryChoice,'Custom SPA Indicator Source'!A$27:AA$33,C2,FALSE))","v":"No Indicator"}]
[null,{"$f":"IF(OR(ISNA(EXACT(CountryChoice,HLOOKUP(CountryChoice,'Custom SPA Indicator Source'!A$27:AA$33,1,FALSE))),ISBLANK(HLOOKUP(CountryChoice,'Custom SPA Indicator Source'!A$27:AA$33,C3,FALSE))),\"No Indicator\",HLOOKUP(CountryChoice,'Custom SPA Indicator Source'!A$27:AA$33,C3,FALSE))","v":"No Indicator"}]
[null,{"$f":"IF(OR(ISNA(EXACT(CountryChoice,HLOOKUP(CountryChoice,'Custom SPA Indicator Source'!A$27:AA$33,1,FALSE))),ISBLANK(HLOOKUP(CountryChoice,'Custom SPA Indicator Source'!A$27:AA$33,C4,FALSE))),\"No Indicator\",HLOOKUP(CountryChoice,'Custom SPA Indicator Source'!A$27:AA$33,C4,FALSE))","v":"No Indicator"}]
[null,{"$f":"IF(OR(ISNA(EXACT(CountryChoice,HLOOKUP(CountryChoice,'Custom SPA Indicator Source'!A$27:AA$33,1,FALSE))),ISBLANK(HLOOKUP(CountryChoice,'Custom SPA Indicator Source'!A$27:AA$33,C5,FALSE))),\"No Indicator\",HLOOKUP(CountryChoice,'Custom SPA Indicator Source'!A$27:AA$33,C5,FALSE))","v":"No Indicator"}]
[null,{"$f":"IF(OR(ISNA(EXACT(CountryChoice,HLOOKUP(CountryChoice,'Custom SPA Indicator Source'!A$27:AA$33,1,FALSE))),ISBLANK(HLOOKUP(CountryChoice,'Custom SPA Indicator Source'!A$27:AA$33,C6,FALSE))),\"No Indicator\",HLOOKUP(CountryChoice,'Custom SPA Indicator Source'!A$27:AA$33,C6,FALSE))","v":"No Indicator"}]
["3.2.2"]
[null,{"$f":"IF(OR(ISNA(EXACT(CountryChoice,HLOOKUP(CountryChoice,'Custom SPA Indicator Source'!A$34:AA$37,1,FALSE))),ISBLANK(HLOOKUP(CountryChoice,'Custom SPA Indicator Source'!A$34:AA$37,C2,FALSE))),\"No Indicator\",HLOOKUP(CountryChoice,'Custom SPA Indicator Source'!A$34:AA$37,C2,FALSE))","v":"No Indicator"}]
[null,{"$f":"IF(OR(ISNA(EXACT(CountryChoice,HLOOKUP(CountryChoice,'Custom SPA Indicator Source'!A$34:AA$37,1,FALSE))),ISBLANK(HLOOKUP(CountryChoice,'Custom SPA Indicator Source'!A$34:AA$37,C3,FALSE))),\"No Indicator\",HLOOKUP(CountryChoice,'Custom SPA Indicator Source'!A$34:AA$37,C3,FALSE))","v":"No Indicator"}]
["3.3.2"]
["3.3.3"]
["4.2.1"]
["4.2.2"]
[null,{"$f":"IF(OR(ISNA(EXACT(CountryChoice,HLOOKUP(CountryChoice,'Custom SPA Indicator Source'!A$38:AA$40,1,FALSE))),ISBLANK(HLOOKUP(CountryChoice,'Custom SPA Indicator Source'!A$38:AA$40,C2,FALSE))),\"No Indicator\",HLOOKUP(CountryChoice,'Custom SPA Indicator Source'!A$38:AA$40,C2,FALSE))","v":"No Indicator"}]
["4.3.1"]
["4.3.2"]
["4.5.1"]
["4.5.2"]
[null,{"$f":"IF(OR(ISNA(EXACT(CountryChoice,HLOOKUP(CountryChoice,'Custom SPA Indicator Source'!A$41:AA$43,1,FALSE))),ISBLANK(HLOOKUP(CountryChoice,'Custom SPA Indicator Source'!A$41:AA$43,C2,FALSE))),\"No Indicator\",HLOOKUP(CountryChoice,'Custom SPA Indicator Source'!A$41:AA$43,C2,FALSE))","v":"No Indicator"}]
["4.6.1"]
[null,{"$f":"IF(OR(ISNA(EXACT(CountryChoice,HLOOKUP(CountryChoice,'Custom SPA Indicator Source'!A$44:AA$49,1,FALSE))),ISBLANK(HLOOKUP(CountryChoice,'Custom SPA Indicator Source'!A$44:AA$49,C2,FALSE))),\"No Indicator\",HLOOKUP(CountryChoice,'Custom SPA Indicator Source'!A$44:AA$49,C2,FALSE))","v":"No Indicator"}]
[null,{"$f":"IF(OR(ISNA(EXACT(CountryChoice,HLOOKUP(CountryChoice,'Custom SPA Indicator Source'!A$44:AA$49,1,FALSE))),ISBLANK(HLOOKUP(CountryChoice,'Custom SPA Indicator Source'!A$44:AA$49,C3,FALSE))),\"No Indicator\",HLOOKUP(CountryChoice,'Custom SPA Indicator Source'!A$44:AA$49,C3,FALSE))","v":"No Indicator"}]
[null,{"$f":"IF(OR(ISNA(EXACT(CountryChoice,HLOOKUP(CountryChoice,'Custom SPA Indicator Source'!A$44:AA$49,1,FALSE))),ISBLANK(HLOOKUP(CountryChoice,'Custom SPA Indicator Source'!A$44:AA$49,C4,FALSE))),\"No Indicator\",HLOOKUP(CountryChoice,'Custom SPA Indicator Source'!A$44:AA$49,C4,FALSE))","v":"No Indicator"}]
[null,{"$f":"IF(OR(ISNA(EXACT(CountryChoice,HLOOKUP(CountryChoice,'Custom SPA Indicator Source'!A$44:AA$49,1,FALSE))),ISBLANK(HLOOKUP(CountryChoice,'Custom SPA Indicator Source'!A$44:AA$49,C5,FALSE))),\"No Indicator\",HLOOKUP(CountryChoice,'Custom SPA Indicator Source'!A$44:AA$49,C5,FALSE))","v":"No Indicator"}]
["4.6.2"]
["4.6.3"]
[null,{"$f":"IF(OR(ISNA(EXACT(CountryChoice,HLOOKUP(CountryChoice,'Custom SPA Indicator Source'!A$50:AA$56,1,FALSE))),ISBLANK(HLOOKUP(CountryChoice,'Custom SPA Indicator Source'!A$50:AA$56,C2,FALSE))),\"No Indicator\",HLOOKUP(CountryChoice,'Custom SPA Indicator Source'!A$50:AA$56,C2,FALSE))","v":"No Indicator"}]
[null,{"$f":"IF(OR(ISNA(EXACT(CountryChoice,HLOOKUP(CountryChoice,'Custom SPA Indicator Source'!A$50:AA$56,1,FALSE))),ISBLANK(HLOOKUP(CountryChoice,'Custom SPA Indicator Source'!A$50:AA$56,C3,FALSE))),\"No Indicator\",HLOOKUP(CountryChoice,'Custom SPA Indicator Source'!A$50:AA$56,C3,FALSE))","v":"No Indicator"}]
[null,{"$f":"IF(OR(ISNA(EXACT(CountryChoice,HLOOKUP(CountryChoice,'Custom SPA Indicator Source'!A$50:AA$56,1,FALSE))),ISBLANK(HLOOKUP(CountryChoice,'Custom SPA Indicator Source'!A$50:AA$56,C4,FALSE))),\"No Indicator\",HLOOKUP(CountryChoice,'Custom SPA Indicator Source'!A$50:AA$56,C4,FALSE))","v":"No Indicator"}]
[null,{"$f":"IF(OR(ISNA(EXACT(CountryChoice,HLOOKUP(CountryChoice,'Custom SPA Indicator Source'!A$50:AA$56,1,FALSE))),ISBLANK(HLOOKUP(CountryChoice,'Custom SPA Indicator Source'!A$50:AA$56,C5,FALSE))),\"No Indicator\",HLOOKUP(CountryChoice,'Custom SPA Indicator Source'!A$50:AA$56,C5,FALSE))","v":"No Indicator"}]
[null,{"$f":"IF(OR(ISNA(EXACT(CountryChoice,HLOOKUP(CountryChoice,'Custom SPA Indicator Source'!A$50:AA$56,1,FALSE))),ISBLANK(HLOOKUP(CountryChoice,'Custom SPA Indicator Source'!A$50:AA$56,C6,FALSE))),\"No Indicator\",HLOOKUP(CountryChoice,'Custom SPA Indicator Source'!A$50:AA$56,C6,FALSE))","v":"No Indicator"}]
["4.7.3"]
[null,{"$f":"IF(OR(ISNA(EXACT(CountryChoice,HLOOKUP(CountryChoice,'Custom SPA Indicator Source'!A$57:AA$59,1,FALSE))),ISBLANK(HLOOKUP(CountryChoice,'Custom SPA Indicator Source'!A$57:AA$59,C2,FALSE))),\"No Indicator\",HLOOKUP(CountryChoice,'Custom SPA Indicator Source'!A$57:AA$59,C2,FALSE))","v":"No Indicator"}]
["4.8.1"]
[null,{"$f":"IF(OR(ISNA(EXACT(CountryChoice,HLOOKUP(CountryChoice,'Custom SPA Indicator Source'!A$60:AA$64,1,FALSE))),ISBLANK(HLOOKUP(CountryChoice,'Custom SPA Indicator Source'!A$60:AA$64,C2,FALSE))),\"No Indicator\",HLOOKUP(CountryChoice,'Custom SPA Indicator Source'!A$60:AA$64,C2,FALSE))","v":"No Indicator"}]
[null,{"$f":"IF(OR(ISNA(EXACT(CountryChoice,HLOOKUP(CountryChoice,'Custom SPA Indicator Source'!A$60:AA$64,1,FALSE))),ISBLANK(HLOOKUP(CountryChoice,'Custom SPA Indicator Source'!A$60:AA$64,C3,FALSE))),\"No Indicator\",HLOOKUP(CountryChoice,'Custom SPA Indicator Source'!A$60:AA$64,C3,FALSE))","v":"No Indicator"}]
[null,{"$f":"IF(OR(ISNA(EXACT(CountryChoice,HLOOKUP(CountryChoice,'Custom SPA Indicator Source'!A$60:AA$64,1,FALSE))),ISBLANK(HLOOKUP(CountryChoice,'Custom SPA Indicator Source'!A$60:AA$64,C4,FALSE))),\"No Indicator\",HLOOKUP(CountryChoice,'Custom SPA Indicator Source'!A$60:AA$64,C4,FALSE))","v":"No Indicator"}]
["4.8.2"]
[null,{"$f":"IF(OR(ISNA(EXACT(CountryChoice,HLOOKUP(CountryChoice,'Custom SPA Indicator Source'!A$65:AA$73,1,FALSE))),ISBLANK(HLOOKUP(CountryChoice,'Custom SPA Indicator Source'!A$65:AA$73,C2,FALSE))),\"No Indicator\",HLOOKUP(CountryChoice,'Custom SPA Indicator Source'!A$65:AA$73,C2,FALSE))","v":"No Indicator"}]
[null,{"$f":"IF(OR(ISNA(EXACT(CountryChoice,HLOOKUP(CountryChoice,'Custom SPA Indicator Source'!A$65:AA$73,1,FALSE))),ISBLANK(HLOOKUP(CountryChoice,'Custom SPA Indicator Source'!A$65:AA$73,C3,FALSE))),\"No Indicator\",HLOOKUP(CountryChoice,'Custom SPA Indicator Source'!A$65:AA$73,C3,FALSE))","v":"No Indicator"}]
[null,{"$f":"IF(OR(ISNA(EXACT(CountryChoice,HLOOKUP(CountryChoice,'Custom SPA Indicator Source'!A$65:AA$73,1,FALSE))),ISBLANK(HLOOKUP(CountryChoice,'Custom SPA Indicator Source'!A$65:AA$73,C4,FALSE))),\"No Indicator\",HLOOKUP(CountryChoice,'Custom SPA Indicator Source'!A$65:AA$73,C4,FALSE))","v":"No Indicator"}]
[null,{"$f":"IF(OR(ISNA(EXACT(CountryChoice,HLOOKUP(CountryChoice,'Custom SPA Indicator Source'!A$65:AA$73,1,FALSE))),ISBLANK(HLOOKUP(CountryChoice,'Custom SPA Indicator Source'!A$65:AA$73,C5,FALSE))),\"No Indicator\",HLOOKUP(CountryChoice,'Custom SPA Indicator Source'!A$65:AA$73,C5,FALSE))","v":"No Indicator"}]
[null,{"$f":"IF(OR(ISNA(EXACT(CountryChoice,HLOOKUP(CountryChoice,'Custom SPA Indicator Source'!A$65:AA$73,1,FALSE))),ISBLANK(HLOOKUP(CountryChoice,'Custom SPA Indicator Source'!A$65:AA$73,C6,FALSE))),\"No Indicator\",HLOOKUP(CountryChoice,'Custom SPA Indicator Source'!A$65:AA$73,C6,FALSE))","v":"No Indicator"}]
[null,{"$f":"IF(OR(ISNA(EXACT(CountryChoice,HLOOKUP(CountryChoice,'Custom SPA Indicator Source'!A$65:AA$73,1,FALSE))),ISBLANK(HLOOKUP(CountryChoice,'Custom SPA Indicator Source'!A$65:AA$73,C7,FALSE))),\"No Indicator\",HLOOKUP(CountryChoice,'Custom SPA Indicator Source'!A$65:AA$73,C7,FALSE))","v":"No Indicator"}]
[null,{"$f":"IF(OR(ISNA(EXACT(CountryChoice,HLOOKUP(CountryChoice,'Custom SPA Indicator Source'!A$65:AA$73,1,FALSE))),ISBLANK(HLOOKUP(CountryChoice,'Custom SPA Indicator Source'!A$65:AA$73,C8,FALSE))),\"No Indicator\",HLOOKUP(CountryChoice,'Custom SPA Indicator Source'!A$65:AA$73,C8,FALSE))","v":"No Indicator"}]
["5.2.1"]
[null,{"$f":"IF(OR(ISNA(EXACT(CountryChoice,HLOOKUP(CountryChoice,'Custom SPA Indicator Source'!A$74:AA$76,1,FALSE))),ISBLANK(HLOOKUP(CountryChoice,'Custom SPA Indicator Source'!A$74:AA$76,C2,FALSE))),\"No Indicator\",HLOOKUP(CountryChoice,'Custom SPA Indicator Source'!A$74:AA$76,C2,FALSE))","v":"No Indicator"}]
["5.2.2"]
["6.1.1"]
[null,{"$f":"IF(OR(ISNA(EXACT(CountryChoice,HLOOKUP(CountryChoice,'Custom SPA Indicator Source'!A$77:AA$82,1,FALSE))),ISBLANK(HLOOKUP(CountryChoice,'Custom SPA Indicator Source'!A$77:AA$82,C2,FALSE))),\"No Indicator\",HLOOKUP(CountryChoice,'Custom SPA Indicator Source'!A$77:AA$82,C2,FALSE))","v":"No Indicator"}]
[null,{"$f":"IF(OR(ISNA(EXACT(CountryChoice,HLOOKUP(CountryChoice,'Custom SPA Indicator Source'!A$77:AA$82,1,FALSE))),ISBLANK(HLOOKUP(CountryChoice,'Custom SPA Indicator Source'!A$77:AA$82,C3,FALSE))),\"No Indicator\",HLOOKUP(CountryChoice,'Custom SPA Indicator Source'!A$77:AA$82,C3,FALSE))","v":"No Indicator"}]
[null,{"$f":"IF(OR(ISNA(EXACT(CountryChoice,HLOOKUP(CountryChoice,'Custom SPA Indicator Source'!A$77:AA$82,1,FALSE))),ISBLANK(HLOOKUP(CountryChoice,'Custom SPA Indicator Source'!A$77:AA$82,C4,FALSE))),\"No Indicator\",HLOOKUP(CountryChoice,'Custom SPA Indicator Source'!A$77:AA$82,C4,FALSE))","v":"No Indicator"}]
[null,{"$f":"IF(OR(ISNA(EXACT(CountryChoice,HLOOKUP(CountryChoice,'Custom SPA Indicator Source'!A$77:AA$82,1,FALSE))),ISBLANK(HLOOKUP(CountryChoice,'Custom SPA Indicator Source'!A$77:AA$82,C5,FALSE))),\"No Indicator\",HLOOKUP(CountryChoice,'Custom SPA Indicator Source'!A$77:AA$82,C5,FALSE))","v":"No Indicator"}]
["6.6.6"]
["9.9.9"]

{"sheet":"Custom SPA Indicator Source","index":16,"n_rows":81,"n_cols":11,"rows_kept":81,"cut":false,"hidden":true,"merged":[]}
["2.2.3","Panama"]
[null,"# of youth trained with USG support"]
[null,"# of communities benefited with USG assistance."]
[]
["3.1.1",null,"Mali","Eastern Caribbean","Guinea","Burkina Faso","Togo"]
[null,null,"# of individuals reached through community outreach that promote HIV/AIDS prevention through abstinence only","# of individuals reached through community outreach that promote HIV/AIDS prevention through abstinence only","# of individuals trained to promote HIV/AIDS prevention through programs that promote abstinence and/or being faithful","# of targeted population reached with individual and/or small group level HIV prevention interventions that are based on evidence and/or meet standards required","# of targeted population reached with individual and/or small group level HIV prevention interventions that are based on evidence and/or meet standards required"]
[null,null,null,null,"# of individuals reached through community outreach that promote HIV/AIDS prevention through abstinence and/or being faithful"]
[null,null,null,null,"# of individuals reached through community outreach that promotes HIV/AIDS prevention through other behavior change beyond abstinence and/or being faithful"]
[null,null,null,null,"# of individuals trained to promote HIV/AIDS prevention through other behavior change beyond abstinence and/or being faithful"]
[]
["3.1.3","Benin","Madagascar","Zambia","Tanzania","Mozambique","Uganda"]
[null,"# of people reached with malaria prevention or treatment messages","# of people reached with IEC/BCC message on malaria treatment or prevention","# of people trained with USG funds in malaria treatment or prevention ","# of people trained with USG funds in malaria treatment or prevention ","# of community leaders/members trained","# of Peace Corps Volunteers (PCVs) and their counterparts who have received maleria awareness training, and are able to mention at least two methods of malaria control."]
[null,null,"# of people who slept under ITN the previous night","# of people reached with malaria treatment or prevention messages",null,"# of radio spots produced/transmitted","# of small scale community-level malaria projects supported through PCVs and PCRVs that are directly implementing at least two methods of malaria control."]
[null,null,"# of women who received intermittent preventive treatment during antenatal care (ANC) visits during their last pregnancy"]
[null,null,"# of targeted houses adequately sprayed with residual insecticide in the last 12 months"]
[null,null,"# of individuals with fever in the last two weeks who received antimalarial treatment according to national policy within one day after onset of fever"]
[null,null,"# of entrepreneurs trained to create businesses in malaria prevention goods or services"]
[null,null,"# of teachers or other formal educators trained to incorporate malaria prevention themes into their lesson planning"]
[]
["3.1.6","Malawi","Senegal","Nicaragua","Tanzania","Madagascar"]
[null,"# of health facilities rehabilitated","Liters of drinking water disinfected with USG-supported point-of-use treatment products","# of people reached by community support projects for improving child health and nutrition","# of people reached by community support projects for improving child health and nutrition","# of people reached by community support for projects for improving child health and nutrition"]
[null,null,"# of health facilities rehabilitated",null,null,"# of people in target areas with access to improved sanitation facilities as a result of USG assistance"]
[]
["3.1.9","Malawi","Mozambique"]
[null,"# of people impacted by community support projects for improving child health and nutrition","# of persons reached through mass media"]
[]
["3.2.1","Liberia","Malawi","Jamaica","El Salvador","Nicaragua","Kyrgyz Republic","Rwanda","Uganda","Dominican Republic","Zambia"]
[null,"# of institutions with improved management information systems, as a result of USG assistance","# of school buildings renovated or rehabilitated","# of primary teachers (grades 1-3) trained as a result of USG assistance","# of learners enrolled in USG-supported primary schools or equivalent non-school-based settings","# of learners enrolled in USG-supported primary schools or equivalent non-school-based settings","# of Volunteer host family members trained","# of beneficiaries trained","# of community grants provided in support of Literacy in Uganda","# of adult learners enrolled in USG-supported schools or equivalent non-school-based settings","# of learners in in USG supported primary school or equivalent non-school-based settings "]
[null,null,"# of students benefiting from procurement and distribution of text books and learning materials","# of adult learners enrolled in USG supported schools equivalent non-school based settings",null,null,null,"# of beneficiaries accessing reading materials through USG assistance","# of teachers who have benefitted from SPA support"]
[null,null,"# of orphans, out-of-school youth and vulnerable members of the community being provided with learning instruction","# of learners enrolled in USG-supported primary schools or equivalent non-school-based settings",null,null,null,"# of beneficiaries attending USG-sponsored events","# of students who have benefitted from SPA support"]
[null,null,"# of libraries built",null,null,null,null,"# of books borrowed per cycle"]
[null,null,"# of science labs built",null,null,null,null,"# of outreach evenets held"]
[]
["3.2.2","Liberia"]
[null,"# of host country individuals completing USG-funded exchange program conducted through higher education institutions"]
[null,"# of host-country individuals receiving USG-funded scholarships to attend higher education institutions"]
[]
["4.2.2","Peru"]
[null,"# of micro enterprises receiving business development services from USG assisted sources "]
[]
["4.5.2","Uganda","Senegal","Jamaica","Ghana","Zambia","Ethiopia"]
[null,"# of vulnerable households benefiting directly from USG interventions","# of vulnerable households benefiting directly from USG interventions","# of vulnerable households benefiting directly from USG interventions",null,"# of rural households benefitting directly from USG interventions","# of vulnerable households benefiting directly from USG interventions"]
[]
["4.6.1","Mexico"]
[null,"# of municipal regulations and administrative procedures that have been simplified as a result of USG assistance"]
[null,"# of commerce laws and regulations simplified and implemented in accordance with international standards as a result of USG assistance"]
[null,"Person hours of training completed in business enabling environment supported by USG assistance"]
[null,"# of days of USG funded technical assistance in business enabling environment provided to counterparts or stakeholders"]
[]
["4.6.3","Paraguay","Mongolia","Jordan"]
[null,"# of institutions/organizations undergoing needs assessments and identifying priority needs as a result of USG assistance","# of youth and adults trained ","# of beneficiaries of SPA grants"]
[null,null,"# of trained youth and adults who developed workforce skills  ","# of counterparts participating in capacity building events"]
[null,null,null,"# of Counterparts benefitting from Volunteer training"]
[]
[]
[]
["4.7.3","Eastern Caribbean"]
[null,"# of youth microenterprises receiving business development services from USG assisted sources"]
[]
["4.8.1","Mexico"]
[null," # of hectares of natural resources showing improved biophysical conditions as a result of USG assistance"]
[null,"# of days of USG-funded technical assistance in natural resources management and/or biodiversity povided to counterparts or stakeholders"]
[null,"# of person hours of training in natural resources management and/or biodiversity conservation supported by USG assistance"]
[]
["4.8.2","Mexico","Jamaica","Dominican Republic","Philippines","Guatemala"]
[null,"Quantity of greenhouse gas emissions, measured in metric tons CO2 equivalent, reduced or sequestrated as a result of USG assistance in natural resources management, agriculture, and/or biodiversity sectors","# of stakeholders receiving trainings on climate change impacts, adaptation techniques, innovative agricultural practices and other related topics","# of homes that been converted to and indoor clean air environmental setting as a result of USG assistance","# of people receiving USG-supported training in environmental law, enforcement, public participation and cleaner production policies, stragegies, skills and techniques","# of stakeholders with increased capacity to adapt to the impacts of climate variability and change as a result of USG assistance"]
[null,"Person hours of graining completed in climate change supported by USG assistance","# of people receiving USG-supported training in environmental law, enforcement, public participation and cleaner production policies, stragegies, skills and techniques","# of family members that have benefited from an indoor clean air environment as a result of USG assistance"]
[null,"Amount of investment leveraged in US dollars, from private and public sources, for climate change as a result of USG assistance",null,"# of families that have benefited from an indoor clean air environment as a result of USG assistance"]
[null,"# of institutions with improved capacity to address climate change issues as a result of USG assistance",null,"# of women that have received the direct benefit from an indoor clean air environment as a result of USG assistance"]
[null,"# of stakeholders with increased capacity to adapt to the imacts of climate variability and change as a result of USG assistance",null," # of communities that are now less exposed to green house gasses as a result of USG assistance"]
[null,"# of days of USG funded technical assistance in climate change and/or biodiversity conservation provided to counterparts or stakeholders."]
[null,"# of laws, policies, strategies, plans, agreements or regulations addressing climate change (mitigation or adapatation) and/or biodiversity conservation officially proposed, adopted, or implemented as a result of USG assistance"]
[]
["5.2.1","Micronesia"]
[null,"# of schools/ communities with a disaster risk reduction plan"]
[]
["6.1.1","Colombia","Kyrgyz Republic"]
[null,"# of women benefitting/using","# of grants and size of grants to community organizations"]
[null,"# of men benefitting/ using"]
[null,"# of children benefitting/ using"]
[null,"# of projects implemented"]

{"sheet":"Custom SPA Indicators Labels","index":17,"n_rows":91,"n_cols":8,"rows_kept":91,"cut":false,"hidden":true,"merged":[]}
["2.2.3","# of youth trained with USG support","Boys, 14 and under","Girls, 14 and under"]
[null,"# of communities benefited with USG assistance.","Communities"]
["3.1.1","# of targeted populations reached with individual and/or small group level HIV prevention interventions that are based on evidence and/or meet standards required ","Populations"]
[null,"# of individuals trained to promote HIV/AIDS prevention through programs that promote abstinence and/or being faithful","Men, 25 and over","Women, 25 and over","Men, 15-24","Women, 15-24","Boys, 14 and under","Girls, 14 and under"]
[null,"# of individuals reached through community outreach that promote HIV/AIDS prevention through abstinence only","Men, 25 and over","Women, 25 and over","Men, 15-24","Women, 15-24","Boys, 14 and under","Girls, 14 and under"]
[null,"# of individuals reached through community outreach that promote HIV/AIDS prevention through abstinence and/or being faithful","Men, 25 and over","Women, 25 and over","Men, 15-24","Women, 15-24","Boys, 14 and under","Girls, 14 and under"]
[null,"# of individuals reached through community outreach that promotes HIV/AIDS prevention through other behavior change beyond abstinence and/or being faithful","Men, 25 and over","Women, 25 and over","Men, 15-24","Women, 15-24","Boys, 14 and under","Girls, 14 and under"]
[null,"# of individuals trained to promote HIV/AIDS prevention through other behavior change beyond abstinence and/or being faithful","Men, 25 and over","Women, 25 and over","Men, 15-24","Women, 15-24","Boys, 14 and under","Girls, 14 and under"]
[null,"# of targeted population reached with individual and/or small group level HIV prevention interventions that are based on evidence and/or meet standards required","Men, 25 and over","Women, 25 and over","Men, 15-24","Women, 15-24","Boys, 14 and under","Girls, 14 and under"]
["3.1.3","# of people reached with malaria prevention or treatment messages","Men, 25 and over","Women, 25 and over","Men, 15-24","Women, 15-24","Boys, 14 and under","Girls, 14 and under"]
[null,"# of people reached with IEC/BCC message on malaria treatment or prevention","Men, 25 and over","Women, 25 and over","Men, 15-24","Women, 15-24","Boys, 14 and under","Girls, 14 and under"]
[null,"# of people who slept under ITN the previous night","Men, 25 and over","Women, 25 and over","Men, 15-24","Women, 15-24","Boys, 14 and under","Girls, 14 and under"]
[null,"# of women who received intermittent preventive treatment during antenatal care (ANC) visits during their last pregnancy","Women, 25 and over","Women, 15-24"]
[null,"# of targeted houses adequately sprayed with residual insecticide in the last 12 months","Houses"]
[null,"# of individuals with fever in the last two weeks who received antimalarial treatment according to national policy within one day after onset of fever","Men, 25 and over","Women, 25 and over","Men, 15-24","Women, 15-24","Boys, 14 and under","Girls, 14 and under"]
[null,"# of entrepreneurs trained to create businesses in malaria prevention goods or services","Men, 25 and over","Women, 25 and over","Men, 15-24","Women, 15-24","Boys, 14 and under","Girls, 14 and under"]
[null,"# of teachers or other formal educators trained to incorporate malaria prevention themes into their lesson planning","Men, 25 and over","Women, 25 and over","Men, 15-24","Women, 15-24"]
[null,"# of people trained with USG funds in malaria treatment or prevention ","Men, 25 and over","Women, 25 and over","Men, 15-24","Women, 15-24"]
[null,"# of people reached with malaria treatment or prevention messages","Men, 25 and over","Women, 25 and over","Men, 15-24","Women, 15-24","Boys, 14 and under","Girls, 14 and under"]
[null,"# of community leaders/members trained","Men, 25 and over","Women, 25 and over","Men, 15-24","Women, 15-24"]
[null,"# of radio spots produced/transmitted","Radio spots"]
[null,"# of Peace Corps Volunteers (PCVs) and their counterparts who have received maleria awareness training, and are able to mention at least two methods of malaria control.","Men, 25 and over","Women, 25 and over"]
[null,"# of small scale community-level malaria projects supported through PCVs and PCRVs that are directly implementing at least two methods of malaria control.","Men, 25 and over","Women, 25 and over"]
["3.1.6","# of health facilities rehabilitated","Facilities"]
[null,"Liters of drinking water disinfected with USG-supported point-of-use treatment products","Liters"]
[null,"# of people reached by community support projects for improving child health and nutrition","Men, 25 and over","Women, 25 and over","Men, 15-24","Women, 15-24","Boys, 14 and under","Girls, 14 and under"]
[null,"# of people reached by community support for projects for improving child health and nutrition","Men, 25 and over","Women, 25 and over","Men, 15-24","Women, 15-24","Boys, 14 and under","Girls, 14 and under"]
[null,"# of people in target areas with access to improved sanitation facilities as a result of USG assistance","Men, 25 and over","Women, 25 and over","Men, 15-24","Women, 15-24","Boys, 14 and under","Girls, 14 and under"]
["3.1.9","# of people impacted by community support projects for improving child health and nutrition","Men, 25 and over","Women, 25 and over","Men, 15-24","Women, 15-24","Boys, 14 and under","Girls, 14 and under"]
[null,"# of persons reached through mass media","Men, 25 and over","Women, 25 and over","Men, 15-24","Women, 15-24","Boys, 14 and under","Girls, 14 and under"]
["3.2.1","# of institutions with improved management information systems, as a result of USG assistance","Institutions"]
[null,"# of school buildings renovated or rehabilitated","Buildings"]
[null,"# of students benefiting from procurement and distribution of text books and learning materials","Men, 25 and over","Women, 25 and over","Men, 15-24","Women, 15-24","Boys, 14 and under","Girls, 14 and under"]
[null,"# of orphans, out-of-school youth and vulnerable members of the community being provided with learning instruction","Orphans, male","Orphans, female","Out of school youth, male","Out of school youth, female","Vulnerable community members, male","Vulneralbe community members, female"]
[null,"# of libraries built","Libraries"]
[null,"# of science labs built","Labs"]
[null,"# of primary teachers (grades 1-3) trained as a result of USG assistance","Men, 25 and over","Women, 25 and over","Men, 15-24","Women, 15-24"]
[null,"# of adult learners enrolled in USG supported schools equivalent non-school based settings","Men, 25 and over","Women, 25 and over","Men, 15-24","Women, 15-24"]
[null,"# of learners enrolled in USG-supported primary schools or equivalent non-school-based settings","Men, 25 and over","Women, 25 and over","Men, 15-24","Women, 15-24","Boys, 14 and under","Girls, 14 and under"]
[null,"# of Volunteer host family members trained","Men, 25 and over","Women, 25 and over","Men, 15-24","Women, 15-24","Boys, 14 and under","Girls, 14 and under"]
[null,"# of beneficiaries trained","Men, 25 and over","Women, 25 and over","Men, 15-24","Women, 15-24","Boys, 14 and under","Girls, 14 and under"]
[null,"# of beneficiaries accessing reading materials through USG assistance","Men, 25 and over","Women, 25 and over","Men, 15-24","Women, 15-24","Boys, 14 and under","Girls, 14 and under"]
[null,"# of beneficiaries attending USG-sponsored events","Men, 25 and over","Women, 25 and over","Men, 15-24","Women, 15-24","Boys, 14 and under","Girls, 14 and under"]
[null,"# of books borrowed per cycle","Books"]
[null,"# of outreach evenets held","Events"]
[null,"# of community grants provided in support of Literacy in Uganda","Grants"]
[null,"# of teachers who have benefitted from SPA support","Men, 25 and over","Women, 25 and over","Men, 15-24","Women, 15-24"]
[null,"# of students who have benefitted from SPA support","Men, 25 and over","Women, 25 and over","Men, 15-24","Women, 15-24","Boys, 14 and under","Girls, 14 and under"]
[null,"# of adult learners enrolled in USG-supported schools or equivalent non-school-based settings","Men, 25 and over","Women, 25 and over","Men, 15-24","Women, 15-24"]
["3.2.2","# of host country individuals completing USG-funded exchange program conducted through higher education institutions","Men, 25 and over","Women, 25 and over","Men, 15-24","Women, 15-24"]
[null,"# of host-country individuals receiving USG-funded scholarships to attend higher education institutions","Men, 25 and over","Women, 25 and over","Men, 15-24","Women, 15-24"]
["4.2.2","# of micro enterprises receiving business development services from USG assisted sources ","Micro Enterprises"]
["4.5.2","# of vulnerable households benefiting directly from USG interventions","Households"]
[null,"# of rural households benefitting directly from USG interventions","Households"]
["4.6.1","# of municipal regulations and administrative procedures that have been simplified as a result of USG assistance","Regulations","Administrative procedures"]
[null,"# of commerce laws and regulations simplified and implemented in accordance with international standards as a result of USG assistance","Laws","Regulations"]
[null,"Person hours of training completed in business enabling environment supported by USG assistance","Hours, men 25 and older","Hours, women 25 and older","Hours, men 15-24","Hours, women 15-24","Hours, boys 14 and under","Hours, girls 14 and under"]
[null,"# of days of USG funded technical assistance in business enabling environment provided to counterparts or stakeholders","Days, men 25 and older","Days, women 25 and older","Days, men 15-24","Days, women 15-24","Days, boys 14 and under","Days, girls 14 and under"]
["4.6.3","# of institutions/organizations undergoing needs assessments and identifying priority needs as a result of USG assistance","Institutions"]
[null,"# of youth and adults trained ","Men, 25 and over","Women, 25 and over","Men, 15-24","Women, 15-24","Boys, 14 and under","Girls, 14 and under"]
[null,"# of trained youth and adults who developed workforce skills  ","Men, 25 and over","Women, 25 and over","Men, 15-24","Women, 15-24","Boys, 14 and under","Girls, 14 and under"]
[null,"# of community members  involved with the planning, organization and implementation of the project ","Men, 25 and over","Women, 25 and over","Men, 15-24","Women, 15-24"]
[null,"# of public officials that participated in the project ","Men, 25 and over","Women, 25 and over","Men, 15-24","Women, 15-24"]
[null,"# of public departments that participated in the project","Departments"]
[null,"# of beneficiaries of SPA grants","Men, 25 and over","Women, 25 and over","Men, 15-24","Women, 15-24","Boys, 14 and under","Girls, 14 and under"]
[null,"# of counterparts participating in capacity building events","Counterparts, male 25 and older","Counterparts, female 25 and older","Counterparts, male 15-24","Counterparts, female 15-24"]
[null,"# of Counterparts benefitting from Volunteer training","Counterparts, male 25 and older","Counterparts, female 25 and older","Counterparts, male 15-24","Counterparts, female 15-24"]
["4.7.3","# of youth microenterprises receiving business development services from USG assisted sources","Micro Enterprises"]
["4.8.1"," # of hectares of natural resources showing improved biophysical conditions as a result of USG assistance","Hectares"]
[null,"# of days of USG-funded technical assistance in natural resources management and/or biodiversity povided to counterparts or stakeholders","Days, men 25 and older","Days, women 25 and older","Days, men 15-24","Days, women 15-24","Days, boys 14 and under","Days, girls 14 and under"]
[null,"# of person hours of training in natural resources management and/or biodiversity conservation supported by USG assistance","Hours, men 25 and older","Hours, women 25 and older","Hours, men 15-24","Hours, women 15-24","Hours, boys 14 and under","Hours, girls 14 and under"]
["4.8.2","Quantity of greenhouse gas emissions, measured in metric tons CO2 equivalent, reduced or sequestrated as a result of USG assistance in natural resources management, agriculture, and/or biodiversity sectors","Metric tons CO2"]
[null,"Person hours of graining completed in climate change supported by USG assistance","Hours, men 25 and older","Hours, women 25 and older","Hours, men 15-24","Hours, women 15-24","Hours, boys 14 and under","Hours, girls 14 and under"]
[null,"Amount of investment leveraged in US dollars, from private and public sources, for climate change as a result of USG assistance","USD"]
[null,"# of institutions with improved capacity to address climate change issues as a result of USG assistance","Institutions"]
[null,"# of stakeholders with increased capacity to adapt to the imacts of climate variability and change as a result of USG assistance","Male,  Implementing risk-reducing practices/actions ","Female,  Implementing risk-reducing practices/actions ","Male, using climate information in their decision making","Female, using climate information in their decision making"]
[null,"# of days of USG funded technical assistance in climate change and/or biodiversity conservation provided to counterparts or stakeholders.","Days, men 25 and older","Days, women 25 and older","Days, men 15-24","Days, women 15-24","Days, boys 14 and under","Days, girls 14 and under"]
[null,"# of laws, policies, strategies, plans, agreements or regulations addressing climate change (mitigation or adapatation) and/or biodiversity conservation officially proposed, adopted, or implemented as a result of USG assistance","Laws","Polices","Strategies","Agreements","Regulations"]
[null,"# of stakeholders receiving trainings on climate change impacts, adaptation techniques, innovative agricultural practices and other related topics","Men, 25 and over","Women, 25 and over","Men, 15-24","Women, 15-24","Boys, 14 and under","Girls, 14 and under"]
[null,"# of homes that been converted to and indoor clean air environmental setting as a result of USG assistance","Homes"]
[null,"# of family members that have benefited from an indoor clean air environment as a result of USG assistance","Men, 25 and over","Women, 25 and over","Men, 15-24","Women, 15-24","Boys, 14 and under","Girls, 14 and under"]
[null,"# of families that have benefited from an indoor clean air environment as a result of USG assistance","Famlies"]
[null,"# of women that have received the direct benefit from an indoor clean air environment as a result of USG assistance","Women, 25 and over","Women, 15-24","Girls, 14 and under"]
[null," # of communities that are now less exposed to green house gasses as a result of USG assistance","Communities"]
[null,"# of people receiving USG-supported training in environmental law, enforcement, public participation and cleaner production policies, stragegies, skills and techniques","Men, 25 and over","Women, 25 and over","Men, 15-24","Women, 15-24","Boys, 14 and under","Girls, 14 and under"]
["5.2.1","# of schools/ communities with a disaster risk reduction plan","Risk reduction plans","Schools","Communities"]
["6.1.1","# of women benefitting/using","Women, 25 and over","Women, 15-24"]
[null,"# of men benefitting/ using","Men, 25 and over","Men, 15-24"]
[null,"# of children benefitting/ using","Boys, 14 and under","Girls, 14 and under"]
[null,"# of projects implemented","Projects"]
[null,"# of grants and size of grants to community organizations","Grants","Under $500","$500-$1000","$1,000-$5,000","$5,000-$7,000","$7,000-$10,000"]

{"sheet":"SPAEnviro","index":18,"n_rows":172,"n_cols":10,"rows_kept":172,"cut":false,"hidden":false,"merged":[[3,1,3,12],[4,1,4,12],[6,2,11,11],[13,2,20,11],[22,2,24,11],[26,2,27,11],[30,3,30,10],[32,3,32,6],[32,7,32,10],[34,3,34,6],[34,7,34,10],[35,2,35,10],[37,2,44,2],[37,3,44,10],[45,2,45,10],[47,2,48,2],[47,3,48,10],[50,2,51,2],[50,3,51,10],[53,2,57,2],[53,3,57,10],[58,2,61,11],[63,2,66,11],[68,9,70,10],[71,2,71,3],[72,2,72,9],[73,2,73,9],[74,2,74,9],[75,2,75,9],[76,2,76,9],[78,2,78,9],[79,2,79,9],[80,2,80,9],[81,2,81,9],[83,2,83,3],[84,2,84,9],[85,2,85,9],[86,2,86,9],[88,2,88,3],[89,2,89,9],[90,2,90,9],[91,2,91,9],[92,2,92,9],[93,2,93,9],[94,2,94,9],[96,2,96,5],[97,2,97,9],[98,2,98,9],[99,2,99,9],[100,2,100,9],[102,2,102,4],[103,2,103,9],[104,2,104,9],[106,2,106,4],[107,2,107,9],[108,2,108,9],[109,2,109,9],[111,2,111,4],[112,2,112,9],[113,2,113,9],[114,2,114,9],[115,2,115,9],[116,2,116,9],[117,2,117,9],[118,2,118,9],[119,2,119,9],[121,2,121,6],[122,2,122,9],[123,2,123,9],[124,2,124,9],[126,2,126,3],[127,2,127,9],[128,2,128,9],[129,2,129,9],[131,2,131,10],[132,2,132,9],[133,2,133,9],[134,2,134,9],[136,2,136,10],[173,2,180,10],[138,2,146,10],[148,2,149,10],[151,2,158,10],[160,2,160,10],[162,2,169,10],[171,2,171,10]]}
[]
[]
[]
[null,"Peace Corps Small Grants Application"]
[null,"SPA ENVIRONMENTAL REVIEW & ASSESSMENT CHECKLIST (ER Checklist)"]
[]
[null,null,"For grant projects involving 1) water/sanitation; 2) agriculture such as agroforestry and community gardens, and 3) environment such as natural resource management, Volunteers must complete and submit an environmental screening form to the grant review committee.  The grant review committee must ensure that information on the form is taken into consideration and given significant weight.  The Volunteer and committee will determine what, if any, measures must be taken to mitigate and monitor the environmental impact of the project.   "]
[]
[]
[]
[]
[]
[]
[null,null,"The purpose of this Environmental Review and Assessment Checklist (ER Checklist) is to determine whether the proposed action (scope of work) encompasses the potential for environmental pollution or concern and, if so, to determine the scope and extent of additional environmental evaluation, mitigation, and monitoring necessary to fulfill federal U.S. environmental requirements.  The ER Checklist is intended to be used by both the Peace Corps personnel who submit project proposals and the grant selection committee to ensure that environmental consequences are taken into account before making an award for a proposed activity.  The environmental consequences checklist will assist in determining the potential environmental impact of the proposal. "]
[]
[]
[]
[]
[]
[]
[]
[]
[null,null,"Include cost information on any environmental mitigation and monitoring in the overall budget proposal.  Appropriate environmental mitigation and monitoring is considered an integral aspect of the overall project activity.   "]
[]
[]
[]
[null,null,"Please provide the following information.  This information will assist the grant award committee in making an environmental impact determination on the proposed activity."]
[]
[]
[]
[null,null,"Date:"]
[]
[null,null,"Volunteer Name:",{"$f":"IF(ISBLANK('1. Classification & Budget'!I23),\"\",'1. Classification & Budget'!I23)","v":"Emelie"},null,null,null,{"$f":"IF(ISBLANK('1. Classification & Budget'!F23),\"\",'1. Classification & Budget'!F23)","v":"Taylor"}]
[]
[null,null,"Location: ",{"$f":"IF(ISBLANK('1. Classification & Budget'!H11),\"\",'1. Classification & Budget'!H11)","v":"Pampa Elera Alta"},null,null,null,{"$f":"IF(ISBLANK('1. Classification & Budget'!H12),\"\",'1. Classification & Budget'!H12)","v":"Piura"}]
[null,null,"Attach a location map as well as site photos in color if possible "]
[]
[null,null,"Project/Activity Description: "]
[]
[]
[]
[]
[]
[]
[]
[null,null,"Provide sufficient description and details for environmental impact analysis"]
[]
[null,null,"Name of Project/ Activity:",{"$f":"IF(ISBLANK('1. Classification & Budget'!H9),\"\",'1. Classification & Budget'!H9)","v":"Healthy Homes with Improved Cook Stoves"}]
[]
[]
[null,null,"Type of Project/Activity: "]
[]
[]
[null,null,"Baseline Environmental Conditions:"]
[]
[]
[]
[]
[null,null,"Provide site specific environmental conditions.  Plant and animal resources, water resource and condition, human population characteristics, land use, soil, ecosystem condition, air quality.  Describe existing environment at the proposed project site relevant to the scope and potential impact.  Include maps and photos as necessary.  Use additional pages as necessary."]
[]
[]
[]
[]
[null,null,"A.  CHECKLIST FOR ENVIRONMENTAL CONSEQUENCES: Check appropriate column as Yes (Y), Maybe (M), No (N) or Beneficial (B).  Briefly explain Y, M and B checks in next Section, \"Explanations\".  A \"Y\" response does not necessarily indicate a significant effect, but rather an issue that requires focused consideration. "]
[]
[]
[]
[]
[null,null,null,null,null,null,null,null,null,"Enter Y. M. N. or B in the column below"]
[]
[]
[null,null,"1.  Earth Resources"]
[null,null,"a. grading trenching, or excavation  in cubic meters or hectare"]
[null,null,"b. geologic hazards (faults, landslides, liquefaction, un-engineered fill, etc.)"]
[null,null,"c. contaminated soils or ground water on the site"]
[null,null,"d. offsite overburden/waste disposal or borrow pits required in cubic meters or tons"]
[null,null,"e. loss of high-quality farmlands in hectares"]
[]
[null,null,"2. Agricultural and Agrochemical"]
[null,null,"a. impacts of inputs such as seeds and fertilizers"]
[null,null,"b. impact of production process on human health and environment"]
[null,null,"c. other adverse impacts"]
[]
[null,null,"3. Industries"]
[null,null,"a. impacts of run-off and run-on water"]
[null,null,"b. impact of farming such as intensification or extensification"]
[null,null,"c. impact of other factors"]
[]
[null,null,"4. Air Quality"]
[null,null,"a. substantial increase in onsite air pollutant emissions (construction/operation)"]
[null,null,"b. violation of applicable air pollutant emissions or ambient concentration standards"]
[null,null,"c. substantial increase in vehicle traffic during construction or operation"]
[null,null,"d. demolition or blasting for construction"]
[null,null,"e. substantial increase in odor during construction or operation"]
[null,null,"f.  substantial alteration of microclimate"]
[]
[null,null,"5. Water Resources and Quality"]
[null,null,"a. river, stream or lake onsite or within 30 meters of construction"]
[null,null,"b. withdrawals from or discharges to surface or ground water"]
[null,null,"c. excavation or placing of fill, removing gravel from, a river, stream or lake"]
[null,null,"d. onsite storage of liquid fuels or hazardous materials in bulk quantities"]
[]
[null,null,"6. Cultural Resources"]
[null,null,"a. prehistoric, historic, or paleontological resources within 30 meters of construction"]
[null,null,"b. site/facility with unique cultural or ethnic values"]
[]
[null,null,"7.  Biological Resources"]
[null,null,"a. vegetation removal or construction in wetlands or riparian areas in hectare"]
[null,null,"b. use of pesticides/rodenticides, insecticides, or herbicides in hectare"]
[null,null,"c. Construction in or adjacent to a designated wildlife refuge"]
[]
[null,null,"8. Planning and Land Use"]
[null,null,"a. potential conflict with adjacent land uses"]
[null,null,"b. non-compliance with existing codes, plans, permits or design factors"]
[null,null,"c. construction in national park or designated recreational area"]
[null,null,"d. create substantially annoying source of light or glare"]
[null,null,"e. relocation of >10 individuals for +6 months"]
[null,null,"f.  interrupt necessary utility or municipal service > 10 individuals for +6 months"]
[null,null,"g. substantial loss of inefficient use of mineral or non-renewable resources"]
[null,null,"h. increase existing noise levels >5 decibels for +3 months"]
[]
[null,null,"9. Traffic, Transportation and Circulation"]
[null,null,"a. increase vehicle trips >20% or cause substantial congestion"]
[null,null,"b. design features cause or contribute to safety hazards"]
[null,null,"c. inadequate access or emergency access for anticipated volume of people or traffic"]
[]
[null,null,"10.  Hazards"]
[null,null,"a. substantially increase risk of fire, explosion, or hazardous chemical release"]
[null,null,"b. bulk quantities of hazardous materials or fuels stored on site +3 months"]
[null,null,"c. create or substantially contribute to human health hazard"]
[]
[null,null,"11.  Other Issues (to be used for categories not captured under1 through 10 above) "]
[null,null,"a. substantial adverse impact"]
[null,null,"b. adverse impact"]
[null,null,"c. minimal impact"]
[]
[null,null,"B. EXPLANATION OF ENVIRONMENTAL CONSEQUENCES: explain Y, M and B responses"]
[]
[]
[]
[]
[]
[]
[]
[]
[]
[]
[]
[null,null,"C.  IDENTIFIED SIGNIFICANT ENVIRONMENTAL IMPACTS (including physical, biological and social), if any: (Use ER to identify significant environmental impacts)"]
[]
[]
[]
[]
[]
[]
[]
[]
[]
[]
[]
[null,null,"D.  PROPOSED MITIGATION MEASURES (if any):"]
[]
[]
[]
[]
[]
[]
[]
[]
[]
[]
[null,null,"E.  PROPOSED MONITORING MEASURES (if any):"]

{"sheet":"7. VAST Projects","index":19,"n_rows":34,"n_cols":18,"rows_kept":34,"cut":false,"hidden":false,"merged":[[32,4,32,5],[9,3,10,3],[7,9,7,13],[11,3,12,3],[9,5,10,5],[9,6,10,6],[9,7,10,7],[9,8,10,8],[9,4,10,4],[26,4,26,5],[31,3,32,3],[31,4,31,5],[26,8,26,9],[20,3,20,5],[9,9,10,9],[26,3,28,3],[16,14,16,15],[15,4,15,7],[11,12,12,12],[11,9,12,9],[11,10,12,10],[11,11,12,11],[15,8,15,11],[16,16,16,17],[7,4,7,8],[11,5,12,5],[11,6,12,6],[11,7,12,7],[11,8,12,8],[11,13,12,13],[9,13,10,13],[11,4,12,4],[16,12,16,13],[15,12,15,13],[15,14,15,17],[16,4,16,5],[16,6,16,7],[16,8,16,9],[16,10,16,11],[1,2,1,18],[2,2,2,18],[4,3,4,17],[9,12,10,12],[33,4,33,5],[26,6,26,7],[21,3,23,3],[21,4,21,5],[21,6,21,7],[9,10,10,10],[6,3,6,5],[30,3,30,5],[14,3,14,8],[25,3,25,8],[9,11,10,11],[15,3,18,3]]}
[]
[null,null,"Peace Corps Small Grant Application"]
[]
[]
[null,null,null,"VAST Indicators"]
[]
[null,null,null,"HIV Prevention- AB/OP"]
[null,null,null,null,"Male",null,null,null,null,"Female"]
[null,null,null,"Ages (in years)","<10","10-14","15-17","18-24","25+","<10","10-14","15-17","18-24","25+"]
[null,null,null,"# of people reached with individual and/or small group level HIV prevention interventions (P8.1.D)"]
[]
[null,null,null,"# of people who received HIV prevention interventions primarily focused on abstinence and/or being faithful (P8.2.D)"]
[]
[]
[null,null,null,"Other Prevention - Most At Risk Populations"]
[null,null,null,"# of Most at Risk Populations (MARPs) reached with individual and/or small group level HIV preventive interventions that are based on evidence and/or meet the minimum standards required (P8.3.D)","Commercial Sex Workers (CSW)",null,null,null,"Injecting Drug Users (IDU)",null,null,null,"Men Who Have Sex With Men (MSM)",null,"Other Vulnerable Populations"]
[null,null,null,null,"Males",null,"Females",null,"Males",null,"Females",null,"Males",null,"Males",null,"Females"]
[null,null,null,null,"<18","18+","<18","18+","<18","18+","<18","18+","<18","18+","<18","18+","<18","18+"]
[]
[]
[null,null,null,"Care - One Care Service (HBHC & HKID)"]
[null,null,null,"# of eligible adults and children who received a minimum of one care service (C1.1.D)","Males ",null,"Females"]
[null,null,null,null,"<18","18+","<18","18+"]
[]
[]
[null,null,null,"Care - Food and/or Other Nutritional Service (HBHC & HKID)"]
[null,null,null,"# of eligible adults and children who received food and/or nutritional services (C5.1.D)","Males",null,"Females                               NOT pregnant or lactating",null,"Females                        Pregnant and Lactating"]
[null,null,null,null,"<18","18+","<18","18+","<18","18+"]
[]
[]
[null,null,null,"Human Resources for Health (HRH) "]
[null,null,null," # of community health care  and para-social workers who successfully completed a pre-service training (PST) program (H2.2.D)","Male",null,"Female"]
[]
[null,null,null," # of health care workers who successfully completed an in-service training (IST) program (H2.3.D) "]

{"sheet":"11. ECPA Indicators","index":20,"n_rows":72,"n_cols":12,"rows_kept":72,"cut":false,"hidden":false,"merged":[[22,3,22,18],[39,4,39,15],[35,4,35,15],[20,4,20,15],[26,4,27,15],[30,4,30,15],[28,4,28,15],[33,4,33,15],[23,3,24,18],[37,4,37,15],[12,3,13,3],[12,4,13,15],[15,4,15,15],[18,4,18,15],[1,2,1,19],[2,2,2,19],[8,4,8,19],[9,3,9,18],[41,3,41,18],[42,3,42,18],[44,4,47,18],[56,7,56,10],[57,3,57,6],[57,7,57,10],[55,3,55,6],[56,3,56,6],[44,3,45,3],[71,4,72,4],[58,3,58,6],[55,7,55,10],[58,7,58,10],[58,11,58,12],[69,5,70,15],[60,4,60,11]]}
[]
[null,null,"Peace Corps Small Grant Application"]
[null,null,"ECPA TARGET OUTPUTS AND OUTCOMES FOR ECPA PROJECT"]
[]
[]
[null,null,null,null,null,"Please estimate output and outcome targets in the Blue cells"]
[null,null,null,null,null,"Pink cells need not be estimated prior to project implementation but will be monitored after project completion in the Final Report."]
[]
[]
[null,null,null,"Micro-financing and ongoing support to small businesses and consumers"]
[]
[null,null,null,"Outputs"]
[null,null,null,null,"Small business entrepreneurs trained in developing business plans and financing strategies for renewable energy businesses"]
[]
[]
[null,null,null,null,"Small businesses received assistance to access bank loans or private equity"]
[]
[null,null,null,"Outcomes"]
[null,null,null,null,"Entrepreneurs with improved business operations as a result of assistance [including starting or expanding their renewable energy small businesses]"]
[]
[null,null,null,null,"Entrepreneurs and consumers successfully accessed bank loans or private equity as a result of assistance"]
[]
[null,null,null,"Awareness and knowledge"]
[null,null,null,"Municipal, school, and communities’ awareness and knowledge of climate change, natural resources management, energy efficiency and renewable energy technologies, as well as mitigation and adaptation to climate change."]
[]
[null,null,null,"Outputs"]
[null,null,null,null,"Community members trained in renewable energy technologies, energy efficiency principles and businesses practices "]
[]
[null,null,null,null,"Community members trained in climate change mitigation and adaptation, including natural resources reforestation"]
[]
[null,null,null,null,"Teachers, outreach workers, and technicians trained in environmental education, nursery management and/or reforestation"]
[]
[null,null,null,"Outcomes"]
[null,null,null,null,"Community members demonstrate an increased knowledge of renewable energy technologies and/or energy efficiency principles."]
[]
[null,null,null,null,"Community members demonstrate an increased knowledge of climate change, disaster preparedness, natural resources management and/or biodiversity conservation, including reforestation"]
[]
[null,null,null,null,"Teachers, municipal workers, local NGOs, or other outreach workers use new or revised environmental instructional materials and/or lesson plans.resources management and/or biodiversity conservation, including reforestation"]
[]
[null,null,null,null,"Homes, businesses, or public locations adopt new energy efficiency practices as a result of assistance."]
[]
[null,null,null,"Planning and implementation of projects"]
[null,null,null,"."]
[null,null,null,"Outputs"]
[null,null,null,null,"Entrepreneurs and community members supported with project planning, design, management and financing."]
[]
[]
[null,null,null,"Outcomes"]
[null,null,null,"Renewable Electrical Energy (new or rehabilitated):"]
[null,null,null,"number of installations complete","community members who use","kWhr/yr"]
[null,null,null,null,null,null,"at homes"]
[null,null,null,null,null,null,"in businesses"]
[null,null,null,null,null,null,"in public locations"]
[]
[null,null,null,"Improved Cook Stoves or Ovens"]
[null,null,null,"Number of cookstoves (new or rehabilitated) purchased or constructed for households or institutions (e.g. health clinics, schools) with assistance of Volunteers or partners",null,null,null,"Number of households or institutions with individuals correctly using and maintaining improved stoves or ovens, as defined by a checklist, for at least 50 percent of cooking needs"]
[null,null,null,null,null,null,null,null,null,null,null,"at homes"]
[null,null,null,null,null,null,null,null,null,null,null,"in businesses"]
[null,null,null,null,null,null,null,null,null,null,null,"in public locations"]
[]
[null,null,null,null,"Number of individuals living in households benefitting from new or rehabilitated cookstoves or ovens"]
[]
[]
[null,null,null,"Estimated average monthly savings in:",null,null,null,null,"kg of fuel wood (household)"]
[null,null,null,"(note: these cells may be left blank",null,null,null,"adult F","adult M","child F","child M"]
[null,null,null,"in project abstract)",null,null,null,null,null,null,null,"hours gathering fuel"]
[]
[null,null,null,"Natural Resources Management / Climate Change Adaptation"]
[null,null,null,"Hectares"]
[null,null,null,"Forest production area",null,"Number of hectares under improved natural resource management as a result of assistance"]
[null,null,null,"Watershed area"]
[null,null,null,"Agroforestry and tree crop system area"]

{"sheet":"12. WAFSP","index":21,"n_rows":5,"n_cols":5,"rows_kept":5,"cut":false,"hidden":false,"merged":[[22,3,22,4],[26,3,26,4],[38,3,38,7],[18,3,18,5],[1,2,1,9],[2,2,2,9],[5,3,5,4],[10,3,10,5],[14,3,14,4],[4,4,4,8]]}
[]
[null,null,"Peace Corps Small Grant Application"]
[null,null,"Feed the Future Indicators and Environmental Review Forms"]
[]
[null,null,null,"Directions","All Feed the Future projects must complete an environmental review and provide anticipated indicator data. The sections below explain what is required for each section."]

{"sheet":"FTF Indicators","index":22,"n_rows":143,"n_cols":7,"rows_kept":143,"cut":false,"hidden":false,"merged":[[7,3,7,5],[8,3,8,5],[6,3,6,5],[5,3,5,5],[2,2,2,5],[3,2,3,5],[77,3,77,5],[78,2,142,2],[78,3,78,5],[79,4,79,5],[80,3,82,3],[80,4,80,5],[83,4,83,5],[84,3,102,3],[84,4,84,5],[103,4,103,5],[104,3,122,3],[104,4,104,5],[123,4,123,5],[124,3,142,3],[124,4,124,5],[64,3,66,3],[64,4,64,5],[67,3,67,5],[68,2,76,2],[68,3,68,5],[69,4,69,5],[70,3,72,3],[70,4,70,5],[73,4,73,5],[74,3,76,3],[74,4,74,5],[63,4,63,5],[48,3,50,3],[48,4,48,5],[51,4,51,5],[52,3,54,3],[52,4,52,5],[55,4,55,5],[56,3,58,3],[56,4,56,5],[59,4,59,5],[60,3,62,3],[60,4,60,5],[47,4,47,5],[26,3,26,5],[27,2,66,2],[27,3,27,5],[28,4,28,5],[29,3,32,3],[29,4,29,5],[33,4,33,5],[34,3,37,3],[34,4,34,5],[38,4,38,5],[39,3,42,3],[39,4,39,5],[43,4,43,5],[44,3,46,3],[44,4,44,5],[10,3,10,5],[11,2,25,2],[11,3,11,5],[12,4,12,5],[13,3,17,3],[13,4,13,5],[18,4,18,5],[19,3,25,3],[19,4,19,5]]}
[]
[]
[null,null,"Peace Corps Small Grant Application"]
[null,null,"Feed the Future Indicators and Environmental Review Forms"]
[]
[null,null,"Project Title","Food Security Reporting Workaround (FSRW)"]
[null,null,"Dates","1 October 2012 to 30 September 2013"]
[null,null,"Project Description","This Food Security framework is designed to allow Volunteers to report at the level of disaggregation necessary for the Food Security initiative during FY 2013.  (Beginning in FY 2014, VRT 3.0 will support reporting on these indicators in a more natural manner.)  All Volunteers who conduct food security activities should report against one or more objectives from this framework (in addition to any applicable objectives from their project frameworks) to allow both posts and Peace Corps as a whole to understand and report on our food security efforts."]
[null,null,"Sector"]
[]
[null,null,"Goal 1","Improved Agriculture Productivity"]
[null,null,null,"Increase agriculture sector productivity, food security training, and application of new technologies or management practices"]
[null,null,null,"Obj. 1.1","Productivity - New Tech or Mgmt Prac"]
[null,null,null,null,"Number of farmers and others who have applied new technologies or management practices as a result of PC assistance"]
[null,null,null,null,"1.1.a","Number of MALE farmers and others for the FIRST TIME applying new technologies or management practices as a result of PC assistance (NEW) (4.5.2-5)"]
[null,null,null,null,"1.1.b","Number of FEMALE farmers and others for the FIRST TIME applying new technologies or management practices as a result of PC assistance (NEW) (4.5.2-5)"]
[null,null,null,null,"1.1.c","Number of MALE farmers and others CONTINUING to apply new technologies or management practices as a result of PC assistance (CONTINUING) (4.5.2-5)"]
[null,null,null,null,"1.1.d","Number of FEMALE farmers and others CONTINUING to apply new technologies or management practices as a result of PC assistance (CONTINUING) (4.5.2-5)"]
[null,null,null,"Obj. 1.2","Productivity - Ag prod or food sec trng"]
[null,null,null,null,"Number of individuals who have received PC supported short-term agricultural sector productivity or food security training"]
[null,null,null,null,"1.2.a","Number of MALE PRODUCERS who have received PC supported short-term agricultural sector productivity  or food security training (4.5.2-7) (PRODUCERS = Farmers, fishers, pastoralists, ranchers, and other primary sector producers)"]
[null,null,null,null,"1.2.b","Number of FEMALE PRODUCERS who have received PC supported short-term agricultural sector productivity  or food security training (4.5.2-7) (PRODUCERS = Farmers, fishers, pastoralists, ranchers, and other primary sector producers)"]
[null,null,null,null,"1.2.c","Number of MALE PEOPLE IN GOVERNMENT who have received PC supported short-term agricultural sector productivity  or food security training (4.5.2-7) (PEOPLE IN GOVERNMENT = policy makers, extension workers)"]
[null,null,null,null,"1.2.d","Number of FEMALE PEOPLE IN GOVERNMENT who have received PC supported short-term agricultural sector productivity  or food security training (4.5.2-7) (PEOPLE IN GOVERNMENT = policy makers, extension workers)"]
[null,null,null,null,"1.2.e","Number of MALE PRIVATE SECTOR who have received PC supported short-term agricultural sector productivity  or food security training (4.5.2-7) (PRIVATE SECTOR = processors, service providers, manufacturers)"]
[null,null,null,null,"1.2.f","Number of FEMALE PRIVATE SECTOR who have received PC supported short-term agricultural sector productivity  or food security training (4.5.2-7) (PRIVATE SECTOR = processors, service providers, manufacturers)"]
[null,null,"Goal 2","Increased income and employmnt opportnty"]
[null,null,null,"Increase income and employment opportunities through access to bank loans and other assistance to food security organizations"]
[null,null,null,"Obj. 2.1","Income/Employ - MICRO Enterp Bank Loans"]
[null,null,null,null,"Number of MICRO (1 to 5 FTEs) Enterprises receiving PC assistance to access bank loans"]
[null,null,null,null,"2.1.a","Number of MICRO (1 to 5 FTEs) Enterprises (MALE owned) receiving PC assistance to access bank loans (4.5.2-30)"]
[null,null,null,null,"2.1.b","Number of MICRO (1 to 5 FTEs) Enterprises (FEMALE owned) receiving PC assistance to access bank loans (4.5.2-30)"]
[null,null,null,null,"2.1.c","Number of MICRO (1 to 5 FTEs) Enterprises (JOINT owned) receiving PC assistance to access bank loans (4.5.2-30)"]
[null,null,null,"Obj. 2.2","Income/Employ - SMALL Enterp Bank Loans"]
[null,null,null,null,"Number of SMALL (6 to 50 FTEs) Enterprises receiving PC assistance to access bank loans"]
[null,null,null,null,"2.2.a","Number of SMALL (6 to 50 FTEs) Enterprises (MALE owned) receiving PC assistance to access bank loans (4.5.2-30)",1]
[null,null,null,null,"2.2.b","Number of SMALL (6 to 50 FTEs) Enterprises (FEMALE owned) receiving PC assistance to access bank loans (4.5.2-30)"]
[null,null,null,null,"2.2.c","Number of SMALL (6 to 50 FTEs) Enterprises (JOINT owned) receiving PC assistance to access bank loans (4.5.2-30)"]
[null,null,null,"Obj. 2.3","Income/Employ - MEDIUM Enterp Bank Loans"]
[null,null,null,null,"Number of MEDIUM (51 to 100 FTEs) Enterprises receiving PC assistance to access bank loans"]
[null,null,null,null,"2.3.a","Number of MEDIUM (51 to 100 FTEs) (1 to 5 FTEs) Enterprises (MALE owned) receiving PC assistance to access bank loans (4.5.2-30)"]
[null,null,null,null,"2.3.b","Number of MEDIUM (51 to 100 FTEs) (1 to 5 FTEs) Enterprises (FEMALE owned) receiving PC assistance to access bank loans (4.5.2-30)"]
[null,null,null,null,"2.3.c","Number of MEDIUM (51 to 100 FTEs) (1 to 5 FTEs) Enterprises (JOINT owned) receiving PC assistance to access bank loans (4.5.2-30)"]
[null,null,null,"Obj. 2.4","Income/Employ - PRIVATE ENTERPRIS Assist    "]
[null,null,null,null,"Number of food security PRIVATE ENTERPRISES (FOR PROFIT) receiving PC assistance"]
[null,null,null,null,"2.4.a","Number of food security PRIVATE ENTERPRISES (FOR PROFIT) receiving FIRST TIME PC assistance this year (NEW) (4.5.2-11)"]
[null,null,null,null,"2.4.b","Number of food security PRIVATE ENTERPRISES (FOR PROFIT) receiving PC assistance AGAIN this year (CONTINUING) (4.5.2-11)"]
[null,null,null,"Obj. 2.5","Income/Employ - PRODUCER ORGS Assist"]
[null,null,null,null,"Number of food security PRODUCERS ORGANIZATIONS receiving PC assistance"]
[null,null,null,null,"2.5.a","Number of food security PRODUCER ORGANIZATIONS receiving FIRST TIME PC assistance this year (NEW) (4.5.2-11)"]
[null,null,null,null,"2.5.b","Number of food security PRODUCER ORGANIZATIONS receiving PC assistance AGAIN this year (CONTINUING) (4.5.2-11)"]
[null,null,null,"Obj. 2.6","Income/Employ - WATER USERS ASSOC Assist"]
[null,null,null,null,"Number of food security WATER USERS ASSOCIATIONS receiving PC assistance"]
[null,null,null,null,"2.6.a","Number of food security WATER USERS ASSOCIATIONS receiving FIRST TIME PC assistance this year (NEW) (4.5.2-11)"]
[null,null,null,null,"2.6.b","Number of food security WATER USERS ASSOCIATIONS receiving PC assistance AGAIN this year (CONTINUING) (4.5.2-11)"]
[null,null,null,"Obj. 2.7","Income/Employ - WOMEN'S GROUPS Assist"]
[null,null,null,null,"Number of food security WOMEN'S GROUPS receiving PC assistance"]
[null,null,null,null,"2.7.a","Number of food security WOMEN'S GROUPS receiving FIRST TIME PC assistance this year (NEW) (4.5.2-11)"]
[null,null,null,null,"2.7.b","Number of food security WOMEN'S GROUPS receiving PC assistance AGAIN this year (CONTINUING) (4.5.2-11)"]
[null,null,null,"Obj. 2.8","Income/Employ - TRADE & BUS ASSOC Assist"]
[null,null,null,null,"Number of food security TRADE AND BUSINESS ASSOCIATIONS receiving PC assistance"]
[null,null,null,null,"2.8.a","Number of food security TRADE & BUSINESS ASSOCIATIONS receiving FIRST TIME PC assistance this year (NEW) (4.5.2-11)"]
[null,null,null,null,"2.8.b","Number of food security TRADE & BUSINESS ASSOCIATIONS receiving PC assistance AGAIN this year (CONTINUING) (4.5.2-11)"]
[null,null,null,"Obj. 2.9","Income/Employ - COMM BASED ORGS Assist"]
[null,null,null,null,"Number of food security COMMUNITY-BASED ORGANIZATIONS (CBOs) receiving PC assistance"]
[null,null,null,null,"2.9.a","Number of food security COMMUNITY-BASED ORGANIZATIONS (CBOs) receiving FIRST TIME PC assistance this year (NEW) (4.5.2-11)"]
[null,null,null,null,"2.9.b","Number of food security COMMUNITY-BASED ORGANIZATIONS (CBOs) receiving PC assistance AGAIN this year (CONTINUING) (4.5.2-11)"]
[null,null,"Goal 3","Improved Nutrition Behavior"]
[null,null,null,"Improve nutrition behavior of children through training adults in child health and nutrition and through children's nutrition programs"]
[null,null,null,"Obj. 3.1","Nutrition - TRNG in Child HE and Nutrit."]
[null,null,null,null,"Number of people trained in child health and nutrition through PC-supported health area programs"]
[null,null,null,null,"3.1.a","Number of MALES trained in child health and nutrition through PC-supported health area programs (3.1.9-1)"]
[null,null,null,null,"3.1.b","Number of FEMALES trained in child health and nutrition through PC-supported health area programs (3.1.9-1)"]
[null,null,null,"Obj. 3.2","Nutrition - Child < 5 Nutrition Programs"]
[null,null,null,null,"Number of children under 5 reached by PC-supported nutrition programs"]
[null,null,null,null,"3.2.a","Number of MALES under 5 reached by PC-supported nutrition programs (3.1.9-11)"]
[null,null,null,null,"3.2.b","Number of FEMALES under 5 reached by PC-supported nutrition programs (3.1.9-11)"]
[null,null,"Goal 4","YRLY- Increased Investment in ag & nutr."]
[null,null,null,"Year over year, Increase business development services provided to and profitability of agricultural and food-security-related firms and CSOs"]
[null,null,null,"Obj. 4.1","YRLY-Invstmnt - Profitable ag / food sec"]
[null,null,null,null,"Number of firms (excluding farms) or Civil Society Organizations engaged in agricultural and food-security-related manufacturing and services now operating more profitably (at or above cost) because of PC assistance"]
[null,null,null,null,"4.1.a","Number of more profitable FIRMS engaged in agricultural and food-security-related manufacturing and services now operating more profitably (at or above cost) because of PC assistance (4.5.2-43)"]
[null,null,null,null,"4.1.b","Number of more profitable CSOs engaged in agricultural and food-security-related manufacturing and services now operating more profitably (at or above cost) because of PC assistance (4.5.2-43)"]
[null,null,null,"Obj. 4.2","YRLY-Invstmnt - MICRO Bus. Dev. Services"]
[null,null,null,null,"Number of Micro (1 to 5 FTEs) Enterprises receiving business development services from PC assisted sources"]
[null,null,null,null,"4.2.a","Number of MICRO (1 to 5 FTEs) Enterprises (AGRICULTURAL PRODUCER - MALE)  receiving business development services from PC assisted sources (4.5.2-37)"]
[null,null,null,null,"4.2.b","Number of MICRO (1 to 5 FTEs) Enterprises (AGRICULTURAL PRODUCER - FEMALE)  receiving business development services from PC assisted sources (4.5.2-37)"]
[null,null,null,null,"4.2.c","Number of MICRO (1 to 5 FTEs) Enterprises (AGRICULTURAL PRODUCER - JOINT)  receiving business development services from PC assisted sources (4.5.2-37)"]
[null,null,null,null,"4.2.d","Number of MICRO (1 to 5 FTEs) Enterprises (INPUT SUPPLIER - MALE)  receiving business development services from PC assisted sources (4.5.2-37)"]
[null,null,null,null,"4.2.e","Number of MICRO (1 to 5 FTEs) Enterprises (INPUT SUPPLIER - FEMALE)  receiving business development services from PC assisted sources (4.5.2-37)"]
[null,null,null,null,"4.2.f","Number of MICRO (1 to 5 FTEs) Enterprises (INPUT SUPPLIER - JOINT)  receiving business development services from PC assisted sources (4.5.2-37)"]
[null,null,null,null,"4.2.g","Number of MICRO (1 to 5 FTEs) Enterprises (TRADER - MALE)  receiving business development services from PC assisted sources (4.5.2-37)"]
[null,null,null,null,"4.2.h","Number of MICRO (1 to 5 FTEs) Enterprises (TRADER - FEMALE)  receiving business development services from PC assisted sources (4.5.2-37)"]
[null,null,null,null,"4.2.i","Number of MICRO (1 to 5 FTEs) Enterprises (TRADER - JOINT)  receiving business development services from PC assisted sources (4.5.2-37)"]
[null,null,null,null,"4.2.j","Number of MICRO (1 to 5 FTEs) Enterprises (OUTPUT PROCESSORS - MALE)  receiving business development services from PC assisted sources (4.5.2-37)"]
[null,null,null,null,"4.2.k","Number of MICRO (1 to 5 FTEs) Enterprises (OUTPUT PROCESSORS - FEMALE)  receiving business development services from PC assisted sources (4.5.2-37)"]
[null,null,null,null,"4.2.l","Number of MICRO (1 to 5 FTEs) Enterprises (OUTPUT PROCESSORS - JOINT)  receiving business development services from PC assisted sources (4.5.2-37)"]
[null,null,null,null,"4.2.m","Number of MICRO (1 to 5 FTEs) Enterprises (NON-AGRICULTURE - MALE)  receiving business development services from PC assisted sources (4.5.2-37)"]
[null,null,null,null,"4.2.n","Number of MICRO (1 to 5 FTEs) Enterprises (NON-AGRICULTURE - FEMALE)  receiving business development services from PC assisted sources (4.5.2-37)"]
[null,null,null,null,"4.2.o","Number of MICRO (1 to 5 FTEs) Enterprises (NON-AGRICULTURE - JOINT)  receiving business development services from PC assisted sources (4.5.2-37)"]
[null,null,null,null,"4.2.p","Number of MICRO (1 to 5 FTEs) Enterprises (OTHER - MALE)  receiving business development services from PC assisted sources (4.5.2-37)"]
[null,null,null,null,"4.2.q","Number of MICRO (1 to 5 FTEs) Enterprises (OTHER - FEMALE)  receiving business development services from PC assisted sources (4.5.2-37)"]
[null,null,null,null,"4.2.r","Number of MICRO (1 to 5 FTEs) Enterprises (OTHER - JOINT)  receiving business development services from PC assisted sources (4.5.2-37)"]
[null,null,null,"Obj. 4.3","YRLY-Invstmnt - SMALL Bus. Dev. Services"]
[null,null,null,null,"Number of Small (6 to 50 FTEs) Enterprises receiving business development services from PC assisted sources"]
[null,null,null,null,"4.3.a","Number of SMALL (6 to 50 FTEs) Enterprises (AGRICULTURAL PRODUCER - MALE)  receiving business development services from PC assisted sources (4.5.2-37)"]
[null,null,null,null,"4.3.b","Number of SMALL (6 to 50 FTEs) Enterprises (AGRICULTURAL PRODUCER - FEMALE)  receiving business development services from PC assisted sources (4.5.2-37)"]
[null,null,null,null,"4.3.c","Number of SMALL (6 to 50 FTEs) Enterprises (AGRICULTURAL PRODUCER - JOINT)  receiving business development services from PC assisted sources (4.5.2-37)"]
[null,null,null,null,"4.3.d","Number of SMALL (6 to 50 FTEs) Enterprises (INPUT SUPPLIER - MALE)  receiving business development services from PC assisted sources (4.5.2-37)"]
[null,null,null,null,"4.3.e","Number of SMALL (6 to 50 FTEs) Enterprises (INPUT SUPPLIER - FEMALE)  receiving business development services from PC assisted sources (4.5.2-37)"]
[null,null,null,null,"4.3.f","Number of SMALL (6 to 50 FTEs) Enterprises (INPUT SUPPLIER - JOINT)  receiving business development services from PC assisted sources (4.5.2-37)"]
[null,null,null,null,"4.3.g","Number of SMALL (6 to 50 FTEs) Enterprises (TRADER - MALE)  receiving business development services from PC assisted sources (4.5.2-37)"]
[null,null,null,null,"4.3.h","Number of SMALL (6 to 50 FTEs) Enterprises (TRADER - FEMALE)  receiving business development services from PC assisted sources (4.5.2-37)"]
[null,null,null,null,"4.3.i","Number of SMALL (6 to 50 FTEs) Enterprises (TRADER - JOINT)  receiving business development services from PC assisted sources (4.5.2-37)"]
[null,null,null,null,"4.3.j","Number of SMALL (6 to 50 FTEs) Enterprises (OUTPUT PROCESSORS - MALE)  receiving business development services from PC assisted sources (4.5.2-37)"]
[null,null,null,null,"4.3.k","Number of SMALL (6 to 50 FTEs) Enterprises (OUTPUT PROCESSORS - FEMALE)  receiving business development services from PC assisted sources (4.5.2-37)"]
[null,null,null,null,"4.3.l","Number of SMALL (6 to 50 FTEs) Enterprises (OUTPUT PROCESSORS - JOINT)  receiving business development services from PC assisted sources (4.5.2-37)"]
[null,null,null,null,"4.3.m","Number of SMALL (6 to 50 FTEs) Enterprises (NON-AGRICULTURE - MALE)  receiving business development services from PC assisted sources (4.5.2-37)"]
[null,null,null,null,"4.3.n","Number of SMALL (6 to 50 FTEs) Enterprises (NON-AGRICULTURE - FEMALE)  receiving business development services from PC assisted sources (4.5.2-37)"]
[null,null,null,null,"4.3.o","Number of SMALL (6 to 50 FTEs) Enterprises (NON-AGRICULTURE - JOINT)  receiving business development services from PC assisted sources (4.5.2-37)"]
[null,null,null,null,"4.3.p","Number of SMALL (6 to 50 FTEs) Enterprises (OTHER - MALE)  receiving business development services from PC assisted sources (4.5.2-37)"]
[null,null,null,null,"4.3.q","Number of SMALL (6 to 50 FTEs) Enterprises (OTHER - FEMALE)  receiving business development services from PC assisted sources (4.5.2-37)"]
[null,null,null,null,"4.3.r","Number of SMALL (6 to 50 FTEs) Enterprises (OTHER - JOINT)  receiving business development services from PC assisted sources (4.5.2-37)"]
[null,null,null,"Obj. 4.4","YRLY-Invstmnt - MEDIUM Bus. Dev. Service"]
[null,null,null,null,"Number of Medium (51 to 100 FTEs) Enterprises receiving business development services from PC assisted sources"]
[null,null,null,null,"4.4.a","Number of MEDIUM (51 to 100 FTEs) Enterprises (AGRICULTURAL PRODUCER - MALE)  receiving business development services from PC assisted sources (4.5.2-37)"]
[null,null,null,null,"4.4.b","Number of MEDIUM (51 to 100 FTEs) Enterprises (AGRICULTURAL PRODUCER - FEMALE)  receiving business development services from PC assisted sources (4.5.2-37)"]
[null,null,null,null,"4.4.c","Number of MEDIUM (51 to 100 FTEs) Enterprises (AGRICULTURAL PRODUCER - JOINT)  receiving business development services from PC assisted sources (4.5.2-37)"]
[null,null,null,null,"4.4.d","Number of MEDIUM (51 to 100 FTEs) Enterprises (INPUT SUPPLIER - MALE)  receiving business development services from PC assisted sources (4.5.2-37)"]
[null,null,null,null,"4.4.e","Number of MEDIUM (51 to 100 FTEs) Enterprises (INPUT SUPPLIER - FEMALE)  receiving business development services from PC assisted sources (4.5.2-37)"]
[null,null,null,null,"4.4.f","Number of MEDIUM (51 to 100 FTEs) Enterprises (INPUT SUPPLIER - JOINT)  receiving business development services from PC assisted sources (4.5.2-37)"]
[null,null,null,null,"4.4.g","Number of MEDIUM (51 to 100 FTEs) Enterprises (TRADER - MALE)  receiving business development services from PC assisted sources (4.5.2-37)"]
[null,null,null,null,"4.4.h","Number of MEDIUM (51 to 100 FTEs) Enterprises (TRADER - FEMALE)  receiving business development services from PC assisted sources (4.5.2-37)"]
[null,null,null,null,"4.4.i","Number of MEDIUM (51 to 100 FTEs) Enterprises (TRADER - JOINT)  receiving business development services from PC assisted sources (4.5.2-37)"]
[null,null,null,null,"4.4.j","Number of MEDIUM (51 to 100 FTEs) Enterprises (OUTPUT PROCESSORS - MALE)  receiving business development services from PC assisted sources (4.5.2-37)"]
[null,null,null,null,"4.4.k","Number of MEDIUM (51 to 100 FTEs) Enterprises (OUTPUT PROCESSORS - FEMALE)  receiving business development services from PC assisted sources (4.5.2-37)"]
[null,null,null,null,"4.4.l","Number of MEDIUM (51 to 100 FTEs) Enterprises (OUTPUT PROCESSORS - JOINT)  receiving business development services from PC assisted sources (4.5.2-37)"]
[null,null,null,null,"4.4.m","Number of MEDIUM (51 to 100 FTEs) Enterprises (NON-AGRICULTURE - MALE)  receiving business development services from PC assisted sources (4.5.2-37)"]
[null,null,null,null,"4.4.n","Number of MEDIUM (51 to 100 FTEs) Enterprises (NON-AGRICULTURE - FEMALE)  receiving business development services from PC assisted sources (4.5.2-37)"]
[null,null,null,null,"4.4.o","Number of MEDIUM (51 to 100 FTEs) Enterprises (NON-AGRICULTURE - JOINT)  receiving business development services from PC assisted sources (4.5.2-37)"]
[null,null,null,null,"4.4.p","Number of MEDIUM (51 to 100 FTEs) Enterprises (OTHER - MALE)  receiving business development services from PC assisted sources (4.5.2-37)"]
[null,null,null,null,"4.4.q","Number of MEDIUM (51 to 100 FTEs) Enterprises (OTHER - FEMALE)  receiving business development services from PC assisted sources (4.5.2-37)"]
[null,null,null,null,"4.4.r","Number of MEDIUM (51 to 100 FTEs) Enterprises (OTHER - JOINT)  receiving business development services from PC assisted sources (4.5.2-37)"]

{"sheet":"WAFSPIndicators","index":23,"n_rows":54,"n_cols":11,"rows_kept":54,"cut":false,"hidden":false,"merged":[[4,2,4,11],[5,2,5,11],[7,4,7,9],[9,7,9,8],[10,3,53,3],[10,4,19,4],[10,5,13,5],[10,6,13,6],[10,7,11,7],[20,4,47,4],[20,7,25,7],[10,10,13,10],[12,7,13,7],[14,5,19,5],[14,6,19,6],[14,7,17,7],[28,7,30,7],[28,10,33,10],[31,7,33,7],[14,10,19,10],[18,7,19,7],[20,10,27,10],[26,7,27,7],[20,5,27,5],[20,6,27,6],[48,4,53,4],[48,5,49,5],[48,6,49,6],[52,5,53,5],[52,6,53,6],[28,5,33,5],[28,6,33,6],[48,7,48,8],[48,10,49,10],[34,5,45,5],[34,6,45,6],[34,7,36,7],[34,10,45,10],[37,7,42,7],[43,7,45,7],[46,5,47,5],[46,6,47,6],[46,7,46,8],[46,10,47,10],[47,7,47,8],[52,7,52,8],[52,10,53,10],[53,7,53,8],[49,7,49,8],[50,5,51,5],[50,6,51,6],[50,7,50,8],[50,10,51,10],[51,7,51,8]]}
[]
[]
[]
[]
[null,null,"Peace Corps Small Grant Application"]
[null,null,"WAFSP Indicator Targets"]
[]
[null,null,null,"Directions","Please estimate the indicator results you will be accomplishing and fill in these targets for the indicators relevant to the project in the blue columns on the right"]
[]
[null,null,null,"Goal of the WAFSP","Key Objectives of the WAFSP","Ind. codes","Indicator Title","Disaggregation of the indicator",null,"Value of the indicator (number)","Indicator narrative \n(write one paragraph on the story/activities behind the figures by responding to the questions in brackets)"]
[null,null,null,"INCREASE FOOD SECURITY IN THE COMMUNITIES WHERE PCVs WORK IN WEST AFRICA","1. Increase availability of healthy foods, especially for women and children","4.5.2-5","Number of farmers and others who have applied new technologies or management practices as a result of USG assistance","New or Continuing","New",null,"(What types of technologies/management practices were applied? How many people applied what?)"]
[null,null,null,null,null,null,null,null,"Continuing"]
[null,null,null,null,null,null,null,"Sex","Male"]
[null,null,null,null,null,null,null,null,"Female"]
[null,null,null,null,null,"4.5.2-7","Number of individuals who have received USG supported short-term agricultural sector productivity or food security training","Type of individual","Producers",null,"(What were the topics of the trainings? How many individuals were trained per topic?)"]
[null,null,null,null,null,null,null,null,"People in Government"]
[null,null,null,null,null,null,null,null,"People in Private Sector  Firms"]
[null,null,null,null,null,null,null,null,"People in Civil Society"]
[null,null,null,null,null,null,null,"Sex","Male"]
[null,null,null,null,null,null,null,null,"Female"]
[null,null,null,null,"2. Increase accessibility of healthy foods by decreasing poverty and increasing incomes","4.5.2-11","Number of food security private enterprises (for profit), producers organizations, water users associations, women's groups, trade and business associations, and community-based organizations (CBOs) receiving USG assistance","Type of organization","Private Enterprises",null,"(What types of assistance were received per type of organization? Provide names and location of organizations assisted)"]
[null,null,null,null,null,null,null,null,"Producer Organizations "]
[null,null,null,null,null,null,null,null,"Water Users Associations"]
[null,null,null,null,null,null,null,null,"Women's Groups"]
[null,null,null,null,null,null,null,null,"Trade & Business Assoc."]
[null,null,null,null,null,null,null,null,"CBOS"]
[null,null,null,null,null,null,null,"New or Continuing","New"]
[null,null,null,null,null,null,null,null,"Continuing"]
[null,null,null,null,null,"4.5.2-30","Number of MSMEs, including farmers, receiving USG assistance to access loans","Size of MSME","Micro Enterprise",null,"(What types of assistance were received? What types of loans were accessed (cash/in-kind, formal/informal)?)"]
[null,null,null,null,null,null,null,null,"Small Enterprise"]
[null,null,null,null,null,null,null,null,"Medium Enterprise"]
[null,null,null,null,null,null,null,"Sex of owner","Male owner"]
[null,null,null,null,null,null,null,null,"Female owner"]
[null,null,null,null,null,null,null,null,"Joint ownership"]
[null,null,null,null,null,"4.5.2-37","Number of MSMEs, including farmers, receiving business development services from USG assisted sources","Size of MSME","Micro Enterprise",null,"(What types of business development services were received per type of MSME? Provide names of MSMEs assisted)"]
[null,null,null,null,null,null,null,null,"Small Enterprise"]
[null,null,null,null,null,null,null,null,"Medium Enterprise"]
[null,null,null,null,null,null,null,"Type of MSME","Agricultural Producer"]
[null,null,null,null,null,null,null,null,"Input Supplier"]
[null,null,null,null,null,null,null,null,"Trader"]
[null,null,null,null,null,null,null,null,"Output Processors"]
[null,null,null,null,null,null,null,null,"Non-Agriculture"]
[null,null,null,null,null,null,null,null,"Other"]
[null,null,null,null,null,null,null,"Sex of owner","Male owner"]
[null,null,null,null,null,null,null,null,"Female owner"]
[null,null,null,null,null,null,null,null,"Joint ownership"]
[null,null,null,null,null,"4.5.2-43","Number of firms (excluding farms) or CSOs engaged in agricultural and food-security-related manufacturing and services now operating more profitably (at or above cost) because of USG assistance","# of Firms",null,null,"(Describe assistance provided, and how profitability was calculated)"]
[null,null,null,null,null,null,null,"# of Civil Society Organizations"]
[null,null,null,null,"3. Improve utilization of available food stuffs to improve nutritional status of women and children","3.1.9-1","Number of people trained in child health and nutrition through USG-supported health area programs ","M",null,null,"(What were the topics of the trainings? How many individuals were trained per topic?)"]
[null,null,null,null,null,null,null,"F"]
[null,null,null,null,null,"Custom indicat.","Number of people trained in maternal health and nutrition through USG-supported health area programs","M",null,null,"(What were the topics of the trainings? How many individuals were trained per topic?)"]
[null,null,null,null,null,null,null,"F"]
[null,null,null,null,null,"3.1.9-15","Number of children under 5 reached by USG-supported nutrition programs","M",null,null,"(Briefly describe the nutrition program)"]
[null,null,null,null,null,null,null,"F"]

{"sheet":"FTFEnvironment Form","index":24,"n_rows":170,"n_cols":10,"rows_kept":170,"cut":false,"hidden":false,"merged":[[149,2,156,10],[158,2,158,10],[160,2,167,10],[169,2,169,10],[171,2,178,10],[146,2,147,10],[122,2,122,9],[124,2,124,3],[125,2,125,9],[126,2,126,9],[127,2,127,9],[129,2,129,10],[130,2,130,9],[131,2,131,9],[132,2,132,9],[134,2,134,10],[136,2,144,10],[121,2,121,9],[109,2,109,4],[110,2,110,9],[111,2,111,9],[112,2,112,9],[113,2,113,9],[114,2,114,9],[115,2,115,9],[116,2,116,9],[117,2,117,9],[119,2,119,6],[120,2,120,9],[107,2,107,9],[94,2,94,5],[95,2,95,9],[96,2,96,9],[97,2,97,9],[98,2,98,9],[100,2,100,4],[101,2,101,9],[102,2,102,9],[104,2,104,4],[105,2,105,9],[106,2,106,9],[92,2,92,9],[79,2,79,9],[81,2,81,3],[82,2,82,9],[83,2,83,9],[84,2,84,9],[86,2,86,3],[87,2,87,9],[88,2,88,9],[89,2,89,9],[90,2,90,9],[91,2,91,9],[51,2,55,2],[51,3,55,10],[78,2,78,9],[56,2,59,11],[61,2,64,11],[66,9,68,10],[69,2,69,3],[70,2,70,9],[71,2,71,9],[72,2,72,9],[73,2,73,9],[74,2,74,9],[76,2,76,9],[77,2,77,9],[28,3,28,10],[30,3,30,6],[30,7,30,10],[32,3,32,6],[32,7,32,10],[32,15,48,22],[33,2,33,10],[35,2,42,2],[35,3,42,10],[43,2,43,10],[45,2,46,2],[45,3,46,10],[48,2,49,2],[48,3,49,10],[24,2,25,11],[1,1,1,12],[2,1,2,12],[4,2,9,11],[11,2,18,11],[20,2,22,11]]}
[]
[null,"Peace Corps Small Grants Application"]
[null,"FTF ENVIRONMENTAL REVIEW & ASSESSMENT CHECKLIST (ER Checklist)"]
[]
[null,null,"For grant projects involving 1) water/sanitation; 2) agriculture such as agroforestry and community gardens, and 3) environment such as natural resource management, Volunteers must complete and submit an environmental screening form to the grant review committee.  The grant review committee must ensure that information on the form is taken into consideration and given significant weight.  The Volunteer and committee will determine what, if any, measures must be taken to mitigate and monitor the environmental impact of the project.   "]
[]
[]
[]
[]
[]
[]
[null,null,"The purpose of this Environmental Review and Assessment Checklist (ER Checklist) is to determine whether the proposed action (scope of work) encompasses the potential for environmental pollution or concern and, if so, to determine the scope and extent of additional environmental evaluation, mitigation, and monitoring necessary to fulfill federal U.S. environmental requirements.  The ER Checklist is intended to be used by both the Peace Corps personnel who submit project proposals and the grant selection committee to ensure that environmental consequences are taken into account before making an award for a proposed activity.  The environmental consequences checklist will assist in determining the potential environmental impact of the proposal. "]
[]
[]
[]
[]
[]
[]
[]
[]
[null,null,"Include cost information on any environmental mitigation and monitoring in the overall budget proposal.  Appropriate environmental mitigation and monitoring is considered an integral aspect of the overall project activity.   "]
[]
[]
[]
[null,null,"Please provide the following information.  This information will assist the grant award committee in making an environmental impact determination on the proposed activity."]
[]
[]
[]
[null,null,"Date:"]
[]
[null,null,"Volunteer Name:"]
[]
[null,null,"Location: "]
[null,null,"Attach a location map as well as site photos in color if possible "]
[]
[null,null,"Project/Activity Description: "]
[]
[]
[]
[]
[]
[]
[]
[null,null,"Provide sufficient description and details for environmental impact analysis"]
[]
[null,null,"Name of Project/ Activity:"]
[]
[]
[null,null,"Type of Project/Activity: "]
[]
[]
[null,null,"Baseline Environmental Conditions:"]
[]
[]
[]
[]
[null,null,"Provide site specific environmental conditions.  Plant and animal resources, water resource and condition, human population characteristics, land use, soil, ecosystem condition, air quality.  Describe existing environment at the proposed project site relevant to the scope and potential impact.  Include maps and photos as necessary.  Use additional pages as necessary."]
[]
[]
[]
[]
[null,null,"A.  CHECKLIST FOR ENVIRONMENTAL CONSEQUENCES: Check appropriate column as Yes (Y), Maybe (M), No (N) or Beneficial (B).  Briefly explain Y, M and B checks in next Section, \"Explanations\".  A \"Y\" response does not necessarily indicate a significant effect, but rather an issue that requires focused consideration. "]
[]
[]
[]
[]
[null,null,null,null,null,null,null,null,null,"Enter Y. M. N. or B in the column below"]
[]
[]
[null,null,"1.  Earth Resources"]
[null,null,"a. grading trenching, or excavation  in cubic meters or hectare"]
[null,null,"b. geologic hazards (faults, landslides, liquefaction, un-engineered fill, etc.)"]
[null,null,"c. contaminated soils or ground water on the site"]
[null,null,"d. offsite overburden/waste disposal or borrow pits required in cubic meters or tons"]
[null,null,"e. loss of high-quality farmlands in hectares"]
[]
[null,null,"2. Agricultural and Agrochemical"]
[null,null,"a. impacts of inputs such as seeds and fertilizers"]
[null,null,"b. impact of production process on human health and environment"]
[null,null,"c. other adverse impacts"]
[]
[null,null,"3. Industries"]
[null,null,"a. impacts of run-off and run-on water"]
[null,null,"b. impact of farming such as intensification or extensification"]
[null,null,"c. impact of other factors"]
[]
[null,null,"4. Air Quality"]
[null,null,"a. substantial increase in onsite air pollutant emissions (construction/operation)"]
[null,null,"b. violation of applicable air pollutant emissions or ambient concentration standards"]
[null,null,"c. substantial increase in vehicle traffic during construction or operation"]
[null,null,"d. demolition or blasting for construction"]
[null,null,"e. substantial increase in odor during construction or operation"]
[null,null,"f.  substantial alteration of microclimate"]
[]
[null,null,"5. Water Resources and Quality"]
[null,null,"a. river, stream or lake onsite or within 30 meters of construction"]
[null,null,"b. withdrawals from or discharges to surface or ground water"]
[null,null,"c. excavation or placing of fill, removing gravel from, a river, stream or lake"]
[null,null,"d. onsite storage of liquid fuels or hazardous materials in bulk quantities"]
[]
[null,null,"6. Cultural Resources"]
[null,null,"a. prehistoric, historic, or paleontological resources within 30 meters of construction"]
[null,null,"b. site/facility with unique cultural or ethnic values"]
[]
[null,null,"7.  Biological Resources"]
[null,null,"a. vegetation removal or construction in wetlands or riparian areas in hectare"]
[null,null,"b. use of pesticides/rodenticides, insecticides, or herbicides in hectare"]
[null,null,"c. Construction in or adjacent to a designated wildlife refuge"]
[]
[null,null,"8. Planning and Land Use"]
[null,null,"a. potential conflict with adjacent land uses"]
[null,null,"b. non-compliance with existing codes, plans, permits or design factors"]
[null,null,"c. construction in national park or designated recreational area"]
[null,null,"d. create substantially annoying source of light or glare"]
[null,null,"e. relocation of >10 individuals for +6 months"]
[null,null,"f.  interrupt necessary utility or municipal service > 10 individuals for +6 months"]
[null,null,"g. substantial loss of inefficient use of mineral or non-renewable resources"]
[null,null,"h. increase existing noise levels >5 decibels for +3 months"]
[]
[null,null,"9. Traffic, Transportation and Circulation"]
[null,null,"a. increase vehicle trips >20% or cause substantial congestion"]
[null,null,"b. design features cause or contribute to safety hazards"]
[null,null,"c. inadequate access or emergency access for anticipated volume of people or traffic"]
[]
[null,null,"10.  Hazards"]
[null,null,"a. substantially increase risk of fire, explosion, or hazardous chemical release"]
[null,null,"b. bulk quantities of hazardous materials or fuels stored on site +3 months"]
[null,null,"c. create or substantially contribute to human health hazard"]
[]
[null,null,"11.  Other Issues (to be used for categories not captured under1 through 10 above) "]
[null,null,"a. substantial adverse impact"]
[null,null,"b. adverse impact"]
[null,null,"c. minimal impact"]
[]
[null,null,"B. EXPLANATION OF ENVIRONMENTAL CONSEQUENCES: explain Y, M and B responses"]
[]
[]
[]
[]
[]
[]
[]
[]
[]
[]
[]
[null,null,"C.  IDENTIFIED SIGNIFICANT ENVIRONMENTAL IMPACTS (including physical, biological and social), if any: (Use ER to identify significant environmental impacts)"]
[]
[]
[]
[]
[]
[]
[]
[]
[]
[]
[]
[null,null,"D.  PROPOSED MITIGATION MEASURES (if any):"]
[]
[]
[]
[]
[]
[]
[]
[]
[]
[]
[null,null,"E.  PROPOSED MONITORING MEASURES (if any):"]

{"sheet":"Print","index":25,"n_rows":5,"n_cols":5,"rows_kept":5,"cut":false,"hidden":false,"merged":[[1,2,1,15],[2,2,2,15],[7,5,7,14],[19,12,19,14],[10,4,11,4],[4,2,6,3],[4,4,6,13]]}
[]
[null,null,"Peace Corps Small Grant Application"]
[null,null,"Signature Forms"]
[]
[null,null,"Directions",null,"Once you have completed all other sections of this application, please print out the following pages, obtain the required signatures, and return hard copies to post."]

{"sheet":"PCV Liability","index":26,"n_rows":70,"n_cols":15,"rows_kept":70,"cut":false,"hidden":false,"merged":[[8,8,8,10],[42,7,42,10],[8,11,8,14],[19,3,20,14],[22,3,25,14],[27,3,28,14],[8,5,8,7],[30,3,32,14],[34,3,35,14],[37,3,37,14],[17,3,17,14],[9,3,9,4],[8,3,8,4],[12,3,13,14],[9,5,9,14],[10,3,10,4],[10,5,10,7],[47,3,47,14],[42,12,42,13],[43,7,43,10],[42,3,42,5],[46,19,54,30],[58,12,58,13],[43,3,43,5],[45,3,45,14],[68,12,68,13],[68,7,68,10],[68,3,68,5],[59,12,59,13],[59,3,59,5],[58,21,63,32],[58,7,58,10],[59,7,59,10],[57,3,57,14],[43,12,43,13],[49,3,50,14],[44,9,44,14],[1,3,1,14],[2,3,2,14],[7,3,7,4],[4,4,4,13],[6,8,6,10],[6,5,6,7],[6,3,6,4],[7,6,7,7],[7,8,7,10],[7,11,7,14],[69,3,69,5],[39,3,39,14],[69,7,69,10],[61,3,61,14],[63,3,64,14],[69,12,69,13],[54,3,55,14],[52,3,52,14]]}
[]
[null,null,null,"Peace Corps Small Grant Application"]
[null,null,null,"Peace Corps Volunteer Consent and Liability Signature Form"]
[]
[null,null,null,"Directions","If you will be accepting the project funds, print out this form, obtain the necessary signatures, and return a hard copy to post. If the project funds will be transferred to the community organization, please ensure the community member accepting the funds signs this document.  "]
[]
[null,null,null,"Project Title: ",null,{"$f":"IF(ISBLANK('1. Classification & Budget'!H9),\"\",'1. Classification & Budget'!H9)","v":"Healthy Homes with Improved Cook Stoves"},null,null,"Project Number:",null,null,{"$f":"IF(ISBLANK(GrantChoice),\"\",GrantChoice)","v":"PP"},{"$f":"IF(ISBLANK('1. Classification & Budget'!R7),\"\",'1. Classification & Budget'!R7)","v":""},{"$f":"IF(ISBLANK('1. Classification & Budget'!S7),\"\",'1. Classification & Budget'!S7)","v":527},{"$f":"IF(ISBLANK('1. Classification & Budget'!T7),\"\",'1. Classification & Budget'!T7)","v":""}]
[null,null,null,"Volunteer Name:",null,{"$f":"IF(ISBLANK('1. Classification & Budget'!I23),\"\",'1. Classification & Budget'!I23)","v":"Emelie"},{"$f":"IF(ISBLANK('1. Classification & Budget'!F23),\"\",'1. Classification & Budget'!F23)","v":"Taylor"},null,"Peace Corps Country:",null,null,{"$f":"IF(ISBLANK('1. Classification & Budget'!H5),\"\",'1. Classification & Budget'!H5)","v":"Peru"}]
[null,null,null,"Community Partner:",null,{"$f":"IF(ISBLANK('1. Classification & Budget'!H14),\"YOU MUST ENTER A COMMUNITY GROUP NAME ON THE PROJECT CLASSIFICATION SCREEN\",'1. Classification & Budget'!H14)","v":"Healthy Homes Committee"},null,null,"Authorized Representative of the Community Partner:",null,null,{"$f":"IF(ISBLANK('1. Classification & Budget'!H15),\"\",'1. Classification & Budget'!H15)","v":"Project President: Rosa Carmen Mondragon"}]
[null,null,null,"Funding Source:",null,{"$f":"IF(ISBLANK(GrantChoice),\"\",IF(GrantChoice=\"PP\",\"Peace Corps Parntership\",IF(GrantChoice=\"SP\",\"SPA\",IF(GrantChoice=\"VA\",\"VAST\",IF(GrantChoice=\"EC\",\"ECPA\",IF(GrantChoice=\"GEF\",\"Global Education Framework\",\"\"))))))","v":"Peace Corps Parntership"}]
[null,null,null,"Grant Amount (USD):",null,{"$f":"SUM('1. Classification & Budget'!H50:I56)","v":3554.8888888888887}]
[]
[null,null,null,"By signing below, the Authorized Representative on behalf of the Community Partner and the Peace Corps Volunteer agree to the following:"]
[]
[]
[null,null,null,"TERMS AND CONDITIONS FOR THE COMMUNITY PARTNER AND PEACE CORPS VOLUNTEER"]
[]
[null,null,null,"1. Project funds may to be used only for reasonable costs of the Project."]
[]
[null,null,null,"2. The Community Partner and Peace Corps Volunteer are responsible for managing these funds in accordance with the guidelines applicable to the above referenced funding source and accounting for the use of Project funds."]
[]
[]
[null,null,null,"3. The Community Partner and Peace Corps Volunteer are responsible for obtaining, keeping, recording in the Small Grant Project Log and submitting to the Peace Corps all original invoices, receipts, or other documentation for all purchases or other expenditures of Project funds. For all purchases made without the Volunteer present, the Community Partner must notify the Volunteer, obtain a signed, dated, and witnessed receipt, and record the expenditure in the Small Grant Project Log."]
[]
[]
[]
[]
[null,null,null,"4. The Community Partner and Peace Corps Volunteer are responsible for returning any unused funds that remain within 30 days of the completion of the Project."]
[]
[]
[null,null,null,"5. Except as agreed to otherwise by the Peace Corps, the Community Partner and Peace Corps Volunteer are liable for any Project funds disbursed to them that cannot be accounted for or were spent on non-approved costs, lost, or stolen."]
[]
[]
[]
[null,null,null,"6.  The Community Partner and Peace Corps Volunteer acknowledge that (a) there will be no additional funding beyond the Funding Amount above and (b) if this is a Peace Corps Partnership Program (PCPP) project, that funding is not guaranteed."]
[]
[]
[null,null,null,"7.  The Community Partner is responsible for obtaining the 25 percent community contribution to the project."]
[]
[null,null,null,"8. The Volunteer and the Peace Corps are not responsible for any activities, expenditures, or liabilities incurred after the project is closed."]
[]
[]
[]
[null,null,null,"Authorized Representative Name (Print)",null,null,null,"Signature",null,null,null,null,"Date"]
[null,null,null,null,null,null,null,null,null,"NOTE: Signatures continue on Page 2"]
[null,null,null,"ADDITIONAL TERMS AND CONDITIONS FOR THE PEACE CORPS VOLUNTEER"]
[]
[null,null,null,"1.  I will work closely with my Community Partner to establish a funds-management system."]
[]
[null,null,null,"2.  If funds are transferred to the same bank account through which I receive my Volunteer living allowance, I will take all necessary measures to ensure that grant funds are not commingled with my living allowance."]
[]
[]
[null,null,null,"3.  I will strictly account for all grant funds and will not use any grant funds for personal use.  "]
[]
[null,null,null,"4. Any Project funds disbursed to the Peace Corps Volunteer that cannot be accounted for or were spent on non-approved costs, lost, or stolen may be deducted from my readjustment allowance as a debt owed to the Peace Corps (Pursuant to MS 223)."]
[]
[]
[null,null,null,"5. The Peace Corps may contact the referrals I provided."]
[null,null,null,{"$f":"IF(ISBLANK('1. Classification & Budget'!I23),\"\",'1. Classification & Budget'!I23)","v":"Emelie"},{"$f":"IF(ISBLANK('1. Classification & Budget'!F23),\"\",'1. Classification & Budget'!F23)","v":"Taylor"}]
[null,null,null,"Peace Corps Volunteer Name (Print)",null,null,null,"Peace Corps Volunteer Signature",null,null,null,null,"Date"]
[]
[null,null,null,"PEACE CORPS APPROVAL "]
[null,null,null,"\nI have reviewed this Application and certify that it meets the requirements of the applicable funding source, and that it is well-planned, accurately budgeted, and the Peace Corps Volunteer and  Community Partner possess the technical skills to successfully complete the project within the timeframe of the Volunteer’s term of service. \n"]
[null,null,null,"I have reviewed this Application and certify that it meets the requirements of the applicable funding source, and that it is well-planned, accurately budgeted, and the Peace Corps Volunteer and Community Partner possess the technical skills to successfully complete the project within the timeframe of the Volunteer’s term of service. "]
[]
[]
[]
[]
[]
[null,null,null,"Country Director (Print)",null,null,null,"Country Director Signature",null,null,null,null,"Date"]

{"sheet":"Project Agreement","index":27,"n_rows":37,"n_cols":14,"rows_kept":37,"cut":false,"hidden":false,"merged":[[35,8,35,10],[8,3,8,5],[9,6,9,7],[9,8,9,10],[12,3,12,10],[35,3,35,6],[34,3,34,6],[33,3,33,4],[33,7,33,9],[31,3,31,5],[24,3,24,10],[21,3,21,5],[21,6,21,10],[30,8,30,10],[4,4,4,6],[22,3,22,5],[22,6,22,10],[26,3,26,10],[34,8,34,10],[31,8,31,10],[1,13,3,16],[26,13,28,25],[30,3,30,6],[27,3,27,10],[13,6,13,10],[14,3,14,5],[10,6,10,10],[10,3,10,5],[13,3,13,5],[14,6,14,10],[1,2,1,11],[2,2,2,11],[7,3,7,5],[7,6,7,10],[9,3,9,5],[28,3,28,10]]}
[]
[null,null,"Peace Corps Small Grant Application",null,null,null,null,null,null,null,null,null,null,"NOTE: This page must be printed, signed, scanned and sent to Peace Corps/headquarters"]
[null,{"$f":"IF(ISBLANK('1. Classification & Budget'!H5),\"\",'1. Classification & Budget'!H5)","v":"Peru"},"Project Agreement"]
[]
[null,null,null,"PEACE CORPS/ ",{"$f":"IF(ISBLANK('1. Classification & Budget'!H5),\"\",'1. Classification & Budget'!H5)","v":"Peru"}]
[null,null,null,{"$f":"IF(ISBLANK(GrantChoice),\"\",IF(GrantChoice=\"PP\",\"Peace Corps Partnership\",IF(GrantChoice=\"SP\",\"SPA\",IF(GrantChoice=\"VA\",\"VAST\",IF(GrantChoice=\"EC\",\"ECPA\",IF(GrantChoice=\"FF\",\"FTF\",\"\"))))))","v":"Peace Corps Partnership"},null,"PROJECT AGREEMENT"]
[]
[null,null,null,"Community Organization:",null,null,{"$f":"IF(ISBLANK('1. Classification & Budget'!H14),\"\",'1. Classification & Budget'!H14)","v":"Healthy Homes Committee"}]
[null,null,null,"Project Number:",null,null,{"$f":"IF(ISBLANK(GrantChoice),\"\",GrantChoice)","v":"PP"},{"$f":"IF(ISBLANK('1. Classification & Budget'!R7),\"\",'1. Classification & Budget'!R7)","v":""},{"$f":"IF(ISBLANK('1. Classification & Budget'!S7),\"\",'1. Classification & Budget'!S7)","v":527},{"$f":"IF(ISBLANK('1. Classification & Budget'!T7),\"\",'1. Classification & Budget'!T7)","v":""}]
[null,null,null,"Volunteer Name:",null,null,{"$f":"IF(ISBLANK('1. Classification & Budget'!I23),\"\",'1. Classification & Budget'!I23)","v":"Emelie"},null,{"$f":"IF(ISBLANK('1. Classification & Budget'!F23),\"\",'1. Classification & Budget'!F23)","v":"Taylor"}]
[null,null,null,"COS Date:",null,null,{"$f":"IF(ISBLANK('1. Classification & Budget'!P23),\"\",'1. Classification & Budget'!P23)","v":"2014-11-23"}]
[]
[null,null,null,"Implementation Dates:"]
[null,null,null,"Start Date:",null,null,{"$f":"IF(ISBLANK('1. Classification & Budget'!H18),\"\",'1. Classification & Budget'!H18)","v":"2013-06-01"}]
[null,null,null,"Projected Completion Date:",null,null,{"$f":"IF(ISBLANK('1. Classification & Budget'!N18),\"\",'1. Classification & Budget'!N18)","v":"2014-02-03"}]
[]
[null,null,null,"Budget:"]
[null,null,null,"Local Contribution",null,null,{"$f":"SUM('1. Classification & Budget'!J50:M56)","v":1265},"= Local Currency @",{"$f":"'6. Detailed Budget'!G$21","v":2.7},{"$f":"I18*G18","v":3415.5},{"$f":"IF(ISERROR(G18/G21),\"\",G18/G21)","v":0.26245418289955968}]
[null,null,null,"Grant Amount",null,null,{"$f":"SUM('1. Classification & Budget'!H50:I56)","v":3554.8888888888887},"= Local Currency @",{"$f":"'6. Detailed Budget'!G$21","v":2.7},{"$f":"I19*G19","v":9598.2000000000007},{"$f":"IF(ISERROR(G19/G21),\"\",G19/G21)","v":0.73754581710044032}]
[null,null,null,"Third Party Contribution",null,null,{"$f":"SUM('1. Classification & Budget'!N50:Q56)","v":0},"= Local Currency @",{"$f":"'6. Detailed Budget'!G$21","v":2.7},{"$f":"I20*G20","v":0},{"$f":"IF(ISERROR(G20/G21),\"\",G20/G21)","v":0}]
[null,null,null,"Total Project Cost",null,null,{"$f":"SUM(G18:G20)","v":4819.8888888888887},"= Local Currency @",{"$f":"'6. Detailed Budget'!G$21","v":2.7},{"$f":"SUM(J18:J20)","v":13013.7},{"$f":"SUM(K18:K20)","v":1}]
[null,null,null,"Obligation Number"]
[null,null,null,{"$f":"IF('1. Classification & Budget'!H6=\"Small Project Assistance (SPA)\",\"SPA Program Element\",\"\")","v":""}]
[]
[null,null,null,{"$f":"IF('1. Classification & Budget'!H6=\"Small Project Assistance (SPA)\",Lookup!S2,IF('1. Classification & Budget'!H6=\"Peace Corps Partnership Program (PCPP)\",Lookup!S8,IF('1. Classification & Budget'!H6=\"Energy Climate Partnership of the Americas (ECPA)\",Lookup!S1,IF('1. Classification & Budget'!H6=\"Feed the Future (FTF)\",Lookup!S6,IF('1. Classification & Budget'!H6=\"Volunteer Activities Support and Training (VAST)\",Lookup!S3,\"\")))))","v":"Authority: This PCPP Project Agreement is executed purusant to the Peace Corps Manual Section 720 which states that, \"Donations to the Partnership Program shall be applied exclusively for overseas projects. Donations for projects may be accepted only if they meet the criteria set forth in Manual Section 721, Gifts and Contributions to the Peace Corps.\""}]
[]
[null,null,null,"IN WITNESS WHEREOF, the community organization named above, the Peace Corps Volunteer, and Peace Corps, pursuant to the terms and conditions of"]
[null,null,null,{"$f":"IF('1. Classification & Budget'!H6=\"Small Project Assistance (SPA)\",Lookup!S21,IF('1. Classification & Budget'!H6=\"Peace Corps Partnership Program (PCPP)\",Lookup!S30,IF('1. Classification & Budget'!H6=\"Energy Climate Partnership of the Americas (ECPA)\",Lookup!S27,IF('1. Classification & Budget'!H6=\"Feed the Future (FTF)\",Lookup!S33,IF('1. Classification & Budget'!H6=\"Volunteer Activities Support and Training (VAST)\",Lookup!S24,\"\")))))","v":"the Manual Section 720 and Manual Section 721, have caused this PCPP Project Agreement to be signed under their respective names and delivered as of this date and year."}]
[null,null,null,"By signing this Project Agreement, the community organization and Volunteer agrees to use project funds to support only the activities and goals described in this project application, and in accordance with the proposed budget. Equipment and goods purchased using funds awarded will be used to support the objectives of the project and in accordance with the project Application."]
[]
[]
[null,null,null,"Organization Official Signature",null,null,null,null,"Peace Corps Country Director Signature"]
[null,null,null,null,null,null,"(Date)",null,null,null,"(Date)"]
[]
[]
[null,null,null,"Peace Corps Volunteer Signature",null,null,null,null,"APCD (If required by post)"]
[null,null,null,null,null,null,"(Date)",null,null,null,"(Date)"]

{"sheet":"10. PCPP - Press Auth Form","index":28,"n_rows":18,"n_cols":5,"rows_kept":18,"cut":false,"hidden":false,"merged":[[16,3,16,4],[3,3,3,7],[5,3,5,7],[7,3,7,7],[1,2,1,8],[2,2,2,8],[10,6,10,7],[13,6,13,7],[13,3,13,4]]}
[]
[null,null,"Peace Corps Small Grant Application"]
[null,null,"Press Authorization Form"]
[null,null,null,"Please fill out the Press Authorization form, so PC/headquarters staff may publicize your project. For PCPP, this will also allow staff to upload any of your submitted photographs to your project page on the Peace Corps Website (www.peacecorps.gov/donate).  PC/headquarters staff may also contact you to be featured in articles about your project and PC experiences.  "]
[]
[null,null,null,"Project Photo Details: For those submitting a PCPP project, PC/headquarters staff can upload Volunteer/Community photos with each project summary on the donation website.  Each project may have one to three photographs associated with the summary.  Pictures of community members, the site of the project, and “before” pictures are generally the most compelling for donors.  Please use at least the standard quality of picture–no less than 72 pixels/inch.  (PC/headquarters staff may need to  crop images.) You must fill out this form for your pictures to be shown on the Peace Corps Website. "]
[]
[null,null,null,"I, the undersigned, hereby grant to the Peace Corps a perpetual, worldwide, royalty-free, non-exclusive license to use, reproduce, or publish for purposes authorized by the Peace Corps Act: my name; the negatives and prints of photographs, videotapes, and/or other audio or visual recordings of myself; my articles and stories; and any other documents, writings, statements, recordings, representations, or information I may provide pursuant to and in accordance with the terms of this Authorization.\n\nIn particular, I hereby authorize the Peace Corps to use, reproduce, or publish any or all of the above-listed items and to make reference to me in connection with these items to promote the Peace Corps using various media and publicity means, including, but not limited to: websites; books; public service advertising on television and radio stations; television and radio broadcasts; direct-mail pieces; print advertisements; brochures; flyers; posters; articles; editorials; speeches; roundtable discussions; radio interviews; and television programs. \n\nI acknowledge that I will receive no compensation from the Peace Corps in consideration of this Authorization or the use of the above-listed items pursuant to this Authorization."]
[]
[]
[null,null,null,{"$f":"IF(ISBLANK('1. Classification & Budget'!I23),\"\",'1. Classification & Budget'!I23)","v":"Emelie"},{"$f":"IF(ISBLANK('1. Classification & Budget'!F23),\"\",'1. Classification & Budget'!F23)","v":"Taylor"}]
[null,null,null,"Volunteer Name"]
[]
[]
[null,null,null,"Volunteer Signature"]
[]
[]
[null,null,null,"Date"]

{"sheet":"End","index":29,"n_rows":23,"n_cols":8,"rows_kept":23,"cut":false,"hidden":false,"merged":[[5,2,5,11],[22,2,22,6],[22,7,22,11]]}
[]
[]
[]
[]
[]
[null,null,"Thank you for completing your small grants application. Please submit this application to the appropriate staff member at post for project approval."]
[]
[]
[]
[]
[]
[]
[]
[]
[]
[]
[]
[]
[]
[]
[]
[]
[null,null,"Return to Grant Selection Menu",null,null,null,null,"Return to Main Menu"]

{"sheet":"Lookup","index":30,"n_rows":71,"n_cols":19,"rows_kept":71,"cut":false,"hidden":false,"merged":[]}
["Labor","1.3.7, Law Enforcement Restructuring, Reform and Operations",1,"Albania",304,"EMA",{"$f":"IF(COUNTIF('1. Classification & Budget'!E31:Q37,\"XX\")>=1,\"\",\"XX\")","v":""},"Yes","Agriculture",null,null,"Small Project Assistance (SPA)","SP","Albania","E/E",null,null,null,"Authority:  This ECPA Project Agreement is executed pursuant to the Interagency Acquisition Agreement (IAA) between the United States Department of State and the Peace Corps (PC) signed on August 6, 2010."]
["Equipment","2.2.3, Local Government and Decentralization",3,"Armenia",305,"EMA","X","No","Small Enterprise Development",null,null,"Peace Corps Partnership Program (PCPP)","PP","Armenia","E/E",null,null,null,"Authority:  This SPA Project Agreement is executed pursuant to the current Small Project Assistance (SPA) IV Participating Agency Program Agreement between the U.S. Agency for International Development (USAID) and the Peace Corps governing Small Project Assistance Funds, signed on September 28, 2012."]
["Materials/Supplies","2.2.4, Anti-Corruption Reforms",4,"Azerbaijan",314,"EMA",null,"N/A","Education",null,null,"Volunteer Activities Support and Training (VAST)","VA","Azerbaijan","E/E",null,null,null,"Authority:  This VAST Project Agreement is executed pursuant to the Memorandum of Understanding established between Peace Corps and the PEPFAR initiatitve."]
["Land/Venue Rental","2.3.2, Elections and Political Processes",5,"Belize",535,"IAP",null,null,"Environment",null,null,"Energy Climate Partnership of the Americas (ECPA)","EC","Benin","AF"]
["Travel/Per Diem/Food/Lodging","2.4.1, Civic Participation",6,"Benin",680,"AF",null,null,"Health",null,null,"Feed the Future (FTF)","FF","Burkina Faso","AF"]
["Materials transport","3.1.1, HIV/AIDS",7,"Bolivia",511,"IAP",null,null,"Youth",null,null,"Global Education Framework (GEF)","GEF","Cambodia","Asia",null,null,null,"Authority:  This FTF Project Agreement is executed pursuant to the current Global Food Security Participating Agency Program Agreement between the U.S. Agency for International Development (USAID) and the Peace Corps (PC) governing Feed the Future Food Security Project Funds, signed on July 28, 2011."]
["Other","3.1.3, Malaria",9,"Botswana",637,"AF",null,null,null,null,null,null,null,"Cameroon","AF"]
[2010,"3.1.6, Maternal and Child Health",10,"Bulgaria",313,"EMA",null,null,null,null,null,null,null,"Cape Verde","AF",null,null,null,"Authority: This PCPP Project Agreement is executed purusant to the Peace Corps Manual Section 720 which states that, \"Donations to the Partnership Program shall be applied exclusively for overseas projects. Donations for projects may be accepted only if they meet the criteria set forth in Manual Section 721, Gifts and Contributions to the Peace Corps.\""]
[2011,"3.1.7, Family Planning and Reproductive Health",11,"Burkina Faso",686,"AF",null,null,null,null,null,null,null,"Colombia","LAC"]
[2012,"3.1.8, Water Supply and Sanitation",12,"Cambodia",303,"EMA",null,null,null,null,null,null,null,"Costa Rica","LAC"]
[2013,"3.1.9, Nutrition",13,"Cameroon",694,"AF",null,null,null,null,null,null,null,"Dominican Republic","LAC"]
[2014,"3.2.1, Basic Education",14,"Cape Verde",655,"AF",null,null,null,null,null,null,null,"Eastern Caribbean","LAC"]
[2015,"3.2.2, Higher Education",15,"China",366,"EMA",null,null,null,null,null,null,null,"Ecuador","LAC"]
[2016,"3.3.2, Social Services",16,"Colombia",514,"IAP",null,null,null,null,null,null,null,"El Salvador","LAC"]
[null,"3.3.3, Social Assistance",17,"Costa Rica",515,"IAP",null,null,null,null,null,null,null,"Ethiopia","AF"]
[null,"4.2.1, Trade and Investment Enabling Environment",18,"Dominican Republic",517,"IAP",null,null,null,null,null,null,null,"Fiji","ANE"]
[null,"4.2.2, Trade and Investment Capacity",19,"Eastern Caribbean",538,"IAP",null,null,null,null,null,null,null,"Georgia","E/E"]
[null,"4.3.1, Financial Sector Enabling Environment",20,"Ecuador",518,"IAP",null,null,null,null,null,null,null,"Ghana","AF"]
[null,"4.3.2, Financial Sector Capacity",21,"El Salvador",519,"IAP",null,null,null,null,null,null,null,"Guatemala","IAP"]
[null,"4.5.1, Agriculture Enabling Environment",22,"Ethiopia",663,"AF",null,null,null,null,null,null,null,"Guinea","AF",null,null,null,"For SPA"]
[null,"4.5.2, Agricultural Sector Productivity",23,"Fiji",411,"IAP",null,null,null,null,null,null,null,"Jamaica","LAC",null,null,null,"the PAPA referenced above, each acting through its respective duly authorized representative, have caused this SPA Project Agreement to be signed under their respective names and delivered as of this date and year."]
[null,"4.6.1, Business Enabling Environment",24,"The Gambia",635,"AF",null,null,null,null,null,null,null,"Jordan","ME"]
["Days","4.6.2, Private Sector Capacity",25,"Georgia",242,"EMA",null,null,null,null,null,null,null,"Kyrgyz Republic","Asia",null,null,null,"For VAST"]
["Weeks","4.6.3, Workforce Development",26,"Ghana",641,"AF",null,null,null,null,null,null,null,"Liberia","AF",null,null,null,"the Memorandum of Understanding referenced above, each acting through its respective duly authorized representative, have caused this VAST Project Agreement to be signed under their  respective names and delivered as of this date and year."]
["Months","4.7.3, Strengthen Microenterprise Productivity",27,"Guatemala",520,"IAP",null,null,null,null,null,null,null,"Macedonia","E/E"]
[null,"4.8.1, Natural Resources and Biodiversity",28,"Guinea",675,"AF",null,null,null,null,null,null,null,"Madagascar","AF",null,null,null,"For ECPA"]
[null,"4.8.2, Clean Productive Environment",29,"Guyana",504,"IAP",null,null,null,null,null,null,null,"Malawi","AF",null,null,null,"the IAA referenced above, each acting through its respective duly authorized representative, have caused this ECPA Project Agreement to be signed under their respective names and delivered as of this date and year."]
[null,"5.2.1, Capacity Building, Preparedness and Planning",30,"Honduras",522,"IAP",null,null,null,null,null,null,null,"Mali","AF"]
[null,"5.2.2, Disaster Readiness and Mitigation",31,"Indonesia",497,"EMA",null,null,null,null,null,null,null,"Mexico","LAC",null,null,null,"For PCPP"]
[null,"6.1.1, Cross Cutting",32,"Jamaica",532,"IAP",null,null,null,null,null,null,null,"Micronesia","LAC",null,null,null,"the Manual Section 720 and Manual Section 721, have caused this PCPP Project Agreement to be signed under their respective names and delivered as of this date and year."]
[null,"6.6.6, Mozambique USAID Education Funds",33,"Jordan",440,"EMA",null,null,null,null,null,null,null,"Moldova","E/E"]
[null,"9.9.9, PLACE HOLDER TO END THE LIST",null,"Kazakhstan",306,"EMA",null,null,null,null,null,null,null,"Mongolia","Asia",null,null,null,"For FTF"]
[null,null,null,"Kenya",615,"AF",null,null,null,null,null,null,null,"Morocco","ME",null,null,null,"the PAPA referenced above, each acting through its respective duly authorized representative, have caused this FTF Project Agreement to be signed under their respective names and delivered as of this date and year."]
[null,null,null,"Kyrgyz Republic",307,"EMA",null,null,null,null,null,null,null,"Mozambique","AF"]
[null,null,null,"Lesotho",632,"AF",null,null,null,null,null,null,null,"Nicaragua","LAC"]
[null,null,null,"Liberia",669,"AF",null,null,null,null,null,null,null,"Panama","LAC"]
[null,null,null,"Macedonia",249,"EMA",null,null,null,null,null,null,null,"Paraguay","LAC"]
[null,null,null,"Madagascar",684,"AF",null,null,null,null,null,null,null,"Peru","LAC"]
[null,null,null,"Malawi",614,"AF",null,null,null,null,null,null,null,"Philippines","Asia"]
[null,null,null,"Mali",688,"AF",null,null,null,null,null,null,null,"Romania","E/E"]
[null,null,null,"Mexico",510,"IAP",null,null,null,null,null,null,null,"Rwanda","AF"]
[null,null,null,"Micronesia and Palau",401,"IAP",null,null,null,null,null,null,null,"Senegal","AF"]
[null,null,null,"Moldova",261,"EMA",null,null,null,null,null,null,null,"Sierra Leone","AF"]
[null,null,null,"Mongolia",309,"EMA",null,null,null,null,null,null,null,"Tanzania","AF"]
[null,null,null,"Morocco",378,"EMA",null,null,null,null,null,null,null,"The Gambia","AF"]
[null,null,null,"Mozambique",640,"AF",null,null,null,null,null,null,null,"Togo","AF"]
[null,null,null,"Namibia",697,"AF",null,null,null,null,null,null,null,"Turkmenistan","Asia"]
[null,null,null,"Nepal",367,"EMA",null,null,null,null,null,null,null,"Uganda","AF"]
[null,null,null,"Nicaragua",524,"IAP",null,null,null,null,null,null,null,"Ukraine","E/E"]
[null,null,null,"Niger",683,"AF",null,null,null,null,null,null,null,"Vanuatu","ANE"]
[null,null,null,"Panama",525,"IAP",null,null,null,null,null,null,null,"Zambia","AF"]
[null,null,null,"Paraguay",526,"IAP"]
[null,null,null,"Peru",527,"IAP"]
[null,null,null,"Philippines",492,"EMA"]
[null,null,null,"Romania",403,"EMA"]
[null,null,null,"Rwanda",696,"AF"]
[null,null,null,"Samoa",491,"IAP"]
[null,null,null,"Senegal",685,"AF"]
[null,null,null,"Sierra Leone",636,"AF"]
[null,null,null,"South Africa",674,"AF"]
[null,null,null,"Suriname",568,"IAP"]
[null,null,null,"Swaziland",645,"AF"]
[null,null,null,"Tanzania",621,"AF"]
[null,null,null,"Thailand",493,"IAP"]
[null,null,null,"Togo",693,"AF"]
[null,null,null,"Tonga",421,"IAP"]
[null,null,null,"Turkmenistan",315,"EMA"]
[null,null,null,"Uganda",617,"AF"]
[null,null,null,"Ukraine",343,"EMA"]
[null,null,null,"Vanuatu",461,"IAP"]
[null,null,null,"Zambia",611,"AF"]

{"sheet":"Data","index":31,"n_rows":211,"n_cols":72,"rows_kept":211,"cut":false,"hidden":true,"merged":[]}
["Project Information","ThisIsANewReport"]
["Country","FundingSourceLong","FundingSource","FY","ProjCode","CountryCode","ProjNo","Title","ProjLocation","ProjRegion","CommGroup","CommGrPerson","CommGrContact","StartDate","EndDate","NoPCVs","VolLast1","VolFirst1","COS1","VolSec1","VolLast2","VolFirst2","COS2","VolSec2","VolLast3","VolFirst3","COS3","VolSec3","OtherVols","ProgMan","PCRegion"]
[{"$f":"IF(ISBLANK('1. Classification & Budget'!H5),\"\",'1. Classification & Budget'!H5)","v":"Peru"},{"$f":"IF(ISBLANK('1. Classification & Budget'!H6),\"\",'1. Classification & Budget'!H6)","v":"Peace Corps Partnership Program (PCPP)"},{"$f":"IF(ISBLANK(GrantChoice),\"\",GrantChoice)","v":"PP"},{"$f":"IF(ISBLANK('1. Classification & Budget'!Q6),\"\",'1. Classification & Budget'!Q6)","v":""},{"$f":"IF(ISBLANK('1. Classification & Budget'!R7),\"\",'1. Classification & Budget'!R7)","v":""},{"$f":"IF(ISBLANK('1. Classification & Budget'!S7),\"\",'1. Classification & Budget'!S7)","v":527},{"$f":"IF(ISBLANK('1. Classification & Budget'!T7),\"\",'1. Classification & Budget'!T7)","v":""},{"$f":"IF(ISBLANK('1. Classification & Budget'!H9),\"\",'1. Classification & Budget'!H9)","v":"Healthy Homes with Improved Cook Stoves"},{"$f":"IF(ISBLANK('1. Classification & Budget'!H11),\"\",'1. Classification & Budget'!H11)","v":"Pampa Elera Alta"},{"$f":"IF(ISBLANK('1. Classification & Budget'!H12),\"\",'1. Classification & Budget'!H12)","v":"Piura"},{"$f":"IF(ISBLANK('1. Classification & Budget'!H14),\"\",'1. Classification & Budget'!H14)","v":"Healthy Homes Committee"},{"$f":"IF(ISBLANK('1. Classification & Budget'!H15),\"\",'1. Classification & Budget'!H15)","v":"Project President: Rosa Carmen Mondragon"},{"$f":"IF(ISBLANK('1. Classification & Budget'!H16),\"\",'1. Classification & Budget'!H16)","v":51989438055},{"$f":"IF(ISBLANK('1. Classification & Budget'!H18),\"\",'1. Classification & Budget'!H18)","v":41426},{"$f":"IF(ISBLANK('1. Classification & Budget'!N18),\"\",'1. Classification & Budget'!N18)","v":41673},1,{"$f":"IF(ISBLANK('1. Classification & Budget'!F23),\"\",'1. Classification & Budget'!F23)","v":"Taylor"},{"$f":"IF(ISBLANK('1. Classification & Budget'!I23),\"\",'1. Classification & Budget'!I23)","v":"Emelie"},{"$f":"IF(ISBLANK('1. Classification & Budget'!P23),\"\",'1. Classification & Budget'!P23)","v":41966},{"$f":"IF(ISBLANK('1. Classification & Budget'!L23),\"\",'1. Classification & Budget'!L23)","v":""},{"$f":"IF(ISBLANK('1. Classification & Budget'!F24),\"\",'1. Classification & Budget'!F24)","v":""},{"$f":"IF(ISBLANK('1. Classification & Budget'!I24),\"\",'1. Classification & Budget'!I24)","v":""},{"$f":"IF(ISBLANK('1. Classification & Budget'!P24),\"\",'1. Classification & Budget'!P24)","v":""},{"$f":"IF(ISBLANK('1. Classification & Budget'!L24),\"\",'1. Classification & Budget'!L24)","v":""},{"$f":"IF(ISBLANK('1. Classification & Budget'!F25),\"\",'1. Classification & Budget'!F25)","v":""},{"$f":"IF(ISBLANK('1. Classification & Budget'!I25),\"\",'1. Classification & Budget'!I25)","v":""},{"$f":"IF(ISBLANK('1. Classification & Budget'!P25),\"\",'1. Classification & Budget'!P25)","v":""},{"$f":"IF(ISBLANK('1. Classification & Budget'!L25),\"\",'1. Classification & Budget'!L25)","v":""},{"$f":"IF(ISBLANK('1. Classification & Budget'!R23),\"\",'1. Classification & Budget'!R23)","v":""},{"$f":"IF(ISBLANK('1. Classification & Budget'!I27),\"\",'1. Classification & Budget'!I27)","v":"Emilia Villanueva"},{"$f":"IF(ISBLANK('1. Classification & Budget'!H5),\"\",INDEX(Lookup!D1:F71,MATCH('1. Classification & Budget'!H5,Lookup!D1:D71,0),3))","v":"IAP"}]
[]
["Project Classification"]
["Ag","Ed","Env","Health","MunDevl","SED","YD","WatSan","HIVAIDS","ICT","NGO","Volunteerism","FoodSec","Gender","DirMale25+","DirFemale25+","DirMale15","DirFemale15","DirBoys","DirGirls","IndirMale25+","IndirFemale25+","IndirMale15","IndirFemale15","IndirBoys","indirGirls"]
[{"$f":"IF(ISBLANK('1. Classification & Budget'!E31),\"\",'1. Classification & Budget'!E31)","v":""},{"$f":"IF(ISBLANK('1. Classification & Budget'!E33),\"\",'1. Classification & Budget'!E33)","v":""},{"$f":"IF(ISBLANK('1. Classification & Budget'!E35),\"\",'1. Classification & Budget'!E35)","v":""},{"$f":"IF(ISBLANK('1. Classification & Budget'!E37),\"\",'1. Classification & Budget'!E37)","v":"xx"},{"$f":"IF(ISBLANK('1. Classification & Budget'!H31),\"\",'1. Classification & Budget'!H31)","v":""},{"$f":"IF(ISBLANK('1. Classification & Budget'!H33),\"\",'1. Classification & Budget'!H33)","v":""},{"$f":"IF(ISBLANK('1. Classification & Budget'!H35),\"\",'1. Classification & Budget'!H35)","v":""},{"$f":"IF(ISBLANK('1. Classification & Budget'!H37),\"\",'1. Classification & Budget'!H37)","v":"x"},{"$f":"IF(ISBLANK('1. Classification & Budget'!M31),\"\",'1. Classification & Budget'!M31)","v":""},{"$f":"IF(ISBLANK('1. Classification & Budget'!M33),\"\",'1. Classification & Budget'!M33)","v":""},{"$f":"IF(ISBLANK('1. Classification & Budget'!M35),\"\",'1. Classification & Budget'!M35)","v":""},{"$f":"IF(ISBLANK('1. Classification & Budget'!M37),\"\",'1. Classification & Budget'!M37)","v":""},{"$f":"IF(ISBLANK('1. Classification & Budget'!Q31),\"\",'1. Classification & Budget'!Q31)","v":""},{"$f":"IF(ISBLANK('1. Classification & Budget'!Q33),\"\",'1. Classification & Budget'!Q33)","v":""},{"$f":"IF(ISBLANK('1. Classification & Budget'!I42),\"\",'1. Classification & Budget'!I42)","v":1},{"$f":"IF(ISBLANK('1. Classification & Budget'!O42),\"\",'1. Classification & Budget'!O42)","v":57},{"$f":"IF(ISBLANK('1. Classification & Budget'!K42),\"\",'1. Classification & Budget'!K42)","v":0},{"$f":"IF(ISBLANK('1. Classification & Budget'!Q42),\"\",'1. Classification & Budget'!Q42)","v":11},{"$f":"IF(ISBLANK('1. Classification & Budget'!M42),\"\",'1. Classification & Budget'!M42)","v":0},{"$f":"IF(ISBLANK('1. Classification & Budget'!S42),\"\",'1. Classification & Budget'!S42)","v":0},{"$f":"IF(ISBLANK('1. Classification & Budget'!I43),\"\",'1. Classification & Budget'!I43)","v":""},{"$f":"IF(ISBLANK('1. Classification & Budget'!O43),\"\",'1. Classification & Budget'!O43)","v":""},{"$f":"IF(ISBLANK('1. Classification & Budget'!K43),\"\",'1. Classification & Budget'!K43)","v":""},{"$f":"IF(ISBLANK('1. Classification & Budget'!Q43),\"\",'1. Classification & Budget'!Q43)","v":""},{"$f":"IF(ISBLANK('1. Classification & Budget'!M43),\"\",'1. Classification & Budget'!M43)","v":63},{"$f":"IF(ISBLANK('1. Classification & Budget'!S43),\"\",'1. Classification & Budget'!S43)","v":57}]
[]
["Project Cost Breakdown"]
["Lab","Equip","Mat","Land","Trav","Trans","Other","CommLab","CommEquip","CommMat","CommLand","CommTrav","CommTrans","CommOther","CommLabInkind","CommEquipInkind","CommMatInkind","CommLandInkind","CommTravInkind","CommTransInkind","CommOtherInkind","ThirdLab","ThirdEquip","ThirdMat","ThirdLand","ThirdTrav","ThirdTrans","ThirdOther","ThirdLabInkind","ThirdEquipInkind","ThirdMatInkind","ThirdLandInkind","ThirdTravInkind","ThirdTransInkind","ThirdOtherInkind"]
[{"$f":"IF('1. Classification & Budget'!H50=0,\"\",'1. Classification & Budget'!H50)","v":842.5925925925925},{"$f":"IF('1. Classification & Budget'!H51=0,\"\",'1. Classification & Budget'!H51)","v":""},{"$f":"IF('1. Classification & Budget'!H52=0,\"\",'1. Classification & Budget'!H52)","v":2630},{"$f":"IF('1. Classification & Budget'!H53=0,\"\",'1. Classification & Budget'!H53)","v":""},{"$f":"IF('1. Classification & Budget'!H54=0,\"\",'1. Classification & Budget'!H54)","v":""},{"$f":"IF('1. Classification & Budget'!H55=0,\"\",'1. Classification & Budget'!H55)","v":82.296296296296291},{"$f":"IF('1. Classification & Budget'!H56=0,\"\",'1. Classification & Budget'!H56)","v":""},{"$f":"IF('1. Classification & Budget'!J50=0,\"\",'1. Classification & Budget'!J50)","v":""},{"$f":"IF('1. Classification & Budget'!J51=0,\"\",'1. Classification & Budget'!J51)","v":""},{"$f":"IF('1. Classification & Budget'!J52=0,\"\",'1. Classification & Budget'!J52)","v":""},{"$f":"IF('1. Classification & Budget'!J53=0,\"\",'1. Classification & Budget'!J53)","v":""},{"$f":"IF('1. Classification & Budget'!J54=0,\"\",'1. Classification & Budget'!J54)","v":""},{"$f":"IF('1. Classification & Budget'!J55=0,\"\",'1. Classification & Budget'!J55)","v":""},{"$f":"IF('1. Classification & Budget'!J56=0,\"\",'1. Classification & Budget'!J56)","v":""},{"$f":"IF('1. Classification & Budget'!L50=0,\"\",'1. Classification & Budget'!L50)","v":152.11111111111109},{"$f":"IF('1. Classification & Budget'!L51=0,\"\",'1. Classification & Budget'!L51)","v":""},{"$f":"IF('1. Classification & Budget'!L52=0,\"\",'1. Classification & Budget'!L52)","v":927.7037037037037},{"$f":"IF(ISBLANK('1. Classification & Budget'!L53),\"\",'1. Classification & Budget'!L53)","v":185.18518518518516},{"$f":"IF('1. Classification & Budget'!L54=0,\"\",'1. Classification & Budget'!L54)","v":""},{"$f":"IF('1. Classification & Budget'!L55=0,\"\",'1. Classification & Budget'!L55)","v":""},{"$f":"IF('1. Classification & Budget'!L56=0,\"\",'1. Classification & Budget'!L56)","v":""},{"$f":"IF('1. Classification & Budget'!N50=0,\"\",'1. Classification & Budget'!N50)","v":""},{"$f":"IF('1. Classification & Budget'!N51=0,\"\",'1. Classification & Budget'!N51)","v":""},{"$f":"IF('1. Classification & Budget'!N52=0,\"\",'1. Classification & Budget'!N52)","v":""},{"$f":"IF('1. Classification & Budget'!N53=0,\"\",'1. Classification & Budget'!N53)","v":""},{"$f":"IF('1. Classification & Budget'!N54=0,\"\",'1. Classification & Budget'!N54)","v":""},{"$f":"IF('1. Classification & Budget'!N55=0,\"\",'1. Classification & Budget'!N55)","v":""},{"$f":"IF('1. Classification & Budget'!N56=0,\"\",'1. Classification & Budget'!N56)","v":""},{"$f":"IF('1. Classification & Budget'!P50=0,\"\",'1. Classification & Budget'!P50)","v":""},{"$f":"IF('1. Classification & Budget'!P51=0,\"\",'1. Classification & Budget'!P51)","v":""},{"$f":"IF('1. Classification & Budget'!P52=0,\"\",'1. Classification & Budget'!P52)","v":""},{"$f":"IF('1. Classification & Budget'!P53=0,\"\",'1. Classification & Budget'!P53)","v":""},{"$f":"IF('1. Classification & Budget'!P54=0,\"\",'1. Classification & Budget'!P54)","v":""},{"$f":"IF('1. Classification & Budget'!P55=0,\"\",'1. Classification & Budget'!P55)","v":""},{"$f":"IF('1. Classification & Budget'!P56=0,\"\",'1. Classification & Budget'!P56)","v":""}]
[]
["What will Grant Funds Purchase"]
["LabDescrip","EquipDescrip","MatDescrip","LandDescrip","TravDescrip","TransDescrip","OtherDescrip","CommLabDescrip","CommEquipDescrip","CommMatDescrip","CommLandDescrip","CommTravDescrip","CommTransDescrip","CommOtherDescrip","ThirdLabDescrip","ThirdEquipDescrip","ThirdMatDescrip","ThirdLandDescrip","ThirdTravDescrip","ThirdTransDescrip","ThirdOtherDescrip"]
[{"$f":"IF(ISBLANK('1. Classification & Budget'!H63),\"\",'1. Classification & Budget'!H63)","v":"Skilled labor: masons"},{"$f":"IF(ISBLANK('1. Classification & Budget'!H64),\"\",'1. Classification & Budget'!H64)","v":""},{"$f":"IF(ISBLANK('1. Classification & Budget'!H65),\"\",'1. Classification & Budget'!H65)","v":"Supplies to build the cook stoves, uniforms, teaching supplies for trainings and for health promoters"},{"$f":"IF(ISBLANK('1. Classification & Budget'!H66),\"\",'1. Classification & Budget'!H66)","v":""},{"$f":"IF(ISBLANK('1. Classification & Budget'!H67),\"\",'1. Classification & Budget'!H67)","v":""},{"$f":"IF(ISBLANK('1. Classification & Budget'!H68),\"\",'1. Classification & Budget'!H68)","v":"Transportation to and from capital city"},{"$f":"IF(ISBLANK('1. Classification & Budget'!H69),\"\",'1. Classification & Budget'!H69)","v":""},{"$f":"IF(ISBLANK('1. Classification & Budget'!M63),\"\",'1. Classification & Budget'!M63)","v":"Unskilled labor: mason assistants; Health promoters assisting with trainings and house visits; Staff from Health Post assisting with trainings"},{"$f":"IF(ISBLANK('1. Classification & Budget'!M64),\"\",'1. Classification & Budget'!M64)","v":""},{"$f":"IF(ISBLANK('1. Classification & Budget'!M65),\"\",'1. Classification & Budget'!M65)","v":"Adobes and other small materials such as tin sheets, glass bottles, sugar, salt, water, and mud; food for demonstrations"},{"$f":"IF(ISBLANK('1. Classification & Budget'!M66),\"\",'1. Classification & Budget'!M66)","v":"Location for trainings"},{"$f":"IF(ISBLANK('1. Classification & Budget'!M67),\"\",'1. Classification & Budget'!M67)","v":""},{"$f":"IF(ISBLANK('1. Classification & Budget'!M68),\"\",'1. Classification & Budget'!M68)","v":""},{"$f":"IF(ISBLANK('1. Classification & Budget'!M69),\"\",'1. Classification & Budget'!M69)","v":""},{"$f":"IF(ISBLANK('1. Classification & Budget'!R63),\"\",'1. Classification & Budget'!R63)","v":""},{"$f":"IF(ISBLANK('1. Classification & Budget'!R64),\"\",'1. Classification & Budget'!R64)","v":""},{"$f":"IF(ISBLANK('1. Classification & Budget'!R65),\"\",'1. Classification & Budget'!R65)","v":""},{"$f":"IF(ISBLANK('1. Classification & Budget'!R66),\"\",'1. Classification & Budget'!R66)","v":""},{"$f":"IF(ISBLANK('1. Classification & Budget'!R67),\"\",'1. Classification & Budget'!R67)","v":""},{"$f":"IF(ISBLANK('1. Classification & Budget'!R68),\"\",'1. Classification & Budget'!R68)","v":""},{"$f":"IF(ISBLANK('1. Classification & Budget'!R69),\"\",'1. Classification & Budget'!R69)","v":""}]
[]
["Questionnaire"]
["summary","background","comminvolve","outcome","implement","capacity","sustainbenefits"]
[{"$f":"IF(ISBLANK('2. Questionnaire'!J8),\"\",'2. Questionnaire'!J8)","v":"Healthy Homes with Improved Cook stoves is a community-based behavior change initiative designed to create and maintain healthy practices in rural moms with young children and local community institutions.  This project utilizes four important components: community health promoters, interactive educational sessions, physical changes within the homes, and regular monitoring.  Mothers with children under five years of age that cook with wood-burning stoves were invited to participate in the project, and participants were selected based on their interest and willingness to make healthy lifestyle changes. Mothers will also be in charge of making physical changes within the household to improve the health of their families, including installing handwashing stations near the kitchen and latrine, having covered buckets of boiled water for drinking at all times, covering the top holes of their latrines, exclusively breastfeeding for the first six months of an infant's life, and having a designated play area in their home.  As a means of monitoring changes made during the project, the promoters and volunteer will conduct two house visits per month with the mothers.  At the end of the project, mothers that have attended all of the training sessions and made all required changes within the household and with their children will receive an improved cook stove as a reward for her progress and efforts. Cook stoves will be built by a local mason along with the assistance of a member from each participating household in the Healthy Homes project. The maintenence of the behavior change of the mothers and upkeep of their improved cook stoves will also be monitored for three months after their contruction by the health promoters and volunteer to ensure that each home and child is living a healthier life. Furthermore, 39 mothers that recieved improved cookstoves in 2009 will recieve materials to improve the state of their stoves as well as the health of their families and children under 5 years of age. "},{"$f":"IF(ISBLANK('2. Questionnaire'!J9),\"\",'2. Questionnaire'!J9)","v":"Pampa Elera Alta has a population of approximately 850 inhabitants and is located within an agricultural hotspot of northern Piura.  The majority of residents lead simple lives, living in adobe houses, working in their family's growing fields, bathing and washing in the local river, and eating whatever they themselves plant and raise.  While there is a semi-functional health post that serves this community, the lack of personnel means that rural health promotion within this area is practically nonexistent.  Families, especially those with young children, suffer from many common and easily prevented illnesses such as diarrhea, malnutrition, and respiratory infections.  In 2012, 84% of all respitory infections occured in children under five, 89% of all stomach and intestinal infections occured in patients under 5, and 30% of children under 5 years of age were chronically and/or globally malnurished (Health Post of Pampa Elera Baja, 2012). Moreover, the semi-functional health post that serves them is located in an annex 45 minutes away by foot. When an illness is contracted, help is not as easily accessible as one might assume.  The Healthy Homes with Improved Cook stoves initiative aims to reduce the prevalence of these illnesses through the promotion of rural health via educational sessions and monitoring house visits.  Key health topics that will be addressed during the project are hygiene practices, including the importance of hand washing and proper latrine use, healthy nutrition practices, including the importance of vitamins A, C, protein and iron in a child's diet, and the importance of breastfeeding and early stimulation practices.  As a reward for making changes in these areas homes, project mothers will receive an improved cook stove and trainings on how to use and properly maintain their new addition.  Families will then continue to be monitoried, and later evaluated on the changes made within the home and the maintenance and use of their cook stoves."},{"$f":"IF(ISBLANK('2. Questionnaire'!J10),\"\",'2. Questionnaire'!J10)","v":"After seeing the implementation and success of other improved cook stove projects in neighboring areas, the community members have been adamant about starting an improved cookstove project within their own homes.  Community members elected a cookstove project during a general meeting, and have been very active in the planning process so far.  The project committee has participated in completing the application for funding, and are excited to see the project come together step-by-step.  They also participated in choosing the health and sanitaion topics to be covered during the educational sessions.  The committee treasurer, Charito Nunez Guerrero, has been extremely active and enthusiastic about the success and sustainablity of this project. In selecting participants, Charito ensured that we selected mothers who were interested and active. For our first training, one-third of our participants did not show up. Charito took it upon herself to talk with every mother about their absence and the importance of participation and learning from each training. Charito has truly been a driving force behind this project. Moreover, community health promoters will be the main session educators and monitoring tools for the participating mothers.  To receive an improved cookstove at the end of the project, mothers must first show their desire for change within the household by attending all sessions and completing all assignments within the home.  After the completion of these tasks, families will continue to contribute to the project through construction of the improved cookstoves alongside the community-selected contractors."},{"$f":"IF(ISBLANK('2. Questionnaire'!J11),\"\",'2. Questionnaire'!J11)","v":"As of now, children under five living in Pampa Elera Alta are plagued with an array of never ending illnesses that can be prevented by the behavior change of their families and environments they live in. The Healthy Homes Committee hopes that, at the end of this project, with the implementation of educational sessions, house visists to monitor behavior change and the eventual implemetation of improved cook stoves, the percentage of illnesses (especially acute respiratory infections, acute diarrhea, and malnutrition) will decrease in children under five years of age and the appropriate intellectual and physical development of such children will be achieved by Feburary 2015. "},{"$f":"IF(ISBLANK('2. Questionnaire'!J12),\"\",'2. Questionnaire'!J12)","v":"\nThe beginning of this project includes forming a project committee and electing health promoters to assist with the training sessions and house visits.  Both the committee and promoters will contribute to the grant application process as well as to the monitoring and evaluation of the project.  Once elected, the health promoters will begin their separate training in the areas of health and sanitation with the volunteer, with house visits and in-home assignments also included.  After the health promoters finish their trainings, the other mothers will start their own educational sessions, with presentations on the health topics given by both the volunteer and the health promoters.  One session will be given each month, and mothers must attend all sessions to be considered a project participant.  Along with the educational sessions, the health promoters will conduct house visits once a month to check on the progress of the health and sanitation of the families within the home.  Once the sessions are completed, the families will begin constructing their improved cook stoves with the aid of local engineers.  Monitoring of the use and maintenance of the cookstoves will be carried out by the volunteer and health promoters, and continue after construction.  The greatest challenge foreseen in project implementation is the attitude of the participating families.  While any family can make healthy behavior changes within the home, the families themselves need to believe it as well for any real change to happen. While this may be a potential problem, a solution I envision is leading as an example. If I, as well as my committee and health promoters, lead as examples of enthusiasm and belief in this project, the participants will hopefully see its value and thus, change their behavior for the benefit of their families. \n"},{"$f":"IF(ISBLANK('2. Questionnaire'!J13),\"\",'2. Questionnaire'!J13)","v":"The Healthy Homes with Improved Cookstoves project will build skills and capacity within the participating communities in numerous ways.  First, the elected project committee will gain valuable information and experience when it comes to project planning and implementation.  This gives them the skills to start their own successful projects to improve the health of their communities in the future.  Second, the health promoters will receive important trainings on rural health promotion that will make them an invaluable resource in the communities.  Their trainings on diarreah, respitory infections, parasites, early childhood stimulation, malnutrition, and family cohersion will provide knowlege and leadership skills to go out and make changes within their community on the individual level, as well as assist the health post with trainings in the future.  Third, the local engineers that assist with the construction of the improved cook stoves will have the skills to become experts in cook stove construction, meaning they can build more stoves in the future for interested families.  Fourth, the institutions involved such as the women's club, evangelical church, and kindergarden will gain the knowledge and skills to independently progress as organizations as well as better the health and lives of the people that they serve. Lastly and perhaps most importantly, the participating mothers will be gain healthy lifestyle skills that can change both their own health and the health of their family members, especially their young children.  The information that the mothers receive in the educational sessions, as well as the completion of the in-home assignments, give the mothers the power to create healthy homes for themselves and their families. As a result of this health homes project with improves cook stoves, five community organizations have increased their capacities such as project planning as well as the confidence to carry out future activities without intervention. Also, sixty-nine individuals have also applied new practices due to this project and 30 new practices have been adopted by such participants. "},{"$f":"IF(ISBLANK('2. Questionnaire'!J14),\"\",'2. Questionnaire'!J14)","v":"Since the local health post does not have adequate personnel to give one-on-one attention to the activities and monitoring of this project, the responsibility of sustaining the Healthy Homes with Improved Cookstoves project lies in the hands of the community members. The project committee will receive important skills throughout this project process, leaving this experience with the confidence and the capacity to plan, implement, and monitor their own projects in the future.  Another component of the sustainability of this project are the trained community health promoters.  They will be a vital asset to the community through their hands-on training and experience conducting house visits and using monitoring practices.  They can later use these same skills to work alongside health post staff to extend their reach to individual community members in a much more productive manner.  The other project participants also play an important role in the sustainability of this project.  For one, they will be examples for the benefit of using healthy behaviors within the home as the health of their families improves after making these changes.  They can also use their trainings on health and sanitation and share their knowledge with other community members to spread the word about the implementation of healthy habits within the home. Furthermore, the health post of Pampa Elera Baja, myself, and the health promoters of Pampa Elera Alta are beginning a project plan to integrate the work of both institutions in a more sustainable manner. "}]
[]
["Evaluation Planning"]
["goal1","objec1.1","objec1.2","objec1.3","objec1.4","indic1.1","indic1.2","indic1.3","indic1.4","who1.1","who1.2","who1.3","who1.4","when1.1","when1.2","when1.3","when1.4","goal2","objec2.1","objec2.2","objec2.3","objec2.4","indic2.1","indic2.2","indic2.3","indic2.4","who2.1","who2.2","who2.3","who2.4","when2.1","when2.2","when2.3","when2.4","goal3","objec3.1","objec3.2","objec3.3","objec3.4","indic3.1","indic3.2","indic3.3","indic3.4","who3.1","who3.2","who3.3","who.3.4","when3.1","when3.2","when3.3","when3.4","PCCapacityIndicMale25Plus","PCCapacityIndicFemale25Plus","PCCapacityIndicMale1524","PCCapacityIndicFemale1524","PCCapacityIndicBoys14Under","PCCapacityIndicGirls14Under","PCCapacityServiceMale25Plus","PCCapacityServiceFemale25Plus","PCCapacityServiceMale1524","PCCapacityServiceFemale1524","PCCapacityServiceBoys14Under","PCCapacityServiceGirls14Under","PCCapacityIndicOrganizations","PCTechIndicMale25Plus","PCTechIndicFemale25Plus","PCTechIndicMale1524","PCTechIndicFemale1524","PCTechIndicBoys14Under","PCTechIndicGirls14Under","PCTechIndicNewTech","PCTechIndicNewPrac"]
[{"$f":"IF(ISBLANK('5. Evaluation Planning'!M25),\"\",'5. Evaluation Planning'!M25)","v":"Children under five years of age living in Pampa Elera Alta have optimal health and are at mental and physical development levels appropriate for their age. "},{"$f":"IF(ISBLANK('5. Evaluation Planning'!E25),\"\",'5. Evaluation Planning'!E25)","v":"At the end of Feburary 2014, 30 children under five years of age improve their level of development according to the criteria defined in the Peruvian Development Test."},{"$f":"IF(ISBLANK('5. Evaluation Planning'!E26),\"\",'5. Evaluation Planning'!E26)","v":"At the end of Febuary 2014, 30 mothers observe a decrease in the frequency of acute respitory infections as well as acute diarrhea of their children under five. "},{"$f":"IF(ISBLANK('5. Evaluation Planning'!E27),\"\",'5. Evaluation Planning'!E27)","v":"At the end of Febuary 2014, 30 mothers feed their children under five adequate food and nutrition according to the recommendations for their age. "},{"$f":"IF(ISBLANK('5. Evaluation Planning'!E28),\"\",'5. Evaluation Planning'!E28)","v":""},{"$f":"IF(ISBLANK('5. Evaluation Planning'!G25),\"\",'5. Evaluation Planning'!G25)","v":"1. # of trained mothers in practices of early childhood stimulation; 2. # of mothers who demonstrate the correct use of CRED card; 3. # of mothers who can demonstrate 2 or more activities of early childhood stimulation appropriate for the age of their children; 4. # of mothers who have adopted 2 or more activities of early childhood stimulation appropriate for the age of their children; 5. # of mothers who report at least 3 observable improvements in their children after the adoption of early childhood stimulation practices."},{"$f":"IF(ISBLANK('5. Evaluation Planning'!G26),\"\",'5. Evaluation Planning'!G26)","v":"1. # of mothers who adopt at least 3 of the healthy practices to reduce diarrheal illnesses in their children; 2. # of mothers who can identify at least 3 signs and 3 methods of adequate prevention and treatment for cases of respiratory infections, diarrheal illnesses, and malnutrition; 3. # mothers who use and maintain their improved cook stoves correctly and adequately; 4. # of mothers who can properly prepare oral rehydration salts within the home to prevent dehydration; 5. # of mothers who demonstrate the proper technique of hand washing"},{"$f":"IF(ISBLANK('5. Evaluation Planning'!G27),\"\",'5. Evaluation Planning'!G27)","v":"1. # of mothers who can identify at least 3 practices of complimentary feeding using local products that contain nutrients and vitamins essential for the development of children under age 3; 2. # of mothers who can demonstrate how to prepare nutritional foods using local products; 3. # of mothers who feed their children adequate and balanced meals as recommended for their ages by the Ministry of Health using local products; 4. # of children ages 6-26 months who were once at risk for underheight who now have the appropriate height for their ages."},{"$f":"IF(ISBLANK('5. Evaluation Planning'!G28),\"\",'5. Evaluation Planning'!G28)","v":""},{"$f":"IF(ISBLANK('5. Evaluation Planning'!I25),\"\",'5. Evaluation Planning'!I25)","v":"volunteer and personell of health post of pampa elera baja"},{"$f":"IF(ISBLANK('5. Evaluation Planning'!I26),\"\",'5. Evaluation Planning'!I26)","v":"volunteer, personell of health post of pampa elera baja, and health promoters"},{"$f":"IF(ISBLANK('5. Evaluation Planning'!I27),\"\",'5. Evaluation Planning'!I27)","v":"volunteer, health promoters, and health post of pampa elera baja"},{"$f":"IF(ISBLANK('5. Evaluation Planning'!I28),\"\",'5. Evaluation Planning'!I28)","v":""},{"$f":"IF(ISBLANK('5. Evaluation Planning'!K25),\"\",'5. Evaluation Planning'!K25)","v":"Monthly check-ups at the health post, monthly house visits to monitor advances in development"},{"$f":"IF(ISBLANK('5. Evaluation Planning'!K26),\"\",'5. Evaluation Planning'!K26)","v":"Monthly assessments of illnesses by health post and twice-monthly house visits to monitor health of children"},{"$f":"IF(ISBLANK('5. Evaluation Planning'!K27),\"\",'5. Evaluation Planning'!K27)","v":"Monthly assessments of mothers with infants under 1 year during check ups at health post and twice-monthly house visits to monitor nutrition"},{"$f":"IF(ISBLANK('5. Evaluation Planning'!K28),\"\",'5. Evaluation Planning'!K28)","v":""},{"$f":"IF(ISBLANK('5. Evaluation Planning'!M29),\"\",'5. Evaluation Planning'!M29)","v":""},{"$f":"IF(ISBLANK('5. Evaluation Planning'!E29),\"\",'5. Evaluation Planning'!E29)","v":""},{"$f":"IF(ISBLANK('5. Evaluation Planning'!E30),\"\",'5. Evaluation Planning'!E30)","v":""},{"$f":"IF(ISBLANK('5. Evaluation Planning'!E31),\"\",'5. Evaluation Planning'!E31)","v":""},{"$f":"IF(ISBLANK('5. Evaluation Planning'!E32),\"\",'5. Evaluation Planning'!E32)","v":""},{"$f":"IF(ISBLANK('5. Evaluation Planning'!G29),\"\",'5. Evaluation Planning'!G29)","v":""},{"$f":"IF(ISBLANK('5. Evaluation Planning'!G30),\"\",'5. Evaluation Planning'!G30)","v":""},{"$f":"IF(ISBLANK('5. Evaluation Planning'!G31),\"\",'5. Evaluation Planning'!G31)","v":""},{"$f":"IF(ISBLANK('5. Evaluation Planning'!G32),\"\",'5. Evaluation Planning'!G32)","v":""},{"$f":"IF(ISBLANK('5. Evaluation Planning'!I29),\"\",'5. Evaluation Planning'!I29)","v":""},{"$f":"IF(ISBLANK('5. Evaluation Planning'!I30),\"\",'5. Evaluation Planning'!I30)","v":""},{"$f":"IF(ISBLANK('5. Evaluation Planning'!I31),\"\",'5. Evaluation Planning'!I31)","v":""},{"$f":"IF(ISBLANK('5. Evaluation Planning'!I32),\"\",'5. Evaluation Planning'!I32)","v":""},{"$f":"IF(ISBLANK('5. Evaluation Planning'!K29),\"\",'5. Evaluation Planning'!K29)","v":""},{"$f":"IF(ISBLANK('5. Evaluation Planning'!K30),\"\",'5. Evaluation Planning'!K30)","v":""},{"$f":"IF(ISBLANK('5. Evaluation Planning'!K31),\"\",'5. Evaluation Planning'!K31)","v":""},{"$f":"IF(ISBLANK('5. Evaluation Planning'!K32),\"\",'5. Evaluation Planning'!K32)","v":""},{"$f":"IF(ISBLANK('5. Evaluation Planning'!M33),\"\",'5. Evaluation Planning'!M33)","v":""},{"$f":"IF(ISBLANK('5. Evaluation Planning'!E33),\"\",'5. Evaluation Planning'!E33)","v":""},{"$f":"IF(ISBLANK('5. Evaluation Planning'!E34),\"\",'5. Evaluation Planning'!E34)","v":""},{"$f":"IF(ISBLANK('5. Evaluation Planning'!E35),\"\",'5. Evaluation Planning'!E35)","v":""},{"$f":"IF(ISBLANK('5. Evaluation Planning'!E36),\"\",'5. Evaluation Planning'!E36)","v":""},{"$f":"IF(ISBLANK('5. Evaluation Planning'!G33),\"\",'5. Evaluation Planning'!G33)","v":""},{"$f":"IF(ISBLANK('5. Evaluation Planning'!G34),\"\",'5. Evaluation Planning'!G34)","v":""},{"$f":"IF(ISBLANK('5. Evaluation Planning'!G35),\"\",'5. Evaluation Planning'!G35)","v":""},{"$f":"IF(ISBLANK('5. Evaluation Planning'!G36),\"\",'5. Evaluation Planning'!G36)","v":""},{"$f":"IF(ISBLANK('5. Evaluation Planning'!I33),\"\",'5. Evaluation Planning'!I33)","v":""},{"$f":"IF(ISBLANK('5. Evaluation Planning'!I34),\"\",'5. Evaluation Planning'!I34)","v":""},{"$f":"IF(ISBLANK('5. Evaluation Planning'!I35),\"\",'5. Evaluation Planning'!I35)","v":""},{"$f":"IF(ISBLANK('5. Evaluation Planning'!I36),\"\",'5. Evaluation Planning'!I36)","v":""},{"$f":"IF(ISBLANK('5. Evaluation Planning'!K33),\"\",'5. Evaluation Planning'!K33)","v":""},{"$f":"IF(ISBLANK('5. Evaluation Planning'!K34),\"\",'5. Evaluation Planning'!K34)","v":""},{"$f":"IF(ISBLANK('5. Evaluation Planning'!K35),\"\",'5. Evaluation Planning'!K35)","v":""},{"$f":"IF(ISBLANK('5. Evaluation Planning'!K36),\"\",'5. Evaluation Planning'!K36)","v":""},{"$f":"IF(ISBLANK('5. Evaluation Planning'!G11),\"\",'5. Evaluation Planning'!G11)","v":1},{"$f":"IF(ISBLANK('5. Evaluation Planning'!H11),\"\",'5. Evaluation Planning'!H11)","v":57},{"$f":"IF(ISBLANK('5. Evaluation Planning'!I11),\"\",'5. Evaluation Planning'!I11)","v":""},{"$f":"IF(ISBLANK('5. Evaluation Planning'!J11),\"\",'5. Evaluation Planning'!J11)","v":11},{"$f":"IF(ISBLANK('5. Evaluation Planning'!K11),\"\",'5. Evaluation Planning'!K11)","v":63},{"$f":"IF(ISBLANK('5. Evaluation Planning'!L11),\"\",'5. Evaluation Planning'!L11)","v":57},{"$f":"IF(ISBLANK('5. Evaluation Planning'!G12),\"\",'5. Evaluation Planning'!G12)","v":""},{"$f":"IF(ISBLANK('5. Evaluation Planning'!H12),\"\",'5. Evaluation Planning'!H12)","v":""},{"$f":"IF(ISBLANK('5. Evaluation Planning'!I12),\"\",'5. Evaluation Planning'!I12)","v":""},{"$f":"IF(ISBLANK('5. Evaluation Planning'!J12),\"\",'5. Evaluation Planning'!J12)","v":""},{"$f":"IF(ISBLANK('5. Evaluation Planning'!K12),\"\",'5. Evaluation Planning'!K12)","v":""},{"$f":"IF(ISBLANK('5. Evaluation Planning'!L12),\"\",'5. Evaluation Planning'!L12)","v":""},{"$f":"IF(ISBLANK('5. Evaluation Planning'!G13),\"\",'5. Evaluation Planning'!G13)","v":5},{"$f":"IF(ISBLANK('5. Evaluation Planning'!G18),\"\",'5. Evaluation Planning'!G18)","v":1},{"$f":"IF(ISBLANK('5. Evaluation Planning'!H18),\"\",'5. Evaluation Planning'!H18)","v":57},{"$f":"IF(ISBLANK('5. Evaluation Planning'!I18),\"\",'5. Evaluation Planning'!I18)","v":""},{"$f":"IF(ISBLANK('5. Evaluation Planning'!J18),\"\",'5. Evaluation Planning'!J18)","v":11},{"$f":"IF(ISBLANK('5. Evaluation Planning'!K18),\"\",'5. Evaluation Planning'!K18)","v":""},{"$f":"IF(ISBLANK('5. Evaluation Planning'!L18),\"\",'5. Evaluation Planning'!L18)","v":""},{"$f":"IF(ISBLANK('5. Evaluation Planning'!G19),\"\",'5. Evaluation Planning'!G19)","v":"2; improved cook stoves, installation of hand washing stations"},{"$f":"IF(ISBLANK('5. Evaluation Planning'!I19),\"\",'5. Evaluation Planning'!I19)","v":13}]
[]
["Do No Harm"]
["DoNoHarm","Environment","Mitigation"]
[{"$f":"IF(ISBLANK('DO NO HARM'!G8),\"\",'DO NO HARM'!G8)","v":"The project committee and participating mothers were aware of potential negative consequences that could result from the implementation of the Healthy Homes through Improved Cookstoves project.  The main concern of the mothers was possible social tension that might result due to the availability of this project solely to mothers with children under five years of age.  Some mothers have already experienced negative social interactions with neighbors and other family members regarding the requirements for participating in the project. "},{"$f":"IF(ISBLANK('DO NO HARM'!G9),\"\",'DO NO HARM'!G9)","v":"The sole focus of this project is health promotion and thus, I have decided to focus soley on the most important health issues in Pampa Elera Alta; which are acute respitory infections, acute diarreah and malnutrition. While enviornmental factors such as burning of trash do occur in Pampa Elera Alta, they are not prevelant enough nor do they align with the objectives of this project enough to be considered for behavior change. "},{"$f":"IF(ISBLANK('DO NO HARM'!G10),\"\",'DO NO HARM'!G10)","v":"The negative social outcomes that many mothers fear might result from this project are hard to plan against for the future.  The best solution the community could come up with was to focus on making the necessary physical and behavior changes within the home to have the healthiest family possible, regardless of the potential conflicts with friends and family.  Also, the mothers have also expressed an interest in sharing the information learned in the educational sessions with their neighbors and family that cannot participate in the project due to a lack of young children in the household so that they can also make the same changes within their homes to improve the health of their families.  "}]
[]
["VAST Indicators"]
["VASTPreventReachMale","VASTPreventReachFemale","VASTPreventReach15Plus","VASTPreventReachChildren","VASTPreventReach18_24","VASTPreventReach25_49","VASTPreventReach50Plus","VASTPreventInterventMale","VASTPreventInterventFemale","VASTPreventIntervent15Plus","VASTPreventInterventChildren","VASTPreventIntervent18_24","VASTPreventIntervent25_49","VASTPreventIntervent50Plus","VASTMARPCSW","VASTMARPIDU","VASTMARPMSM","VASTMARPOther","VASTMARP5_9","VASTMARP10_14","VASTMARP15_17","VASTMARP19_24","VASTMARP25_49","VASTMARP50Plus","VASTOneCareMale","VASTOneCareFemale","VASTOneCareBoy","VASTOneCareGirl","VASTNutritionAdult","VASTNutritionChild","VASTNutritionPregnant<18","VASTNutritionPregnant>18","VASTHRMale","VASTHRFemale","VASTHRMaleCir","VASTHRPed","VASTHROther"]
[{"$f":"IF(ISBLANK('7. VAST Projects'!F9),\"\",'7. VAST Projects'!F9)","v":"10-14"},{"$f":"IF(ISBLANK('7. VAST Projects'!I9),\"\",'7. VAST Projects'!I9)","v":"25+"},{"$f":"IF(ISBLANK('7. VAST Projects'!N9),\"\",'7. VAST Projects'!N9)","v":"25+"},{"$f":"IF(ISBLANK('7. VAST Projects'!R9),\"\",'7. VAST Projects'!R9)","v":""},{"$f":"IF(ISBLANK('7. VAST Projects'!F11),\"\",'7. VAST Projects'!F11)","v":""},{"$f":"IF(ISBLANK('7. VAST Projects'!I11),\"\",'7. VAST Projects'!I11)","v":""},{"$f":"IF(ISBLANK('7. VAST Projects'!N11),\"\",'7. VAST Projects'!N11)","v":""},{"$f":"IF(ISBLANK('7. VAST Projects'!F13),\"\",'7. VAST Projects'!F13)","v":""},{"$f":"IF(ISBLANK('7. VAST Projects'!I13),\"\",'7. VAST Projects'!I13)","v":""},{"$f":"IF(ISBLANK('7. VAST Projects'!N13),\"\",'7. VAST Projects'!N13)","v":""},{"$f":"IF(ISBLANK('7. VAST Projects'!R13),\"\",'7. VAST Projects'!R13)","v":""},{"$f":"IF(ISBLANK('7. VAST Projects'!#REF!),\"\",'7. VAST Projects'!#REF!)","v":{"$error":"#REF!"}},{"$f":"IF(ISBLANK('7. VAST Projects'!#REF!),\"\",'7. VAST Projects'!#REF!)","v":{"$error":"#REF!"}},{"$f":"IF(ISBLANK('7. VAST Projects'!#REF!),\"\",'7. VAST Projects'!#REF!)","v":{"$error":"#REF!"}},{"$f":"IF(ISBLANK('7. VAST Projects'!F18),\"\",'7. VAST Projects'!F18)","v":"18+"},{"$f":"IF(ISBLANK('7. VAST Projects'!I18),\"\",'7. VAST Projects'!I18)","v":"<18"},{"$f":"IF(ISBLANK('7. VAST Projects'!N18),\"\",'7. VAST Projects'!N18)","v":"18+"},{"$f":"IF(ISBLANK('7. VAST Projects'!R18),\"\",'7. VAST Projects'!R18)","v":"18+"},{"$f":"IF(ISBLANK('7. VAST Projects'!#REF!),\"\",'7. VAST Projects'!#REF!)","v":{"$error":"#REF!"}},{"$f":"IF(ISBLANK('7. VAST Projects'!#REF!),\"\",'7. VAST Projects'!#REF!)","v":{"$error":"#REF!"}},{"$f":"IF(ISBLANK('7. VAST Projects'!#REF!),\"\",'7. VAST Projects'!#REF!)","v":{"$error":"#REF!"}},{"$f":"IF(ISBLANK('7. VAST Projects'!#REF!),\"\",'7. VAST Projects'!#REF!)","v":{"$error":"#REF!"}},{"$f":"IF(ISBLANK('7. VAST Projects'!#REF!),\"\",'7. VAST Projects'!#REF!)","v":{"$error":"#REF!"}},{"$f":"IF(ISBLANK('7. VAST Projects'!#REF!),\"\",'7. VAST Projects'!#REF!)","v":{"$error":"#REF!"}},{"$f":"IF(ISBLANK('7. VAST Projects'!F24),\"\",'7. VAST Projects'!F24)","v":""},{"$f":"IF(ISBLANK('7. VAST Projects'!#REF!),\"\",'7. VAST Projects'!#REF!)","v":{"$error":"#REF!"}},{"$f":"IF(ISBLANK('7. VAST Projects'!G24),\"\",'7. VAST Projects'!G24)","v":""},{"$f":"IF(ISBLANK('7. VAST Projects'!H24),\"\",'7. VAST Projects'!H24)","v":""},{"$f":"IF(ISBLANK('7. VAST Projects'!F29),\"\",'7. VAST Projects'!F29)","v":""},{"$f":"IF(ISBLANK('7. VAST Projects'!I29),\"\",'7. VAST Projects'!I29)","v":""},{"$f":"IF(ISBLANK('7. VAST Projects'!#REF!),\"\",'7. VAST Projects'!#REF!)","v":{"$error":"#REF!"}},{"$f":"IF(ISBLANK('7. VAST Projects'!N29),\"\",'7. VAST Projects'!N29)","v":""},{"$f":"IF(ISBLANK('7. VAST Projects'!E33),\"\",'7. VAST Projects'!E33)","v":""},{"$f":"IF(ISBLANK('7. VAST Projects'!G33),\"\",'7. VAST Projects'!G33)","v":""},{"$f":"IF(ISBLANK('7. VAST Projects'!E34),\"\",'7. VAST Projects'!E34)","v":""},{"$f":"IF(ISBLANK('7. VAST Projects'!G34),\"\",'7. VAST Projects'!G34)","v":""},{"$f":"IF(ISBLANK('7. VAST Projects'!L34),\"\",'7. VAST Projects'!L34)","v":""}]
[]
["SPA Info"]
["USAIDRegion","ProgramElement","ProgramElementID"]
[{"$f":"IF(ISBLANK(CountryChoice),\"\",IF(ISERROR(MATCH(CountryChoice,Lookup!N1:N51,0)),\"\",INDEX(Lookup!N1:O51,MATCH(CountryChoice,Lookup!N1:N51,0),2)))","v":""},{"$f":"IF(ISBLANK(ProgramElementChoice),\"\",ProgramElementChoice)","v":""},{"$f":"IF($B$35=\"\",\"\",INDEX(Lookup!B1:C31,MATCH($B$35,Lookup!B1:B31),2))","v":""}]
[]
["SPA Indicators"]
[null,"Indicator","FigureOne","DescriptionOne","FigureTwo","DescriptionTwo","FigureThree","DescriptionThree","FigureFour","DescriptionFour","FigureFive","DescriptionFive","FigureSix","DescriptionSix","ProgramElement","ProgramElementID","IndicatorID"]
[null,{"$f":"IF(ISBLANK('8. SPA Projects'!E15),\"\",'8. SPA Projects'!E15)","v":""},{"$f":"IF(ISBLANK('8. SPA Projects'!K15),\"\",'8. SPA Projects'!K15)","v":""},{"$f":"IF(ISBLANK('8. SPA Projects'!L15),\"\",'8. SPA Projects'!L15)","v":""},{"$f":"IF(ISBLANK('8. SPA Projects'!M15),\"\",'8. SPA Projects'!M15)","v":""},{"$f":"IF(ISBLANK('8. SPA Projects'!N15),\"\",'8. SPA Projects'!N15)","v":""},{"$f":"IF(ISBLANK('8. SPA Projects'!O15),\"\",'8. SPA Projects'!O15)","v":""},{"$f":"IF(ISBLANK('8. SPA Projects'!P15),\"\",'8. SPA Projects'!P15)","v":""},{"$f":"IF(ISBLANK('8. SPA Projects'!Q15),\"\",'8. SPA Projects'!Q15)","v":""},{"$f":"IF(ISBLANK('8. SPA Projects'!R15),\"\",'8. SPA Projects'!R15)","v":""},{"$f":"IF(ISBLANK('8. SPA Projects'!S15),\"\",'8. SPA Projects'!S15)","v":""},{"$f":"IF(ISBLANK('8. SPA Projects'!T15),\"\",'8. SPA Projects'!T15)","v":""},{"$f":"IF(ISBLANK('8. SPA Projects'!U15),\"\",'8. SPA Projects'!U15)","v":""},{"$f":"IF(ISBLANK('8. SPA Projects'!V15),\"\",'8. SPA Projects'!V15)","v":""},{"$f":"IF(B39=\"\",\"\",LEFT($B$35,5))","v":""},{"$f":"IF(OR(B39=\"\",AND($B$35=\"\",B39=\"\")),\"\",INDEX(Lookup!B$1:C$31,MATCH($B$35,Lookup!B$1:B$31),2))","v":""},{"$f":"IF(ISBLANK('8. SPA Projects'!D15),\"\",'8. SPA Projects'!D15)","v":""}]
[null,{"$f":"IF(ISBLANK('8. SPA Projects'!E16),\"\",'8. SPA Projects'!E16)","v":""},{"$f":"IF(ISBLANK('8. SPA Projects'!K16),\"\",'8. SPA Projects'!K16)","v":""},{"$f":"IF(ISBLANK('8. SPA Projects'!L16),\"\",'8. SPA Projects'!L16)","v":""},{"$f":"IF(ISBLANK('8. SPA Projects'!M16),\"\",'8. SPA Projects'!M16)","v":""},{"$f":"IF(ISBLANK('8. SPA Projects'!N16),\"\",'8. SPA Projects'!N16)","v":""},{"$f":"IF(ISBLANK('8. SPA Projects'!O16),\"\",'8. SPA Projects'!O16)","v":""},{"$f":"IF(ISBLANK('8. SPA Projects'!P16),\"\",'8. SPA Projects'!P16)","v":""},{"$f":"IF(ISBLANK('8. SPA Projects'!Q16),\"\",'8. SPA Projects'!Q16)","v":""},{"$f":"IF(ISBLANK('8. SPA Projects'!R16),\"\",'8. SPA Projects'!R16)","v":""},{"$f":"IF(ISBLANK('8. SPA Projects'!S16),\"\",'8. SPA Projects'!S16)","v":""},{"$f":"IF(ISBLANK('8. SPA Projects'!T16),\"\",'8. SPA Projects'!T16)","v":""},{"$f":"IF(ISBLANK('8. SPA Projects'!U16),\"\",'8. SPA Projects'!U16)","v":""},{"$f":"IF(ISBLANK('8. SPA Projects'!V16),\"\",'8. SPA Projects'!V16)","v":""},{"$f":"IF(B40=\"\",\"\",LEFT($B$35,5))","v":""},{"$f":"IF(OR(B40=\"\",AND($B$35=\"\",B40=\"\")),\"\",INDEX(Lookup!B$1:C$31,MATCH($B$35,Lookup!B$1:B$31),2))","v":""},{"$f":"IF(ISBLANK('8. SPA Projects'!D16),\"\",'8. SPA Projects'!D16)","v":""}]
[null,{"$f":"IF(ISBLANK('8. SPA Projects'!E17),\"\",'8. SPA Projects'!E17)","v":""},{"$f":"IF(ISBLANK('8. SPA Projects'!K17),\"\",'8. SPA Projects'!K17)","v":""},{"$f":"IF(ISBLANK('8. SPA Projects'!L17),\"\",'8. SPA Projects'!L17)","v":""},{"$f":"IF(ISBLANK('8. SPA Projects'!M17),\"\",'8. SPA Projects'!M17)","v":""},{"$f":"IF(ISBLANK('8. SPA Projects'!N17),\"\",'8. SPA Projects'!N17)","v":""},{"$f":"IF(ISBLANK('8. SPA Projects'!O17),\"\",'8. SPA Projects'!O17)","v":""},{"$f":"IF(ISBLANK('8. SPA Projects'!P17),\"\",'8. SPA Projects'!P17)","v":""},{"$f":"IF(ISBLANK('8. SPA Projects'!Q17),\"\",'8. SPA Projects'!Q17)","v":""},{"$f":"IF(ISBLANK('8. SPA Projects'!R17),\"\",'8. SPA Projects'!R17)","v":""},{"$f":"IF(ISBLANK('8. SPA Projects'!S17),\"\",'8. SPA Projects'!S17)","v":""},{"$f":"IF(ISBLANK('8. SPA Projects'!T17),\"\",'8. SPA Projects'!T17)","v":""},{"$f":"IF(ISBLANK('8. SPA Projects'!U17),\"\",'8. SPA Projects'!U17)","v":""},{"$f":"IF(ISBLANK('8. SPA Projects'!V17),\"\",'8. SPA Projects'!V17)","v":""},"",{"$f":"IF(OR(B41=\"\",AND($B$35=\"\",B41=\"\")),\"\",INDEX(Lookup!B$1:C$31,MATCH($B$35,Lookup!B$1:B$31),2))","v":""},{"$f":"IF(ISBLANK('8. SPA Projects'!D17),\"\",'8. SPA Projects'!D17)","v":""}]
[null,{"$f":"IF(ISBLANK('8. SPA Projects'!E18),\"\",'8. SPA Projects'!E18)","v":""},{"$f":"IF(ISBLANK('8. SPA Projects'!K18),\"\",'8. SPA Projects'!K18)","v":""},{"$f":"IF(ISBLANK('8. SPA Projects'!L18),\"\",'8. SPA Projects'!L18)","v":""},{"$f":"IF(ISBLANK('8. SPA Projects'!M18),\"\",'8. SPA Projects'!M18)","v":""},{"$f":"IF(ISBLANK('8. SPA Projects'!N18),\"\",'8. SPA Projects'!N18)","v":""},{"$f":"IF(ISBLANK('8. SPA Projects'!O18),\"\",'8. SPA Projects'!O18)","v":""},{"$f":"IF(ISBLANK('8. SPA Projects'!P18),\"\",'8. SPA Projects'!P18)","v":""},{"$f":"IF(ISBLANK('8. SPA Projects'!Q18),\"\",'8. SPA Projects'!Q18)","v":""},{"$f":"IF(ISBLANK('8. SPA Projects'!R18),\"\",'8. SPA Projects'!R18)","v":""},{"$f":"IF(ISBLANK('8. SPA Projects'!S18),\"\",'8. SPA Projects'!S18)","v":""},{"$f":"IF(ISBLANK('8. SPA Projects'!T18),\"\",'8. SPA Projects'!T18)","v":""},{"$f":"IF(ISBLANK('8. SPA Projects'!U18),\"\",'8. SPA Projects'!U18)","v":""},{"$f":"IF(ISBLANK('8. SPA Projects'!V18),\"\",'8. SPA Projects'!V18)","v":""},"",{"$f":"IF(OR(B42=\"\",AND($B$35=\"\",B42=\"\")),\"\",INDEX(Lookup!B$1:C$31,MATCH($B$35,Lookup!B$1:B$31),2))","v":""},{"$f":"IF(ISBLANK('8. SPA Projects'!D18),\"\",'8. SPA Projects'!D18)","v":""}]
[null,{"$f":"IF(ISBLANK('8. SPA Projects'!E19),\"\",'8. SPA Projects'!E19)","v":""},{"$f":"IF(ISBLANK('8. SPA Projects'!K19),\"\",'8. SPA Projects'!K19)","v":""},{"$f":"IF(ISBLANK('8. SPA Projects'!L19),\"\",'8. SPA Projects'!L19)","v":""},{"$f":"IF(ISBLANK('8. SPA Projects'!M19),\"\",'8. SPA Projects'!M19)","v":""},{"$f":"IF(ISBLANK('8. SPA Projects'!N19),\"\",'8. SPA Projects'!N19)","v":""},{"$f":"IF(ISBLANK('8. SPA Projects'!O19),\"\",'8. SPA Projects'!O19)","v":""},{"$f":"IF(ISBLANK('8. SPA Projects'!P19),\"\",'8. SPA Projects'!P19)","v":""},{"$f":"IF(ISBLANK('8. SPA Projects'!Q19),\"\",'8. SPA Projects'!Q19)","v":""},{"$f":"IF(ISBLANK('8. SPA Projects'!R19),\"\",'8. SPA Projects'!R19)","v":""},{"$f":"IF(ISBLANK('8. SPA Projects'!S19),\"\",'8. SPA Projects'!S19)","v":""},{"$f":"IF(ISBLANK('8. SPA Projects'!T19),\"\",'8. SPA Projects'!T19)","v":""},{"$f":"IF(ISBLANK('8. SPA Projects'!U19),\"\",'8. SPA Projects'!U19)","v":""},{"$f":"IF(ISBLANK('8. SPA Projects'!V19),\"\",'8. SPA Projects'!V19)","v":""},"",{"$f":"IF(OR(B43=\"\",AND($B$35=\"\",B43=\"\")),\"\",INDEX(Lookup!B$1:C$31,MATCH($B$35,Lookup!B$1:B$31),2))","v":""},{"$f":"IF(ISBLANK('8. SPA Projects'!D19),\"\",'8. SPA Projects'!D19)","v":""}]
[null,{"$f":"IF(ISBLANK('8. SPA Projects'!E20),\"\",'8. SPA Projects'!E20)","v":""},{"$f":"IF(ISBLANK('8. SPA Projects'!K20),\"\",'8. SPA Projects'!K20)","v":""},{"$f":"IF(ISBLANK('8. SPA Projects'!L20),\"\",'8. SPA Projects'!L20)","v":""},{"$f":"IF(ISBLANK('8. SPA Projects'!M20),\"\",'8. SPA Projects'!M20)","v":""},{"$f":"IF(ISBLANK('8. SPA Projects'!N20),\"\",'8. SPA Projects'!N20)","v":""},{"$f":"IF(ISBLANK('8. SPA Projects'!O20),\"\",'8. SPA Projects'!O20)","v":""},{"$f":"IF(ISBLANK('8. SPA Projects'!P20),\"\",'8. SPA Projects'!P20)","v":""},{"$f":"IF(ISBLANK('8. SPA Projects'!Q20),\"\",'8. SPA Projects'!Q20)","v":""},{"$f":"IF(ISBLANK('8. SPA Projects'!R20),\"\",'8. SPA Projects'!R20)","v":""},{"$f":"IF(ISBLANK('8. SPA Projects'!S20),\"\",'8. SPA Projects'!S20)","v":""},{"$f":"IF(ISBLANK('8. SPA Projects'!T20),\"\",'8. SPA Projects'!T20)","v":""},{"$f":"IF(ISBLANK('8. SPA Projects'!U20),\"\",'8. SPA Projects'!U20)","v":""},{"$f":"IF(ISBLANK('8. SPA Projects'!V20),\"\",'8. SPA Projects'!V20)","v":""},"",{"$f":"IF(OR(B44=\"\",AND($B$35=\"\",B44=\"\")),\"\",INDEX(Lookup!B$1:C$31,MATCH($B$35,Lookup!B$1:B$31),2))","v":""},{"$f":"IF(ISBLANK('8. SPA Projects'!D20),\"\",'8. SPA Projects'!D20)","v":""}]
[null,{"$f":"IF(ISBLANK('8. SPA Projects'!E21),\"\",'8. SPA Projects'!E21)","v":""},{"$f":"IF(ISBLANK('8. SPA Projects'!K21),\"\",'8. SPA Projects'!K21)","v":""},{"$f":"IF(ISBLANK('8. SPA Projects'!L21),\"\",'8. SPA Projects'!L21)","v":""},{"$f":"IF(ISBLANK('8. SPA Projects'!M21),\"\",'8. SPA Projects'!M21)","v":""},{"$f":"IF(ISBLANK('8. SPA Projects'!N21),\"\",'8. SPA Projects'!N21)","v":""},{"$f":"IF(ISBLANK('8. SPA Projects'!O21),\"\",'8. SPA Projects'!O21)","v":""},{"$f":"IF(ISBLANK('8. SPA Projects'!P21),\"\",'8. SPA Projects'!P21)","v":""},{"$f":"IF(ISBLANK('8. SPA Projects'!Q21),\"\",'8. SPA Projects'!Q21)","v":""},{"$f":"IF(ISBLANK('8. SPA Projects'!R21),\"\",'8. SPA Projects'!R21)","v":""},{"$f":"IF(ISBLANK('8. SPA Projects'!S21),\"\",'8. SPA Projects'!S21)","v":""},{"$f":"IF(ISBLANK('8. SPA Projects'!T21),\"\",'8. SPA Projects'!T21)","v":""},{"$f":"IF(ISBLANK('8. SPA Projects'!U21),\"\",'8. SPA Projects'!U21)","v":""},{"$f":"IF(ISBLANK('8. SPA Projects'!V21),\"\",'8. SPA Projects'!V21)","v":""},"",{"$f":"IF(OR(B45=\"\",AND($B$35=\"\",B45=\"\")),\"\",INDEX(Lookup!B$1:C$31,MATCH($B$35,Lookup!B$1:B$31),2))","v":""},{"$f":"IF(ISBLANK('8. SPA Projects'!D21),\"\",'8. SPA Projects'!D21)","v":""}]
[null,{"$f":"IF(ISBLANK('8. SPA Projects'!E22),\"\",'8. SPA Projects'!E22)","v":""},{"$f":"IF(ISBLANK('8. SPA Projects'!K22),\"\",'8. SPA Projects'!K22)","v":""},{"$f":"IF(ISBLANK('8. SPA Projects'!L22),\"\",'8. SPA Projects'!L22)","v":""},{"$f":"IF(ISBLANK('8. SPA Projects'!M22),\"\",'8. SPA Projects'!M22)","v":""},{"$f":"IF(ISBLANK('8. SPA Projects'!N22),\"\",'8. SPA Projects'!N22)","v":""},{"$f":"IF(ISBLANK('8. SPA Projects'!O22),\"\",'8. SPA Projects'!O22)","v":""},{"$f":"IF(ISBLANK('8. SPA Projects'!P22),\"\",'8. SPA Projects'!P22)","v":""},{"$f":"IF(ISBLANK('8. SPA Projects'!Q22),\"\",'8. SPA Projects'!Q22)","v":""},{"$f":"IF(ISBLANK('8. SPA Projects'!R22),\"\",'8. SPA Projects'!R22)","v":""},{"$f":"IF(ISBLANK('8. SPA Projects'!S22),\"\",'8. SPA Projects'!S22)","v":""},{"$f":"IF(ISBLANK('8. SPA Projects'!T22),\"\",'8. SPA Projects'!T22)","v":""},{"$f":"IF(ISBLANK('8. SPA Projects'!U22),\"\",'8. SPA Projects'!U22)","v":""},{"$f":"IF(ISBLANK('8. SPA Projects'!V22),\"\",'8. SPA Projects'!V22)","v":""},"",{"$f":"IF(OR(B46=\"\",AND($B$35=\"\",B46=\"\")),\"\",INDEX(Lookup!B$1:C$31,MATCH($B$35,Lookup!B$1:B$31),2))","v":""},{"$f":"IF(ISBLANK('8. SPA Projects'!D22),\"\",'8. SPA Projects'!D22)","v":""}]
[null,{"$f":"IF(ISBLANK('8. SPA Projects'!E23),\"\",'8. SPA Projects'!E23)","v":""},{"$f":"IF(ISBLANK('8. SPA Projects'!K23),\"\",'8. SPA Projects'!K23)","v":""},{"$f":"IF(ISBLANK('8. SPA Projects'!L23),\"\",'8. SPA Projects'!L23)","v":""},{"$f":"IF(ISBLANK('8. SPA Projects'!M23),\"\",'8. SPA Projects'!M23)","v":""},{"$f":"IF(ISBLANK('8. SPA Projects'!N23),\"\",'8. SPA Projects'!N23)","v":""},{"$f":"IF(ISBLANK('8. SPA Projects'!O23),\"\",'8. SPA Projects'!O23)","v":""},{"$f":"IF(ISBLANK('8. SPA Projects'!P23),\"\",'8. SPA Projects'!P23)","v":""},{"$f":"IF(ISBLANK('8. SPA Projects'!Q23),\"\",'8. SPA Projects'!Q23)","v":""},{"$f":"IF(ISBLANK('8. SPA Projects'!R23),\"\",'8. SPA Projects'!R23)","v":""},{"$f":"IF(ISBLANK('8. SPA Projects'!S23),\"\",'8. SPA Projects'!S23)","v":""},{"$f":"IF(ISBLANK('8. SPA Projects'!T23),\"\",'8. SPA Projects'!T23)","v":""},{"$f":"IF(ISBLANK('8. SPA Projects'!U23),\"\",'8. SPA Projects'!U23)","v":""},{"$f":"IF(ISBLANK('8. SPA Projects'!V23),\"\",'8. SPA Projects'!V23)","v":""},"",{"$f":"IF(OR(B47=\"\",AND($B$35=\"\",B47=\"\")),\"\",INDEX(Lookup!B$1:C$31,MATCH($B$35,Lookup!B$1:B$31),2))","v":""},{"$f":"IF(ISBLANK('8. SPA Projects'!D23),\"\",'8. SPA Projects'!D23)","v":""}]
[null,{"$f":"IF(ISBLANK('8. SPA Projects'!E24),\"\",'8. SPA Projects'!E24)","v":""},{"$f":"IF(ISBLANK('8. SPA Projects'!K24),\"\",'8. SPA Projects'!K24)","v":""},{"$f":"IF(ISBLANK('8. SPA Projects'!L24),\"\",'8. SPA Projects'!L24)","v":""},{"$f":"IF(ISBLANK('8. SPA Projects'!M24),\"\",'8. SPA Projects'!M24)","v":""},{"$f":"IF(ISBLANK('8. SPA Projects'!N24),\"\",'8. SPA Projects'!N24)","v":""},{"$f":"IF(ISBLANK('8. SPA Projects'!O24),\"\",'8. SPA Projects'!O24)","v":""},{"$f":"IF(ISBLANK('8. SPA Projects'!P24),\"\",'8. SPA Projects'!P24)","v":""},{"$f":"IF(ISBLANK('8. SPA Projects'!Q24),\"\",'8. SPA Projects'!Q24)","v":""},{"$f":"IF(ISBLANK('8. SPA Projects'!R24),\"\",'8. SPA Projects'!R24)","v":""},{"$f":"IF(ISBLANK('8. SPA Projects'!S24),\"\",'8. SPA Projects'!S24)","v":""},{"$f":"IF(ISBLANK('8. SPA Projects'!T24),\"\",'8. SPA Projects'!T24)","v":""},{"$f":"IF(ISBLANK('8. SPA Projects'!U24),\"\",'8. SPA Projects'!U24)","v":""},{"$f":"IF(ISBLANK('8. SPA Projects'!V24),\"\",'8. SPA Projects'!V24)","v":""},"",{"$f":"IF(OR(B48=\"\",AND($B$35=\"\",B48=\"\")),\"\",INDEX(Lookup!B$1:C$31,MATCH($B$35,Lookup!B$1:B$31),2))","v":""},{"$f":"IF(ISBLANK('8. SPA Projects'!D24),\"\",'8. SPA Projects'!D24)","v":""}]
[null,{"$f":"IF(ISBLANK('8. SPA Projects'!E25),\"\",'8. SPA Projects'!E25)","v":""},{"$f":"IF(ISBLANK('8. SPA Projects'!K25),\"\",'8. SPA Projects'!K25)","v":""},{"$f":"IF(ISBLANK('8. SPA Projects'!L25),\"\",'8. SPA Projects'!L25)","v":""},{"$f":"IF(ISBLANK('8. SPA Projects'!M25),\"\",'8. SPA Projects'!M25)","v":""},{"$f":"IF(ISBLANK('8. SPA Projects'!N25),\"\",'8. SPA Projects'!N25)","v":""},{"$f":"IF(ISBLANK('8. SPA Projects'!O25),\"\",'8. SPA Projects'!O25)","v":""},{"$f":"IF(ISBLANK('8. SPA Projects'!P25),\"\",'8. SPA Projects'!P25)","v":""},{"$f":"IF(ISBLANK('8. SPA Projects'!Q25),\"\",'8. SPA Projects'!Q25)","v":""},{"$f":"IF(ISBLANK('8. SPA Projects'!R25),\"\",'8. SPA Projects'!R25)","v":""},{"$f":"IF(ISBLANK('8. SPA Projects'!S25),\"\",'8. SPA Projects'!S25)","v":""},{"$f":"IF(ISBLANK('8. SPA Projects'!T25),\"\",'8. SPA Projects'!T25)","v":""},{"$f":"IF(ISBLANK('8. SPA Projects'!U25),\"\",'8. SPA Projects'!U25)","v":""},{"$f":"IF(ISBLANK('8. SPA Projects'!V25),\"\",'8. SPA Projects'!V25)","v":""},"",{"$f":"IF(OR(B49=\"\",AND($B$35=\"\",B49=\"\")),\"\",INDEX(Lookup!B$1:C$31,MATCH($B$35,Lookup!B$1:B$31),2))","v":""},{"$f":"IF(ISBLANK('8. SPA Projects'!D25),\"\",'8. SPA Projects'!D25)","v":""}]
[null,{"$f":"IF(ISBLANK('8. SPA Projects'!E26),\"\",'8. SPA Projects'!E26)","v":""},{"$f":"IF(ISBLANK('8. SPA Projects'!K26),\"\",'8. SPA Projects'!K26)","v":""},{"$f":"IF(ISBLANK('8. SPA Projects'!L26),\"\",'8. SPA Projects'!L26)","v":""},{"$f":"IF(ISBLANK('8. SPA Projects'!M26),\"\",'8. SPA Projects'!M26)","v":""},{"$f":"IF(ISBLANK('8. SPA Projects'!N26),\"\",'8. SPA Projects'!N26)","v":""},{"$f":"IF(ISBLANK('8. SPA Projects'!O26),\"\",'8. SPA Projects'!O26)","v":""},{"$f":"IF(ISBLANK('8. SPA Projects'!P26),\"\",'8. SPA Projects'!P26)","v":""},{"$f":"IF(ISBLANK('8. SPA Projects'!Q26),\"\",'8. SPA Projects'!Q26)","v":""},{"$f":"IF(ISBLANK('8. SPA Projects'!R26),\"\",'8. SPA Projects'!R26)","v":""},{"$f":"IF(ISBLANK('8. SPA Projects'!S26),\"\",'8. SPA Projects'!S26)","v":""},{"$f":"IF(ISBLANK('8. SPA Projects'!T26),\"\",'8. SPA Projects'!T26)","v":""},{"$f":"IF(ISBLANK('8. SPA Projects'!U26),\"\",'8. SPA Projects'!U26)","v":""},{"$f":"IF(ISBLANK('8. SPA Projects'!V26),\"\",'8. SPA Projects'!V26)","v":""},"",{"$f":"IF(OR(B50=\"\",AND($B$35=\"\",B50=\"\")),\"\",INDEX(Lookup!B$1:C$31,MATCH($B$35,Lookup!B$1:B$31),2))","v":""},{"$f":"IF(ISBLANK('8. SPA Projects'!D26),\"\",'8. SPA Projects'!D26)","v":""}]
[null,{"$f":"IF(ISBLANK('8. SPA Projects'!E27),\"\",'8. SPA Projects'!E27)","v":""},{"$f":"IF(ISBLANK('8. SPA Projects'!K27),\"\",'8. SPA Projects'!K27)","v":""},{"$f":"IF(ISBLANK('8. SPA Projects'!L27),\"\",'8. SPA Projects'!L27)","v":""},{"$f":"IF(ISBLANK('8. SPA Projects'!M27),\"\",'8. SPA Projects'!M27)","v":""},{"$f":"IF(ISBLANK('8. SPA Projects'!N27),\"\",'8. SPA Projects'!N27)","v":""},{"$f":"IF(ISBLANK('8. SPA Projects'!O27),\"\",'8. SPA Projects'!O27)","v":""},{"$f":"IF(ISBLANK('8. SPA Projects'!P27),\"\",'8. SPA Projects'!P27)","v":""},{"$f":"IF(ISBLANK('8. SPA Projects'!Q27),\"\",'8. SPA Projects'!Q27)","v":""},{"$f":"IF(ISBLANK('8. SPA Projects'!R27),\"\",'8. SPA Projects'!R27)","v":""},{"$f":"IF(ISBLANK('8. SPA Projects'!S27),\"\",'8. SPA Projects'!S27)","v":""},{"$f":"IF(ISBLANK('8. SPA Projects'!T27),\"\",'8. SPA Projects'!T27)","v":""},{"$f":"IF(ISBLANK('8. SPA Projects'!U27),\"\",'8. SPA Projects'!U27)","v":""},{"$f":"IF(ISBLANK('8. SPA Projects'!V27),\"\",'8. SPA Projects'!V27)","v":""},"",{"$f":"IF(OR(B51=\"\",AND($B$35=\"\",B51=\"\")),\"\",INDEX(Lookup!B$1:C$31,MATCH($B$35,Lookup!B$1:B$31),2))","v":""},{"$f":"IF(ISBLANK('8. SPA Projects'!D27),\"\",'8. SPA Projects'!D27)","v":""}]
[null,{"$f":"IF(ISBLANK('8. SPA Projects'!E28),\"\",'8. SPA Projects'!E28)","v":""},{"$f":"IF(ISBLANK('8. SPA Projects'!K28),\"\",'8. SPA Projects'!K28)","v":""},{"$f":"IF(ISBLANK('8. SPA Projects'!L28),\"\",'8. SPA Projects'!L28)","v":""},{"$f":"IF(ISBLANK('8. SPA Projects'!M28),\"\",'8. SPA Projects'!M28)","v":""},{"$f":"IF(ISBLANK('8. SPA Projects'!N28),\"\",'8. SPA Projects'!N28)","v":""},{"$f":"IF(ISBLANK('8. SPA Projects'!O28),\"\",'8. SPA Projects'!O28)","v":""},{"$f":"IF(ISBLANK('8. SPA Projects'!P28),\"\",'8. SPA Projects'!P28)","v":""},{"$f":"IF(ISBLANK('8. SPA Projects'!Q28),\"\",'8. SPA Projects'!Q28)","v":""},{"$f":"IF(ISBLANK('8. SPA Projects'!R28),\"\",'8. SPA Projects'!R28)","v":""},{"$f":"IF(ISBLANK('8. SPA Projects'!S28),\"\",'8. SPA Projects'!S28)","v":""},{"$f":"IF(ISBLANK('8. SPA Projects'!T28),\"\",'8. SPA Projects'!T28)","v":""},{"$f":"IF(ISBLANK('8. SPA Projects'!U28),\"\",'8. SPA Projects'!U28)","v":""},{"$f":"IF(ISBLANK('8. SPA Projects'!V28),\"\",'8. SPA Projects'!V28)","v":""},"",{"$f":"IF(OR(B52=\"\",AND($B$35=\"\",B52=\"\")),\"\",INDEX(Lookup!B$1:C$31,MATCH($B$35,Lookup!B$1:B$31),2))","v":""},{"$f":"IF(ISBLANK('8. SPA Projects'!D28),\"\",'8. SPA Projects'!D28)","v":""}]
[null,{"$f":"IF(ISBLANK('8. SPA Projects'!E29),\"\",'8. SPA Projects'!E29)","v":""},{"$f":"IF(ISBLANK('8. SPA Projects'!K29),\"\",'8. SPA Projects'!K29)","v":""},{"$f":"IF(ISBLANK('8. SPA Projects'!L29),\"\",'8. SPA Projects'!L29)","v":""},{"$f":"IF(ISBLANK('8. SPA Projects'!M29),\"\",'8. SPA Projects'!M29)","v":""},{"$f":"IF(ISBLANK('8. SPA Projects'!N29),\"\",'8. SPA Projects'!N29)","v":""},{"$f":"IF(ISBLANK('8. SPA Projects'!O29),\"\",'8. SPA Projects'!O29)","v":""},{"$f":"IF(ISBLANK('8. SPA Projects'!P29),\"\",'8. SPA Projects'!P29)","v":""},{"$f":"IF(ISBLANK('8. SPA Projects'!Q29),\"\",'8. SPA Projects'!Q29)","v":""},{"$f":"IF(ISBLANK('8. SPA Projects'!R29),\"\",'8. SPA Projects'!R29)","v":""},{"$f":"IF(ISBLANK('8. SPA Projects'!S29),\"\",'8. SPA Projects'!S29)","v":""},{"$f":"IF(ISBLANK('8. SPA Projects'!T29),\"\",'8. SPA Projects'!T29)","v":""},{"$f":"IF(ISBLANK('8. SPA Projects'!U29),\"\",'8. SPA Projects'!U29)","v":""},{"$f":"IF(ISBLANK('8. SPA Projects'!V29),\"\",'8. SPA Projects'!V29)","v":""},"",{"$f":"IF(OR(B53=\"\",AND($B$35=\"\",B53=\"\")),\"\",INDEX(Lookup!B$1:C$31,MATCH($B$35,Lookup!B$1:B$31),2))","v":""},{"$f":"IF(ISBLANK('8. SPA Projects'!D29),\"\",'8. SPA Projects'!D29)","v":""}]
[null,{"$f":"IF(ISBLANK('8. SPA Projects'!E30),\"\",'8. SPA Projects'!E30)","v":""},{"$f":"IF(ISBLANK('8. SPA Projects'!K30),\"\",'8. SPA Projects'!K30)","v":""},{"$f":"IF(ISBLANK('8. SPA Projects'!L30),\"\",'8. SPA Projects'!L30)","v":""},{"$f":"IF(ISBLANK('8. SPA Projects'!M30),\"\",'8. SPA Projects'!M30)","v":""},{"$f":"IF(ISBLANK('8. SPA Projects'!N30),\"\",'8. SPA Projects'!N30)","v":""},{"$f":"IF(ISBLANK('8. SPA Projects'!O30),\"\",'8. SPA Projects'!O30)","v":""},{"$f":"IF(ISBLANK('8. SPA Projects'!P30),\"\",'8. SPA Projects'!P30)","v":""},{"$f":"IF(ISBLANK('8. SPA Projects'!Q30),\"\",'8. SPA Projects'!Q30)","v":""},{"$f":"IF(ISBLANK('8. SPA Projects'!R30),\"\",'8. SPA Projects'!R30)","v":""},{"$f":"IF(ISBLANK('8. SPA Projects'!S30),\"\",'8. SPA Projects'!S30)","v":""},{"$f":"IF(ISBLANK('8. SPA Projects'!T30),\"\",'8. SPA Projects'!T30)","v":""},{"$f":"IF(ISBLANK('8. SPA Projects'!U30),\"\",'8. SPA Projects'!U30)","v":""},{"$f":"IF(ISBLANK('8. SPA Projects'!V30),\"\",'8. SPA Projects'!V30)","v":""},"",{"$f":"IF(OR(B54=\"\",AND($B$35=\"\",B54=\"\")),\"\",INDEX(Lookup!B$1:C$31,MATCH($B$35,Lookup!B$1:B$31),2))","v":""},{"$f":"IF(ISBLANK('8. SPA Projects'!D30),\"\",'8. SPA Projects'!D30)","v":""}]
[null,{"$f":"IF(ISBLANK('8. SPA Projects'!E31),\"\",'8. SPA Projects'!E31)","v":""},{"$f":"IF(ISBLANK('8. SPA Projects'!K31),\"\",'8. SPA Projects'!K31)","v":""},{"$f":"IF(ISBLANK('8. SPA Projects'!L31),\"\",'8. SPA Projects'!L31)","v":""},{"$f":"IF(ISBLANK('8. SPA Projects'!M31),\"\",'8. SPA Projects'!M31)","v":""},{"$f":"IF(ISBLANK('8. SPA Projects'!N31),\"\",'8. SPA Projects'!N31)","v":""},{"$f":"IF(ISBLANK('8. SPA Projects'!O31),\"\",'8. SPA Projects'!O31)","v":""},{"$f":"IF(ISBLANK('8. SPA Projects'!P31),\"\",'8. SPA Projects'!P31)","v":""},{"$f":"IF(ISBLANK('8. SPA Projects'!Q31),\"\",'8. SPA Projects'!Q31)","v":""},{"$f":"IF(ISBLANK('8. SPA Projects'!R31),\"\",'8. SPA Projects'!R31)","v":""},{"$f":"IF(ISBLANK('8. SPA Projects'!S31),\"\",'8. SPA Projects'!S31)","v":""},{"$f":"IF(ISBLANK('8. SPA Projects'!T31),\"\",'8. SPA Projects'!T31)","v":""},{"$f":"IF(ISBLANK('8. SPA Projects'!U31),\"\",'8. SPA Projects'!U31)","v":""},{"$f":"IF(ISBLANK('8. SPA Projects'!V31),\"\",'8. SPA Projects'!V31)","v":""},"",{"$f":"IF(OR(B55=\"\",AND($B$35=\"\",B55=\"\")),\"\",INDEX(Lookup!B$1:C$31,MATCH($B$35,Lookup!B$1:B$31),2))","v":""},{"$f":"IF(ISBLANK('8. SPA Projects'!D31),\"\",'8. SPA Projects'!D31)","v":""}]
[null,{"$f":"IF(ISBLANK('8. SPA Projects'!E32),\"\",'8. SPA Projects'!E32)","v":""},{"$f":"IF(ISBLANK('8. SPA Projects'!K32),\"\",'8. SPA Projects'!K32)","v":""},{"$f":"IF(ISBLANK('8. SPA Projects'!L32),\"\",'8. SPA Projects'!L32)","v":""},{"$f":"IF(ISBLANK('8. SPA Projects'!M32),\"\",'8. SPA Projects'!M32)","v":""},{"$f":"IF(ISBLANK('8. SPA Projects'!N32),\"\",'8. SPA Projects'!N32)","v":""},{"$f":"IF(ISBLANK('8. SPA Projects'!O32),\"\",'8. SPA Projects'!O32)","v":""},{"$f":"IF(ISBLANK('8. SPA Projects'!P32),\"\",'8. SPA Projects'!P32)","v":""},{"$f":"IF(ISBLANK('8. SPA Projects'!Q32),\"\",'8. SPA Projects'!Q32)","v":""},{"$f":"IF(ISBLANK('8. SPA Projects'!R32),\"\",'8. SPA Projects'!R32)","v":""},{"$f":"IF(ISBLANK('8. SPA Projects'!S32),\"\",'8. SPA Projects'!S32)","v":""},{"$f":"IF(ISBLANK('8. SPA Projects'!T32),\"\",'8. SPA Projects'!T32)","v":""},{"$f":"IF(ISBLANK('8. SPA Projects'!U32),\"\",'8. SPA Projects'!U32)","v":""},{"$f":"IF(ISBLANK('8. SPA Projects'!V32),\"\",'8. SPA Projects'!V32)","v":""},"",{"$f":"IF(OR(B56=\"\",AND($B$35=\"\",B56=\"\")),\"\",INDEX(Lookup!B$1:C$31,MATCH($B$35,Lookup!B$1:B$31),2))","v":""},{"$f":"IF(ISBLANK('8. SPA Projects'!D32),\"\",'8. SPA Projects'!D32)","v":""}]
[null,null,null,null,null,{"$f":"IF(ISBLANK('8. SPA Projects'!N33),\"\",'8. SPA Projects'!N33)","v":""},{"$f":"IF(ISBLANK('8. SPA Projects'!O33),\"\",'8. SPA Projects'!O33)","v":""},{"$f":"IF(ISBLANK('8. SPA Projects'!P33),\"\",'8. SPA Projects'!P33)","v":""},{"$f":"IF(ISBLANK('8. SPA Projects'!Q33),\"\",'8. SPA Projects'!Q33)","v":""},{"$f":"IF(ISBLANK('8. SPA Projects'!R33),\"\",'8. SPA Projects'!R33)","v":""},{"$f":"IF(ISBLANK('8. SPA Projects'!S33),\"\",'8. SPA Projects'!S33)","v":""},{"$f":"IF(ISBLANK('8. SPA Projects'!T33),\"\",'8. SPA Projects'!T33)","v":""},{"$f":"IF(ISBLANK('8. SPA Projects'!U33),\"\",'8. SPA Projects'!U33)","v":""},{"$f":"IF(ISBLANK('8. SPA Projects'!V33),\"\",'8. SPA Projects'!V33)","v":""},"",{"$f":"IF(OR(B57=\"\",AND($B$35=\"\",B57=\"\")),\"\",INDEX(Lookup!B19:C49,MATCH($B$35,Lookup!B19:B49),2))","v":""},{"$f":"IF(ISBLANK('8. SPA Projects'!D33),\"\",'8. SPA Projects'!D33)","v":""}]
["ECPA Indicators"]
["MicroOutputBizPlan","MicroOutputLoan","MicroOutcomeBizPlan","MicroOutcomeLoan","AwarenessOutputRenew","AwarenessOutputClimate","AwarenessOutputTeach","AwarenessOutcomeRenew","AwarenessOutcomeClimate","AwarenessOutcomeTeach","AwarenessOutcomeEfficient","PlanningOutput","ElectricInstallHome","ElectricInstallBiz","ElectricInstallPublic","ElectricCommHome","ElectricCommBiz","ElectricCommPublic","ElectricHoursHome","ElectricHoursBiz","ElectricHoursPublic","StovesVolunteerHome","StovesVolunteerBiz","StovesVolunteerPublic","StovesHouseholdsHome","StovesHouseholdsBiz","StovesHouseholdsPublic","StovesIndividuals","StovesFuelWeight","StovesFuelHoursMale","StovesFuleHoursFemale","StovesFuelHoursBoys","StovesFuelHoursGirls","HectaresForest","HectaresWatershed","HectorsAgro"]
[{"$f":"IF(ISBLANK('11. ECPA Indicators'!D13),\"\",'11. ECPA Indicators'!D13)","v":""},{"$f":"IF(ISBLANK('11. ECPA Indicators'!D16),\"\",'11. ECPA Indicators'!D16)","v":""},{"$f":"IF(ISBLANK('11. ECPA Indicators'!D19),\"\",'11. ECPA Indicators'!D19)","v":""},{"$f":"IF(ISBLANK('11. ECPA Indicators'!D21),\"\",'11. ECPA Indicators'!D21)","v":""},{"$f":"IF(ISBLANK('11. ECPA Indicators'!D27),\"\",'11. ECPA Indicators'!D27)","v":""},{"$f":"IF(ISBLANK('11. ECPA Indicators'!D29),\"\",'11. ECPA Indicators'!D29)","v":""},{"$f":"IF(ISBLANK('11. ECPA Indicators'!D31),\"\",'11. ECPA Indicators'!D31)","v":""},{"$f":"IF(ISBLANK('11. ECPA Indicators'!D34),\"\",'11. ECPA Indicators'!D34)","v":""},{"$f":"IF(ISBLANK('11. ECPA Indicators'!D36),\"\",'11. ECPA Indicators'!D36)","v":""},{"$f":"IF(ISBLANK('11. ECPA Indicators'!D38),\"\",'11. ECPA Indicators'!D38)","v":""},{"$f":"IF(ISBLANK('11. ECPA Indicators'!D40),\"\",'11. ECPA Indicators'!D40)","v":""},{"$f":"IF(ISBLANK('11. ECPA Indicators'!D45),\"\",'11. ECPA Indicators'!D45)","v":""},{"$f":"IF(ISBLANK('11. ECPA Indicators'!D51),\"\",'11. ECPA Indicators'!D51)","v":""},{"$f":"IF(ISBLANK('11. ECPA Indicators'!D52),\"\",'11. ECPA Indicators'!D52)","v":""},{"$f":"IF(ISBLANK('11. ECPA Indicators'!D53),\"\",'11. ECPA Indicators'!D53)","v":""},{"$f":"IF(ISBLANK('11. ECPA Indicators'!E51),\"\",'11. ECPA Indicators'!E51)","v":""},{"$f":"IF(ISBLANK('11. ECPA Indicators'!E52),\"\",'11. ECPA Indicators'!E52)","v":""},{"$f":"IF(ISBLANK('11. ECPA Indicators'!E53),\"\",'11. ECPA Indicators'!E53)","v":""},{"$f":"IF(ISBLANK('11. ECPA Indicators'!F51),\"\",'11. ECPA Indicators'!F51)","v":""},{"$f":"IF(ISBLANK('11. ECPA Indicators'!F52),\"\",'11. ECPA Indicators'!F52)","v":""},{"$f":"IF(ISBLANK('11. ECPA Indicators'!F53),\"\",'11. ECPA Indicators'!F53)","v":""},{"$f":"IF(ISBLANK('11. ECPA Indicators'!D57),\"\",'11. ECPA Indicators'!D57)","v":""},{"$f":"IF(ISBLANK('11. ECPA Indicators'!D58),\"\",'11. ECPA Indicators'!D58)","v":""},{"$f":"IF(ISBLANK('11. ECPA Indicators'!D59),\"\",'11. ECPA Indicators'!D59)","v":""},{"$f":"IF(ISBLANK('11. ECPA Indicators'!H57),\"\",'11. ECPA Indicators'!H57)","v":""},{"$f":"IF(ISBLANK('11. ECPA Indicators'!H58),\"\",'11. ECPA Indicators'!H58)","v":""},{"$f":"IF(ISBLANK('11. ECPA Indicators'!H59),\"\",'11. ECPA Indicators'!H59)","v":""},{"$f":"IF(ISBLANK('11. ECPA Indicators'!D61),\"\",'11. ECPA Indicators'!D61)","v":""},{"$f":"IF(ISBLANK('11. ECPA Indicators'!H64),\"\",'11. ECPA Indicators'!H64)","v":""},{"$f":"IF(ISBLANK('11. ECPA Indicators'!I66),\"\",'11. ECPA Indicators'!I66)","v":""},{"$f":"IF(ISBLANK('11. ECPA Indicators'!H66),\"\",'11. ECPA Indicators'!H66)","v":""},{"$f":"IF(ISBLANK('11. ECPA Indicators'!K66),\"\",'11. ECPA Indicators'!K66)","v":""},{"$f":"IF(ISBLANK('11. ECPA Indicators'!J66),\"\",'11. ECPA Indicators'!J66)","v":""},{"$f":"IF(ISBLANK('11. ECPA Indicators'!E70),\"\",'11. ECPA Indicators'!E70)","v":""},{"$f":"IF(ISBLANK('11. ECPA Indicators'!E71),\"\",'11. ECPA Indicators'!E71)","v":""},{"$f":"IF(ISBLANK('11. ECPA Indicators'!E72),\"\",'11. ECPA Indicators'!E72)","v":""}]
[]
["PCPPReferrals"]
["Relationship to Volunteer","Title","First Name","Last Name","E-Mail","Street Address","City","State","Zip Code"]
[{"$f":"IF(ISBLANK('9. PCPP - Referrals'!D8),\"\",'9. PCPP - Referrals'!D8)","v":"World Connect"},{"$f":"IF(ISBLANK('9. PCPP - Referrals'!E8),\"\",'9. PCPP - Referrals'!E8)","v":""},{"$f":"IF(ISBLANK('9. PCPP - Referrals'!F8),\"\",'9. PCPP - Referrals'!F8)","v":""},{"$f":"IF(ISBLANK('9. PCPP - Referrals'!G8),\"\",'9. PCPP - Referrals'!G8)","v":""},{"$f":"IF(ISBLANK('9. PCPP - Referrals'!H8),\"\",'9. PCPP - Referrals'!H8)","v":""},{"$f":"IF(ISBLANK('9. PCPP - Referrals'!I8),\"\",'9. PCPP - Referrals'!I8)","v":""},{"$f":"IF(ISBLANK('9. PCPP - Referrals'!J8),\"\",'9. PCPP - Referrals'!J8)","v":""},{"$f":"IF(ISBLANK('9. PCPP - Referrals'!K8),\"\",'9. PCPP - Referrals'!K8)","v":""},{"$f":"IF(ISBLANK('9. PCPP - Referrals'!L8),\"\",'9. PCPP - Referrals'!L8)","v":""}]
[{"$f":"IF(ISBLANK('9. PCPP - Referrals'!D9),\"\",'9. PCPP - Referrals'!D9)","v":""},{"$f":"IF(ISBLANK('9. PCPP - Referrals'!E9),\"\",'9. PCPP - Referrals'!E9)","v":""},{"$f":"IF(ISBLANK('9. PCPP - Referrals'!F9),\"\",'9. PCPP - Referrals'!F9)","v":""},{"$f":"IF(ISBLANK('9. PCPP - Referrals'!G9),\"\",'9. PCPP - Referrals'!G9)","v":""},{"$f":"IF(ISBLANK('9. PCPP - Referrals'!H9),\"\",'9. PCPP - Referrals'!H9)","v":""},{"$f":"IF(ISBLANK('9. PCPP - Referrals'!I9),\"\",'9. PCPP - Referrals'!I9)","v":""},{"$f":"IF(ISBLANK('9. PCPP - Referrals'!J9),\"\",'9. PCPP - Referrals'!J9)","v":""},{"$f":"IF(ISBLANK('9. PCPP - Referrals'!K9),\"\",'9. PCPP - Referrals'!K9)","v":""},{"$f":"IF(ISBLANK('9. PCPP - Referrals'!L9),\"\",'9. PCPP - Referrals'!L9)","v":""}]
[{"$f":"IF(ISBLANK('9. PCPP - Referrals'!D10),\"\",'9. PCPP - Referrals'!D10)","v":""},{"$f":"IF(ISBLANK('9. PCPP - Referrals'!E10),\"\",'9. PCPP - Referrals'!E10)","v":""},{"$f":"IF(ISBLANK('9. PCPP - Referrals'!F10),\"\",'9. PCPP - Referrals'!F10)","v":""},{"$f":"IF(ISBLANK('9. PCPP - Referrals'!G10),\"\",'9. PCPP - Referrals'!G10)","v":""},{"$f":"IF(ISBLANK('9. PCPP - Referrals'!H10),\"\",'9. PCPP - Referrals'!H10)","v":""},{"$f":"IF(ISBLANK('9. PCPP - Referrals'!I10),\"\",'9. PCPP - Referrals'!I10)","v":""},{"$f":"IF(ISBLANK('9. PCPP - Referrals'!J10),\"\",'9. PCPP - Referrals'!J10)","v":""},{"$f":"IF(ISBLANK('9. PCPP - Referrals'!K10),\"\",'9. PCPP - Referrals'!K10)","v":""},{"$f":"IF(ISBLANK('9. PCPP - Referrals'!L10),\"\",'9. PCPP - Referrals'!L10)","v":""}]
[{"$f":"IF(ISBLANK('9. PCPP - Referrals'!D11),\"\",'9. PCPP - Referrals'!D11)","v":""},{"$f":"IF(ISBLANK('9. PCPP - Referrals'!E11),\"\",'9. PCPP - Referrals'!E11)","v":""},{"$f":"IF(ISBLANK('9. PCPP - Referrals'!F11),\"\",'9. PCPP - Referrals'!F11)","v":""},{"$f":"IF(ISBLANK('9. PCPP - Referrals'!G11),\"\",'9. PCPP - Referrals'!G11)","v":""},{"$f":"IF(ISBLANK('9. PCPP - Referrals'!H11),\"\",'9. PCPP - Referrals'!H11)","v":""},{"$f":"IF(ISBLANK('9. PCPP - Referrals'!I11),\"\",'9. PCPP - Referrals'!I11)","v":""},{"$f":"IF(ISBLANK('9. PCPP - Referrals'!J11),\"\",'9. PCPP - Referrals'!J11)","v":""},{"$f":"IF(ISBLANK('9. PCPP - Referrals'!K11),\"\",'9. PCPP - Referrals'!K11)","v":""},{"$f":"IF(ISBLANK('9. PCPP - Referrals'!L11),\"\",'9. PCPP - Referrals'!L11)","v":""}]
[{"$f":"IF(ISBLANK('9. PCPP - Referrals'!D12),\"\",'9. PCPP - Referrals'!D12)","v":""},{"$f":"IF(ISBLANK('9. PCPP - Referrals'!E12),\"\",'9. PCPP - Referrals'!E12)","v":""},{"$f":"IF(ISBLANK('9. PCPP - Referrals'!F12),\"\",'9. PCPP - Referrals'!F12)","v":""},{"$f":"IF(ISBLANK('9. PCPP - Referrals'!G12),\"\",'9. PCPP - Referrals'!G12)","v":""},{"$f":"IF(ISBLANK('9. PCPP - Referrals'!H12),\"\",'9. PCPP - Referrals'!H12)","v":""},{"$f":"IF(ISBLANK('9. PCPP - Referrals'!I12),\"\",'9. PCPP - Referrals'!I12)","v":""},{"$f":"IF(ISBLANK('9. PCPP - Referrals'!J12),\"\",'9. PCPP - Referrals'!J12)","v":""},{"$f":"IF(ISBLANK('9. PCPP - Referrals'!K12),\"\",'9. PCPP - Referrals'!K12)","v":""},{"$f":"IF(ISBLANK('9. PCPP - Referrals'!L12),\"\",'9. PCPP - Referrals'!L12)","v":""}]
[{"$f":"IF(ISBLANK('9. PCPP - Referrals'!D13),\"\",'9. PCPP - Referrals'!D13)","v":""},{"$f":"IF(ISBLANK('9. PCPP - Referrals'!E13),\"\",'9. PCPP - Referrals'!E13)","v":""},{"$f":"IF(ISBLANK('9. PCPP - Referrals'!F13),\"\",'9. PCPP - Referrals'!F13)","v":""},{"$f":"IF(ISBLANK('9. PCPP - Referrals'!G13),\"\",'9. PCPP - Referrals'!G13)","v":""},{"$f":"IF(ISBLANK('9. PCPP - Referrals'!H13),\"\",'9. PCPP - Referrals'!H13)","v":""},{"$f":"IF(ISBLANK('9. PCPP - Referrals'!I13),\"\",'9. PCPP - Referrals'!I13)","v":""},{"$f":"IF(ISBLANK('9. PCPP - Referrals'!J13),\"\",'9. PCPP - Referrals'!J13)","v":""},{"$f":"IF(ISBLANK('9. PCPP - Referrals'!K13),\"\",'9. PCPP - Referrals'!K13)","v":""},{"$f":"IF(ISBLANK('9. PCPP - Referrals'!L13),\"\",'9. PCPP - Referrals'!L13)","v":""}]
[{"$f":"IF(ISBLANK('9. PCPP - Referrals'!D14),\"\",'9. PCPP - Referrals'!D14)","v":""},{"$f":"IF(ISBLANK('9. PCPP - Referrals'!E14),\"\",'9. PCPP - Referrals'!E14)","v":""},{"$f":"IF(ISBLANK('9. PCPP - Referrals'!F14),\"\",'9. PCPP - Referrals'!F14)","v":""},{"$f":"IF(ISBLANK('9. PCPP - Referrals'!G14),\"\",'9. PCPP - Referrals'!G14)","v":""},{"$f":"IF(ISBLANK('9. PCPP - Referrals'!H14),\"\",'9. PCPP - Referrals'!H14)","v":""},{"$f":"IF(ISBLANK('9. PCPP - Referrals'!I14),\"\",'9. PCPP - Referrals'!I14)","v":""},{"$f":"IF(ISBLANK('9. PCPP - Referrals'!J14),\"\",'9. PCPP - Referrals'!J14)","v":""},{"$f":"IF(ISBLANK('9. PCPP - Referrals'!K14),\"\",'9. PCPP - Referrals'!K14)","v":""},{"$f":"IF(ISBLANK('9. PCPP - Referrals'!L14),\"\",'9. PCPP - Referrals'!L14)","v":""}]
[{"$f":"IF(ISBLANK('9. PCPP - Referrals'!D15),\"\",'9. PCPP - Referrals'!D15)","v":""},{"$f":"IF(ISBLANK('9. PCPP - Referrals'!E15),\"\",'9. PCPP - Referrals'!E15)","v":""},{"$f":"IF(ISBLANK('9. PCPP - Referrals'!F15),\"\",'9. PCPP - Referrals'!F15)","v":""},{"$f":"IF(ISBLANK('9. PCPP - Referrals'!G15),\"\",'9. PCPP - Referrals'!G15)","v":""},{"$f":"IF(ISBLANK('9. PCPP - Referrals'!H15),\"\",'9. PCPP - Referrals'!H15)","v":""},{"$f":"IF(ISBLANK('9. PCPP - Referrals'!I15),\"\",'9. PCPP - Referrals'!I15)","v":""},{"$f":"IF(ISBLANK('9. PCPP - Referrals'!J15),\"\",'9. PCPP - Referrals'!J15)","v":""},{"$f":"IF(ISBLANK('9. PCPP - Referrals'!K15),\"\",'9. PCPP - Referrals'!K15)","v":""},{"$f":"IF(ISBLANK('9. PCPP - Referrals'!L15),\"\",'9. PCPP - Referrals'!L15)","v":""}]
[{"$f":"IF(ISBLANK('9. PCPP - Referrals'!D16),\"\",'9. PCPP - Referrals'!D16)","v":""},{"$f":"IF(ISBLANK('9. PCPP - Referrals'!E16),\"\",'9. PCPP - Referrals'!E16)","v":""},{"$f":"IF(ISBLANK('9. PCPP - Referrals'!F16),\"\",'9. PCPP - Referrals'!F16)","v":""},{"$f":"IF(ISBLANK('9. PCPP - Referrals'!G16),\"\",'9. PCPP - Referrals'!G16)","v":""},{"$f":"IF(ISBLANK('9. PCPP - Referrals'!H16),\"\",'9. PCPP - Referrals'!H16)","v":""},{"$f":"IF(ISBLANK('9. PCPP - Referrals'!I16),\"\",'9. PCPP - Referrals'!I16)","v":""},{"$f":"IF(ISBLANK('9. PCPP - Referrals'!J16),\"\",'9. PCPP - Referrals'!J16)","v":""},{"$f":"IF(ISBLANK('9. PCPP - Referrals'!K16),\"\",'9. PCPP - Referrals'!K16)","v":""},{"$f":"IF(ISBLANK('9. PCPP - Referrals'!L16),\"\",'9. PCPP - Referrals'!L16)","v":""}]
[{"$f":"IF(ISBLANK('9. PCPP - Referrals'!D17),\"\",'9. PCPP - Referrals'!D17)","v":""},{"$f":"IF(ISBLANK('9. PCPP - Referrals'!E17),\"\",'9. PCPP - Referrals'!E17)","v":""},{"$f":"IF(ISBLANK('9. PCPP - Referrals'!F17),\"\",'9. PCPP - Referrals'!F17)","v":""},{"$f":"IF(ISBLANK('9. PCPP - Referrals'!G17),\"\",'9. PCPP - Referrals'!G17)","v":""},{"$f":"IF(ISBLANK('9. PCPP - Referrals'!H17),\"\",'9. PCPP - Referrals'!H17)","v":""},{"$f":"IF(ISBLANK('9. PCPP - Referrals'!I17),\"\",'9. PCPP - Referrals'!I17)","v":""},{"$f":"IF(ISBLANK('9. PCPP - Referrals'!J17),\"\",'9. PCPP - Referrals'!J17)","v":""},{"$f":"IF(ISBLANK('9. PCPP - Referrals'!K17),\"\",'9. PCPP - Referrals'!K17)","v":""},{"$f":"IF(ISBLANK('9. PCPP - Referrals'!L17),\"\",'9. PCPP - Referrals'!L17)","v":""}]
[{"$f":"IF(ISBLANK('9. PCPP - Referrals'!D18),\"\",'9. PCPP - Referrals'!D18)","v":""},{"$f":"IF(ISBLANK('9. PCPP - Referrals'!E18),\"\",'9. PCPP - Referrals'!E18)","v":""},{"$f":"IF(ISBLANK('9. PCPP - Referrals'!F18),\"\",'9. PCPP - Referrals'!F18)","v":""},{"$f":"IF(ISBLANK('9. PCPP - Referrals'!G18),\"\",'9. PCPP - Referrals'!G18)","v":""},{"$f":"IF(ISBLANK('9. PCPP - Referrals'!H18),\"\",'9. PCPP - Referrals'!H18)","v":""},{"$f":"IF(ISBLANK('9. PCPP - Referrals'!I18),\"\",'9. PCPP - Referrals'!I18)","v":""},{"$f":"IF(ISBLANK('9. PCPP - Referrals'!J18),\"\",'9. PCPP - Referrals'!J18)","v":""},{"$f":"IF(ISBLANK('9. PCPP - Referrals'!K18),\"\",'9. PCPP - Referrals'!K18)","v":""},{"$f":"IF(ISBLANK('9. PCPP - Referrals'!L18),\"\",'9. PCPP - Referrals'!L18)","v":""}]
[{"$f":"IF(ISBLANK('9. PCPP - Referrals'!D19),\"\",'9. PCPP - Referrals'!D19)","v":""},{"$f":"IF(ISBLANK('9. PCPP - Referrals'!E19),\"\",'9. PCPP - Referrals'!E19)","v":""},{"$f":"IF(ISBLANK('9. PCPP - Referrals'!F19),\"\",'9. PCPP - Referrals'!F19)","v":""},{"$f":"IF(ISBLANK('9. PCPP - Referrals'!G19),\"\",'9. PCPP - Referrals'!G19)","v":""},{"$f":"IF(ISBLANK('9. PCPP - Referrals'!H19),\"\",'9. PCPP - Referrals'!H19)","v":""},{"$f":"IF(ISBLANK('9. PCPP - Referrals'!I19),\"\",'9. PCPP - Referrals'!I19)","v":""},{"$f":"IF(ISBLANK('9. PCPP - Referrals'!J19),\"\",'9. PCPP - Referrals'!J19)","v":""},{"$f":"IF(ISBLANK('9. PCPP - Referrals'!K19),\"\",'9. PCPP - Referrals'!K19)","v":""},{"$f":"IF(ISBLANK('9. PCPP - Referrals'!L19),\"\",'9. PCPP - Referrals'!L19)","v":""}]
[{"$f":"IF(ISBLANK('9. PCPP - Referrals'!D20),\"\",'9. PCPP - Referrals'!D20)","v":""},{"$f":"IF(ISBLANK('9. PCPP - Referrals'!E20),\"\",'9. PCPP - Referrals'!E20)","v":""},{"$f":"IF(ISBLANK('9. PCPP - Referrals'!F20),\"\",'9. PCPP - Referrals'!F20)","v":""},{"$f":"IF(ISBLANK('9. PCPP - Referrals'!G20),\"\",'9. PCPP - Referrals'!G20)","v":""},{"$f":"IF(ISBLANK('9. PCPP - Referrals'!H20),\"\",'9. PCPP - Referrals'!H20)","v":""},{"$f":"IF(ISBLANK('9. PCPP - Referrals'!I20),\"\",'9. PCPP - Referrals'!I20)","v":""},{"$f":"IF(ISBLANK('9. PCPP - Referrals'!J20),\"\",'9. PCPP - Referrals'!J20)","v":""},{"$f":"IF(ISBLANK('9. PCPP - Referrals'!K20),\"\",'9. PCPP - Referrals'!K20)","v":""},{"$f":"IF(ISBLANK('9. PCPP - Referrals'!L20),\"\",'9. PCPP - Referrals'!L20)","v":""}]
[{"$f":"IF(ISBLANK('9. PCPP - Referrals'!D21),\"\",'9. PCPP - Referrals'!D21)","v":""},{"$f":"IF(ISBLANK('9. PCPP - Referrals'!E21),\"\",'9. PCPP - Referrals'!E21)","v":""},{"$f":"IF(ISBLANK('9. PCPP - Referrals'!F21),\"\",'9. PCPP - Referrals'!F21)","v":""},{"$f":"IF(ISBLANK('9. PCPP - Referrals'!G21),\"\",'9. PCPP - Referrals'!G21)","v":""},{"$f":"IF(ISBLANK('9. PCPP - Referrals'!H21),\"\",'9. PCPP - Referrals'!H21)","v":""},{"$f":"IF(ISBLANK('9. PCPP - Referrals'!I21),\"\",'9. PCPP - Referrals'!I21)","v":""},{"$f":"IF(ISBLANK('9. PCPP - Referrals'!J21),\"\",'9. PCPP - Referrals'!J21)","v":""},{"$f":"IF(ISBLANK('9. PCPP - Referrals'!K21),\"\",'9. PCPP - Referrals'!K21)","v":""},{"$f":"IF(ISBLANK('9. PCPP - Referrals'!L21),\"\",'9. PCPP - Referrals'!L21)","v":""}]
[{"$f":"IF(ISBLANK('9. PCPP - Referrals'!D22),\"\",'9. PCPP - Referrals'!D22)","v":""},{"$f":"IF(ISBLANK('9. PCPP - Referrals'!E22),\"\",'9. PCPP - Referrals'!E22)","v":""},{"$f":"IF(ISBLANK('9. PCPP - Referrals'!F22),\"\",'9. PCPP - Referrals'!F22)","v":""},{"$f":"IF(ISBLANK('9. PCPP - Referrals'!G22),\"\",'9. PCPP - Referrals'!G22)","v":""},{"$f":"IF(ISBLANK('9. PCPP - Referrals'!H22),\"\",'9. PCPP - Referrals'!H22)","v":""},{"$f":"IF(ISBLANK('9. PCPP - Referrals'!I22),\"\",'9. PCPP - Referrals'!I22)","v":""},{"$f":"IF(ISBLANK('9. PCPP - Referrals'!J22),\"\",'9. PCPP - Referrals'!J22)","v":""},{"$f":"IF(ISBLANK('9. PCPP - Referrals'!K22),\"\",'9. PCPP - Referrals'!K22)","v":""},{"$f":"IF(ISBLANK('9. PCPP - Referrals'!L22),\"\",'9. PCPP - Referrals'!L22)","v":""}]
[{"$f":"IF(ISBLANK('9. PCPP - Referrals'!D23),\"\",'9. PCPP - Referrals'!D23)","v":""},{"$f":"IF(ISBLANK('9. PCPP - Referrals'!E23),\"\",'9. PCPP - Referrals'!E23)","v":""},{"$f":"IF(ISBLANK('9. PCPP - Referrals'!F23),\"\",'9. PCPP - Referrals'!F23)","v":""},{"$f":"IF(ISBLANK('9. PCPP - Referrals'!G23),\"\",'9. PCPP - Referrals'!G23)","v":""},{"$f":"IF(ISBLANK('9. PCPP - Referrals'!H23),\"\",'9. PCPP - Referrals'!H23)","v":""},{"$f":"IF(ISBLANK('9. PCPP - Referrals'!I23),\"\",'9. PCPP - Referrals'!I23)","v":""},{"$f":"IF(ISBLANK('9. PCPP - Referrals'!J23),\"\",'9. PCPP - Referrals'!J23)","v":""},{"$f":"IF(ISBLANK('9. PCPP - Referrals'!K23),\"\",'9. PCPP - Referrals'!K23)","v":""},{"$f":"IF(ISBLANK('9. PCPP - Referrals'!L23),\"\",'9. PCPP - Referrals'!L23)","v":""}]
[{"$f":"IF(ISBLANK('9. PCPP - Referrals'!D24),\"\",'9. PCPP - Referrals'!D24)","v":""},{"$f":"IF(ISBLANK('9. PCPP - Referrals'!E24),\"\",'9. PCPP - Referrals'!E24)","v":""},{"$f":"IF(ISBLANK('9. PCPP - Referrals'!F24),\"\",'9. PCPP - Referrals'!F24)","v":""},{"$f":"IF(ISBLANK('9. PCPP - Referrals'!G24),\"\",'9. PCPP - Referrals'!G24)","v":""},{"$f":"IF(ISBLANK('9. PCPP - Referrals'!H24),\"\",'9. PCPP - Referrals'!H24)","v":""},{"$f":"IF(ISBLANK('9. PCPP - Referrals'!I24),\"\",'9. PCPP - Referrals'!I24)","v":""},{"$f":"IF(ISBLANK('9. PCPP - Referrals'!J24),\"\",'9. PCPP - Referrals'!J24)","v":""},{"$f":"IF(ISBLANK('9. PCPP - Referrals'!K24),\"\",'9. PCPP - Referrals'!K24)","v":""},{"$f":"IF(ISBLANK('9. PCPP - Referrals'!L24),\"\",'9. PCPP - Referrals'!L24)","v":""}]
[{"$f":"IF(ISBLANK('9. PCPP - Referrals'!D25),\"\",'9. PCPP - Referrals'!D25)","v":""},{"$f":"IF(ISBLANK('9. PCPP - Referrals'!E25),\"\",'9. PCPP - Referrals'!E25)","v":""},{"$f":"IF(ISBLANK('9. PCPP - Referrals'!F25),\"\",'9. PCPP - Referrals'!F25)","v":""},{"$f":"IF(ISBLANK('9. PCPP - Referrals'!G25),\"\",'9. PCPP - Referrals'!G25)","v":""},{"$f":"IF(ISBLANK('9. PCPP - Referrals'!H25),\"\",'9. PCPP - Referrals'!H25)","v":""},{"$f":"IF(ISBLANK('9. PCPP - Referrals'!I25),\"\",'9. PCPP - Referrals'!I25)","v":""},{"$f":"IF(ISBLANK('9. PCPP - Referrals'!J25),\"\",'9. PCPP - Referrals'!J25)","v":""},{"$f":"IF(ISBLANK('9. PCPP - Referrals'!K25),\"\",'9. PCPP - Referrals'!K25)","v":""},{"$f":"IF(ISBLANK('9. PCPP - Referrals'!L25),\"\",'9. PCPP - Referrals'!L25)","v":""}]
[{"$f":"IF(ISBLANK('9. PCPP - Referrals'!D26),\"\",'9. PCPP - Referrals'!D26)","v":""},{"$f":"IF(ISBLANK('9. PCPP - Referrals'!E26),\"\",'9. PCPP - Referrals'!E26)","v":""},{"$f":"IF(ISBLANK('9. PCPP - Referrals'!F26),\"\",'9. PCPP - Referrals'!F26)","v":""},{"$f":"IF(ISBLANK('9. PCPP - Referrals'!G26),\"\",'9. PCPP - Referrals'!G26)","v":""},{"$f":"IF(ISBLANK('9. PCPP - Referrals'!H26),\"\",'9. PCPP - Referrals'!H26)","v":""},{"$f":"IF(ISBLANK('9. PCPP - Referrals'!I26),\"\",'9. PCPP - Referrals'!I26)","v":""},{"$f":"IF(ISBLANK('9. PCPP - Referrals'!J26),\"\",'9. PCPP - Referrals'!J26)","v":""},{"$f":"IF(ISBLANK('9. PCPP - Referrals'!K26),\"\",'9. PCPP - Referrals'!K26)","v":""},{"$f":"IF(ISBLANK('9. PCPP - Referrals'!L26),\"\",'9. PCPP - Referrals'!L26)","v":""}]
[{"$f":"IF(ISBLANK('9. PCPP - Referrals'!D27),\"\",'9. PCPP - Referrals'!D27)","v":""},{"$f":"IF(ISBLANK('9. PCPP - Referrals'!E27),\"\",'9. PCPP - Referrals'!E27)","v":""},{"$f":"IF(ISBLANK('9. PCPP - Referrals'!F27),\"\",'9. PCPP - Referrals'!F27)","v":""},{"$f":"IF(ISBLANK('9. PCPP - Referrals'!G27),\"\",'9. PCPP - Referrals'!G27)","v":""},{"$f":"IF(ISBLANK('9. PCPP - Referrals'!H27),\"\",'9. PCPP - Referrals'!H27)","v":""},{"$f":"IF(ISBLANK('9. PCPP - Referrals'!I27),\"\",'9. PCPP - Referrals'!I27)","v":""},{"$f":"IF(ISBLANK('9. PCPP - Referrals'!J27),\"\",'9. PCPP - Referrals'!J27)","v":""},{"$f":"IF(ISBLANK('9. PCPP - Referrals'!K27),\"\",'9. PCPP - Referrals'!K27)","v":""},{"$f":"IF(ISBLANK('9. PCPP - Referrals'!L27),\"\",'9. PCPP - Referrals'!L27)","v":""}]
[{"$f":"IF(ISBLANK('9. PCPP - Referrals'!D28),\"\",'9. PCPP - Referrals'!D28)","v":""},{"$f":"IF(ISBLANK('9. PCPP - Referrals'!E28),\"\",'9. PCPP - Referrals'!E28)","v":""},{"$f":"IF(ISBLANK('9. PCPP - Referrals'!F28),\"\",'9. PCPP - Referrals'!F28)","v":""},{"$f":"IF(ISBLANK('9. PCPP - Referrals'!G28),\"\",'9. PCPP - Referrals'!G28)","v":""},{"$f":"IF(ISBLANK('9. PCPP - Referrals'!H28),\"\",'9. PCPP - Referrals'!H28)","v":""},{"$f":"IF(ISBLANK('9. PCPP - Referrals'!I28),\"\",'9. PCPP - Referrals'!I28)","v":""},{"$f":"IF(ISBLANK('9. PCPP - Referrals'!J28),\"\",'9. PCPP - Referrals'!J28)","v":""},{"$f":"IF(ISBLANK('9. PCPP - Referrals'!K28),\"\",'9. PCPP - Referrals'!K28)","v":""},{"$f":"IF(ISBLANK('9. PCPP - Referrals'!L28),\"\",'9. PCPP - Referrals'!L28)","v":""}]
[{"$f":"IF(ISBLANK('9. PCPP - Referrals'!D29),\"\",'9. PCPP - Referrals'!D29)","v":""},{"$f":"IF(ISBLANK('9. PCPP - Referrals'!E29),\"\",'9. PCPP - Referrals'!E29)","v":""},{"$f":"IF(ISBLANK('9. PCPP - Referrals'!F29),\"\",'9. PCPP - Referrals'!F29)","v":""},{"$f":"IF(ISBLANK('9. PCPP - Referrals'!G29),\"\",'9. PCPP - Referrals'!G29)","v":""},{"$f":"IF(ISBLANK('9. PCPP - Referrals'!H29),\"\",'9. PCPP - Referrals'!H29)","v":""},{"$f":"IF(ISBLANK('9. PCPP - Referrals'!I29),\"\",'9. PCPP - Referrals'!I29)","v":""},{"$f":"IF(ISBLANK('9. PCPP - Referrals'!J29),\"\",'9. PCPP - Referrals'!J29)","v":""},{"$f":"IF(ISBLANK('9. PCPP - Referrals'!K29),\"\",'9. PCPP - Referrals'!K29)","v":""},{"$f":"IF(ISBLANK('9. PCPP - Referrals'!L29),\"\",'9. PCPP - Referrals'!L29)","v":""}]
[{"$f":"IF(ISBLANK('9. PCPP - Referrals'!D30),\"\",'9. PCPP - Referrals'!D30)","v":""},{"$f":"IF(ISBLANK('9. PCPP - Referrals'!E30),\"\",'9. PCPP - Referrals'!E30)","v":""},{"$f":"IF(ISBLANK('9. PCPP - Referrals'!F30),\"\",'9. PCPP - Referrals'!F30)","v":""},{"$f":"IF(ISBLANK('9. PCPP - Referrals'!G30),\"\",'9. PCPP - Referrals'!G30)","v":""},{"$f":"IF(ISBLANK('9. PCPP - Referrals'!H30),\"\",'9. PCPP - Referrals'!H30)","v":""},{"$f":"IF(ISBLANK('9. PCPP - Referrals'!I30),\"\",'9. PCPP - Referrals'!I30)","v":""},{"$f":"IF(ISBLANK('9. PCPP - Referrals'!J30),\"\",'9. PCPP - Referrals'!J30)","v":""},{"$f":"IF(ISBLANK('9. PCPP - Referrals'!K30),\"\",'9. PCPP - Referrals'!K30)","v":""},{"$f":"IF(ISBLANK('9. PCPP - Referrals'!L30),\"\",'9. PCPP - Referrals'!L30)","v":""}]
[{"$f":"IF(ISBLANK('9. PCPP - Referrals'!D31),\"\",'9. PCPP - Referrals'!D31)","v":""},{"$f":"IF(ISBLANK('9. PCPP - Referrals'!E31),\"\",'9. PCPP - Referrals'!E31)","v":""},{"$f":"IF(ISBLANK('9. PCPP - Referrals'!F31),\"\",'9. PCPP - Referrals'!F31)","v":""},{"$f":"IF(ISBLANK('9. PCPP - Referrals'!G31),\"\",'9. PCPP - Referrals'!G31)","v":""},{"$f":"IF(ISBLANK('9. PCPP - Referrals'!H31),\"\",'9. PCPP - Referrals'!H31)","v":""},{"$f":"IF(ISBLANK('9. PCPP - Referrals'!I31),\"\",'9. PCPP - Referrals'!I31)","v":""},{"$f":"IF(ISBLANK('9. PCPP - Referrals'!J31),\"\",'9. PCPP - Referrals'!J31)","v":""},{"$f":"IF(ISBLANK('9. PCPP - Referrals'!K31),\"\",'9. PCPP - Referrals'!K31)","v":""},{"$f":"IF(ISBLANK('9. PCPP - Referrals'!L31),\"\",'9. PCPP - Referrals'!L31)","v":""}]
[{"$f":"IF(ISBLANK('9. PCPP - Referrals'!D32),\"\",'9. PCPP - Referrals'!D32)","v":""},{"$f":"IF(ISBLANK('9. PCPP - Referrals'!E32),\"\",'9. PCPP - Referrals'!E32)","v":""},{"$f":"IF(ISBLANK('9. PCPP - Referrals'!F32),\"\",'9. PCPP - Referrals'!F32)","v":""},{"$f":"IF(ISBLANK('9. PCPP - Referrals'!G32),\"\",'9. PCPP - Referrals'!G32)","v":""},{"$f":"IF(ISBLANK('9. PCPP - Referrals'!H32),\"\",'9. PCPP - Referrals'!H32)","v":""},{"$f":"IF(ISBLANK('9. PCPP - Referrals'!I32),\"\",'9. PCPP - Referrals'!I32)","v":""},{"$f":"IF(ISBLANK('9. PCPP - Referrals'!J32),\"\",'9. PCPP - Referrals'!J32)","v":""},{"$f":"IF(ISBLANK('9. PCPP - Referrals'!K32),\"\",'9. PCPP - Referrals'!K32)","v":""},{"$f":"IF(ISBLANK('9. PCPP - Referrals'!L32),\"\",'9. PCPP - Referrals'!L32)","v":""}]
[{"$f":"IF(ISBLANK('9. PCPP - Referrals'!D33),\"\",'9. PCPP - Referrals'!D33)","v":""},{"$f":"IF(ISBLANK('9. PCPP - Referrals'!E33),\"\",'9. PCPP - Referrals'!E33)","v":""},{"$f":"IF(ISBLANK('9. PCPP - Referrals'!F33),\"\",'9. PCPP - Referrals'!F33)","v":""},{"$f":"IF(ISBLANK('9. PCPP - Referrals'!G33),\"\",'9. PCPP - Referrals'!G33)","v":""},{"$f":"IF(ISBLANK('9. PCPP - Referrals'!H33),\"\",'9. PCPP - Referrals'!H33)","v":""},{"$f":"IF(ISBLANK('9. PCPP - Referrals'!I33),\"\",'9. PCPP - Referrals'!I33)","v":""},{"$f":"IF(ISBLANK('9. PCPP - Referrals'!J33),\"\",'9. PCPP - Referrals'!J33)","v":""},{"$f":"IF(ISBLANK('9. PCPP - Referrals'!K33),\"\",'9. PCPP - Referrals'!K33)","v":""},{"$f":"IF(ISBLANK('9. PCPP - Referrals'!L33),\"\",'9. PCPP - Referrals'!L33)","v":""}]
[{"$f":"IF(ISBLANK('9. PCPP - Referrals'!D34),\"\",'9. PCPP - Referrals'!D34)","v":""},{"$f":"IF(ISBLANK('9. PCPP - Referrals'!E34),\"\",'9. PCPP - Referrals'!E34)","v":""},{"$f":"IF(ISBLANK('9. PCPP - Referrals'!F34),\"\",'9. PCPP - Referrals'!F34)","v":""},{"$f":"IF(ISBLANK('9. PCPP - Referrals'!G34),\"\",'9. PCPP - Referrals'!G34)","v":""},{"$f":"IF(ISBLANK('9. PCPP - Referrals'!H34),\"\",'9. PCPP - Referrals'!H34)","v":""},{"$f":"IF(ISBLANK('9. PCPP - Referrals'!I34),\"\",'9. PCPP - Referrals'!I34)","v":""},{"$f":"IF(ISBLANK('9. PCPP - Referrals'!J34),\"\",'9. PCPP - Referrals'!J34)","v":""},{"$f":"IF(ISBLANK('9. PCPP - Referrals'!K34),\"\",'9. PCPP - Referrals'!K34)","v":""},{"$f":"IF(ISBLANK('9. PCPP - Referrals'!L34),\"\",'9. PCPP - Referrals'!L34)","v":""}]
[{"$f":"IF(ISBLANK('9. PCPP - Referrals'!D35),\"\",'9. PCPP - Referrals'!D35)","v":""},{"$f":"IF(ISBLANK('9. PCPP - Referrals'!E35),\"\",'9. PCPP - Referrals'!E35)","v":""},{"$f":"IF(ISBLANK('9. PCPP - Referrals'!F35),\"\",'9. PCPP - Referrals'!F35)","v":""},{"$f":"IF(ISBLANK('9. PCPP - Referrals'!G35),\"\",'9. PCPP - Referrals'!G35)","v":""},{"$f":"IF(ISBLANK('9. PCPP - Referrals'!H35),\"\",'9. PCPP - Referrals'!H35)","v":""},{"$f":"IF(ISBLANK('9. PCPP - Referrals'!I35),\"\",'9. PCPP - Referrals'!I35)","v":""},{"$f":"IF(ISBLANK('9. PCPP - Referrals'!J35),\"\",'9. PCPP - Referrals'!J35)","v":""},{"$f":"IF(ISBLANK('9. PCPP - Referrals'!K35),\"\",'9. PCPP - Referrals'!K35)","v":""},{"$f":"IF(ISBLANK('9. PCPP - Referrals'!L35),\"\",'9. PCPP - Referrals'!L35)","v":""}]
[{"$f":"IF(ISBLANK('9. PCPP - Referrals'!D36),\"\",'9. PCPP - Referrals'!D36)","v":""},{"$f":"IF(ISBLANK('9. PCPP - Referrals'!E36),\"\",'9. PCPP - Referrals'!E36)","v":""},{"$f":"IF(ISBLANK('9. PCPP - Referrals'!F36),\"\",'9. PCPP - Referrals'!F36)","v":""},{"$f":"IF(ISBLANK('9. PCPP - Referrals'!G36),\"\",'9. PCPP - Referrals'!G36)","v":""},{"$f":"IF(ISBLANK('9. PCPP - Referrals'!H36),\"\",'9. PCPP - Referrals'!H36)","v":""},{"$f":"IF(ISBLANK('9. PCPP - Referrals'!I36),\"\",'9. PCPP - Referrals'!I36)","v":""},{"$f":"IF(ISBLANK('9. PCPP - Referrals'!J36),\"\",'9. PCPP - Referrals'!J36)","v":""},{"$f":"IF(ISBLANK('9. PCPP - Referrals'!K36),\"\",'9. PCPP - Referrals'!K36)","v":""},{"$f":"IF(ISBLANK('9. PCPP - Referrals'!L36),\"\",'9. PCPP - Referrals'!L36)","v":""}]
[{"$f":"IF(ISBLANK('9. PCPP - Referrals'!D37),\"\",'9. PCPP - Referrals'!D37)","v":""},{"$f":"IF(ISBLANK('9. PCPP - Referrals'!E37),\"\",'9. PCPP - Referrals'!E37)","v":""},{"$f":"IF(ISBLANK('9. PCPP - Referrals'!F37),\"\",'9. PCPP - Referrals'!F37)","v":""},{"$f":"IF(ISBLANK('9. PCPP - Referrals'!G37),\"\",'9. PCPP - Referrals'!G37)","v":""},{"$f":"IF(ISBLANK('9. PCPP - Referrals'!H37),\"\",'9. PCPP - Referrals'!H37)","v":""},{"$f":"IF(ISBLANK('9. PCPP - Referrals'!I37),\"\",'9. PCPP - Referrals'!I37)","v":""},{"$f":"IF(ISBLANK('9. PCPP - Referrals'!J37),\"\",'9. PCPP - Referrals'!J37)","v":""},{"$f":"IF(ISBLANK('9. PCPP - Referrals'!K37),\"\",'9. PCPP - Referrals'!K37)","v":""},{"$f":"IF(ISBLANK('9. PCPP - Referrals'!L37),\"\",'9. PCPP - Referrals'!L37)","v":""}]
[{"$f":"IF(ISBLANK('9. PCPP - Referrals'!D38),\"\",'9. PCPP - Referrals'!D38)","v":""},{"$f":"IF(ISBLANK('9. PCPP - Referrals'!E38),\"\",'9. PCPP - Referrals'!E38)","v":""},{"$f":"IF(ISBLANK('9. PCPP - Referrals'!F38),\"\",'9. PCPP - Referrals'!F38)","v":""},{"$f":"IF(ISBLANK('9. PCPP - Referrals'!G38),\"\",'9. PCPP - Referrals'!G38)","v":""},{"$f":"IF(ISBLANK('9. PCPP - Referrals'!H38),\"\",'9. PCPP - Referrals'!H38)","v":""},{"$f":"IF(ISBLANK('9. PCPP - Referrals'!I38),\"\",'9. PCPP - Referrals'!I38)","v":""},{"$f":"IF(ISBLANK('9. PCPP - Referrals'!J38),\"\",'9. PCPP - Referrals'!J38)","v":""},{"$f":"IF(ISBLANK('9. PCPP - Referrals'!K38),\"\",'9. PCPP - Referrals'!K38)","v":""},{"$f":"IF(ISBLANK('9. PCPP - Referrals'!L38),\"\",'9. PCPP - Referrals'!L38)","v":""}]
[{"$f":"IF(ISBLANK('9. PCPP - Referrals'!D39),\"\",'9. PCPP - Referrals'!D39)","v":""},{"$f":"IF(ISBLANK('9. PCPP - Referrals'!E39),\"\",'9. PCPP - Referrals'!E39)","v":""},{"$f":"IF(ISBLANK('9. PCPP - Referrals'!F39),\"\",'9. PCPP - Referrals'!F39)","v":""},{"$f":"IF(ISBLANK('9. PCPP - Referrals'!G39),\"\",'9. PCPP - Referrals'!G39)","v":""},{"$f":"IF(ISBLANK('9. PCPP - Referrals'!H39),\"\",'9. PCPP - Referrals'!H39)","v":""},{"$f":"IF(ISBLANK('9. PCPP - Referrals'!I39),\"\",'9. PCPP - Referrals'!I39)","v":""},{"$f":"IF(ISBLANK('9. PCPP - Referrals'!J39),\"\",'9. PCPP - Referrals'!J39)","v":""},{"$f":"IF(ISBLANK('9. PCPP - Referrals'!K39),\"\",'9. PCPP - Referrals'!K39)","v":""},{"$f":"IF(ISBLANK('9. PCPP - Referrals'!L39),\"\",'9. PCPP - Referrals'!L39)","v":""}]
[{"$f":"IF(ISBLANK('9. PCPP - Referrals'!D40),\"\",'9. PCPP - Referrals'!D40)","v":""},{"$f":"IF(ISBLANK('9. PCPP - Referrals'!E40),\"\",'9. PCPP - Referrals'!E40)","v":""},{"$f":"IF(ISBLANK('9. PCPP - Referrals'!F40),\"\",'9. PCPP - Referrals'!F40)","v":""},{"$f":"IF(ISBLANK('9. PCPP - Referrals'!G40),\"\",'9. PCPP - Referrals'!G40)","v":""},{"$f":"IF(ISBLANK('9. PCPP - Referrals'!H40),\"\",'9. PCPP - Referrals'!H40)","v":""},{"$f":"IF(ISBLANK('9. PCPP - Referrals'!I40),\"\",'9. PCPP - Referrals'!I40)","v":""},{"$f":"IF(ISBLANK('9. PCPP - Referrals'!J40),\"\",'9. PCPP - Referrals'!J40)","v":""},{"$f":"IF(ISBLANK('9. PCPP - Referrals'!K40),\"\",'9. PCPP - Referrals'!K40)","v":""},{"$f":"IF(ISBLANK('9. PCPP - Referrals'!L40),\"\",'9. PCPP - Referrals'!L40)","v":""}]
[{"$f":"IF(ISBLANK('9. PCPP - Referrals'!D41),\"\",'9. PCPP - Referrals'!D41)","v":""},{"$f":"IF(ISBLANK('9. PCPP - Referrals'!E41),\"\",'9. PCPP - Referrals'!E41)","v":""},{"$f":"IF(ISBLANK('9. PCPP - Referrals'!F41),\"\",'9. PCPP - Referrals'!F41)","v":""},{"$f":"IF(ISBLANK('9. PCPP - Referrals'!G41),\"\",'9. PCPP - Referrals'!G41)","v":""},{"$f":"IF(ISBLANK('9. PCPP - Referrals'!H41),\"\",'9. PCPP - Referrals'!H41)","v":""},{"$f":"IF(ISBLANK('9. PCPP - Referrals'!I41),\"\",'9. PCPP - Referrals'!I41)","v":""},{"$f":"IF(ISBLANK('9. PCPP - Referrals'!J41),\"\",'9. PCPP - Referrals'!J41)","v":""},{"$f":"IF(ISBLANK('9. PCPP - Referrals'!K41),\"\",'9. PCPP - Referrals'!K41)","v":""},{"$f":"IF(ISBLANK('9. PCPP - Referrals'!L41),\"\",'9. PCPP - Referrals'!L41)","v":""}]
[{"$f":"IF(ISBLANK('9. PCPP - Referrals'!D42),\"\",'9. PCPP - Referrals'!D42)","v":""},{"$f":"IF(ISBLANK('9. PCPP - Referrals'!E42),\"\",'9. PCPP - Referrals'!E42)","v":""},{"$f":"IF(ISBLANK('9. PCPP - Referrals'!F42),\"\",'9. PCPP - Referrals'!F42)","v":""},{"$f":"IF(ISBLANK('9. PCPP - Referrals'!G42),\"\",'9. PCPP - Referrals'!G42)","v":""},{"$f":"IF(ISBLANK('9. PCPP - Referrals'!H42),\"\",'9. PCPP - Referrals'!H42)","v":""},{"$f":"IF(ISBLANK('9. PCPP - Referrals'!I42),\"\",'9. PCPP - Referrals'!I42)","v":""},{"$f":"IF(ISBLANK('9. PCPP - Referrals'!J42),\"\",'9. PCPP - Referrals'!J42)","v":""},{"$f":"IF(ISBLANK('9. PCPP - Referrals'!K42),\"\",'9. PCPP - Referrals'!K42)","v":""},{"$f":"IF(ISBLANK('9. PCPP - Referrals'!L42),\"\",'9. PCPP - Referrals'!L42)","v":""}]
[{"$f":"IF(ISBLANK('9. PCPP - Referrals'!D43),\"\",'9. PCPP - Referrals'!D43)","v":""},{"$f":"IF(ISBLANK('9. PCPP - Referrals'!E43),\"\",'9. PCPP - Referrals'!E43)","v":""},{"$f":"IF(ISBLANK('9. PCPP - Referrals'!F43),\"\",'9. PCPP - Referrals'!F43)","v":""},{"$f":"IF(ISBLANK('9. PCPP - Referrals'!G43),\"\",'9. PCPP - Referrals'!G43)","v":""},{"$f":"IF(ISBLANK('9. PCPP - Referrals'!H43),\"\",'9. PCPP - Referrals'!H43)","v":""},{"$f":"IF(ISBLANK('9. PCPP - Referrals'!I43),\"\",'9. PCPP - Referrals'!I43)","v":""},{"$f":"IF(ISBLANK('9. PCPP - Referrals'!J43),\"\",'9. PCPP - Referrals'!J43)","v":""},{"$f":"IF(ISBLANK('9. PCPP - Referrals'!K43),\"\",'9. PCPP - Referrals'!K43)","v":""},{"$f":"IF(ISBLANK('9. PCPP - Referrals'!L43),\"\",'9. PCPP - Referrals'!L43)","v":""}]
[{"$f":"IF(ISBLANK('9. PCPP - Referrals'!D44),\"\",'9. PCPP - Referrals'!D44)","v":""},{"$f":"IF(ISBLANK('9. PCPP - Referrals'!E44),\"\",'9. PCPP - Referrals'!E44)","v":""},{"$f":"IF(ISBLANK('9. PCPP - Referrals'!F44),\"\",'9. PCPP - Referrals'!F44)","v":""},{"$f":"IF(ISBLANK('9. PCPP - Referrals'!G44),\"\",'9. PCPP - Referrals'!G44)","v":""},{"$f":"IF(ISBLANK('9. PCPP - Referrals'!H44),\"\",'9. PCPP - Referrals'!H44)","v":""},{"$f":"IF(ISBLANK('9. PCPP - Referrals'!I44),\"\",'9. PCPP - Referrals'!I44)","v":""},{"$f":"IF(ISBLANK('9. PCPP - Referrals'!J44),\"\",'9. PCPP - Referrals'!J44)","v":""},{"$f":"IF(ISBLANK('9. PCPP - Referrals'!K44),\"\",'9. PCPP - Referrals'!K44)","v":""},{"$f":"IF(ISBLANK('9. PCPP - Referrals'!L44),\"\",'9. PCPP - Referrals'!L44)","v":""}]
[{"$f":"IF(ISBLANK('9. PCPP - Referrals'!D45),\"\",'9. PCPP - Referrals'!D45)","v":""},{"$f":"IF(ISBLANK('9. PCPP - Referrals'!E45),\"\",'9. PCPP - Referrals'!E45)","v":""},{"$f":"IF(ISBLANK('9. PCPP - Referrals'!F45),\"\",'9. PCPP - Referrals'!F45)","v":""},{"$f":"IF(ISBLANK('9. PCPP - Referrals'!G45),\"\",'9. PCPP - Referrals'!G45)","v":""},{"$f":"IF(ISBLANK('9. PCPP - Referrals'!H45),\"\",'9. PCPP - Referrals'!H45)","v":""},{"$f":"IF(ISBLANK('9. PCPP - Referrals'!I45),\"\",'9. PCPP - Referrals'!I45)","v":""},{"$f":"IF(ISBLANK('9. PCPP - Referrals'!J45),\"\",'9. PCPP - Referrals'!J45)","v":""},{"$f":"IF(ISBLANK('9. PCPP - Referrals'!K45),\"\",'9. PCPP - Referrals'!K45)","v":""},{"$f":"IF(ISBLANK('9. PCPP - Referrals'!L45),\"\",'9. PCPP - Referrals'!L45)","v":""}]
[{"$f":"IF(ISBLANK('9. PCPP - Referrals'!D46),\"\",'9. PCPP - Referrals'!D46)","v":""},{"$f":"IF(ISBLANK('9. PCPP - Referrals'!E46),\"\",'9. PCPP - Referrals'!E46)","v":""},{"$f":"IF(ISBLANK('9. PCPP - Referrals'!F46),\"\",'9. PCPP - Referrals'!F46)","v":""},{"$f":"IF(ISBLANK('9. PCPP - Referrals'!G46),\"\",'9. PCPP - Referrals'!G46)","v":""},{"$f":"IF(ISBLANK('9. PCPP - Referrals'!H46),\"\",'9. PCPP - Referrals'!H46)","v":""},{"$f":"IF(ISBLANK('9. PCPP - Referrals'!I46),\"\",'9. PCPP - Referrals'!I46)","v":""},{"$f":"IF(ISBLANK('9. PCPP - Referrals'!J46),\"\",'9. PCPP - Referrals'!J46)","v":""},{"$f":"IF(ISBLANK('9. PCPP - Referrals'!K46),\"\",'9. PCPP - Referrals'!K46)","v":""},{"$f":"IF(ISBLANK('9. PCPP - Referrals'!L46),\"\",'9. PCPP - Referrals'!L46)","v":""}]
[{"$f":"IF(ISBLANK('9. PCPP - Referrals'!D47),\"\",'9. PCPP - Referrals'!D47)","v":""},{"$f":"IF(ISBLANK('9. PCPP - Referrals'!E47),\"\",'9. PCPP - Referrals'!E47)","v":""},{"$f":"IF(ISBLANK('9. PCPP - Referrals'!F47),\"\",'9. PCPP - Referrals'!F47)","v":""},{"$f":"IF(ISBLANK('9. PCPP - Referrals'!G47),\"\",'9. PCPP - Referrals'!G47)","v":""},{"$f":"IF(ISBLANK('9. PCPP - Referrals'!H47),\"\",'9. PCPP - Referrals'!H47)","v":""},{"$f":"IF(ISBLANK('9. PCPP - Referrals'!I47),\"\",'9. PCPP - Referrals'!I47)","v":""},{"$f":"IF(ISBLANK('9. PCPP - Referrals'!J47),\"\",'9. PCPP - Referrals'!J47)","v":""},{"$f":"IF(ISBLANK('9. PCPP - Referrals'!K47),\"\",'9. PCPP - Referrals'!K47)","v":""},{"$f":"IF(ISBLANK('9. PCPP - Referrals'!L47),\"\",'9. PCPP - Referrals'!L47)","v":""}]
[{"$f":"IF(ISBLANK('9. PCPP - Referrals'!D48),\"\",'9. PCPP - Referrals'!D48)","v":""},{"$f":"IF(ISBLANK('9. PCPP - Referrals'!E48),\"\",'9. PCPP - Referrals'!E48)","v":""},{"$f":"IF(ISBLANK('9. PCPP - Referrals'!F48),\"\",'9. PCPP - Referrals'!F48)","v":""},{"$f":"IF(ISBLANK('9. PCPP - Referrals'!G48),\"\",'9. PCPP - Referrals'!G48)","v":""},{"$f":"IF(ISBLANK('9. PCPP - Referrals'!H48),\"\",'9. PCPP - Referrals'!H48)","v":""},{"$f":"IF(ISBLANK('9. PCPP - Referrals'!I48),\"\",'9. PCPP - Referrals'!I48)","v":""},{"$f":"IF(ISBLANK('9. PCPP - Referrals'!J48),\"\",'9. PCPP - Referrals'!J48)","v":""},{"$f":"IF(ISBLANK('9. PCPP - Referrals'!K48),\"\",'9. PCPP - Referrals'!K48)","v":""},{"$f":"IF(ISBLANK('9. PCPP - Referrals'!L48),\"\",'9. PCPP - Referrals'!L48)","v":""}]
[{"$f":"IF(ISBLANK('9. PCPP - Referrals'!D49),\"\",'9. PCPP - Referrals'!D49)","v":""},{"$f":"IF(ISBLANK('9. PCPP - Referrals'!E49),\"\",'9. PCPP - Referrals'!E49)","v":""},{"$f":"IF(ISBLANK('9. PCPP - Referrals'!F49),\"\",'9. PCPP - Referrals'!F49)","v":""},{"$f":"IF(ISBLANK('9. PCPP - Referrals'!G49),\"\",'9. PCPP - Referrals'!G49)","v":""},{"$f":"IF(ISBLANK('9. PCPP - Referrals'!H49),\"\",'9. PCPP - Referrals'!H49)","v":""},{"$f":"IF(ISBLANK('9. PCPP - Referrals'!I49),\"\",'9. PCPP - Referrals'!I49)","v":""},{"$f":"IF(ISBLANK('9. PCPP - Referrals'!J49),\"\",'9. PCPP - Referrals'!J49)","v":""},{"$f":"IF(ISBLANK('9. PCPP - Referrals'!K49),\"\",'9. PCPP - Referrals'!K49)","v":""},{"$f":"IF(ISBLANK('9. PCPP - Referrals'!L49),\"\",'9. PCPP - Referrals'!L49)","v":""}]
[{"$f":"IF(ISBLANK('9. PCPP - Referrals'!D50),\"\",'9. PCPP - Referrals'!D50)","v":""},{"$f":"IF(ISBLANK('9. PCPP - Referrals'!E50),\"\",'9. PCPP - Referrals'!E50)","v":""},{"$f":"IF(ISBLANK('9. PCPP - Referrals'!F50),\"\",'9. PCPP - Referrals'!F50)","v":""},{"$f":"IF(ISBLANK('9. PCPP - Referrals'!G50),\"\",'9. PCPP - Referrals'!G50)","v":""},{"$f":"IF(ISBLANK('9. PCPP - Referrals'!H50),\"\",'9. PCPP - Referrals'!H50)","v":""},{"$f":"IF(ISBLANK('9. PCPP - Referrals'!I50),\"\",'9. PCPP - Referrals'!I50)","v":""},{"$f":"IF(ISBLANK('9. PCPP - Referrals'!J50),\"\",'9. PCPP - Referrals'!J50)","v":""},{"$f":"IF(ISBLANK('9. PCPP - Referrals'!K50),\"\",'9. PCPP - Referrals'!K50)","v":""},{"$f":"IF(ISBLANK('9. PCPP - Referrals'!L50),\"\",'9. PCPP - Referrals'!L50)","v":""}]
[{"$f":"IF(ISBLANK('9. PCPP - Referrals'!D51),\"\",'9. PCPP - Referrals'!D51)","v":""},{"$f":"IF(ISBLANK('9. PCPP - Referrals'!E51),\"\",'9. PCPP - Referrals'!E51)","v":""},{"$f":"IF(ISBLANK('9. PCPP - Referrals'!F51),\"\",'9. PCPP - Referrals'!F51)","v":""},{"$f":"IF(ISBLANK('9. PCPP - Referrals'!G51),\"\",'9. PCPP - Referrals'!G51)","v":""},{"$f":"IF(ISBLANK('9. PCPP - Referrals'!H51),\"\",'9. PCPP - Referrals'!H51)","v":""},{"$f":"IF(ISBLANK('9. PCPP - Referrals'!I51),\"\",'9. PCPP - Referrals'!I51)","v":""},{"$f":"IF(ISBLANK('9. PCPP - Referrals'!J51),\"\",'9. PCPP - Referrals'!J51)","v":""},{"$f":"IF(ISBLANK('9. PCPP - Referrals'!K51),\"\",'9. PCPP - Referrals'!K51)","v":""},{"$f":"IF(ISBLANK('9. PCPP - Referrals'!L51),\"\",'9. PCPP - Referrals'!L51)","v":""}]
[{"$f":"IF(ISBLANK('9. PCPP - Referrals'!D52),\"\",'9. PCPP - Referrals'!D52)","v":""},{"$f":"IF(ISBLANK('9. PCPP - Referrals'!E52),\"\",'9. PCPP - Referrals'!E52)","v":""},{"$f":"IF(ISBLANK('9. PCPP - Referrals'!F52),\"\",'9. PCPP - Referrals'!F52)","v":""},{"$f":"IF(ISBLANK('9. PCPP - Referrals'!G52),\"\",'9. PCPP - Referrals'!G52)","v":""},{"$f":"IF(ISBLANK('9. PCPP - Referrals'!H52),\"\",'9. PCPP - Referrals'!H52)","v":""},{"$f":"IF(ISBLANK('9. PCPP - Referrals'!I52),\"\",'9. PCPP - Referrals'!I52)","v":""},{"$f":"IF(ISBLANK('9. PCPP - Referrals'!J52),\"\",'9. PCPP - Referrals'!J52)","v":""},{"$f":"IF(ISBLANK('9. PCPP - Referrals'!K52),\"\",'9. PCPP - Referrals'!K52)","v":""},{"$f":"IF(ISBLANK('9. PCPP - Referrals'!L52),\"\",'9. PCPP - Referrals'!L52)","v":""}]
[{"$f":"IF(ISBLANK('9. PCPP - Referrals'!D53),\"\",'9. PCPP - Referrals'!D53)","v":""},{"$f":"IF(ISBLANK('9. PCPP - Referrals'!E53),\"\",'9. PCPP - Referrals'!E53)","v":""},{"$f":"IF(ISBLANK('9. PCPP - Referrals'!F53),\"\",'9. PCPP - Referrals'!F53)","v":""},{"$f":"IF(ISBLANK('9. PCPP - Referrals'!G53),\"\",'9. PCPP - Referrals'!G53)","v":""},{"$f":"IF(ISBLANK('9. PCPP - Referrals'!H53),\"\",'9. PCPP - Referrals'!H53)","v":""},{"$f":"IF(ISBLANK('9. PCPP - Referrals'!I53),\"\",'9. PCPP - Referrals'!I53)","v":""},{"$f":"IF(ISBLANK('9. PCPP - Referrals'!J53),\"\",'9. PCPP - Referrals'!J53)","v":""},{"$f":"IF(ISBLANK('9. PCPP - Referrals'!K53),\"\",'9. PCPP - Referrals'!K53)","v":""},{"$f":"IF(ISBLANK('9. PCPP - Referrals'!L53),\"\",'9. PCPP - Referrals'!L53)","v":""}]
[{"$f":"IF(ISBLANK('9. PCPP - Referrals'!D54),\"\",'9. PCPP - Referrals'!D54)","v":""},{"$f":"IF(ISBLANK('9. PCPP - Referrals'!E54),\"\",'9. PCPP - Referrals'!E54)","v":""},{"$f":"IF(ISBLANK('9. PCPP - Referrals'!F54),\"\",'9. PCPP - Referrals'!F54)","v":""},{"$f":"IF(ISBLANK('9. PCPP - Referrals'!G54),\"\",'9. PCPP - Referrals'!G54)","v":""},{"$f":"IF(ISBLANK('9. PCPP - Referrals'!H54),\"\",'9. PCPP - Referrals'!H54)","v":""},{"$f":"IF(ISBLANK('9. PCPP - Referrals'!I54),\"\",'9. PCPP - Referrals'!I54)","v":""},{"$f":"IF(ISBLANK('9. PCPP - Referrals'!J54),\"\",'9. PCPP - Referrals'!J54)","v":""},{"$f":"IF(ISBLANK('9. PCPP - Referrals'!K54),\"\",'9. PCPP - Referrals'!K54)","v":""},{"$f":"IF(ISBLANK('9. PCPP - Referrals'!L54),\"\",'9. PCPP - Referrals'!L54)","v":""}]
[{"$f":"IF(ISBLANK('9. PCPP - Referrals'!D55),\"\",'9. PCPP - Referrals'!D55)","v":""},{"$f":"IF(ISBLANK('9. PCPP - Referrals'!E55),\"\",'9. PCPP - Referrals'!E55)","v":""},{"$f":"IF(ISBLANK('9. PCPP - Referrals'!F55),\"\",'9. PCPP - Referrals'!F55)","v":""},{"$f":"IF(ISBLANK('9. PCPP - Referrals'!G55),\"\",'9. PCPP - Referrals'!G55)","v":""},{"$f":"IF(ISBLANK('9. PCPP - Referrals'!H55),\"\",'9. PCPP - Referrals'!H55)","v":""},{"$f":"IF(ISBLANK('9. PCPP - Referrals'!I55),\"\",'9. PCPP - Referrals'!I55)","v":""},{"$f":"IF(ISBLANK('9. PCPP - Referrals'!J55),\"\",'9. PCPP - Referrals'!J55)","v":""},{"$f":"IF(ISBLANK('9. PCPP - Referrals'!K55),\"\",'9. PCPP - Referrals'!K55)","v":""},{"$f":"IF(ISBLANK('9. PCPP - Referrals'!L55),\"\",'9. PCPP - Referrals'!L55)","v":""}]
[{"$f":"IF(ISBLANK('9. PCPP - Referrals'!D56),\"\",'9. PCPP - Referrals'!D56)","v":""},{"$f":"IF(ISBLANK('9. PCPP - Referrals'!E56),\"\",'9. PCPP - Referrals'!E56)","v":""},{"$f":"IF(ISBLANK('9. PCPP - Referrals'!F56),\"\",'9. PCPP - Referrals'!F56)","v":""},{"$f":"IF(ISBLANK('9. PCPP - Referrals'!G56),\"\",'9. PCPP - Referrals'!G56)","v":""},{"$f":"IF(ISBLANK('9. PCPP - Referrals'!H56),\"\",'9. PCPP - Referrals'!H56)","v":""},{"$f":"IF(ISBLANK('9. PCPP - Referrals'!I56),\"\",'9. PCPP - Referrals'!I56)","v":""},{"$f":"IF(ISBLANK('9. PCPP - Referrals'!J56),\"\",'9. PCPP - Referrals'!J56)","v":""},{"$f":"IF(ISBLANK('9. PCPP - Referrals'!K56),\"\",'9. PCPP - Referrals'!K56)","v":""},{"$f":"IF(ISBLANK('9. PCPP - Referrals'!L56),\"\",'9. PCPP - Referrals'!L56)","v":""}]
[{"$f":"IF(ISBLANK('9. PCPP - Referrals'!D57),\"\",'9. PCPP - Referrals'!D57)","v":""},{"$f":"IF(ISBLANK('9. PCPP - Referrals'!E57),\"\",'9. PCPP - Referrals'!E57)","v":""},{"$f":"IF(ISBLANK('9. PCPP - Referrals'!F57),\"\",'9. PCPP - Referrals'!F57)","v":""},{"$f":"IF(ISBLANK('9. PCPP - Referrals'!G57),\"\",'9. PCPP - Referrals'!G57)","v":""},{"$f":"IF(ISBLANK('9. PCPP - Referrals'!H57),\"\",'9. PCPP - Referrals'!H57)","v":""},{"$f":"IF(ISBLANK('9. PCPP - Referrals'!I57),\"\",'9. PCPP - Referrals'!I57)","v":""},{"$f":"IF(ISBLANK('9. PCPP - Referrals'!J57),\"\",'9. PCPP - Referrals'!J57)","v":""},{"$f":"IF(ISBLANK('9. PCPP - Referrals'!K57),\"\",'9. PCPP - Referrals'!K57)","v":""},{"$f":"IF(ISBLANK('9. PCPP - Referrals'!L57),\"\",'9. PCPP - Referrals'!L57)","v":""}]
[{"$f":"IF(ISBLANK('9. PCPP - Referrals'!D58),\"\",'9. PCPP - Referrals'!D58)","v":""},{"$f":"IF(ISBLANK('9. PCPP - Referrals'!E58),\"\",'9. PCPP - Referrals'!E58)","v":""},{"$f":"IF(ISBLANK('9. PCPP - Referrals'!F58),\"\",'9. PCPP - Referrals'!F58)","v":""},{"$f":"IF(ISBLANK('9. PCPP - Referrals'!G58),\"\",'9. PCPP - Referrals'!G58)","v":""},{"$f":"IF(ISBLANK('9. PCPP - Referrals'!H58),\"\",'9. PCPP - Referrals'!H58)","v":""},{"$f":"IF(ISBLANK('9. PCPP - Referrals'!I58),\"\",'9. PCPP - Referrals'!I58)","v":""},{"$f":"IF(ISBLANK('9. PCPP - Referrals'!J58),\"\",'9. PCPP - Referrals'!J58)","v":""},{"$f":"IF(ISBLANK('9. PCPP - Referrals'!K58),\"\",'9. PCPP - Referrals'!K58)","v":""},{"$f":"IF(ISBLANK('9. PCPP - Referrals'!L58),\"\",'9. PCPP - Referrals'!L58)","v":""}]
[{"$f":"IF(ISBLANK('9. PCPP - Referrals'!D59),\"\",'9. PCPP - Referrals'!D59)","v":""},{"$f":"IF(ISBLANK('9. PCPP - Referrals'!E59),\"\",'9. PCPP - Referrals'!E59)","v":""},{"$f":"IF(ISBLANK('9. PCPP - Referrals'!F59),\"\",'9. PCPP - Referrals'!F59)","v":""},{"$f":"IF(ISBLANK('9. PCPP - Referrals'!G59),\"\",'9. PCPP - Referrals'!G59)","v":""},{"$f":"IF(ISBLANK('9. PCPP - Referrals'!H59),\"\",'9. PCPP - Referrals'!H59)","v":""},{"$f":"IF(ISBLANK('9. PCPP - Referrals'!I59),\"\",'9. PCPP - Referrals'!I59)","v":""},{"$f":"IF(ISBLANK('9. PCPP - Referrals'!J59),\"\",'9. PCPP - Referrals'!J59)","v":""},{"$f":"IF(ISBLANK('9. PCPP - Referrals'!K59),\"\",'9. PCPP - Referrals'!K59)","v":""},{"$f":"IF(ISBLANK('9. PCPP - Referrals'!L59),\"\",'9. PCPP - Referrals'!L59)","v":""}]
[{"$f":"IF(ISBLANK('9. PCPP - Referrals'!D60),\"\",'9. PCPP - Referrals'!D60)","v":""},{"$f":"IF(ISBLANK('9. PCPP - Referrals'!E60),\"\",'9. PCPP - Referrals'!E60)","v":""},{"$f":"IF(ISBLANK('9. PCPP - Referrals'!F60),\"\",'9. PCPP - Referrals'!F60)","v":""},{"$f":"IF(ISBLANK('9. PCPP - Referrals'!G60),\"\",'9. PCPP - Referrals'!G60)","v":""},{"$f":"IF(ISBLANK('9. PCPP - Referrals'!H60),\"\",'9. PCPP - Referrals'!H60)","v":""},{"$f":"IF(ISBLANK('9. PCPP - Referrals'!I60),\"\",'9. PCPP - Referrals'!I60)","v":""},{"$f":"IF(ISBLANK('9. PCPP - Referrals'!J60),\"\",'9. PCPP - Referrals'!J60)","v":""},{"$f":"IF(ISBLANK('9. PCPP - Referrals'!K60),\"\",'9. PCPP - Referrals'!K60)","v":""},{"$f":"IF(ISBLANK('9. PCPP - Referrals'!L60),\"\",'9. PCPP - Referrals'!L60)","v":""}]
[{"$f":"IF(ISBLANK('9. PCPP - Referrals'!D61),\"\",'9. PCPP - Referrals'!D61)","v":""},{"$f":"IF(ISBLANK('9. PCPP - Referrals'!E61),\"\",'9. PCPP - Referrals'!E61)","v":""},{"$f":"IF(ISBLANK('9. PCPP - Referrals'!F61),\"\",'9. PCPP - Referrals'!F61)","v":""},{"$f":"IF(ISBLANK('9. PCPP - Referrals'!G61),\"\",'9. PCPP - Referrals'!G61)","v":""},{"$f":"IF(ISBLANK('9. PCPP - Referrals'!H61),\"\",'9. PCPP - Referrals'!H61)","v":""},{"$f":"IF(ISBLANK('9. PCPP - Referrals'!I61),\"\",'9. PCPP - Referrals'!I61)","v":""},{"$f":"IF(ISBLANK('9. PCPP - Referrals'!J61),\"\",'9. PCPP - Referrals'!J61)","v":""},{"$f":"IF(ISBLANK('9. PCPP - Referrals'!K61),\"\",'9. PCPP - Referrals'!K61)","v":""},{"$f":"IF(ISBLANK('9. PCPP - Referrals'!L61),\"\",'9. PCPP - Referrals'!L61)","v":""}]
[{"$f":"IF(ISBLANK('9. PCPP - Referrals'!D62),\"\",'9. PCPP - Referrals'!D62)","v":""},{"$f":"IF(ISBLANK('9. PCPP - Referrals'!E62),\"\",'9. PCPP - Referrals'!E62)","v":""},{"$f":"IF(ISBLANK('9. PCPP - Referrals'!F62),\"\",'9. PCPP - Referrals'!F62)","v":""},{"$f":"IF(ISBLANK('9. PCPP - Referrals'!G62),\"\",'9. PCPP - Referrals'!G62)","v":""},{"$f":"IF(ISBLANK('9. PCPP - Referrals'!H62),\"\",'9. PCPP - Referrals'!H62)","v":""},{"$f":"IF(ISBLANK('9. PCPP - Referrals'!I62),\"\",'9. PCPP - Referrals'!I62)","v":""},{"$f":"IF(ISBLANK('9. PCPP - Referrals'!J62),\"\",'9. PCPP - Referrals'!J62)","v":""},{"$f":"IF(ISBLANK('9. PCPP - Referrals'!K62),\"\",'9. PCPP - Referrals'!K62)","v":""},{"$f":"IF(ISBLANK('9. PCPP - Referrals'!L62),\"\",'9. PCPP - Referrals'!L62)","v":""}]
[{"$f":"IF(ISBLANK('9. PCPP - Referrals'!D63),\"\",'9. PCPP - Referrals'!D63)","v":""},{"$f":"IF(ISBLANK('9. PCPP - Referrals'!E63),\"\",'9. PCPP - Referrals'!E63)","v":""},{"$f":"IF(ISBLANK('9. PCPP - Referrals'!F63),\"\",'9. PCPP - Referrals'!F63)","v":""},{"$f":"IF(ISBLANK('9. PCPP - Referrals'!G63),\"\",'9. PCPP - Referrals'!G63)","v":""},{"$f":"IF(ISBLANK('9. PCPP - Referrals'!H63),\"\",'9. PCPP - Referrals'!H63)","v":""},{"$f":"IF(ISBLANK('9. PCPP - Referrals'!I63),\"\",'9. PCPP - Referrals'!I63)","v":""},{"$f":"IF(ISBLANK('9. PCPP - Referrals'!J63),\"\",'9. PCPP - Referrals'!J63)","v":""},{"$f":"IF(ISBLANK('9. PCPP - Referrals'!K63),\"\",'9. PCPP - Referrals'!K63)","v":""},{"$f":"IF(ISBLANK('9. PCPP - Referrals'!L63),\"\",'9. PCPP - Referrals'!L63)","v":""}]
[{"$f":"IF(ISBLANK('9. PCPP - Referrals'!D64),\"\",'9. PCPP - Referrals'!D64)","v":""},{"$f":"IF(ISBLANK('9. PCPP - Referrals'!E64),\"\",'9. PCPP - Referrals'!E64)","v":""},{"$f":"IF(ISBLANK('9. PCPP - Referrals'!F64),\"\",'9. PCPP - Referrals'!F64)","v":""},{"$f":"IF(ISBLANK('9. PCPP - Referrals'!G64),\"\",'9. PCPP - Referrals'!G64)","v":""},{"$f":"IF(ISBLANK('9. PCPP - Referrals'!H64),\"\",'9. PCPP - Referrals'!H64)","v":""},{"$f":"IF(ISBLANK('9. PCPP - Referrals'!I64),\"\",'9. PCPP - Referrals'!I64)","v":""},{"$f":"IF(ISBLANK('9. PCPP - Referrals'!J64),\"\",'9. PCPP - Referrals'!J64)","v":""},{"$f":"IF(ISBLANK('9. PCPP - Referrals'!K64),\"\",'9. PCPP - Referrals'!K64)","v":""},{"$f":"IF(ISBLANK('9. PCPP - Referrals'!L64),\"\",'9. PCPP - Referrals'!L64)","v":""}]
[{"$f":"IF(ISBLANK('9. PCPP - Referrals'!D65),\"\",'9. PCPP - Referrals'!D65)","v":""},{"$f":"IF(ISBLANK('9. PCPP - Referrals'!E65),\"\",'9. PCPP - Referrals'!E65)","v":""},{"$f":"IF(ISBLANK('9. PCPP - Referrals'!F65),\"\",'9. PCPP - Referrals'!F65)","v":""},{"$f":"IF(ISBLANK('9. PCPP - Referrals'!G65),\"\",'9. PCPP - Referrals'!G65)","v":""},{"$f":"IF(ISBLANK('9. PCPP - Referrals'!H65),\"\",'9. PCPP - Referrals'!H65)","v":""},{"$f":"IF(ISBLANK('9. PCPP - Referrals'!I65),\"\",'9. PCPP - Referrals'!I65)","v":""},{"$f":"IF(ISBLANK('9. PCPP - Referrals'!J65),\"\",'9. PCPP - Referrals'!J65)","v":""},{"$f":"IF(ISBLANK('9. PCPP - Referrals'!K65),\"\",'9. PCPP - Referrals'!K65)","v":""},{"$f":"IF(ISBLANK('9. PCPP - Referrals'!L65),\"\",'9. PCPP - Referrals'!L65)","v":""}]
[{"$f":"IF(ISBLANK('9. PCPP - Referrals'!D66),\"\",'9. PCPP - Referrals'!D66)","v":""},{"$f":"IF(ISBLANK('9. PCPP - Referrals'!E66),\"\",'9. PCPP - Referrals'!E66)","v":""},{"$f":"IF(ISBLANK('9. PCPP - Referrals'!F66),\"\",'9. PCPP - Referrals'!F66)","v":""},{"$f":"IF(ISBLANK('9. PCPP - Referrals'!G66),\"\",'9. PCPP - Referrals'!G66)","v":""},{"$f":"IF(ISBLANK('9. PCPP - Referrals'!H66),\"\",'9. PCPP - Referrals'!H66)","v":""},{"$f":"IF(ISBLANK('9. PCPP - Referrals'!I66),\"\",'9. PCPP - Referrals'!I66)","v":""},{"$f":"IF(ISBLANK('9. PCPP - Referrals'!J66),\"\",'9. PCPP - Referrals'!J66)","v":""},{"$f":"IF(ISBLANK('9. PCPP - Referrals'!K66),\"\",'9. PCPP - Referrals'!K66)","v":""},{"$f":"IF(ISBLANK('9. PCPP - Referrals'!L66),\"\",'9. PCPP - Referrals'!L66)","v":""}]
[{"$f":"IF(ISBLANK('9. PCPP - Referrals'!D67),\"\",'9. PCPP - Referrals'!D67)","v":""},{"$f":"IF(ISBLANK('9. PCPP - Referrals'!E67),\"\",'9. PCPP - Referrals'!E67)","v":""},{"$f":"IF(ISBLANK('9. PCPP - Referrals'!F67),\"\",'9. PCPP - Referrals'!F67)","v":""},{"$f":"IF(ISBLANK('9. PCPP - Referrals'!G67),\"\",'9. PCPP - Referrals'!G67)","v":""},{"$f":"IF(ISBLANK('9. PCPP - Referrals'!H67),\"\",'9. PCPP - Referrals'!H67)","v":""},{"$f":"IF(ISBLANK('9. PCPP - Referrals'!I67),\"\",'9. PCPP - Referrals'!I67)","v":""},{"$f":"IF(ISBLANK('9. PCPP - Referrals'!J67),\"\",'9. PCPP - Referrals'!J67)","v":""},{"$f":"IF(ISBLANK('9. PCPP - Referrals'!K67),\"\",'9. PCPP - Referrals'!K67)","v":""},{"$f":"IF(ISBLANK('9. PCPP - Referrals'!L67),\"\",'9. PCPP - Referrals'!L67)","v":""}]
[{"$f":"IF(ISBLANK('9. PCPP - Referrals'!D68),\"\",'9. PCPP - Referrals'!D68)","v":""},{"$f":"IF(ISBLANK('9. PCPP - Referrals'!E68),\"\",'9. PCPP - Referrals'!E68)","v":""},{"$f":"IF(ISBLANK('9. PCPP - Referrals'!F68),\"\",'9. PCPP - Referrals'!F68)","v":""},{"$f":"IF(ISBLANK('9. PCPP - Referrals'!G68),\"\",'9. PCPP - Referrals'!G68)","v":""},{"$f":"IF(ISBLANK('9. PCPP - Referrals'!H68),\"\",'9. PCPP - Referrals'!H68)","v":""},{"$f":"IF(ISBLANK('9. PCPP - Referrals'!I68),\"\",'9. PCPP - Referrals'!I68)","v":""},{"$f":"IF(ISBLANK('9. PCPP - Referrals'!J68),\"\",'9. PCPP - Referrals'!J68)","v":""},{"$f":"IF(ISBLANK('9. PCPP - Referrals'!K68),\"\",'9. PCPP - Referrals'!K68)","v":""},{"$f":"IF(ISBLANK('9. PCPP - Referrals'!L68),\"\",'9. PCPP - Referrals'!L68)","v":""}]
[{"$f":"IF(ISBLANK('9. PCPP - Referrals'!D69),\"\",'9. PCPP - Referrals'!D69)","v":""},{"$f":"IF(ISBLANK('9. PCPP - Referrals'!E69),\"\",'9. PCPP - Referrals'!E69)","v":""},{"$f":"IF(ISBLANK('9. PCPP - Referrals'!F69),\"\",'9. PCPP - Referrals'!F69)","v":""},{"$f":"IF(ISBLANK('9. PCPP - Referrals'!G69),\"\",'9. PCPP - Referrals'!G69)","v":""},{"$f":"IF(ISBLANK('9. PCPP - Referrals'!H69),\"\",'9. PCPP - Referrals'!H69)","v":""},{"$f":"IF(ISBLANK('9. PCPP - Referrals'!I69),\"\",'9. PCPP - Referrals'!I69)","v":""},{"$f":"IF(ISBLANK('9. PCPP - Referrals'!J69),\"\",'9. PCPP - Referrals'!J69)","v":""},{"$f":"IF(ISBLANK('9. PCPP - Referrals'!K69),\"\",'9. PCPP - Referrals'!K69)","v":""},{"$f":"IF(ISBLANK('9. PCPP - Referrals'!L69),\"\",'9. PCPP - Referrals'!L69)","v":""}]
[{"$f":"IF(ISBLANK('9. PCPP - Referrals'!D70),\"\",'9. PCPP - Referrals'!D70)","v":""},{"$f":"IF(ISBLANK('9. PCPP - Referrals'!E70),\"\",'9. PCPP - Referrals'!E70)","v":""},{"$f":"IF(ISBLANK('9. PCPP - Referrals'!F70),\"\",'9. PCPP - Referrals'!F70)","v":""},{"$f":"IF(ISBLANK('9. PCPP - Referrals'!G70),\"\",'9. PCPP - Referrals'!G70)","v":""},{"$f":"IF(ISBLANK('9. PCPP - Referrals'!H70),\"\",'9. PCPP - Referrals'!H70)","v":""},{"$f":"IF(ISBLANK('9. PCPP - Referrals'!I70),\"\",'9. PCPP - Referrals'!I70)","v":""},{"$f":"IF(ISBLANK('9. PCPP - Referrals'!J70),\"\",'9. PCPP - Referrals'!J70)","v":""},{"$f":"IF(ISBLANK('9. PCPP - Referrals'!K70),\"\",'9. PCPP - Referrals'!K70)","v":""},{"$f":"IF(ISBLANK('9. PCPP - Referrals'!L70),\"\",'9. PCPP - Referrals'!L70)","v":""}]
[{"$f":"IF(ISBLANK('9. PCPP - Referrals'!D71),\"\",'9. PCPP - Referrals'!D71)","v":""},{"$f":"IF(ISBLANK('9. PCPP - Referrals'!E71),\"\",'9. PCPP - Referrals'!E71)","v":""},{"$f":"IF(ISBLANK('9. PCPP - Referrals'!F71),\"\",'9. PCPP - Referrals'!F71)","v":""},{"$f":"IF(ISBLANK('9. PCPP - Referrals'!G71),\"\",'9. PCPP - Referrals'!G71)","v":""},{"$f":"IF(ISBLANK('9. PCPP - Referrals'!H71),\"\",'9. PCPP - Referrals'!H71)","v":""},{"$f":"IF(ISBLANK('9. PCPP - Referrals'!I71),\"\",'9. PCPP - Referrals'!I71)","v":""},{"$f":"IF(ISBLANK('9. PCPP - Referrals'!J71),\"\",'9. PCPP - Referrals'!J71)","v":""},{"$f":"IF(ISBLANK('9. PCPP - Referrals'!K71),\"\",'9. PCPP - Referrals'!K71)","v":""},{"$f":"IF(ISBLANK('9. PCPP - Referrals'!L71),\"\",'9. PCPP - Referrals'!L71)","v":""}]
[{"$f":"IF(ISBLANK('9. PCPP - Referrals'!D72),\"\",'9. PCPP - Referrals'!D72)","v":""},{"$f":"IF(ISBLANK('9. PCPP - Referrals'!E72),\"\",'9. PCPP - Referrals'!E72)","v":""},{"$f":"IF(ISBLANK('9. PCPP - Referrals'!F72),\"\",'9. PCPP - Referrals'!F72)","v":""},{"$f":"IF(ISBLANK('9. PCPP - Referrals'!G72),\"\",'9. PCPP - Referrals'!G72)","v":""},{"$f":"IF(ISBLANK('9. PCPP - Referrals'!H72),\"\",'9. PCPP - Referrals'!H72)","v":""},{"$f":"IF(ISBLANK('9. PCPP - Referrals'!I72),\"\",'9. PCPP - Referrals'!I72)","v":""},{"$f":"IF(ISBLANK('9. PCPP - Referrals'!J72),\"\",'9. PCPP - Referrals'!J72)","v":""},{"$f":"IF(ISBLANK('9. PCPP - Referrals'!K72),\"\",'9. PCPP - Referrals'!K72)","v":""},{"$f":"IF(ISBLANK('9. PCPP - Referrals'!L72),\"\",'9. PCPP - Referrals'!L72)","v":""}]
[{"$f":"IF(ISBLANK('9. PCPP - Referrals'!D73),\"\",'9. PCPP - Referrals'!D73)","v":""},{"$f":"IF(ISBLANK('9. PCPP - Referrals'!E73),\"\",'9. PCPP - Referrals'!E73)","v":""},{"$f":"IF(ISBLANK('9. PCPP - Referrals'!F73),\"\",'9. PCPP - Referrals'!F73)","v":""},{"$f":"IF(ISBLANK('9. PCPP - Referrals'!G73),\"\",'9. PCPP - Referrals'!G73)","v":""},{"$f":"IF(ISBLANK('9. PCPP - Referrals'!H73),\"\",'9. PCPP - Referrals'!H73)","v":""},{"$f":"IF(ISBLANK('9. PCPP - Referrals'!I73),\"\",'9. PCPP - Referrals'!I73)","v":""},{"$f":"IF(ISBLANK('9. PCPP - Referrals'!J73),\"\",'9. PCPP - Referrals'!J73)","v":""},{"$f":"IF(ISBLANK('9. PCPP - Referrals'!K73),\"\",'9. PCPP - Referrals'!K73)","v":""},{"$f":"IF(ISBLANK('9. PCPP - Referrals'!L73),\"\",'9. PCPP - Referrals'!L73)","v":""}]
[{"$f":"IF(ISBLANK('9. PCPP - Referrals'!D74),\"\",'9. PCPP - Referrals'!D74)","v":""},{"$f":"IF(ISBLANK('9. PCPP - Referrals'!E74),\"\",'9. PCPP - Referrals'!E74)","v":""},{"$f":"IF(ISBLANK('9. PCPP - Referrals'!F74),\"\",'9. PCPP - Referrals'!F74)","v":""},{"$f":"IF(ISBLANK('9. PCPP - Referrals'!G74),\"\",'9. PCPP - Referrals'!G74)","v":""},{"$f":"IF(ISBLANK('9. PCPP - Referrals'!H74),\"\",'9. PCPP - Referrals'!H74)","v":""},{"$f":"IF(ISBLANK('9. PCPP - Referrals'!I74),\"\",'9. PCPP - Referrals'!I74)","v":""},{"$f":"IF(ISBLANK('9. PCPP - Referrals'!J74),\"\",'9. PCPP - Referrals'!J74)","v":""},{"$f":"IF(ISBLANK('9. PCPP - Referrals'!K74),\"\",'9. PCPP - Referrals'!K74)","v":""},{"$f":"IF(ISBLANK('9. PCPP - Referrals'!L74),\"\",'9. PCPP - Referrals'!L74)","v":""}]
[{"$f":"IF(ISBLANK('9. PCPP - Referrals'!D75),\"\",'9. PCPP - Referrals'!D75)","v":""},{"$f":"IF(ISBLANK('9. PCPP - Referrals'!E75),\"\",'9. PCPP - Referrals'!E75)","v":""},{"$f":"IF(ISBLANK('9. PCPP - Referrals'!F75),\"\",'9. PCPP - Referrals'!F75)","v":""},{"$f":"IF(ISBLANK('9. PCPP - Referrals'!G75),\"\",'9. PCPP - Referrals'!G75)","v":""},{"$f":"IF(ISBLANK('9. PCPP - Referrals'!H75),\"\",'9. PCPP - Referrals'!H75)","v":""},{"$f":"IF(ISBLANK('9. PCPP - Referrals'!I75),\"\",'9. PCPP - Referrals'!I75)","v":""},{"$f":"IF(ISBLANK('9. PCPP - Referrals'!J75),\"\",'9. PCPP - Referrals'!J75)","v":""},{"$f":"IF(ISBLANK('9. PCPP - Referrals'!K75),\"\",'9. PCPP - Referrals'!K75)","v":""},{"$f":"IF(ISBLANK('9. PCPP - Referrals'!L75),\"\",'9. PCPP - Referrals'!L75)","v":""}]
[{"$f":"IF(ISBLANK('9. PCPP - Referrals'!D76),\"\",'9. PCPP - Referrals'!D76)","v":""},{"$f":"IF(ISBLANK('9. PCPP - Referrals'!E76),\"\",'9. PCPP - Referrals'!E76)","v":""},{"$f":"IF(ISBLANK('9. PCPP - Referrals'!F76),\"\",'9. PCPP - Referrals'!F76)","v":""},{"$f":"IF(ISBLANK('9. PCPP - Referrals'!G76),\"\",'9. PCPP - Referrals'!G76)","v":""},{"$f":"IF(ISBLANK('9. PCPP - Referrals'!H76),\"\",'9. PCPP - Referrals'!H76)","v":""},{"$f":"IF(ISBLANK('9. PCPP - Referrals'!I76),\"\",'9. PCPP - Referrals'!I76)","v":""},{"$f":"IF(ISBLANK('9. PCPP - Referrals'!J76),\"\",'9. PCPP - Referrals'!J76)","v":""},{"$f":"IF(ISBLANK('9. PCPP - Referrals'!K76),\"\",'9. PCPP - Referrals'!K76)","v":""},{"$f":"IF(ISBLANK('9. PCPP - Referrals'!L76),\"\",'9. PCPP - Referrals'!L76)","v":""}]
[{"$f":"IF(ISBLANK('9. PCPP - Referrals'!D77),\"\",'9. PCPP - Referrals'!D77)","v":""},{"$f":"IF(ISBLANK('9. PCPP - Referrals'!E77),\"\",'9. PCPP - Referrals'!E77)","v":""},{"$f":"IF(ISBLANK('9. PCPP - Referrals'!F77),\"\",'9. PCPP - Referrals'!F77)","v":""},{"$f":"IF(ISBLANK('9. PCPP - Referrals'!G77),\"\",'9. PCPP - Referrals'!G77)","v":""},{"$f":"IF(ISBLANK('9. PCPP - Referrals'!H77),\"\",'9. PCPP - Referrals'!H77)","v":""},{"$f":"IF(ISBLANK('9. PCPP - Referrals'!I77),\"\",'9. PCPP - Referrals'!I77)","v":""},{"$f":"IF(ISBLANK('9. PCPP - Referrals'!J77),\"\",'9. PCPP - Referrals'!J77)","v":""},{"$f":"IF(ISBLANK('9. PCPP - Referrals'!K77),\"\",'9. PCPP - Referrals'!K77)","v":""},{"$f":"IF(ISBLANK('9. PCPP - Referrals'!L77),\"\",'9. PCPP - Referrals'!L77)","v":""}]
[{"$f":"IF(ISBLANK('9. PCPP - Referrals'!D78),\"\",'9. PCPP - Referrals'!D78)","v":""},{"$f":"IF(ISBLANK('9. PCPP - Referrals'!E78),\"\",'9. PCPP - Referrals'!E78)","v":""},{"$f":"IF(ISBLANK('9. PCPP - Referrals'!F78),\"\",'9. PCPP - Referrals'!F78)","v":""},{"$f":"IF(ISBLANK('9. PCPP - Referrals'!G78),\"\",'9. PCPP - Referrals'!G78)","v":""},{"$f":"IF(ISBLANK('9. PCPP - Referrals'!H78),\"\",'9. PCPP - Referrals'!H78)","v":""},{"$f":"IF(ISBLANK('9. PCPP - Referrals'!I78),\"\",'9. PCPP - Referrals'!I78)","v":""},{"$f":"IF(ISBLANK('9. PCPP - Referrals'!J78),\"\",'9. PCPP - Referrals'!J78)","v":""},{"$f":"IF(ISBLANK('9. PCPP - Referrals'!K78),\"\",'9. PCPP - Referrals'!K78)","v":""},{"$f":"IF(ISBLANK('9. PCPP - Referrals'!L78),\"\",'9. PCPP - Referrals'!L78)","v":""}]
[{"$f":"IF(ISBLANK('9. PCPP - Referrals'!D79),\"\",'9. PCPP - Referrals'!D79)","v":""},{"$f":"IF(ISBLANK('9. PCPP - Referrals'!E79),\"\",'9. PCPP - Referrals'!E79)","v":""},{"$f":"IF(ISBLANK('9. PCPP - Referrals'!F79),\"\",'9. PCPP - Referrals'!F79)","v":""},{"$f":"IF(ISBLANK('9. PCPP - Referrals'!G79),\"\",'9. PCPP - Referrals'!G79)","v":""},{"$f":"IF(ISBLANK('9. PCPP - Referrals'!H79),\"\",'9. PCPP - Referrals'!H79)","v":""},{"$f":"IF(ISBLANK('9. PCPP - Referrals'!I79),\"\",'9. PCPP - Referrals'!I79)","v":""},{"$f":"IF(ISBLANK('9. PCPP - Referrals'!J79),\"\",'9. PCPP - Referrals'!J79)","v":""},{"$f":"IF(ISBLANK('9. PCPP - Referrals'!K79),\"\",'9. PCPP - Referrals'!K79)","v":""},{"$f":"IF(ISBLANK('9. PCPP - Referrals'!L79),\"\",'9. PCPP - Referrals'!L79)","v":""}]
[{"$f":"IF(ISBLANK('9. PCPP - Referrals'!D80),\"\",'9. PCPP - Referrals'!D80)","v":""},{"$f":"IF(ISBLANK('9. PCPP - Referrals'!E80),\"\",'9. PCPP - Referrals'!E80)","v":""},{"$f":"IF(ISBLANK('9. PCPP - Referrals'!F80),\"\",'9. PCPP - Referrals'!F80)","v":""},{"$f":"IF(ISBLANK('9. PCPP - Referrals'!G80),\"\",'9. PCPP - Referrals'!G80)","v":""},{"$f":"IF(ISBLANK('9. PCPP - Referrals'!H80),\"\",'9. PCPP - Referrals'!H80)","v":""},{"$f":"IF(ISBLANK('9. PCPP - Referrals'!I80),\"\",'9. PCPP - Referrals'!I80)","v":""},{"$f":"IF(ISBLANK('9. PCPP - Referrals'!J80),\"\",'9. PCPP - Referrals'!J80)","v":""},{"$f":"IF(ISBLANK('9. PCPP - Referrals'!K80),\"\",'9. PCPP - Referrals'!K80)","v":""},{"$f":"IF(ISBLANK('9. PCPP - Referrals'!L80),\"\",'9. PCPP - Referrals'!L80)","v":""}]
[{"$f":"IF(ISBLANK('9. PCPP - Referrals'!D81),\"\",'9. PCPP - Referrals'!D81)","v":""},{"$f":"IF(ISBLANK('9. PCPP - Referrals'!E81),\"\",'9. PCPP - Referrals'!E81)","v":""},{"$f":"IF(ISBLANK('9. PCPP - Referrals'!F81),\"\",'9. PCPP - Referrals'!F81)","v":""},{"$f":"IF(ISBLANK('9. PCPP - Referrals'!G81),\"\",'9. PCPP - Referrals'!G81)","v":""},{"$f":"IF(ISBLANK('9. PCPP - Referrals'!H81),\"\",'9. PCPP - Referrals'!H81)","v":""},{"$f":"IF(ISBLANK('9. PCPP - Referrals'!I81),\"\",'9. PCPP - Referrals'!I81)","v":""},{"$f":"IF(ISBLANK('9. PCPP - Referrals'!J81),\"\",'9. PCPP - Referrals'!J81)","v":""},{"$f":"IF(ISBLANK('9. PCPP - Referrals'!K81),\"\",'9. PCPP - Referrals'!K81)","v":""},{"$f":"IF(ISBLANK('9. PCPP - Referrals'!L81),\"\",'9. PCPP - Referrals'!L81)","v":""}]
[]
[]
[]
[]
[]
[]
[]
[]
[]
[]
[]
[]
[]
[]
[]
[]
[]
[]
[]
[]
[]
[]
[]
[]
[]
[]
[]
[]
[]
[]
[]
[]
[]
[]
[]
[]
[]
[]
[]
[]
[]
[]
[]
[]
[]
[]
[]
[]
[]
[]
[]
[]
[]
[]
[]
[]
[]
[]
[]
[]
[]
[]
[]
[]
[]
[]
[]
[]
[]
[]
[]
[]
[{"$f":"IF(ISBLANK('9. PCPP - Referrals'!D154),\"\",'9. PCPP - Referrals'!D154)","v":""}]
[{"$f":"IF(ISBLANK('9. PCPP - Referrals'!D155),\"\",'9. PCPP - Referrals'!D155)","v":""}]